Workbook

Sheet Title
A2: Assistive Product Provision Costing Tool v1
B3: v1 as of: 12-August-2021
I8: Developed by Clinton Health Access Initiative (CHAI) for ATscale, Global Partnership for Assistive Technology
H11: DISCLAIMERS
D12: This is an open-source tool - users please note that any changes in the structure or formulas may result in errors.
D13: Some default data are available in the tool, please ensure before using that they are the most accurate for your country.

Sheet Menu
A1: Assistive Product Provision Costing Tool v1
B2: =Title!B3 -> v1 as of: 12-August-2021

Sheet Guide
A2: Assitive Product Provision Costing Tool v1
A3: TOOL USER AND DATA ENTRY GUIDE
B4: =Title!B3 -> v1 as of: 12-August-2021
B6: Assitive Product Provision Costing Tool Overview
B8: The Assistive Product Provision Cositng Tool is an excel-based tool suited for planners and managers to determine the costs and funding of implementing assistive product provision program. The tool is customizable and can be used to quantify the resource inputs required in the introduction and expansion of an assistive product provision program in developing country settings at different levels of experience. This Tool comprises of start-up costs, training costs and service delivery costs at all levels of the health system.
B14: Data Entry
B15: All data entry must be completed in the light blue shaded cells only. Data entry may occur as direct entry or selection from a drop-down menu.
B16: Caution: Do not enter data into white cells, as they may contain formulas. Do not enter data into greyed out cells.
B18: Worksheet Overview
B21: Section | D21: Tab Color | F21: Description | H21: Worksheets Included | K21: Worksheet Description
H23: Title Page | K23: Tool Title Page
H24: Parameters | K24: Input the country and Program general information
H25: Scale-up | K25: Input scale-up assumptions (if applicable)
H26: Package of Service | K26: Input the list of services, target population, and incidence rate
H27: Coverge | K27: Input current utilization and coverage assumptions for each service
H28: Treatment Guidelines | K28: Input the Standard Treatment Guidelines (STGs) for each service in the package
H29: Staff Costs | K29: Input information about HCW categories and salary
H30: Training | K30: Input the cost of continuous trainings and TOTs
H31: Equipment | K31: Input equipment costs
H32: Assistive Products Costs | K32: Input the list of assistive products and their costs
H33: Other Recurrent Costs | K33: Input other recurrent program related costs
H34: Start-up_Capital Costs | K34: Input start-up and capital costs
H35: Financing | K35: Input funding commitments and anticipated funds towards the program
H37: Summary Tables | K37: Summary of key results presented in table format
H38: Graphs | K38: Key results presented in graph format
H39: Assistive Products Quantification | K39: Assistive products units and costs required to deliver package of services
B42: Additional Worksheets (Intermediate calculations)
B44: The following worksheets contain intermediate calculations and have been hidden to avoid accidental deletion. No data entry is required in these sheets.
B45: To unhide, right-click on any worksheet tab, select "Unhide", then select the worksheet to unhide.
B47: Section | D47: Tab Color | F47: Description | H47: Worksheets Included | K47: Worksheet Description
H49: Summary_STG | K49: Summary of STGs entered for services in package
H50: Demography | K50: Calculation of population breakdown by age and target population groups
H51: Summary Services | K51: Calculation of number of services provided
H52: Summary HCW | K52: Summary of HCW numbers, salary costs, and training requirements
H53: Quantification | K53: Calculation of total medicines units and costs
H54: Cost by Input | K54: Calculation of cost by Input (in currency entered in tool)
H55: Cost per Service | K55: Calculation of cost by Service (in currency entered in tool)

Sheet INPUTS->
B3: Intentionally blank

Sheet Parameters
A1: PARAMETERS
A2: =selected_country -> South Africa
B4: I. Country Information
C5: Country | D5: South Africa | F5: =IF(OR(selected_country="Andorra",selected_country="Cook Islands",selected_country="Dominica",selected_country="Liechtenstein",selected_country="Marshall Islands",selected_country= "Monaco",selected_country="Nauru",selected_country="Niue",selected_country="Palau",selected_country="Saint Kitts and Nevis",selected_country="San Marino",selected_country="Tuvalu"),"Warning - demographic data not available for this country.","") -> 
F6: =IF(OR(selected_country="Andorra",selected_country="Cook Islands",selected_country="Dominica",selected_country="Liechtenstein",selected_country="Marshall Islands",selected_country= "Monaco",selected_country="Nauru",selected_country="Niue",selected_country="Palau",selected_country="Saint Kitts and Nevis",selected_country="San Marino",selected_country="Tuvalu"),"Please manually input data into the Country_Database worksheet.","") -> 
C7: Baseline year of analysis | D7: 2021
C9: ="Total Population ("&baseline_year&")" -> Total Population (2021) | D9: =IF($D$5="",0,VLOOKUP($D$5,country_database,6,FALSE))*1000 -> 59308690
C10: Annual population growth rate | D10: 0.0133
B12: National Currency | C12: National Currency | D12: =IF($D$5="",0,VLOOKUP($D$5,country_database,3,FALSE)) -> ZAR
C13: ="Exchange rate per 1 USD ("&baseline_year&")" -> Exchange rate per 1 USD (2021) | D13: 15.368
C14: Enter data in: | D14: ZAR
C16: Annual inflation rate: | D16: 0.03
B19: II. Program Information
C20: Program | D20: Vision
C22: Number of projection years | D22: 5
C24: ="Will the program be scaled up within "&length_of_program&" years?" -> Will the program be scaled up within 5 years? | D24: Y
C26: ="% population targeted by the program in "&baseline_year -> % population targeted by the program in 2021 | D26: 0.25
C28: Financing | D28: Yes
B31: ="III. Health System implementing "&program&" Program at Baseline" -> III. Health System implementing Vision Program at Baseline
C33: Level | D33: ="Number in "&baseline_year -> Number in 2021
C34: District | D34: 200
A42: =IF($D$28="Yes",1,0) -> 1 | B42: IV. Sources of Financing
B44: 1 | C44: Donor1
B45: 2 | C45: Donor2
B46: 3 | C46: Donor3
B47: 4
B48: 5
B49: 6
B50: 7
B51: 8
B52: 9
B53: 10
B54: 11
B55: 12
B56: 13
B57: 14
B58: 15
B59: 16
B60: 17
B61: 18
B62: 19
B63: 20

Sheet Scale-up
A1: PROGRAM SCALE-UP
A2: =selected_country -> South Africa
C4: =IF(baseline_year=0,"Baseline Year",baseline_year) -> 2021 | D4: =IF(baseline_year=0,"Year 1",baseline_year+1) -> 2022 | E4: =IF(baseline_year=0,"Year 2",IF(length_of_program>1,baseline_year+2,"")) -> 2023 | F4: =IF(baseline_year=0,"Year 3",IF(length_of_program>2,baseline_year+3,"")) -> 2024 | G4: =IF(baseline_year=0,"Year 4",IF(length_of_program>3,baseline_year+4,"")) -> 2025 | H4: =IF(baseline_year=0,"Year 5",IF(length_of_program>4,baseline_year+5,"")) -> 2026
B6: Program Scale-up assumptions
B7: ="Total Population of "&selected_country -> Total Population of South Africa | C7: =national_pop -> 59308690 | D7: =C7*(1+national_pop_growth) -> 60097495.58 | E7: =D7*(1+national_pop_growth) -> 60896792.27 | F7: 61706719.61 | G7: 62527418.98 | H7: 63359033.65
B8: % population targeted by the program | C8: =target_pop -> 0.25 | D8: 0.15 | E8: 0.2 | F8: 0.25 | G8: 0.3 | H8: 0.35
B9: Total population covered | C9: =C8*C7 -> 14827172.5 | D9: =D8*D7 -> 9014624.337 | E9: 12179358.45 | F9: 15426679.9 | G9: 18758225.69 | H9: 22175661.78
B11: ="Number of Health Facilities implementing "&program&" Program" -> Number of Health Facilities implementing Vision Program
B13: =IF(Parameters!D34=0,"",level1) -> District | C13: =Parameters!D34 -> 200 | D13: 300 | E13: 400 | F13: 500 | G13: 600 | H13: 700
B14: =IF(Parameters!D35=0,"",level2) ->  | C14: =Parameters!D35 -> 0
B15: =IF(Parameters!D36=0,"",level3) ->  | C15: =Parameters!D36 -> 0
B16: =IF(Parameters!D37=0,"",level4) ->  | C16: =Parameters!D37 -> 0

Sheet SERVICES->
B3: Intentionally blank

Sheet Package_Services
A1: PACKAGE OF SERVICES
A2: =selected_country -> South Africa
T4: DO NOT DELETE OR OVERWRITE
B6: Service / Intervention | C6: Program | D6: Target population | E6: Service Type | F6: HCW category providing service | G6: Number of episodes/cases per target population | H6: Frequency (services other than curative and preventive) | J6: Service reference | K6: Incidence/ frequency reference | T6: Service reference | U6: Incidence / Frequency reference
A8: 1 | B8: Vision Screening | C8: Vision | D8: Children <15 | E8: Preventive | F8: Optometrist | G8: 1 | I8: =IF(E8="",0,IF(OR(E8="Curative",E8="Preventive"),G8,IF(H8="Weekly",52,IF(H8="Twice a month",24,IF(H8="Monthly",12,IF(H8="Quarterly",4,IF(H8="Twice a year",2,IF(H8="Yearly",1)))))))) -> 1
A9: 2 | B9: Low Vision Assessment and Dispensing | C9: Vision | D9: Children <15 | E9: Curative | F9: Optometrist | G9: 1 | I9: 1
A10: 3 | I10: 0
A11: 4 | I11: 0
A12: 5 | I12: 0
A13: 6 | I13: 0
A14: 7 | I14: 0
A15: 8 | I15: 0
A16: 9 | I16: 0
A17: 10 | I17: 0
A18: 11 | I18: 0
A19: 12 | I19: 0
A20: 13 | I20: 0
A21: 14 | I21: 0
A22: 15 | I22: 0
A23: 16 | I23: 0
A24: 17 | I24: 0
A25: 18 | I25: 0
A26: 19 | I26: 0
A27: 20 | I27: 0
A28: 21 | I28: 0
A29: 22 | I29: 0
A30: 23 | I30: 0
A31: 24 | I31: 0
A32: 25 | I32: 0
A33: 26 | I33: 0
A34: 27 | I34: 0
A35: 28 | I35: 0
A36: 29 | I36: 0
A37: 30 | I37: 0

Sheet Coverage
A1: COVERAGE RATES
A2: =selected_country -> South Africa
C4: Use actual services at baseline or coverage calculation? | G4: Coverage Calculation
C6: COVERAGE AT BASELINE | H6: COVERAGE TARGETS
B7: Service/intervention | C7: ="Actual number of services "&baseline_year -> Actual number of services 2021 | D7: ="Expected number of services "&baseline_year -> Expected number of services 2021 | E7: ="Coverage in "&baseline_year -> Coverage in 2021 | G7: =baseline_year -> 2021 | H7: =baseline_year+1 -> 2022 | I7: =H7+1 -> 2023 | J7: =I7+1 -> 2024 | K7: =J7+1 -> 2025 | L7: =K7+1 -> 2026
A9: 1 | B9: =Package_Services!B8 -> Vision Screening | C9: 0 | D9: =Summary_Services!R6 -> 4335542 | E9: =IF(D9=0,0,C9/D9) -> 0 | G9: 0.2 | H9: 0.25 | I9: 0.35 | J9: 0.45 | K9: 0.55 | L9: 0.55
A10: 2 | B10: =Package_Services!B9 -> Low Vision Assessment and Dispensing | C10: 0 | D10: =Summary_Services!R7 -> 4335542 | E10: =IF(D10=0,0,C10/D10) -> 0 | G10: 0.2 | H10: 0.31 | I10: 0.35 | J10: 0.4 | K10: 0.45 | L10: 0.45
A11: 3 | B11: =Package_Services!B10 -> 0 | C11: 0 | D11: =Summary_Services!R8 -> 0 | E11: 0
A12: 4 | B12: =Package_Services!B11 -> 0 | C12: 0 | D12: =Summary_Services!R9 -> 0 | E12: 0
A13: 5 | B13: =Package_Services!B12 -> 0 | C13: 0 | D13: =Summary_Services!R10 -> 0 | E13: 0
A14: 6 | B14: =Package_Services!B13 -> 0 | C14: 0 | D14: =Summary_Services!R11 -> 0 | E14: 0
A15: 7 | B15: =Package_Services!B14 -> 0 | D15: =Summary_Services!R12 -> 0 | E15: =IF(D15=0,0,C15/D15) -> 0
A16: 8 | B16: =Package_Services!B15 -> 0 | C16: 0 | D16: =Summary_Services!R13 -> 0 | E16: =IF(D16=0,0,C16/D16) -> 0
A17: 9 | B17: =Package_Services!B16 -> 0 | C17: 0 | D17: =Summary_Services!R14 -> 0 | E17: =IF(D17=0,0,C17/D17) -> 0
A18: 10 | B18: =Package_Services!B17 -> 0 | C18: 0 | D18: =Summary_Services!R15 -> 0 | E18: 0
A19: 11 | B19: =Package_Services!B18 -> 0 | C19: 0 | D19: =Summary_Services!R16 -> 0 | E19: 0
A20: 12 | B20: =Package_Services!B19 -> 0 | C20: 0 | D20: =Summary_Services!R17 -> 0 | E20: 0
A21: 13 | B21: =Package_Services!B20 -> 0 | C21: 0 | D21: =Summary_Services!R18 -> 0 | E21: 0
A22: 14 | B22: =Package_Services!B21 -> 0 | C22: 0 | D22: =Summary_Services!R19 -> 0 | E22: 0
A23: 15 | B23: =Package_Services!B22 -> 0 | C23: 0 | D23: =Summary_Services!R20 -> 0 | E23: 0
A24: 16 | B24: =Package_Services!B23 -> 0 | C24: 0 | D24: =Summary_Services!R21 -> 0 | E24: 0
A25: 17 | B25: =Package_Services!B24 -> 0 | C25: 0 | D25: =Summary_Services!R22 -> 0 | E25: 0
A26: 18 | B26: =Package_Services!B25 -> 0 | C26: 0 | D26: =Summary_Services!R23 -> 0 | E26: 0
A27: 19 | B27: =Package_Services!B26 -> 0 | C27: 0 | D27: =Summary_Services!R24 -> 0 | E27: 0
A28: 20 | B28: =Package_Services!B27 -> 0 | C28: 0 | D28: =Summary_Services!R25 -> 0 | E28: 0
A29: 21 | B29: =Package_Services!B28 -> 0 | C29: 0 | D29: =Summary_Services!R26 -> 0 | E29: 0
A30: 22 | B30: =Package_Services!B29 -> 0 | C30: 0 | D30: =Summary_Services!R27 -> 0 | E30: 0
A31: 23 | B31: =Package_Services!B30 -> 0 | C31: 0 | D31: =Summary_Services!R28 -> 0 | E31: 0
A32: 24 | B32: =Package_Services!B31 -> 0 | C32: 0 | D32: =Summary_Services!R29 -> 0 | E32: 0
A33: 25 | B33: =Package_Services!B32 -> 0 | C33: 0 | D33: =Summary_Services!R30 -> 0 | E33: 0
A34: 26 | B34: =Package_Services!B33 -> 0 | C34: 0 | D34: =Summary_Services!R31 -> 0 | E34: 0
A35: 27 | B35: =Package_Services!B34 -> 0 | C35: 0 | D35: =Summary_Services!R32 -> 0 | E35: 0
A36: 28 | B36: =Package_Services!B35 -> 0 | C36: 0 | D36: =Summary_Services!R33 -> 0 | E36: 0
A37: 29 | B37: =Package_Services!B36 -> 0 | C37: 0 | D37: =Summary_Services!R34 -> 0 | E37: 0
A38: 30 | B38: =Package_Services!B37 -> 0 | C38: 0 | D38: =Summary_Services!R35 -> 0 | E38: 0

Sheet Treatment_Guidelines
A1: STANDARD TREATMENT GUIDELINES
A2: =selected_country -> South Africa
B4: ="1) "&Package_Services!$B$8 -> 1) Vision Screening | D4: Service type: | E4: =Package_Services!E8 -> Preventive
B6: Time required per service (indicate if minutes, hours, or days) | C6: 10 | D6: Minutes
B8: Name of Assistive Product or Supply | C8: Total units | D8: ="Unit cost ("&currency_enter&")" -> Unit cost (ZAR) | E8: ="Total cost ("&currency_enter&")" -> Total cost (ZAR)
D9: =IF(B9="",0,VLOOKUP(B9,lookup_assistive_device,4,FALSE)) -> 0 | E9: =C9*D9 -> 0
D10: 0 | E10: =C10*D10 -> 0
D11: 0 | E11: =C11*D11 -> 0
D12: 0 | E12: 0
D13: 0 | E13: 0
D14: 0 | E14: 0
D15: 0 | E15: 0
D16: 0 | E16: 0
D17: ="Average episode cost ("&currency_enter&"):" -> Average episode cost (ZAR): | E17: =SUM(E9:E16) -> 0
B19: ="2) "&Package_Services!$B$9 -> 2) Low Vision Assessment and Dispensing | D19: Service type: | E19: =Package_Services!E9 -> Curative
B21: Time required per service (indicate if minutes, hours, or days) | C21: 20 | D21: Minutes
B23: Name of Assistive Product or Supply | C23: Total units per service | D23: Unit cost (ZAR) | E23: ="Total cost ("&currency_enter&")" -> Total cost (ZAR)
B24: Single vision spectales | C24: 1 | D24: =IF(B24="",0,VLOOKUP(B24,lookup_assistive_device,4,FALSE)) -> 165 | E24: =C24*D24 -> 165
D25: 0 | E25: =C25*D25 -> 0
D26: 0 | E26: =C26*D26 -> 0
D27: 0 | E27: 0
D28: 0 | E28: 0
D29: 0 | E29: 0
D30: 0 | E30: 0
D31: 0 | E31: 0
D32: ="Average episode cost ("&currency_enter&"):" -> Average episode cost (ZAR): | E32: =SUM(E24:E31) -> 165
B34: ="3) "&Package_Services!$B$10 -> 3) | D34: Service type: | E34: =Package_Services!F10 -> 0
B36: Time required per service (indicate if minutes, hours, or days) | D36: Minutes
B38: Name of Assistive Device or Supply | C38: Total units per service | D38: Unit cost (ZAR) | E38: ="Total cost ("&currency_enter&")" -> Total cost (ZAR)
D39: =IF(B39="",0,VLOOKUP(B39,lookup_assistive_device,4,FALSE)) -> 0 | E39: =C39*D39 -> 0
D40: 0 | E40: =C40*D40 -> 0
D41: 0 | E41: =C41*D41 -> 0
D42: 0 | E42: 0
D43: 0 | E43: 0
D44: 0 | E44: 0
D45: 0 | E45: 0
D46: 0 | E46: 0
D47: ="Average episode cost ("&currency_enter&"):" -> Average episode cost (ZAR): | E47: =SUM(E39:E46) -> 0
B49: ="4) "&Package_Services!$B$11 -> 4) | D49: Service type: | E49: =Package_Services!F11 -> 0
B51: Time required per service (indicate if minutes, hours, or days) | D51: Minutes
B53: Name of Assistive Device or Supply | C53: Total units per service | D53: Unit cost (ZAR) | E53: ="Total cost ("&currency_enter&")" -> Total cost (ZAR)
D54: =IF(B54="",0,VLOOKUP(B54,lookup_assistive_device,4,FALSE)) -> 0 | E54: =C54*D54 -> 0
D55: 0 | E55: =C55*D55 -> 0
D56: 0 | E56: =C56*D56 -> 0
D57: 0 | E57: 0
D58: 0 | E58: 0
D59: 0 | E59: 0
D60: 0 | E60: 0
D61: 0 | E61: 0
D62: ="Average episode cost ("&currency_enter&"):" -> Average episode cost (ZAR): | E62: =SUM(E54:E61) -> 0
B65: ="5) "&Package_Services!$B$12 -> 5) | D65: Service type: | E65: =Package_Services!F12 -> 0
B67: Time required per service (indicate if minutes, hours, or days) | D67: Minutes
B69: Name of Assistive Device or Supply | C69: Total units per service | D69: Unit cost (ZAR) | E69: ="Total cost ("&currency_enter&")" -> Total cost (ZAR)
D70: =IF(B70="",0,VLOOKUP(B70,lookup_assistive_device,4,FALSE)) -> 0 | E70: =C70*D70 -> 0
D71: 0 | E71: =C71*D71 -> 0
D72: 0 | E72: =C72*D72 -> 0
D73: 0 | E73: 0
D74: 0 | E74: 0
D75: 0 | E75: 0
D76: 0 | E76: 0
D77: 0 | E77: 0
D78: ="Average episode cost ("&currency_enter&"):" -> Average episode cost (ZAR): | E78: =SUM(E70:E77) -> 0
B81: ="6) "&Package_Services!$B$13 -> 6) | D81: Service type: | E81: =Package_Services!F13 -> 0
B83: Time required per service (indicate if minutes, hours, or days) | D83: Minutes
C85: Total units per service | D85: Unit cost (ZAR) | E85: ="Total cost ("&currency_enter&")" -> Total cost (ZAR)
D86: =IF(B86="",0,VLOOKUP(B86,lookup_assistive_device,4,FALSE)) -> 0 | E86: =C86*D86 -> 0
D87: 0 | E87: =C87*D87 -> 0
D88: 0 | E88: =C88*D88 -> 0
D89: 0 | E89: 0
D90: 0 | E90: 0
D91: 0 | E91: 0
D92: 0 | E92: 0
D93: 0 | E93: 0
D94: ="Average episode cost ("&currency_enter&"):" -> Average episode cost (ZAR): | E94: =SUM(E86:E93) -> 0
B97: ="7) "&Package_Services!$B$14 -> 7) | D97: Service type: | E97: =Package_Services!F14 -> 0
B99: Time required per service (indicate if minutes, hours, or days)
B101: Name of Assistive Device or Supply | C101: Total units per service | D101: Unit cost (ZAR) | E101: ="Total cost ("&currency_enter&")" -> Total cost (ZAR)
D102: =IF(B102="",0,VLOOKUP(B102,lookup_assistive_device,4,FALSE)) -> 0 | E102: =C102*D102 -> 0
D103: 0 | E103: =C103*D103 -> 0
D104: 0 | E104: =C104*D104 -> 0
D105: 0 | E105: 0
D106: 0 | E106: 0
D107: 0 | E107: 0
D108: 0 | E108: 0
D109: 0 | E109: 0
D110: ="Average episode cost ("&currency_enter&"):" -> Average episode cost (ZAR): | E110: =SUM(E102:E109) -> 0
B114: ="8) "&Package_Services!$B$15 -> 8) | D114: Service type: | E114: =Package_Services!F15 -> 0
B116: Time required per service (indicate if minutes, hours, or days)
C118: Total units per service | D118: Unit cost (ZAR) | E118: ="Total cost ("&currency_enter&")" -> Total cost (ZAR)
D119: =IF(B119="",0,VLOOKUP(B119,lookup_assistive_device,4,FALSE)) -> 0 | E119: =C119*D119 -> 0
D120: 0 | E120: =C120*D120 -> 0
D121: 0 | E121: =C121*D121 -> 0
D122: 0 | E122: 0
D123: 0 | E123: 0
D124: 0 | E124: 0
D125: 0 | E125: 0
D126: 0 | E126: 0
D127: ="Average episode cost ("&currency_enter&"):" -> Average episode cost (ZAR): | E127: =SUM(E119:E126) -> 0
B130: ="9) "&Package_Services!$B$16 -> 9) | D130: Service type: | E130: =Package_Services!E16 -> 0
B132: Time required per service (indicate if minutes, hours, or days)
C134: Total units per service | D134: Unit cost (ZAR) | E134: ="Total cost ("&currency_enter&")" -> Total cost (ZAR)
D135: =IF(B135="",0,VLOOKUP(B135,lookup_assistive_device,4,FALSE)) -> 0 | E135: =C135*D135 -> 0
D136: 0 | E136: =C136*D136 -> 0
D137: 0 | E137: =C137*D137 -> 0
D138: 0 | E138: 0
D139: 0 | E139: 0
D140: 0 | E140: 0
D141: 0 | E141: 0
D142: 0 | E142: 0
D143: ="Average episode cost ("&currency_enter&"):" -> Average episode cost (ZAR): | E143: =SUM(E135:E142) -> 0
B147: ="10) "&Package_Services!$B$17 -> 10) | D147: Service type: | E147: =Package_Services!E17 -> 0
B149: Time required per service (indicate if minutes, hours, or days)
C151: Total units per service | D151: Unit cost (ZAR) | E151: ="Total cost ("&currency_enter&")" -> Total cost (ZAR)
D152: =IF(B152="",0,VLOOKUP(B152,lookup_assistive_device,4,FALSE)) -> 0 | E152: =C152*D152 -> 0
D153: 0 | E153: =C153*D153 -> 0
D154: 0 | E154: =C154*D154 -> 0
D155: 0 | E155: 0
D156: 0 | E156: 0
D157: 0 | E157: 0
D158: 0 | E158: 0
D159: 0 | E159: 0
D160: ="Average episode cost ("&currency_enter&"):" -> Average episode cost (ZAR): | E160: =SUM(E152:E159) -> 0

Sheet COST CATEGORIES->
B3: Intentionally blank

Sheet Staff_Costs
A1: STAFF COSTS
A2: South Africa
B6: Category | D6: Cadre | E6: Program | F6: ="Number of HCWs at baseline year ("&baseline_year&")" -> Number of HCWs at baseline year (2021) | G6: Annual Attrition Rate (%) | H6: Desired ratio population per HCW i.e. X population per HCW) | I6: Select method of calculating number of HCWs | J6: ="Annual salary ("&currency_enter&")" -> Annual salary (ZAR)
J7: =baseline_year -> 2021
B9: Therapeutic, Diagnostic Allied Health Professionals | C9: Type 1 | D9: Optometrist | E9: Vision | F9: 50 | G9: 0.005 | H9: 0 | I9: Manual Entry | J9: =IF(_rt1=0,0,VLOOKUP(D9,lookup_salaries,6,FALSE)) -> 591216.9723
C10: Type 2 | D10: Dispensing Optician (C/S) | E10: Vision | F10: 10 | G10: 0 | H10: 0 | I10: Manual Entry | J10: =IF(_rt2=0,0,VLOOKUP(D10,lookup_salaries,6,FALSE)) -> 339484.6022
C11: Type 3 | J11: =IF(_rt3=0,0,VLOOKUP(D11,lookup_salaries,6,FALSE)) -> 0
C12: Type 4 | J12: =IF(_rt4=0,0,VLOOKUP(D12,lookup_salaries,6,FALSE)) -> 0
C13: Type 5 | J13: =IF(_rt5=0,0,VLOOKUP(D13,lookup_salaries,6,FALSE)) -> 0
C14: Type 6 | J14: =IF(_rt6=0,0,VLOOKUP(D14,lookup_salaries,6,FALSE)) -> 0
C15: Type 7 | J15: =IF(_rt7=0,0,VLOOKUP(D15,lookup_salaries,6,FALSE)) -> 0
C16: Type 8 | J16: =IF(_rt8=0,0,VLOOKUP(D16,lookup_salaries,6,FALSE)) -> 0
C17: Type 9 | J17: =IF(_rt9=0,0,VLOOKUP(D17,lookup_salaries,6,FALSE)) -> 0
C18: Type 10 | J18: =IF(_rt10=0,0,VLOOKUP(D18,lookup_salaries,6,FALSE)) -> 0
D22: MANUAL ENTRY | E22: ="Baseline ("&'Scale-up'!C4&")" -> Baseline (2021) | F22: ='Scale-up'!D4 -> 2022 | G22: ='Scale-up'!E4 -> 2023 | H22: ='Scale-up'!F4 -> 2024 | I22: ='Scale-up'!G4 -> 2025 | J22: ='Scale-up'!H4 -> 2026
D23: =_rt1 -> Optometrist | E23: =F9 -> 50 | F23: 55 | G23: 60 | H23: 70 | I23: 75 | J23: 80
D24: =_rt2 -> Dispensing Optician (C/S) | E24: =F10 -> 10 | F24: 15 | G24: 20 | H24: 25 | I24: 30 | J24: 35
D25: =_rt3 -> 0
D26: =_rt4 -> 0
D27: =_rt5 -> 0
D28: =_rt6 -> 0
D29: =_rt7 -> 0
D30: =_rt8 -> 0
D31: =_rt9 -> 0
D32: =_rt10 -> 0
A54: =IF(SUM(A55:A68)=0,0,1) ->  | B54: IV. MANUAL ENTRY | D54: Baseline (2018) | F54: 2019 | G54: 2020 | H54: 2021 | I54: 2022
A55: =IF(#REF!="Manual Entry",1,0) ->  | B55: =_xlfn.SINGLE(_rt1) -> Optometrist | D55: =#REF! -> 
A56: =IF(#REF!="Manual Entry",1,0) ->  | B56: =_xlfn.SINGLE(_rt2) -> Dispensing Optician (C/S) | D56: =#REF! -> 
A57: =IF(#REF!="Manual Entry",1,0) ->  | B57: =_xlfn.SINGLE(_rt3) -> 0 | D57: =#REF! -> 
A58: =IF(#REF!="Manual Entry",1,0) ->  | B58: =supervisor1 ->  | D58: =#REF! -> 
A59: =IF(#REF!="Manual Entry",1,0) ->  | B59: =supervisor2 ->  | D59: =#REF! -> 
A60: =IF(#REF!="Manual Entry",1,0) ->  | B60: =supervisor3 ->  | D60: =#REF! -> 
A61: =IF(#REF!="Manual Entry",1,0) ->  | B61: =#REF! ->  | D61: =#REF! -> 
A62: =IF(#REF!="Manual Entry",1,0) ->  | B62: =#REF! ->  | D62: =#REF! -> 
A63: =IF(#REF!="Manual Entry",1,0) ->  | B63: =#REF! ->  | D63: =#REF! -> 
A64: =IF(#REF!="Manual Entry",1,0) ->  | B64: =#REF! ->  | D64: =#REF! -> 
A65: =IF(#REF!="Manual Entry",1,0) ->  | B65: =#REF! ->  | D65: =#REF! -> 
A66: =IF(#REF!="Manual Entry",1,0) ->  | B66: =#REF! ->  | D66: =#REF! -> 
A67: =IF(#REF!="Manual Entry",1,0) ->  | B67: =#REF! ->  | D67: =#REF! -> 
A68: =IF(#REF!="Manual Entry",1,0) ->  | B68: =#REF! ->  | D68: =#REF! -> 

Sheet Training
A1: TRAINING
A2: South Africa
P3: DO NOT OVERWRITE OR DELETE THESE COLUMNS | X3: Number of Participants
P4: 2 | Q4: 3 | R4: 4 | S4: 5 | T4: 6 | U4: 7 | X4: 2 | Y4: 3 | Z4: 4 | AA4: 5 | AB4: 6 | AC4: 7
P5: =baseline_year -> 2021 | Q5: =baseline_year+1 -> 2022 | R5: =Q5+1 -> 2023 | S5: =R5+1 -> 2024 | T5: =S5+1 -> 2025 | U5: =T5+1 -> 2026 | X5: =baseline_year -> 2021 | Y5: =baseline_year+1 -> 2022 | Z5: =Y5+1 -> 2023 | AA5: =Z5+1 -> 2024 | AB5: =AA5+1 -> 2025 | AC5: =AB5+1 -> 2026
B6: Description of Training | C6: Start Year for Training | D6: Health System Level | E6: Program | F6: Frequency of training sessions (in-service) | G6: Training Participants | H6: Number of Additional Participants | I6: ="Cost per participant per session ("&currency_enter&")" -> Cost per participant per session (ZAR)
A8: 1 | B8: Continuing Education | C8: 2021 | D8: District | E8: Vision | F8: Annually | G8: Optometrist | I8: 6000 | N8: =IF(F8=0,0,IF(OR(F8="Monthly",F8="Quarterly",F8="Every 6 months",F8="Annually"),1,IF(OR(F8="Every 2 years",F8="Every 3 years",F8="Every 4 years",F8="Every 5 years"),2))) -> 1 | O8: =IF(F8=0,0,IF(F8="Monthly",12,IF(F8="Quarterly",4,IF(F8="Every 6 months",2,IF(F8="Annually",1,IF(F8="Every 2 years",2,IF(F8="Every 3 years",3,IF(F8="Every 4 years",4,IF(F8="Every 5 years",5))))))))) -> 1 | P8: =IF($N8=1,$O8*$I8*X8,IF($N8=2,IF($C8=P$5,$I8*X8,0))) -> 300000 | Q8: =IF($N8=1,$O8*($I8*(1+inflation_rate))*Y8,IF(AND($N8=2,$C8=Q$5),$I8*Y8,IF(AND($N8=2,$C8>Q$5),0,IF($C8=0,0,IF($C8=Q$5,($I8*(1+inflation_rate))*Y8,IF($C8>Q$5,0,IF($C8+$O8=Q$5,($I8*(1+inflation_rate))*Y8,IF($C8+(2*$O8)=Q$5,($I8*(1+inflation_rate))*Y8,IF($C8+(3*$O8)=Q$5,($I8*(1+inflation_rate))*Y8,IF($C8+(4*$O8)=Q$5,($I8*(1+inflation_rate))*Y8,IF($C8+(5*$O8)=Q$5,($I8*(1+inflation_rate))*Y8,0))))))))))) -> 302820 | R8: =IF($N8=1,$O8*($I8*(1+inflation_rate))*Z8,IF(AND($N8=2,$C8=R$5),$I8*Z8,IF(AND($N8=2,$C8>R$5),0,IF($C8=0,0,IF($C8=R$5,($I8*(1+inflation_rate))*Z8,IF($C8>R$5,0,IF($C8+$O8=R$5,($I8*(1+inflation_rate))*Z8,IF($C8+(2*$O8)=R$5,($I8*(1+inflation_rate))*Z8,IF($C8+(3*$O8)=R$5,($I8*(1+inflation_rate))*Z8,IF($C8+(4*$O8)=R$5,($I8*(1+inflation_rate))*Z8,IF($C8+(5*$O8)=R$5,($I8*(1+inflation_rate))*Z8,0))))))))))) -> 333720 | S8: =IF($N8=1,$O8*($I8*(1+inflation_rate))*AA8,IF(AND($N8=2,$C8=S$5),$I8*AA8,IF(AND($N8=2,$C8>S$5),0,IF($C8=0,0,IF($C8=S$5,($I8*(1+inflation_rate))*AA8,IF($C8>S$5,0,IF($C8+$O8=S$5,($I8*(1+inflation_rate))*AA8,IF($C8+(2*$O8)=S$5,($I8*(1+inflation_rate))*AA8,IF($C8+(3*$O8)=S$5,($I8*(1+inflation_rate))*AA8,IF($C8+(4*$O8)=S$5,($I8*(1+inflation_rate))*AA8,IF($C8+(5*$O8)=S$5,($I8*(1+inflation_rate))*AA8,0))))))))))) -> 364620 | T8: =IF($N8=1,$O8*($I8*(1+inflation_rate))*AB8,IF(AND($N8=2,$C8=T$5),$I8*AB8,IF(AND($N8=2,$C8>T$5),0,IF($C8=0,0,IF($C8=T$5,($I8*(1+inflation_rate))*AB8,IF($C8>T$5,0,IF($C8+$O8=T$5,($I8*(1+inflation_rate))*AB8,IF($C8+(2*$O8)=T$5,($I8*(1+inflation_rate))*AB8,IF($C8+(3*$O8)=T$5,($I8*(1+inflation_rate))*AB8,IF($C8+(4*$O8)=T$5,($I8*(1+inflation_rate))*AB8,IF($C8+(5*$O8)=T$5,($I8*(1+inflation_rate))*AB8,0))))))))))) -> 426420 | U8: =IF($N8=1,$O8*($I8*(1+inflation_rate))*AC8,IF(AND($N8=2,$C8=U$5),$I8*AC8,IF(AND($N8=2,$C8>U$5),0,IF($C8=0,0,IF($C8=U$5,($I8*(1+inflation_rate))*AC8,IF($C8>U$5,0,IF($C8+$O8=U$5,($I8*(1+inflation_rate))*AC8,IF($C8+(2*$O8)=U$5,($I8*(1+inflation_rate))*AC8,IF($C8+(3*$O8)=U$5,($I8*(1+inflation_rate))*AC8,IF($C8+(4*$O8)=U$5,($I8*(1+inflation_rate))*AC8,IF($C8+(5*$O8)=U$5,($I8*(1+inflation_rate))*AC8,0))))))))))) -> 457320 | X8: =IFERROR(VLOOKUP($D8,lookup_healthsystemlevels,X$4,FALSE)*$H8+(VLOOKUP($G8,lookup_rt_recurrent,X$4,FALSE)),0) -> 50 | Y8: 49 | Z8: 54 | AA8: 59 | AB8: 69 | AC8: 74
A9: 2 | B9: Continuing Education | C9: 2021 | D9: District | E9: Vision | F9: Annually | G9: Dispensing Optician (C/S) | I9: 3000 | N9: =IF(F9=0,0,IF(OR(F9="Monthly",F9="Quarterly",F9="Every 6 months",F9="Annually"),1,IF(OR(F9="Every 2 years",F9="Every 3 years",F9="Every 4 years",F9="Every 5 years"),2))) -> 1 | O9: =IF(F9=0,0,IF(F9="Monthly",12,IF(F9="Quarterly",4,IF(F9="Every 6 months",2,IF(F9="Annually",1,IF(F9="Every 2 years",2,IF(F9="Every 3 years",3,IF(F9="Every 4 years",4,IF(F9="Every 5 years",5))))))))) -> 1 | P9: =IF($N9=1,$O9*$I9*X9,IF($N9=2,IF($C9=P$5,$I9*X9,0))) -> 30000 | Q9: 30900 | R9: 43260 | S9: 58710 | T9: 74160 | U9: 89610 | X9: 10 | Y9: 10 | Z9: 14 | AA9: 19 | AB9: 24 | AC9: 29
A10: 3 | N10: 0 | O10: 0 | P10: FALSE | Q10: 0 | R10: 0 | S10: 0 | T10: 0 | U10: 0 | X10: 0 | Y10: 0 | Z10: 0 | AA10: 0 | AB10: 0 | AC10: 0
A11: 4 | N11: 0 | O11: 0 | P11: FALSE | Q11: 0 | R11: 0 | S11: 0 | T11: 0 | U11: 0 | X11: 0 | Y11: 0 | Z11: 0 | AA11: 0 | AB11: 0 | AC11: 0
A12: 5 | N12: 0 | O12: 0 | P12: FALSE | Q12: 0 | R12: 0 | S12: 0 | T12: 0 | U12: 0 | X12: 0 | Y12: 0 | Z12: 0 | AA12: 0 | AB12: 0 | AC12: 0
A13: 6 | N13: 0 | O13: 0 | P13: FALSE | Q13: 0 | R13: 0 | S13: 0 | T13: 0 | U13: 0 | X13: 0 | Y13: 0 | Z13: 0 | AA13: 0 | AB13: 0 | AC13: 0
A14: 7 | N14: 0 | O14: 0 | P14: FALSE | Q14: 0 | R14: 0 | S14: 0 | T14: 0 | U14: 0 | X14: 0 | Y14: 0 | Z14: 0 | AA14: 0 | AB14: 0 | AC14: 0
A15: 8 | N15: 0 | O15: 0 | P15: FALSE | Q15: 0 | R15: 0 | S15: 0 | T15: 0 | U15: 0 | X15: 0 | Y15: 0 | Z15: 0 | AA15: 0 | AB15: 0 | AC15: 0
A16: 9 | N16: 0 | O16: 0 | P16: FALSE | Q16: 0 | R16: 0 | S16: 0 | T16: 0 | U16: 0 | X16: 0 | Y16: 0 | Z16: 0 | AA16: 0 | AB16: 0 | AC16: 0
A17: 10 | N17: 0 | O17: 0 | P17: FALSE | Q17: 0 | R17: 0 | S17: 0 | T17: 0 | U17: 0 | X17: 0 | Y17: 0 | Z17: 0 | AA17: 0 | AB17: 0 | AC17: 0
O18: Total Cost HCW training | P18: =SUM(P8:P17) -> 330000 | Q18: 333720 | R18: 376980 | S18: 423330 | T18: 500580 | U18: 546930 | X18: =SUM(X8:X17) -> 60 | Y18: 59 | Z18: 68 | AA18: 78 | AB18: 93 | AC18: 103

Sheet Equipment
A1: EQUIPMENT
A2: South Africa
B5: What is the % mark-up on assistive devices and supplies for transport, storage, management, and distribution? | I5: 0.1 | Q5: DO NOT DELETE OR OVERWRITE
B7: Item | C7: Health System Level | D7: Program | E7: Units per Health system level | F7: ="Unit Cost ("&currency_enter&")" -> Unit Cost (ZAR) | G7: Initial Year of Purchase | H7: Replacement Frequency (Years) | I7: ="Unit Cost + Markup ("&currency_enter&")" -> Unit Cost + Markup (ZAR) | Q7: 2 | R7: 3 | S7: 4 | T7: 5 | U7: 6 | V7: 7
Q8: =baseline_year -> 2021 | R8: =baseline_year+1 -> 2022 | S8: =R8+1 -> 2023 | T8: =S8+1 -> 2024 | U8: =T8+1 -> 2025 | V8: =U8+1 -> 2026
A9: 1 | B9: Trial Lens Set 266 pieces - Metal rims (includes 0.25 & 0.50 Cross Cyls) | C9: District | D9: Vision | E9: 1 | F9: 4094 | G9: 2021 | H9: 2 | I9: =F9*(1+markup_equipement) -> 4503.4 | Q9: =IF($G9=0,0,IF(AND($G9=Q$8,$H9=0),$I9*$E9*VLOOKUP($C9,lookup_healthsystemlevels,Q$7,FALSE),IF(AND($G9=Q$8,$H9>0),$I9*$E9*(VLOOKUP($C9,lookup_healthsystemlevels,Q$7,FALSE)),0))) -> 900680 | R9: =IF($G9=0,0,IF($G9>R$8,0,IF(AND($G9=R$8,$H9>0),($I9*((1+inflation_rate)^P$7))*$E9*(VLOOKUP($C9,lookup_healthsystemlevels,R$7,FALSE)),IF(AND($G9=R$8,$H9=0),($I9*((1+inflation_rate)^P$7))*$E9*(VLOOKUP($C9,lookup_healthsystemlevels,R$7,FALSE)),IF(AND($G9<R$8,$H9=0),($I9*((1+inflation_rate)^P$7))*$E9*(VLOOKUP($C9,lookup_healthsystemlevels,R$7,FALSE)),IF(AND($G9<R$8,$H9=1),(($I9*((1+inflation_rate)^P$7))*$E9*(VLOOKUP($C9,lookup_healthsystemlevels,R$7,FALSE))),IF(AND($G9<R$8,$G9+$H9=R$8),($I9*((1+inflation_rate)^P$7))*$E9*(VLOOKUP($C9,lookup_healthsystemlevels,R$7,FALSE)),IF(AND($G9<R$8,$G9+(2*$H9)=R$8),($I9*((1+inflation_rate)^P$7))*$E9*(VLOOKUP($C9,lookup_healthsystemlevels,R$7,FALSE)),IF(AND($G9<R$8,$G9+(3*$H9)=R$8),($I9*((1+inflation_rate)^P$7))*$E9*(VLOOKUP($C9,lookup_healthsystemlevels,R$7,FALSE)),IF(AND($G9<R$8,$G9+(4*$H9)=R$8),($I9*((1+inflation_rate)^P$7))*$E9*(VLOOKUP($C9,lookup_healthsystemlevels,R$7,FALSE)),IF(AND($G9<R$8,$G9+(5*$H9)=R$8),($I9*((1+inflation_rate)^P$7))*$E9*(VLOOKUP($C9,lookup_healthsystemlevels,R$7,FALSE)),0))))))))))) -> 0 | S9: =IF($G9=0,0,IF($G9>S$8,0,IF(AND($G9=S$8,$H9>0),($I9*((1+inflation_rate)^Q$7))*$E9*(VLOOKUP($C9,lookup_healthsystemlevels,S$7,FALSE)),IF(AND($G9=S$8,$H9=0),($I9*((1+inflation_rate)^Q$7))*$E9*(VLOOKUP($C9,lookup_healthsystemlevels,S$7,FALSE)),IF(AND($G9<S$8,$H9=0),($I9*((1+inflation_rate)^Q$7))*$E9*(VLOOKUP($C9,lookup_healthsystemlevels,S$7,FALSE)),IF(AND($G9<S$8,$H9=1),(($I9*((1+inflation_rate)^Q$7))*$E9*(VLOOKUP($C9,lookup_healthsystemlevels,S$7,FALSE))),IF(AND($G9<S$8,$G9+$H9=S$8),($I9*((1+inflation_rate)^Q$7))*$E9*(VLOOKUP($C9,lookup_healthsystemlevels,S$7,FALSE)),IF(AND($G9<S$8,$G9+(2*$H9)=S$8),($I9*((1+inflation_rate)^Q$7))*$E9*(VLOOKUP($C9,lookup_healthsystemlevels,S$7,FALSE)),IF(AND($G9<S$8,$G9+(3*$H9)=S$8),($I9*((1+inflation_rate)^Q$7))*$E9*(VLOOKUP($C9,lookup_healthsystemlevels,S$7,FALSE)),IF(AND($G9<S$8,$G9+(4*$H9)=S$8),($I9*((1+inflation_rate)^Q$7))*$E9*(VLOOKUP($C9,lookup_healthsystemlevels,S$7,FALSE)),IF(AND($G9<S$8,$G9+(5*$H9)=S$8),($I9*((1+inflation_rate)^Q$7))*$E9*(VLOOKUP($C9,lookup_healthsystemlevels,S$7,FALSE)),0))))))))))) -> 1911062.824 | T9: =IF($G9=0,0,IF($G9>T$8,0,IF(AND($G9=T$8,$H9>0),($I9*((1+inflation_rate)^R$7))*$E9*(VLOOKUP($C9,lookup_healthsystemlevels,T$7,FALSE)),IF(AND($G9=T$8,$H9=0),($I9*((1+inflation_rate)^R$7))*$E9*(VLOOKUP($C9,lookup_healthsystemlevels,T$7,FALSE)),IF(AND($G9<T$8,$H9=0),($I9*((1+inflation_rate)^R$7))*$E9*(VLOOKUP($C9,lookup_healthsystemlevels,T$7,FALSE)),IF(AND($G9<T$8,$H9=1),(($I9*((1+inflation_rate)^R$7))*$E9*(VLOOKUP($C9,lookup_healthsystemlevels,T$7,FALSE))),IF(AND($G9<T$8,$G9+$H9=T$8),($I9*((1+inflation_rate)^R$7))*$E9*(VLOOKUP($C9,lookup_healthsystemlevels,T$7,FALSE)),IF(AND($G9<T$8,$G9+(2*$H9)=T$8),($I9*((1+inflation_rate)^R$7))*$E9*(VLOOKUP($C9,lookup_healthsystemlevels,T$7,FALSE)),IF(AND($G9<T$8,$G9+(3*$H9)=T$8),($I9*((1+inflation_rate)^R$7))*$E9*(VLOOKUP($C9,lookup_healthsystemlevels,T$7,FALSE)),IF(AND($G9<T$8,$G9+(4*$H9)=T$8),($I9*((1+inflation_rate)^R$7))*$E9*(VLOOKUP($C9,lookup_healthsystemlevels,T$7,FALSE)),IF(AND($G9<T$8,$G9+(5*$H9)=T$8),($I9*((1+inflation_rate)^R$7))*$E9*(VLOOKUP($C9,lookup_healthsystemlevels,T$7,FALSE)),0))))))))))) -> 0 | U9: =IF($G9=0,0,IF($G9>U$8,0,IF(AND($G9=U$8,$H9>0),($I9*((1+inflation_rate)^S$7))*$E9*(VLOOKUP($C9,lookup_healthsystemlevels,U$7,FALSE)),IF(AND($G9=U$8,$H9=0),($I9*((1+inflation_rate)^S$7))*$E9*(VLOOKUP($C9,lookup_healthsystemlevels,U$7,FALSE)),IF(AND($G9<U$8,$H9=0),($I9*((1+inflation_rate)^S$7))*$E9*(VLOOKUP($C9,lookup_healthsystemlevels,U$7,FALSE)),IF(AND($G9<U$8,$H9=1),(($I9*((1+inflation_rate)^S$7))*$E9*(VLOOKUP($C9,lookup_healthsystemlevels,U$7,FALSE))),IF(AND($G9<U$8,$G9+$H9=U$8),($I9*((1+inflation_rate)^S$7))*$E9*(VLOOKUP($C9,lookup_healthsystemlevels,U$7,FALSE)),IF(AND($G9<U$8,$G9+(2*$H9)=U$8),($I9*((1+inflation_rate)^S$7))*$E9*(VLOOKUP($C9,lookup_healthsystemlevels,U$7,FALSE)),IF(AND($G9<U$8,$G9+(3*$H9)=U$8),($I9*((1+inflation_rate)^S$7))*$E9*(VLOOKUP($C9,lookup_healthsystemlevels,U$7,FALSE)),IF(AND($G9<U$8,$G9+(4*$H9)=U$8),($I9*((1+inflation_rate)^S$7))*$E9*(VLOOKUP($C9,lookup_healthsystemlevels,U$7,FALSE)),IF(AND($G9<U$8,$G9+(5*$H9)=U$8),($I9*((1+inflation_rate)^S$7))*$E9*(VLOOKUP($C9,lookup_healthsystemlevels,U$7,FALSE)),0))))))))))) -> 3041169.825 | V9: =IF($G9=0,0,IF($G9>V$8,0,IF(AND($G9=V$8,$H9>0),($I9*((1+inflation_rate)^T$7))*$E9*(VLOOKUP($C9,lookup_healthsystemlevels,V$7,FALSE)),IF(AND($G9=V$8,$H9=0),($I9*((1+inflation_rate)^T$7))*$E9*(VLOOKUP($C9,lookup_healthsystemlevels,V$7,FALSE)),IF(AND($G9<V$8,$H9=0),($I9*((1+inflation_rate)^T$7))*$E9*(VLOOKUP($C9,lookup_healthsystemlevels,V$7,FALSE)),IF(AND($G9<V$8,$H9=1),(($I9*((1+inflation_rate)^T$7))*$E9*(VLOOKUP($C9,lookup_healthsystemlevels,V$7,FALSE))),IF(AND($G9<V$8,$G9+$H9=V$8),($I9*((1+inflation_rate)^T$7))*$E9*(VLOOKUP($C9,lookup_healthsystemlevels,V$7,FALSE)),IF(AND($G9<V$8,$G9+(2*$H9)=V$8),($I9*((1+inflation_rate)^T$7))*$E9*(VLOOKUP($C9,lookup_healthsystemlevels,V$7,FALSE)),IF(AND($G9<V$8,$G9+(3*$H9)=V$8),($I9*((1+inflation_rate)^T$7))*$E9*(VLOOKUP($C9,lookup_healthsystemlevels,V$7,FALSE)),IF(AND($G9<V$8,$G9+(4*$H9)=V$8),($I9*((1+inflation_rate)^T$7))*$E9*(VLOOKUP($C9,lookup_healthsystemlevels,V$7,FALSE)),IF(AND($G9<V$8,$G9+(5*$H9)=V$8),($I9*((1+inflation_rate)^T$7))*$E9*(VLOOKUP($C9,lookup_healthsystemlevels,V$7,FALSE)),0))))))))))) -> 0
A10: 2 | B10: Trial Frame: Oculus Universal | C10: District | D10: Vision | E10: 1 | F10: 4420.4965 | G10: 2021 | H10: 2 | I10: =E10*F10 -> 4420.4965 | Q10: 884099.3 | R10: 0 | S10: 1875881.895 | T10: 0 | U10: 2985184.653 | V10: 0
A11: 3 | B11: Childrens Trial Frame: Oculus | C11: District | D11: Vision | E11: 1 | F11: 2661.1 | G11: 2021 | H11: 2 | I11: 2661.1 | Q11: 532220 | R11: 0 | S11: 1129264.396 | T11: 0 | U11: 1797054.897 | V11: 0
A12: 4 | B12: Retinoscope | C12: District | D12: Vision | E12: 1 | F12: 3868.83 | G12: 2021 | H12: 2 | I12: 3868.83 | Q12: 773766 | R12: 0 | S12: 1641776.699 | T12: 0 | U12: 2612641.35 | V12: 0
A13: 5 | B13: Ophthalmoscope Keeler | C13: District | D13: Vision | E13: 1 | F13: 3377.55 | G13: 2021 | H13: 2 | I13: 3377.55 | Q13: 675510 | R13: 0 | S13: 1433297.118 | T13: 0 | U13: 2280877.369 | V13: 0
A14: 6 | B14: Mini Lithium charger | C14: District | D14: Vision | E14: 2 | F14: 1473.84 | G14: 2021 | H14: 2 | I14: 2947.68 | Q14: 1179072 | R14: 0 | S14: 2501754.97 | T14: 0 | U14: 3981167.771 | V14: 0
A15: 7 | B15: Battery Cap Blue for Lithium handle | C15: District | D15: Vision | E15: 2 | F15: 102.35 | G15: 2021 | H15: 2 | I15: 204.7 | Q15: 81880 | R15: 0 | S15: 173732.984 | T15: 0 | U15: 276469.9841 | V15: 0
A16: 8 | B16: Handle liner | C16: District | D16: Vision | E16: 2 | F16: 20.47 | G16: 2021 | H16: 2 | I16: 40.94 | Q16: 16376 | R16: 0 | S16: 34746.5968 | T16: 0 | U16: 55293.99682 | V16: 0
A17: 9 | I17: 0 | Q17: 0 | R17: 0 | S17: 0 | T17: 0 | U17: 0 | V17: 0
A18: 10 | I18: 0 | Q18: 0 | R18: 0 | S18: 0 | T18: 0 | U18: 0 | V18: 0
A19: 11 | I19: 0 | Q19: 0 | R19: 0 | S19: 0 | T19: 0 | U19: 0 | V19: 0
A20: 12 | I20: 0 | Q20: 0 | R20: 0 | S20: 0 | T20: 0 | U20: 0 | V20: 0
A21: 13 | I21: 0 | Q21: 0 | R21: 0 | S21: 0 | T21: 0 | U21: 0 | V21: 0
A22: 14 | I22: 0 | Q22: 0 | R22: 0 | S22: 0 | T22: 0 | U22: 0 | V22: 0
A23: 15 | I23: 0 | Q23: 0 | R23: 0 | S23: 0 | T23: 0 | U23: 0 | V23: 0
A24: 16 | I24: 0 | Q24: 0 | R24: 0 | S24: 0 | T24: 0 | U24: 0 | V24: 0
A25: 17 | I25: 0 | Q25: 0 | R25: 0 | S25: 0 | T25: 0 | U25: 0 | V25: 0
A26: 18 | I26: 0 | Q26: 0 | R26: 0 | S26: 0 | T26: 0 | U26: 0 | V26: 0
A27: 19 | I27: 0 | Q27: 0 | R27: 0 | S27: 0 | T27: 0 | U27: 0 | V27: 0
A28: 20 | I28: 0 | Q28: 0 | R28: 0 | S28: 0 | T28: 0 | U28: 0 | V28: 0
A29: 21 | I29: 0 | Q29: 0 | R29: 0 | S29: 0 | T29: 0 | U29: 0 | V29: 0
A30: 22 | I30: 0 | Q30: 0 | R30: 0 | S30: 0 | T30: 0 | U30: 0 | V30: 0
A31: 23 | I31: 0 | Q31: 0 | R31: 0 | S31: 0 | T31: 0 | U31: 0 | V31: 0
A32: 24 | I32: 0 | Q32: 0 | R32: 0 | S32: 0 | T32: 0 | U32: 0 | V32: 0
A33: 25 | I33: 0 | Q33: 0 | R33: 0 | S33: 0 | T33: 0 | U33: 0 | V33: 0
A34: 26 | I34: 0 | Q34: 0 | R34: 0 | S34: 0 | T34: 0 | U34: 0 | V34: 0
A35: 27 | I35: 0 | Q35: 0 | R35: 0 | S35: 0 | T35: 0 | U35: 0 | V35: 0
A36: 28 | I36: 0 | Q36: 0 | R36: 0 | S36: 0 | T36: 0 | U36: 0 | V36: 0
A37: 29 | I37: 0 | Q37: 0 | R37: 0 | S37: 0 | T37: 0 | U37: 0 | V37: 0
A38: 30 | I38: 0 | Q38: 0 | R38: 0 | S38: 0 | T38: 0 | U38: 0 | V38: 0
A39: 31 | I39: 0 | Q39: 0 | R39: 0 | S39: 0 | T39: 0 | U39: 0 | V39: 0
A40: 32 | I40: 0 | Q40: 0 | R40: 0 | S40: 0 | T40: 0 | U40: 0 | V40: 0
A41: 33 | I41: 0 | Q41: =IF($G41=0,0,IF(AND($G41=Q$8,$H41=0),$I41*$E41*VLOOKUP($C41,lookup_healthsystemlevels,Q$7,FALSE),IF(AND($G41=Q$8,$H41>0),$I41*$E41*(VLOOKUP($C41,lookup_healthsystemlevels,Q$7,FALSE)),0))) -> 0 | R41: =IF($G41=0,0,IF($G41>R$8,0,IF(AND($G41=R$8,$H41>0),($I41*((1+inflation_rate)^P$7))*$E41*(VLOOKUP($C41,lookup_healthsystemlevels,R$7,FALSE)),IF(AND($G41=R$8,$H41=0),($I41*((1+inflation_rate)^P$7))*$E41*(VLOOKUP($C41,lookup_healthsystemlevels,R$7,FALSE)),IF(AND($G41<R$8,$H41=0),($I41*((1+inflation_rate)^P$7))*$E41*(VLOOKUP($C41,lookup_healthsystemlevels,R$7,FALSE)),IF(AND($G41<R$8,$H41=1),(($I41*((1+inflation_rate)^P$7))*$E41*(VLOOKUP($C41,lookup_healthsystemlevels,R$7,FALSE))),IF(AND($G41<R$8,$G41+$H41=R$8),($I41*((1+inflation_rate)^P$7))*$E41*(VLOOKUP($C41,lookup_healthsystemlevels,R$7,FALSE)),IF(AND($G41<R$8,$G41+(2*$H41)=R$8),($I41*((1+inflation_rate)^P$7))*$E41*(VLOOKUP($C41,lookup_healthsystemlevels,R$7,FALSE)),IF(AND($G41<R$8,$G41+(3*$H41)=R$8),($I41*((1+inflation_rate)^P$7))*$E41*(VLOOKUP($C41,lookup_healthsystemlevels,R$7,FALSE)),IF(AND($G41<R$8,$G41+(4*$H41)=R$8),($I41*((1+inflation_rate)^P$7))*$E41*(VLOOKUP($C41,lookup_healthsystemlevels,R$7,FALSE)),IF(AND($G41<R$8,$G41+(5*$H41)=R$8),($I41*((1+inflation_rate)^P$7))*$E41*(VLOOKUP($C41,lookup_healthsystemlevels,R$7,FALSE)),0))))))))))) -> 0 | S41: =IF($G41=0,0,IF($G41>S$8,0,IF(AND($G41=S$8,$H41>0),($I41*((1+inflation_rate)^Q$7))*$E41*(VLOOKUP($C41,lookup_healthsystemlevels,S$7,FALSE)),IF(AND($G41=S$8,$H41=0),($I41*((1+inflation_rate)^Q$7))*$E41*(VLOOKUP($C41,lookup_healthsystemlevels,S$7,FALSE)),IF(AND($G41<S$8,$H41=0),($I41*((1+inflation_rate)^Q$7))*$E41*(VLOOKUP($C41,lookup_healthsystemlevels,S$7,FALSE)),IF(AND($G41<S$8,$H41=1),(($I41*((1+inflation_rate)^Q$7))*$E41*(VLOOKUP($C41,lookup_healthsystemlevels,S$7,FALSE))),IF(AND($G41<S$8,$G41+$H41=S$8),($I41*((1+inflation_rate)^Q$7))*$E41*(VLOOKUP($C41,lookup_healthsystemlevels,S$7,FALSE)),IF(AND($G41<S$8,$G41+(2*$H41)=S$8),($I41*((1+inflation_rate)^Q$7))*$E41*(VLOOKUP($C41,lookup_healthsystemlevels,S$7,FALSE)),IF(AND($G41<S$8,$G41+(3*$H41)=S$8),($I41*((1+inflation_rate)^Q$7))*$E41*(VLOOKUP($C41,lookup_healthsystemlevels,S$7,FALSE)),IF(AND($G41<S$8,$G41+(4*$H41)=S$8),($I41*((1+inflation_rate)^Q$7))*$E41*(VLOOKUP($C41,lookup_healthsystemlevels,S$7,FALSE)),IF(AND($G41<S$8,$G41+(5*$H41)=S$8),($I41*((1+inflation_rate)^Q$7))*$E41*(VLOOKUP($C41,lookup_healthsystemlevels,S$7,FALSE)),0))))))))))) -> 0 | T41: =IF($G41=0,0,IF($G41>T$8,0,IF(AND($G41=T$8,$H41>0),($I41*((1+inflation_rate)^R$7))*$E41*(VLOOKUP($C41,lookup_healthsystemlevels,T$7,FALSE)),IF(AND($G41=T$8,$H41=0),($I41*((1+inflation_rate)^R$7))*$E41*(VLOOKUP($C41,lookup_healthsystemlevels,T$7,FALSE)),IF(AND($G41<T$8,$H41=0),($I41*((1+inflation_rate)^R$7))*$E41*(VLOOKUP($C41,lookup_healthsystemlevels,T$7,FALSE)),IF(AND($G41<T$8,$H41=1),(($I41*((1+inflation_rate)^R$7))*$E41*(VLOOKUP($C41,lookup_healthsystemlevels,T$7,FALSE))),IF(AND($G41<T$8,$G41+$H41=T$8),($I41*((1+inflation_rate)^R$7))*$E41*(VLOOKUP($C41,lookup_healthsystemlevels,T$7,FALSE)),IF(AND($G41<T$8,$G41+(2*$H41)=T$8),($I41*((1+inflation_rate)^R$7))*$E41*(VLOOKUP($C41,lookup_healthsystemlevels,T$7,FALSE)),IF(AND($G41<T$8,$G41+(3*$H41)=T$8),($I41*((1+inflation_rate)^R$7))*$E41*(VLOOKUP($C41,lookup_healthsystemlevels,T$7,FALSE)),IF(AND($G41<T$8,$G41+(4*$H41)=T$8),($I41*((1+inflation_rate)^R$7))*$E41*(VLOOKUP($C41,lookup_healthsystemlevels,T$7,FALSE)),IF(AND($G41<T$8,$G41+(5*$H41)=T$8),($I41*((1+inflation_rate)^R$7))*$E41*(VLOOKUP($C41,lookup_healthsystemlevels,T$7,FALSE)),0))))))))))) -> 0 | U41: =IF($G41=0,0,IF($G41>U$8,0,IF(AND($G41=U$8,$H41>0),($I41*((1+inflation_rate)^S$7))*$E41*(VLOOKUP($C41,lookup_healthsystemlevels,U$7,FALSE)),IF(AND($G41=U$8,$H41=0),($I41*((1+inflation_rate)^S$7))*$E41*(VLOOKUP($C41,lookup_healthsystemlevels,U$7,FALSE)),IF(AND($G41<U$8,$H41=0),($I41*((1+inflation_rate)^S$7))*$E41*(VLOOKUP($C41,lookup_healthsystemlevels,U$7,FALSE)),IF(AND($G41<U$8,$H41=1),(($I41*((1+inflation_rate)^S$7))*$E41*(VLOOKUP($C41,lookup_healthsystemlevels,U$7,FALSE))),IF(AND($G41<U$8,$G41+$H41=U$8),($I41*((1+inflation_rate)^S$7))*$E41*(VLOOKUP($C41,lookup_healthsystemlevels,U$7,FALSE)),IF(AND($G41<U$8,$G41+(2*$H41)=U$8),($I41*((1+inflation_rate)^S$7))*$E41*(VLOOKUP($C41,lookup_healthsystemlevels,U$7,FALSE)),IF(AND($G41<U$8,$G41+(3*$H41)=U$8),($I41*((1+inflation_rate)^S$7))*$E41*(VLOOKUP($C41,lookup_healthsystemlevels,U$7,FALSE)),IF(AND($G41<U$8,$G41+(4*$H41)=U$8),($I41*((1+inflation_rate)^S$7))*$E41*(VLOOKUP($C41,lookup_healthsystemlevels,U$7,FALSE)),IF(AND($G41<U$8,$G41+(5*$H41)=U$8),($I41*((1+inflation_rate)^S$7))*$E41*(VLOOKUP($C41,lookup_healthsystemlevels,U$7,FALSE)),0))))))))))) -> 0 | V41: =IF($G41=0,0,IF($G41>V$8,0,IF(AND($G41=V$8,$H41>0),($I41*((1+inflation_rate)^T$7))*$E41*(VLOOKUP($C41,lookup_healthsystemlevels,V$7,FALSE)),IF(AND($G41=V$8,$H41=0),($I41*((1+inflation_rate)^T$7))*$E41*(VLOOKUP($C41,lookup_healthsystemlevels,V$7,FALSE)),IF(AND($G41<V$8,$H41=0),($I41*((1+inflation_rate)^T$7))*$E41*(VLOOKUP($C41,lookup_healthsystemlevels,V$7,FALSE)),IF(AND($G41<V$8,$H41=1),(($I41*((1+inflation_rate)^T$7))*$E41*(VLOOKUP($C41,lookup_healthsystemlevels,V$7,FALSE))),IF(AND($G41<V$8,$G41+$H41=V$8),($I41*((1+inflation_rate)^T$7))*$E41*(VLOOKUP($C41,lookup_healthsystemlevels,V$7,FALSE)),IF(AND($G41<V$8,$G41+(2*$H41)=V$8),($I41*((1+inflation_rate)^T$7))*$E41*(VLOOKUP($C41,lookup_healthsystemlevels,V$7,FALSE)),IF(AND($G41<V$8,$G41+(3*$H41)=V$8),($I41*((1+inflation_rate)^T$7))*$E41*(VLOOKUP($C41,lookup_healthsystemlevels,V$7,FALSE)),IF(AND($G41<V$8,$G41+(4*$H41)=V$8),($I41*((1+inflation_rate)^T$7))*$E41*(VLOOKUP($C41,lookup_healthsystemlevels,V$7,FALSE)),IF(AND($G41<V$8,$G41+(5*$H41)=V$8),($I41*((1+inflation_rate)^T$7))*$E41*(VLOOKUP($C41,lookup_healthsystemlevels,V$7,FALSE)),0))))))))))) -> 0
A42: 34 | I42: =E42*F42 -> 0 | Q42: 0 | R42: 0 | S42: 0 | T42: 0 | U42: 0 | V42: 0
A43: 35 | I43: 0 | Q43: 0 | R43: 0 | S43: 0 | T43: 0 | U43: 0 | V43: 0
A44: 36 | I44: 0 | Q44: 0 | R44: 0 | S44: 0 | T44: 0 | U44: 0 | V44: 0
A45: 37 | I45: 0 | Q45: 0 | R45: 0 | S45: 0 | T45: 0 | U45: 0 | V45: 0
A46: 38 | I46: 0 | Q46: 0 | R46: 0 | S46: 0 | T46: 0 | U46: 0 | V46: 0
A47: 39 | I47: 0 | Q47: 0 | R47: 0 | S47: 0 | T47: 0 | U47: 0 | V47: 0
A48: 40 | I48: 0 | Q48: 0 | R48: 0 | S48: 0 | T48: 0 | U48: 0 | V48: 0
A49: 41 | I49: 0 | Q49: 0 | R49: 0 | S49: 0 | T49: 0 | U49: 0 | V49: 0
A50: 42 | I50: 0 | Q50: 0 | R50: 0 | S50: 0 | T50: 0 | U50: 0 | V50: 0
A51: 43 | I51: 0 | Q51: 0 | R51: 0 | S51: 0 | T51: 0 | U51: 0 | V51: 0
A52: 44 | I52: 0 | Q52: 0 | R52: 0 | S52: 0 | T52: 0 | U52: 0 | V52: 0
A53: 45 | I53: 0 | Q53: 0 | R53: 0 | S53: 0 | T53: 0 | U53: 0 | V53: 0
A54: 46 | I54: 0 | Q54: 0 | R54: 0 | S54: 0 | T54: 0 | U54: 0 | V54: 0
A55: 47 | I55: 0 | Q55: 0 | R55: 0 | S55: 0 | T55: 0 | U55: 0 | V55: 0
A56: 48 | I56: 0 | Q56: 0 | R56: 0 | S56: 0 | T56: 0 | U56: 0 | V56: 0
A57: 49 | I57: 0 | Q57: 0 | R57: 0 | S57: 0 | T57: 0 | U57: 0 | V57: 0
A58: 50 | I58: 0 | Q58: 0 | R58: 0 | S58: 0 | T58: 0 | U58: 0 | V58: 0
Q60: =SUM(Q9:Q58) -> 5043603.3 | R60: 0 | S60: 10701517.48 | T60: 0 | U60: 17029859.84 | V60: 0

Sheet Assistive_Products_Costs
A1: ASSISTIVE PRODUCTS AND SUPPLIES
A2: =selected_country -> South Africa
E4: Last updated:
B6: What is the % mark-up on assistive devices and supplies for transport, storage, management, and distribution? | F6: 0.1
B9: Name of Assistive Device or Supply | C9: Description | D9: ="Unit Cost without Markup ("&currency_enter&")" -> Unit Cost without Markup (ZAR) | E9: ="Unit Cost + Markup ("&currency_enter&")" -> Unit Cost + Markup (ZAR) | F9: Source / Reference
A11: 1 | B11: Single vision spectales | D11: 150 | E11: =+D11*(1+device_markup) -> 165 | F11: UNICEF/WHO Assistive Products Catalogue
A12: 2 | B12: Bifocal spectales | D12: 200 | E12: =+D12*(1+device_markup) -> 220 | F12: UNICEF/WHO Assistive Products Catalogue
A13: 3 | E13: =+D13*(1+device_markup) -> 0
A14: 4 | E14: 0
A15: 5 | E15: =+D15*(1+device_markup) -> 0
A16: 6 | E16: =+D16*(1+device_markup) -> 0
A17: 7 | E17: 0
A18: 8 | E18: 0
A19: 9 | E19: 0
A20: 10 | E20: 0
A21: 11 | E21: 0
A22: 12 | E22: 0
A23: 13 | E23: 0
A24: 14 | E24: 0
A25: 15 | E25: 0
A26: 16 | E26: 0
A27: 17 | E27: 0
A28: 18 | E28: 0
A29: 19 | E29: =+D29*(1+device_markup) -> 0
A30: 20 | E30: 0
A31: 21 | E31: 0
A32: 22 | E32: 0
A33: 23 | E33: 0
A34: 24 | E34: 0
A35: 25 | E35: 0
A36: 26 | E36: 0
A37: 27 | E37: 0
A38: 28 | E38: 0
A39: 29 | E39: 0
A40: 30 | E40: 0
A41: 31 | E41: 0
A42: 32 | E42: 0
A43: 33 | E43: 0
A44: 34 | E44: 0
A45: 35 | E45: 0
A46: 36 | E46: 0
A47: 37 | E47: =+D47*(1+device_markup) -> 0
A48: 38 | E48: 0
A49: 39 | E49: 0
A50: 40 | E50: 0
A51: 41 | E51: 0
A52: 42 | E52: 0
A53: 43 | E53: 0
A54: 44 | E54: 0
A55: 45 | E55: 0
A56: 46 | E56: 0
A57: 47 | E57: 0
A58: 48 | E58: 0
A59: 49 | E59: 0
A60: 50 | E60: 0
A61: 51 | E61: 0
A62: 52 | E62: 0
A63: 53 | E63: 0
A64: 54 | E64: 0
A65: 55 | E65: 0
A66: 56 | E66: 0
A67: 57 | E67: 0
A68: 58 | E68: 0
A69: 59 | E69: 0
A70: 60 | E70: 0
A71: 61 | E71: 0
A72: 62 | E72: 0
A73: 63 | E73: 0
A74: 64 | E74: 0
A75: 65 | E75: =+D75*(1+device_markup) -> 0
A76: 66 | E76: 0
A77: 67 | E77: 0
A78: 68 | E78: 0
A79: 69 | E79: 0
A80: 70 | E80: 0
A81: 71 | E81: 0
A82: 72 | E82: 0
A83: 73 | E83: 0
A84: 74 | E84: 0
A85: 75 | E85: 0
A86: 76 | E86: 0
A87: 77 | E87: 0
A88: 78 | E88: 0
A89: 79 | E89: 0
A90: 80 | E90: 0
A91: 81 | E91: 0
A92: 82 | E92: 0
A93: 83 | E93: 0
A94: 84 | E94: 0
A95: 85 | E95: 0
A96: 86 | E96: 0
A97: 87 | E97: 0
A98: 88 | E98: 0
A99: 89 | E99: 0
A100: 90 | E100: 0
A101: 91 | E101: 0
A102: 92 | E102: 0
A103: 93 | E103: 0
A104: 94 | E104: 0
A105: 95 | E105: 0
A106: 96 | E106: 0
A107: 97 | E107: =+D107*(1+device_markup) -> 0
A108: 98 | E108: =+D108*(1+device_markup) -> 0
A109: 99 | E109: =+D109*(1+device_markup) -> 0
A110: 100 | E110: =+D110*(1+device_markup) -> 0

Sheet Other_Recurrent_Costs
A1: OTHER RECCURENT COSTS
A2: South Africa
N4: DO NOT DELETE OR OVERWRITE
N5: 2 | O5: 3 | P5: 4 | Q5: 5 | R5: 6 | S5: 7
B6: Description of cost or activity | C6: Program | D6: Health System Level | E6: Total Units (per year) | F6: ="Unit Cost ("&currency_enter&")" -> Unit Cost (ZAR) | G6: ="Annual Cost ("&currency_enter&") per health system level" -> Annual Cost (ZAR) per health system level | N6: =baseline_year -> 2021 | O6: =baseline_year+1 -> 2022 | P6: =O6+1 -> 2023 | Q6: =P6+1 -> 2024 | R6: =Q6+1 -> 2025 | S6: =R6+1 -> 2026
A8: 1 | C8: Vision | D8: District | E8: 1 | F8: 100 | G8: =E8*F8 -> 100 | N8: =IF($D8="",0,($G8*(VLOOKUP($D8,lookup_healthsystemlevels,N$5,FALSE)))) -> 20000 | O8: =IF($D8="",0,(($G8*(1+inflation_rate))*(VLOOKUP($D8,lookup_healthsystemlevels,O$5,FALSE)))) -> 30900 | P8: =IF($D8="",0,(($G8*(1+inflation_rate)^2))*(VLOOKUP($D8,lookup_healthsystemlevels,P$5,FALSE))) -> 42436 | Q8: =IF($D8="",0,(($G8*(1+inflation_rate)^3))*(VLOOKUP($D8,lookup_healthsystemlevels,Q$5,FALSE))) -> 54636.35 | R8: =IF($D8="",0,(($G8*(1+inflation_rate)^4))*(VLOOKUP($D8,lookup_healthsystemlevels,R$5,FALSE))) -> 67530.5286 | S8: =IF($D8="",0,(($G8*(1+inflation_rate)^5))*(VLOOKUP($D8,lookup_healthsystemlevels,S$5,FALSE))) -> 81149.1852
A9: 2 | G9: =E9*F9 -> 0 | N9: =IF($D9="",0,($G9*(VLOOKUP($D9,lookup_healthsystemlevels,N$5,FALSE)))) -> 0 | O9: 0 | P9: 0 | Q9: 0 | R9: 0 | S9: 0
A10: 3 | G10: =E10*F10 -> 0 | N10: 0 | O10: 0 | P10: 0 | Q10: 0 | R10: 0 | S10: 0
A11: 4 | G11: 0 | N11: 0 | O11: 0 | P11: 0 | Q11: 0 | R11: 0 | S11: 0
A12: 5 | G12: 0 | N12: 0 | O12: 0 | P12: 0 | Q12: 0 | R12: 0 | S12: 0
A13: 6 | G13: 0 | N13: 0 | O13: 0 | P13: 0 | Q13: 0 | R13: 0 | S13: 0
A14: 7 | G14: 0 | N14: 0 | O14: 0 | P14: 0 | Q14: 0 | R14: 0 | S14: 0
A15: 8 | G15: 0 | N15: 0 | O15: 0 | P15: 0 | Q15: 0 | R15: 0 | S15: 0
A16: 9 | G16: 0 | N16: 0 | O16: 0 | P16: 0 | Q16: 0 | R16: 0 | S16: 0
A17: 10 | G17: 0 | N17: 0 | O17: 0 | P17: 0 | Q17: 0 | R17: 0 | S17: 0
A18: 11 | G18: 0 | N18: 0 | O18: 0 | P18: 0 | Q18: 0 | R18: 0 | S18: 0
A19: 12 | G19: 0 | N19: 0 | O19: 0 | P19: 0 | Q19: 0 | R19: 0 | S19: 0
A20: 13 | G20: 0 | N20: 0 | O20: 0 | P20: 0 | Q20: 0 | R20: 0 | S20: 0
A21: 14 | G21: 0 | N21: 0 | O21: 0 | P21: 0 | Q21: 0 | R21: 0 | S21: 0
A22: 15 | G22: 0 | N22: 0 | O22: 0 | P22: 0 | Q22: 0 | R22: 0 | S22: 0
A23: 16 | G23: 0 | N23: 0 | O23: 0 | P23: 0 | Q23: 0 | R23: 0 | S23: 0
A24: 17 | G24: 0 | N24: 0 | O24: 0 | P24: 0 | Q24: 0 | R24: 0 | S24: 0
A25: 18 | G25: 0 | N25: 0 | O25: 0 | P25: 0 | Q25: 0 | R25: 0 | S25: 0
A26: 19 | G26: 0 | N26: 0 | O26: 0 | P26: 0 | Q26: 0 | R26: 0 | S26: 0
A27: 20 | G27: 0 | N27: 0 | O27: 0 | P27: 0 | Q27: 0 | R27: 0 | S27: 0
A28: 21 | G28: 0 | N28: 0 | O28: 0 | P28: 0 | Q28: 0 | R28: 0 | S28: 0
A29: 22 | G29: 0 | N29: 0 | O29: 0 | P29: 0 | Q29: 0 | R29: 0 | S29: 0
A30: 23 | G30: 0 | N30: 0 | O30: 0 | P30: 0 | Q30: 0 | R30: 0 | S30: 0
A31: 24 | G31: 0 | N31: 0 | O31: 0 | P31: 0 | Q31: 0 | R31: 0 | S31: 0
A32: 25 | G32: 0 | N32: 0 | O32: 0 | P32: 0 | Q32: 0 | R32: 0 | S32: 0
A33: 26 | G33: 0 | N33: 0 | O33: 0 | P33: 0 | Q33: 0 | R33: 0 | S33: 0
A34: 27 | G34: 0 | N34: 0 | O34: 0 | P34: 0 | Q34: 0 | R34: 0 | S34: 0
A35: 28 | G35: 0 | N35: 0 | O35: 0 | P35: 0 | Q35: 0 | R35: 0 | S35: 0
A36: 29 | G36: 0 | N36: 0 | O36: 0 | P36: 0 | Q36: 0 | R36: 0 | S36: 0
A37: 30 | G37: 0 | N37: 0 | O37: 0 | P37: 0 | Q37: 0 | R37: 0 | S37: 0
A38: 31 | G38: 0 | N38: 0 | O38: 0 | P38: 0 | Q38: 0 | R38: 0 | S38: 0
A39: 32 | G39: 0 | N39: 0 | O39: 0 | P39: 0 | Q39: 0 | R39: 0 | S39: 0
A40: 33 | G40: 0 | N40: =IF($D40="",0,($G40*(VLOOKUP($D40,lookup_healthsystemlevels,N$5,FALSE)))) -> 0 | O40: =IF($D40="",0,(($G40*(1+inflation_rate))*(VLOOKUP($D40,lookup_healthsystemlevels,O$5,FALSE)))) -> 0 | P40: =IF($D40="",0,(($G40*(1+inflation_rate)^2))*(VLOOKUP($D40,lookup_healthsystemlevels,P$5,FALSE))) -> 0 | Q40: =IF($D40="",0,(($G40*(1+inflation_rate)^3))*(VLOOKUP($D40,lookup_healthsystemlevels,Q$5,FALSE))) -> 0 | R40: =IF($D40="",0,(($G40*(1+inflation_rate)^4))*(VLOOKUP($D40,lookup_healthsystemlevels,R$5,FALSE))) -> 0 | S40: =IF($D40="",0,(($G40*(1+inflation_rate)^5))*(VLOOKUP($D40,lookup_healthsystemlevels,S$5,FALSE))) -> 0
A41: 34 | G41: 0 | N41: 0 | O41: 0 | P41: 0 | Q41: 0 | R41: 0 | S41: 0
A42: 35 | G42: 0 | N42: 0 | O42: 0 | P42: 0 | Q42: 0 | R42: 0 | S42: 0
A43: 36 | G43: 0 | N43: 0 | O43: 0 | P43: 0 | Q43: 0 | R43: 0 | S43: 0
A44: 37 | G44: 0 | N44: 0 | O44: 0 | P44: 0 | Q44: 0 | R44: 0 | S44: 0
A45: 38 | G45: 0 | N45: 0 | O45: 0 | P45: 0 | Q45: 0 | R45: 0 | S45: 0
A46: 39 | G46: 0 | N46: 0 | O46: 0 | P46: 0 | Q46: 0 | R46: 0 | S46: 0
A47: 40 | G47: 0 | N47: 0 | O47: 0 | P47: 0 | Q47: 0 | R47: 0 | S47: 0
A48: 41 | G48: 0 | N48: 0 | O48: 0 | P48: 0 | Q48: 0 | R48: 0 | S48: 0
A49: 42 | G49: 0 | N49: 0 | O49: 0 | P49: 0 | Q49: 0 | R49: 0 | S49: 0
A50: 43 | G50: 0 | N50: 0 | O50: 0 | P50: 0 | Q50: 0 | R50: 0 | S50: 0
A51: 44 | G51: 0 | N51: 0 | O51: 0 | P51: 0 | Q51: 0 | R51: 0 | S51: 0
A52: 45 | G52: 0 | N52: 0 | O52: 0 | P52: 0 | Q52: 0 | R52: 0 | S52: 0
A53: 46 | G53: 0 | N53: 0 | O53: 0 | P53: 0 | Q53: 0 | R53: 0 | S53: 0
A54: 47 | G54: 0 | N54: 0 | O54: 0 | P54: 0 | Q54: 0 | R54: 0 | S54: 0
A55: 48 | G55: 0 | N55: 0 | O55: 0 | P55: 0 | Q55: 0 | R55: 0 | S55: 0
A56: 49 | G56: 0 | N56: 0 | O56: 0 | P56: 0 | Q56: 0 | R56: 0 | S56: 0
A57: 50 | G57: 0 | N57: 0 | O57: 0 | P57: 0 | Q57: 0 | R57: 0 | S57: 0
A58: 51 | G58: 0 | N58: 0 | O58: 0 | P58: 0 | Q58: 0 | R58: 0 | S58: 0
N60: =SUM(N8:N58) -> 20000 | O60: =SUM(O8:O58) -> 30900 | P60: 42436 | Q60: 54636.35 | R60: 67530.5286 | S60: 81149.1852

Sheet Start_Up_Capital_Costs
A1: START-UP AND CAPITAL COSTS
A2: South Africa
Q4: DO NOT DELETE OR OVERWRITE
Q5: 2 | R5: 3 | S5: 4 | T5: 5 | U5: 6 | V5: 7
B6: Description of cost or activity | C6: Start-up or Capital Cost | D6: Units | E6: ="Unit Cost ("&currency_enter&")" -> Unit Cost (ZAR) | F6: Year Cost Incurred | G6: Program | H6: Health System Level | I6: ="Total Cost ("&currency_enter&")" -> Total Cost (ZAR) | Q6: =baseline_year -> 2021 | R6: =baseline_year+1 -> 2022 | S6: =R6+1 -> 2023 | T6: =S6+1 -> 2024 | U6: =T6+1 -> 2025 | V6: =U6+1 -> 2026
A8: 1 | B8: Phoropter | C8: Capital | D8: 1 | E8: 78000 | F8: 2021 | G8: Vision | H8: District | I8: =D8*E8 -> 78000 | Q8: =IF($H8="",0,IF($F8<>$Q$6,0,($I8*(VLOOKUP($H8,lookup_healthsystemlevels,Q$5,FALSE))))) -> 15600000 | R8: =IF($H8="",0,IF($F8<>R$6,0,(($I8*(1+inflation_rate))*(VLOOKUP($H8,lookup_healthsystemlevels,R$5,FALSE))))) -> 0 | S8: =IF($H8="",0,IF($F8<>S$6,0,(($I8*(1+inflation_rate)^2))*(VLOOKUP($H8,lookup_healthsystemlevels,S$5,FALSE)))) -> 0 | T8: =IF($H8="",0,IF($F8<>T$6,0,(($I8*(1+inflation_rate)^3))*(VLOOKUP($H8,lookup_healthsystemlevels,T$5,FALSE)))) -> 0 | U8: =IF($H8="",0,IF($F8<>U$6,0,(($I8*(1+inflation_rate)^4))*(VLOOKUP($H8,lookup_healthsystemlevels,U$5,FALSE)))) -> 0 | V8: =IF($H8="",0,IF($F8<>V$6,0,(($I8*(1+inflation_rate)^5))*(VLOOKUP($H8,lookup_healthsystemlevels,V$5,FALSE)))) -> 0
A9: 2 | I9: =D9*E9 -> 0 | Q9: 0 | R9: 0 | S9: 0 | T9: 0 | U9: 0 | V9: 0
A10: 3 | I10: =D10*E10 -> 0 | Q10: 0 | R10: 0 | S10: 0 | T10: 0 | U10: 0 | V10: 0
A11: 4 | I11: 0 | Q11: 0 | R11: 0 | S11: 0 | T11: 0 | U11: 0 | V11: 0
A12: 5 | I12: 0 | Q12: 0 | R12: 0 | S12: 0 | T12: 0 | U12: 0 | V12: 0
A13: 6 | I13: 0 | Q13: 0 | R13: 0 | S13: 0 | T13: 0 | U13: 0 | V13: 0
A14: 7 | I14: 0 | Q14: 0 | R14: 0 | S14: 0 | T14: 0 | U14: 0 | V14: 0
A15: 8 | I15: 0 | Q15: 0 | R15: 0 | S15: 0 | T15: 0 | U15: 0 | V15: 0
A16: 9 | I16: 0 | Q16: 0 | R16: 0 | S16: 0 | T16: 0 | U16: 0 | V16: 0
A17: 10 | I17: 0 | Q17: 0 | R17: 0 | S17: 0 | T17: 0 | U17: 0 | V17: 0
A18: 11 | I18: 0 | Q18: 0 | R18: 0 | S18: 0 | T18: 0 | U18: 0 | V18: 0
A19: 12 | I19: 0 | Q19: 0 | R19: 0 | S19: 0 | T19: 0 | U19: 0 | V19: 0
A20: 13 | I20: 0 | Q20: 0 | R20: 0 | S20: 0 | T20: 0 | U20: 0 | V20: 0
A21: 14 | I21: 0 | Q21: 0 | R21: 0 | S21: 0 | T21: 0 | U21: 0 | V21: 0
A22: 15 | I22: 0 | Q22: 0 | R22: 0 | S22: 0 | T22: 0 | U22: 0 | V22: 0
A23: 16 | I23: 0 | Q23: 0 | R23: 0 | S23: 0 | T23: 0 | U23: 0 | V23: 0
A24: 17 | I24: 0 | Q24: 0 | R24: 0 | S24: 0 | T24: 0 | U24: 0 | V24: 0
A25: 18 | I25: 0 | Q25: 0 | R25: 0 | S25: 0 | T25: 0 | U25: 0 | V25: 0
A26: 19 | I26: 0 | Q26: 0 | R26: 0 | S26: 0 | T26: 0 | U26: 0 | V26: 0
A27: 20 | I27: 0 | Q27: 0 | R27: 0 | S27: 0 | T27: 0 | U27: 0 | V27: 0
A28: 21 | I28: 0 | Q28: 0 | R28: 0 | S28: 0 | T28: 0 | U28: 0 | V28: 0
A29: 22 | I29: 0 | Q29: 0 | R29: 0 | S29: 0 | T29: 0 | U29: 0 | V29: 0
A30: 23 | I30: 0 | Q30: 0 | R30: 0 | S30: 0 | T30: 0 | U30: 0 | V30: 0
A31: 24 | I31: 0 | Q31: 0 | R31: 0 | S31: 0 | T31: 0 | U31: 0 | V31: 0
A32: 25 | I32: 0 | Q32: 0 | R32: 0 | S32: 0 | T32: 0 | U32: 0 | V32: 0
A33: 26 | I33: 0 | Q33: 0 | R33: 0 | S33: 0 | T33: 0 | U33: 0 | V33: 0
A34: 27 | I34: 0 | Q34: 0 | R34: 0 | S34: 0 | T34: 0 | U34: 0 | V34: 0
A35: 28 | I35: 0 | Q35: 0 | R35: 0 | S35: 0 | T35: 0 | U35: 0 | V35: 0
A36: 29 | I36: 0 | Q36: 0 | R36: 0 | S36: 0 | T36: 0 | U36: 0 | V36: 0
A37: 30 | I37: 0 | Q37: 0 | R37: 0 | S37: 0 | T37: 0 | U37: 0 | V37: 0
A38: 31 | I38: =D38*E38 -> 0 | Q38: 0 | R38: 0 | S38: 0 | T38: 0 | U38: 0 | V38: 0
A39: 32 | I39: 0 | Q39: 0 | R39: 0 | S39: 0 | T39: 0 | U39: 0 | V39: 0
A40: 33 | I40: 0 | Q40: 0 | R40: 0 | S40: 0 | T40: 0 | U40: 0 | V40: 0
A41: 34 | I41: 0 | Q41: 0 | R41: 0 | S41: 0 | T41: 0 | U41: 0 | V41: 0
A42: 35 | I42: 0 | Q42: 0 | R42: 0 | S42: 0 | T42: 0 | U42: 0 | V42: 0
A43: 36 | I43: 0 | Q43: 0 | R43: 0 | S43: 0 | T43: 0 | U43: 0 | V43: 0
A44: 37 | I44: 0 | Q44: 0 | R44: 0 | S44: 0 | T44: 0 | U44: 0 | V44: 0
A45: 38 | I45: 0 | Q45: 0 | R45: 0 | S45: 0 | T45: 0 | U45: 0 | V45: 0
A46: 39 | I46: 0 | Q46: 0 | R46: 0 | S46: 0 | T46: 0 | U46: 0 | V46: 0
A47: 40 | I47: 0 | Q47: 0 | R47: 0 | S47: 0 | T47: 0 | U47: 0 | V47: 0
A48: 41 | I48: 0 | Q48: 0 | R48: 0 | S48: 0 | T48: 0 | U48: 0 | V48: 0
A49: 42 | I49: 0 | Q49: 0 | R49: 0 | S49: 0 | T49: 0 | U49: 0 | V49: 0
A50: 43 | I50: 0 | Q50: 0 | R50: 0 | S50: 0 | T50: 0 | U50: 0 | V50: 0
A51: 44 | I51: 0 | Q51: 0 | R51: 0 | S51: 0 | T51: 0 | U51: 0 | V51: 0
A52: 45 | I52: 0 | Q52: 0 | R52: 0 | S52: 0 | T52: 0 | U52: 0 | V52: 0
A53: 46 | I53: 0 | Q53: 0 | R53: 0 | S53: 0 | T53: 0 | U53: 0 | V53: 0
A54: 47 | I54: 0 | Q54: 0 | R54: 0 | S54: 0 | T54: 0 | U54: 0 | V54: 0
A55: 48 | I55: 0 | Q55: 0 | R55: 0 | S55: 0 | T55: 0 | U55: 0 | V55: 0
A56: 49 | I56: 0 | Q56: 0 | R56: 0 | S56: 0 | T56: 0 | U56: 0 | V56: 0
A57: 50 | I57: 0 | Q57: 0 | R57: 0 | S57: 0 | T57: 0 | U57: 0 | V57: 0
H58: Total | I58: =SUM(I8:I57) -> 78000
Q59: =SUM(Q8:Q57) -> 15600000 | R59: 0 | S59: 0 | T59: 0 | U59: 0 | V59: 0

Sheet Financing
A1: FINANCING
A2: South Africa
B5: Financing overview by donor and cost category | G5: Amount or share of the total cost category amount per year | N5: Funding per year, per donor and per cost category
G6: 3 | H6: 4 | I6: 5 | J6: 6 | K6: 7 | L6: 8 | N6: 2 | O6: 3 | P6: 4 | Q6: 5 | R6: 6 | S6: 7
B7: Source of financing | C7: Program | D7: Program input covered | E7: ="Enter as % or Amount ("&currency_enter&")" -> Enter as % or Amount (ZAR) | G7: =[0]!baseline_year -> 2021 | H7: =baseline_year+1 -> 2022 | I7: =H7+1 -> 2023 | J7: =I7+1 -> 2024 | K7: =J7+1 -> 2025 | L7: =K7+1 -> 2026 | N7: =baseline_year -> 2021 | O7: =baseline_year+1 -> 2022 | P7: =O7+1 -> 2023 | Q7: =P7+1 -> 2024 | R7: =Q7+1 -> 2025 | S7: =R7+1 -> 2026
A9: 1 | B9: Donor1 | C9: Vision | D9: Staff costs | E9: % | G9: 0.3 | H9: 0.4 | I9: 0.5 | J9: 0.6 | K9: 0.7 | L9: 0.8 | N9: =IFERROR(IF($E9="%",G9*VLOOKUP($D9,Cost_by_Input!$A$7:$G$24,N$6,FALSE),G9),0) -> 10641905.5 | O9: =IFERROR(IF($E9="%",H9*VLOOKUP($D9,Cost_by_Input!$A$7:$G$24,O$6,FALSE),H9),0) -> 16554075.23 | P9: =IFERROR(IF($E9="%",I9*VLOOKUP($D9,Cost_by_Input!$A$7:$G$24,P$6,FALSE),I9),0) -> 23648678.89 | Q9: =IFERROR(IF($E9="%",J9*VLOOKUP($D9,Cost_by_Input!$A$7:$G$24,Q$6,FALSE),J9),0) -> 33699367.42 | R9: =IFERROR(IF($E9="%",K9*VLOOKUP($D9,Cost_by_Input!$A$7:$G$24,R$6,FALSE),K9),0) -> 43454447.47 | S9: =IFERROR(IF($E9="%",L9*VLOOKUP($D9,Cost_by_Input!$A$7:$G$24,S$6,FALSE),L9),0) -> 54391961.46
A10: 2 | B10: Donor2 | C10: Vision | D10: Training Costs | E10: % | G10: 0.5 | H10: 0.5 | I10: 0.5 | J10: 0.5 | K10: 0.5 | L10: 0.5 | N10: =IFERROR(IF($E10="%",G10*VLOOKUP($D10,Cost_by_Input!$A$7:$G$24,N$6,FALSE),G10),0) -> 165000 | O10: =IFERROR(IF($E10="%",H10*VLOOKUP($D10,Cost_by_Input!$A$7:$G$24,O$6,FALSE),H10),0) -> 166860 | P10: =IFERROR(IF($E10="%",I10*VLOOKUP($D10,Cost_by_Input!$A$7:$G$24,P$6,FALSE),I10),0) -> 188490 | Q10: =IFERROR(IF($E10="%",J10*VLOOKUP($D10,Cost_by_Input!$A$7:$G$24,Q$6,FALSE),J10),0) -> 211665 | R10: =IFERROR(IF($E10="%",K10*VLOOKUP($D10,Cost_by_Input!$A$7:$G$24,R$6,FALSE),K10),0) -> 250290 | S10: =IFERROR(IF($E10="%",L10*VLOOKUP($D10,Cost_by_Input!$A$7:$G$24,S$6,FALSE),L10),0) -> 228660
A11: 3 | B11: Donor3 | C11: Vision | D11: Equipment | E11: % | G11: 0.5 | H11: 0.5 | I11: 0.5 | J11: 0.5 | K11: 0.5 | L11: 0.5 | N11: =IFERROR(IF($E11="%",G11*VLOOKUP($D11,Cost_by_Input!$A$7:$G$24,N$6,FALSE),G11),0) -> 2521801.65 | O11: =IFERROR(IF($E11="%",H11*VLOOKUP($D11,Cost_by_Input!$A$7:$G$24,O$6,FALSE),H11),0) -> 0 | P11: =IFERROR(IF($E11="%",I11*VLOOKUP($D11,Cost_by_Input!$A$7:$G$24,P$6,FALSE),I11),0) -> 5350758.741 | Q11: =IFERROR(IF($E11="%",J11*VLOOKUP($D11,Cost_by_Input!$A$7:$G$24,Q$6,FALSE),J11),0) -> 0 | R11: =IFERROR(IF($E11="%",K11*VLOOKUP($D11,Cost_by_Input!$A$7:$G$24,R$6,FALSE),K11),0) -> 8514929.922 | S11: =IFERROR(IF($E11="%",L11*VLOOKUP($D11,Cost_by_Input!$A$7:$G$24,S$6,FALSE),L11),0) -> 0
A12: 4 | N12: =IFERROR(IF($E12="%",G12*VLOOKUP($D12,Cost_by_Input!$A$7:$G$24,N$6,FALSE),G12),0) -> 0 | O12: =IFERROR(IF($E12="%",H12*VLOOKUP($D12,Cost_by_Input!$A$7:$G$24,O$6,FALSE),H12),0) -> 0 | P12: =IFERROR(IF($E12="%",I12*VLOOKUP($D12,Cost_by_Input!$A$7:$G$24,P$6,FALSE),I12),0) -> 0 | Q12: =IFERROR(IF($E12="%",J12*VLOOKUP($D12,Cost_by_Input!$A$7:$G$24,Q$6,FALSE),J12),0) -> 0 | R12: =IFERROR(IF($E12="%",K12*VLOOKUP($D12,Cost_by_Input!$A$7:$G$24,R$6,FALSE),K12),0) -> 0 | S12: =IFERROR(IF($E12="%",L12*VLOOKUP($D12,Cost_by_Input!$A$7:$G$24,S$6,FALSE),L12),0) -> 0
A13: 5 | N13: =IFERROR(IF($E13="%",G13*VLOOKUP($D13,Cost_by_Input!$A$7:$G$24,N$6,FALSE),G13),0) -> 0 | O13: =IFERROR(IF($E13="%",H13*VLOOKUP($D13,Cost_by_Input!$A$7:$G$24,O$6,FALSE),H13),0) -> 0 | P13: =IFERROR(IF($E13="%",I13*VLOOKUP($D13,Cost_by_Input!$A$7:$G$24,P$6,FALSE),I13),0) -> 0 | Q13: =IFERROR(IF($E13="%",J13*VLOOKUP($D13,Cost_by_Input!$A$7:$G$24,Q$6,FALSE),J13),0) -> 0 | R13: =IFERROR(IF($E13="%",K13*VLOOKUP($D13,Cost_by_Input!$A$7:$G$24,R$6,FALSE),K13),0) -> 0 | S13: =IFERROR(IF($E13="%",L13*VLOOKUP($D13,Cost_by_Input!$A$7:$G$24,S$6,FALSE),L13),0) -> 0
A14: 6 | N14: =IFERROR(IF($E14="%",G14*VLOOKUP($D14,Cost_by_Input!$A$7:$G$24,N$6,FALSE),G14),0) -> 0 | O14: =IFERROR(IF($E14="%",H14*VLOOKUP($D14,Cost_by_Input!$A$7:$G$24,O$6,FALSE),H14),0) -> 0 | P14: =IFERROR(IF($E14="%",I14*VLOOKUP($D14,Cost_by_Input!$A$7:$G$24,P$6,FALSE),I14),0) -> 0 | Q14: =IFERROR(IF($E14="%",J14*VLOOKUP($D14,Cost_by_Input!$A$7:$G$24,Q$6,FALSE),J14),0) -> 0 | R14: =IFERROR(IF($E14="%",K14*VLOOKUP($D14,Cost_by_Input!$A$7:$G$24,R$6,FALSE),K14),0) -> 0 | S14: =IFERROR(IF($E14="%",L14*VLOOKUP($D14,Cost_by_Input!$A$7:$G$24,S$6,FALSE),L14),0) -> 0
A15: 7 | N15: =IFERROR(IF($E15="%",G15*VLOOKUP($D15,Cost_by_Input!$A$7:$G$24,N$6,FALSE),G15),0) -> 0 | O15: =IFERROR(IF($E15="%",H15*VLOOKUP($D15,Cost_by_Input!$A$7:$G$24,O$6,FALSE),H15),0) -> 0 | P15: =IFERROR(IF($E15="%",I15*VLOOKUP($D15,Cost_by_Input!$A$7:$G$24,P$6,FALSE),I15),0) -> 0 | Q15: =IFERROR(IF($E15="%",J15*VLOOKUP($D15,Cost_by_Input!$A$7:$G$24,Q$6,FALSE),J15),0) -> 0 | R15: =IFERROR(IF($E15="%",K15*VLOOKUP($D15,Cost_by_Input!$A$7:$G$24,R$6,FALSE),K15),0) -> 0 | S15: =IFERROR(IF($E15="%",L15*VLOOKUP($D15,Cost_by_Input!$A$7:$G$24,S$6,FALSE),L15),0) -> 0
A16: 8 | N16: =IFERROR(IF($E16="%",G16*VLOOKUP($D16,Cost_by_Input!$A$7:$G$24,N$6,FALSE),G16),0) -> 0 | O16: =IFERROR(IF($E16="%",H16*VLOOKUP($D16,Cost_by_Input!$A$7:$G$24,O$6,FALSE),H16),0) -> 0 | P16: =IFERROR(IF($E16="%",I16*VLOOKUP($D16,Cost_by_Input!$A$7:$G$24,P$6,FALSE),I16),0) -> 0 | Q16: =IFERROR(IF($E16="%",J16*VLOOKUP($D16,Cost_by_Input!$A$7:$G$24,Q$6,FALSE),J16),0) -> 0 | R16: =IFERROR(IF($E16="%",K16*VLOOKUP($D16,Cost_by_Input!$A$7:$G$24,R$6,FALSE),K16),0) -> 0 | S16: =IFERROR(IF($E16="%",L16*VLOOKUP($D16,Cost_by_Input!$A$7:$G$24,S$6,FALSE),L16),0) -> 0
A17: 9 | N17: =IFERROR(IF($E17="%",G17*VLOOKUP($D17,Cost_by_Input!$A$7:$G$24,N$6,FALSE),G17),0) -> 0 | O17: =IFERROR(IF($E17="%",H17*VLOOKUP($D17,Cost_by_Input!$A$7:$G$24,O$6,FALSE),H17),0) -> 0 | P17: =IFERROR(IF($E17="%",I17*VLOOKUP($D17,Cost_by_Input!$A$7:$G$24,P$6,FALSE),I17),0) -> 0 | Q17: =IFERROR(IF($E17="%",J17*VLOOKUP($D17,Cost_by_Input!$A$7:$G$24,Q$6,FALSE),J17),0) -> 0 | R17: =IFERROR(IF($E17="%",K17*VLOOKUP($D17,Cost_by_Input!$A$7:$G$24,R$6,FALSE),K17),0) -> 0 | S17: =IFERROR(IF($E17="%",L17*VLOOKUP($D17,Cost_by_Input!$A$7:$G$24,S$6,FALSE),L17),0) -> 0
A18: 10 | N18: =IFERROR(IF($E18="%",G18*VLOOKUP($D18,Cost_by_Input!$A$7:$G$24,N$6,FALSE),G18),0) -> 0 | O18: =IFERROR(IF($E18="%",H18*VLOOKUP($D18,Cost_by_Input!$A$7:$G$24,O$6,FALSE),H18),0) -> 0 | P18: =IFERROR(IF($E18="%",I18*VLOOKUP($D18,Cost_by_Input!$A$7:$G$24,P$6,FALSE),I18),0) -> 0 | Q18: =IFERROR(IF($E18="%",J18*VLOOKUP($D18,Cost_by_Input!$A$7:$G$24,Q$6,FALSE),J18),0) -> 0 | R18: =IFERROR(IF($E18="%",K18*VLOOKUP($D18,Cost_by_Input!$A$7:$G$24,R$6,FALSE),K18),0) -> 0 | S18: =IFERROR(IF($E18="%",L18*VLOOKUP($D18,Cost_by_Input!$A$7:$G$24,S$6,FALSE),L18),0) -> 0
A19: 11 | N19: =IFERROR(IF($E19="%",G19*VLOOKUP($D19,Cost_by_Input!$A$7:$G$24,N$6,FALSE),G19),0) -> 0 | O19: =IFERROR(IF($E19="%",H19*VLOOKUP($D19,Cost_by_Input!$A$7:$G$24,O$6,FALSE),H19),0) -> 0 | P19: =IFERROR(IF($E19="%",I19*VLOOKUP($D19,Cost_by_Input!$A$7:$G$24,P$6,FALSE),I19),0) -> 0 | Q19: =IFERROR(IF($E19="%",J19*VLOOKUP($D19,Cost_by_Input!$A$7:$G$24,Q$6,FALSE),J19),0) -> 0 | R19: =IFERROR(IF($E19="%",K19*VLOOKUP($D19,Cost_by_Input!$A$7:$G$24,R$6,FALSE),K19),0) -> 0 | S19: =IFERROR(IF($E19="%",L19*VLOOKUP($D19,Cost_by_Input!$A$7:$G$24,S$6,FALSE),L19),0) -> 0
A20: 12 | N20: =IFERROR(IF($E20="%",G20*VLOOKUP($D20,Cost_by_Input!$A$7:$G$24,N$6,FALSE),G20),0) -> 0 | O20: =IFERROR(IF($E20="%",H20*VLOOKUP($D20,Cost_by_Input!$A$7:$G$24,O$6,FALSE),H20),0) -> 0 | P20: =IFERROR(IF($E20="%",I20*VLOOKUP($D20,Cost_by_Input!$A$7:$G$24,P$6,FALSE),I20),0) -> 0 | Q20: =IFERROR(IF($E20="%",J20*VLOOKUP($D20,Cost_by_Input!$A$7:$G$24,Q$6,FALSE),J20),0) -> 0 | R20: =IFERROR(IF($E20="%",K20*VLOOKUP($D20,Cost_by_Input!$A$7:$G$24,R$6,FALSE),K20),0) -> 0 | S20: =IFERROR(IF($E20="%",L20*VLOOKUP($D20,Cost_by_Input!$A$7:$G$24,S$6,FALSE),L20),0) -> 0
A21: 13 | N21: =IFERROR(IF($E21="%",G21*VLOOKUP($D21,Cost_by_Input!$A$7:$G$24,N$6,FALSE),G21),0) -> 0 | O21: =IFERROR(IF($E21="%",H21*VLOOKUP($D21,Cost_by_Input!$A$7:$G$24,O$6,FALSE),H21),0) -> 0 | P21: =IFERROR(IF($E21="%",I21*VLOOKUP($D21,Cost_by_Input!$A$7:$G$24,P$6,FALSE),I21),0) -> 0 | Q21: =IFERROR(IF($E21="%",J21*VLOOKUP($D21,Cost_by_Input!$A$7:$G$24,Q$6,FALSE),J21),0) -> 0 | R21: =IFERROR(IF($E21="%",K21*VLOOKUP($D21,Cost_by_Input!$A$7:$G$24,R$6,FALSE),K21),0) -> 0 | S21: =IFERROR(IF($E21="%",L21*VLOOKUP($D21,Cost_by_Input!$A$7:$G$24,S$6,FALSE),L21),0) -> 0
A22: 14 | N22: =IFERROR(IF($E22="%",G22*VLOOKUP($D22,Cost_by_Input!$A$7:$G$24,N$6,FALSE),G22),0) -> 0 | O22: =IFERROR(IF($E22="%",H22*VLOOKUP($D22,Cost_by_Input!$A$7:$G$24,O$6,FALSE),H22),0) -> 0 | P22: =IFERROR(IF($E22="%",I22*VLOOKUP($D22,Cost_by_Input!$A$7:$G$24,P$6,FALSE),I22),0) -> 0 | Q22: =IFERROR(IF($E22="%",J22*VLOOKUP($D22,Cost_by_Input!$A$7:$G$24,Q$6,FALSE),J22),0) -> 0 | R22: =IFERROR(IF($E22="%",K22*VLOOKUP($D22,Cost_by_Input!$A$7:$G$24,R$6,FALSE),K22),0) -> 0 | S22: =IFERROR(IF($E22="%",L22*VLOOKUP($D22,Cost_by_Input!$A$7:$G$24,S$6,FALSE),L22),0) -> 0
A23: 15 | N23: =IFERROR(IF($E23="%",G23*VLOOKUP($D23,Cost_by_Input!$A$7:$G$24,N$6,FALSE),G23),0) -> 0 | O23: =IFERROR(IF($E23="%",H23*VLOOKUP($D23,Cost_by_Input!$A$7:$G$24,O$6,FALSE),H23),0) -> 0 | P23: =IFERROR(IF($E23="%",I23*VLOOKUP($D23,Cost_by_Input!$A$7:$G$24,P$6,FALSE),I23),0) -> 0 | Q23: =IFERROR(IF($E23="%",J23*VLOOKUP($D23,Cost_by_Input!$A$7:$G$24,Q$6,FALSE),J23),0) -> 0 | R23: =IFERROR(IF($E23="%",K23*VLOOKUP($D23,Cost_by_Input!$A$7:$G$24,R$6,FALSE),K23),0) -> 0 | S23: =IFERROR(IF($E23="%",L23*VLOOKUP($D23,Cost_by_Input!$A$7:$G$24,S$6,FALSE),L23),0) -> 0

Sheet SUMMARY TABS->
B3: Intentionally blank

Sheet Summary_Tables
A1: ="ASSISTIVE TECHNOLOGY PROGRAM SUMMARY TABLES ("&currency_results&")" -> ASSISTIVE TECHNOLOGY PROGRAM SUMMARY TABLES (ZAR) | L1: =IF(currency_used=currency_results,1,IF(currency_used="USD",2,IF(currency_results="USD",3,0))) -> 1
A2: South Africa
A3: Select Currency: | B3: ZAR
C6: =baseline_year -> 2021 | D6: =baseline_year+1 -> 2022 | E6: =D6+1 -> 2023 | F6: =E6+1 -> 2024 | G6: =F6+1 -> 2025 | H6: =G6+1 -> 2026
B9: Population Summary
B10: ="Total population of "&selected_country&"" -> Total population of South Africa | C10: =Demography!C7 -> 59308690 | D10: =Demography!D7 -> 60097495.58 | E10: =Demography!E7 -> 60896792.27 | F10: =Demography!F7 -> 61706719.61 | G10: =Demography!G7 -> 62527418.98 | H10: =Demography!H7 -> 63359033.65
B11: Total population covered | C11: =Demography!C10 -> 14827172.5 | D11: =Demography!D10 -> 9014624.337 | E11: =Demography!E10 -> 12179358.45 | F11: =Demography!F10 -> 15426679.9 | G11: =Demography!G10 -> 18758225.69 | H11: =Demography!H10 -> 22175661.78
B15: Number of HCWs
B16: =IF(_rt1="","",_rt1) -> Optometrist | C16: =Summary_HCW!C84 -> 50 | D16: =Summary_HCW!D84 -> 55 | E16: =Summary_HCW!E84 -> 60 | F16: =Summary_HCW!F84 -> 70 | G16: =Summary_HCW!G84 -> 75 | H16: =Summary_HCW!H84 -> 80
B17: =IF(_rt2="","",_rt2) -> Dispensing Optician (C/S) | C17: =Summary_HCW!C85 -> 10 | D17: =Summary_HCW!D85 -> 15 | E17: =Summary_HCW!E85 -> 20 | F17: =Summary_HCW!F85 -> 25 | G17: =Summary_HCW!G85 -> 30 | H17: =Summary_HCW!H85 -> 35
B18: =IF(_rt3="","",_rt3) ->  | C18: =Summary_HCW!C86 -> 0 | D18: =Summary_HCW!D86 -> 0 | E18: =Summary_HCW!E86 -> 0 | F18: =Summary_HCW!F86 -> 0 | G18: =Summary_HCW!G86 -> 0 | H18: =Summary_HCW!H86 -> 0
B19: =IF(_rt4="","",_rt4) ->  | C19: =Summary_HCW!C87 -> 0 | D19: =Summary_HCW!D87 -> 0 | E19: =Summary_HCW!E87 -> 0 | F19: =Summary_HCW!F87 -> 0 | G19: =Summary_HCW!G87 -> 0 | H19: =Summary_HCW!H87 -> 0
B20: =IF(_rt5="","",_rt5) ->  | C20: =Summary_HCW!C88 -> 0 | D20: =Summary_HCW!D88 -> 0 | E20: =Summary_HCW!E88 -> 0 | F20: =Summary_HCW!F88 -> 0 | G20: =Summary_HCW!G88 -> 0 | H20: =Summary_HCW!H88 -> 0
B21: =IF(_rt6="","",_rt6) ->  | C21: =Summary_HCW!C89 -> 0 | D21: =Summary_HCW!D89 -> 0 | E21: =Summary_HCW!E89 -> 0 | F21: =Summary_HCW!F89 -> 0 | G21: =Summary_HCW!G89 -> 0 | H21: =Summary_HCW!H89 -> 0
B22: =IF(_rt7="","",_rt7) ->  | C22: =Summary_HCW!C90 -> 0 | D22: =Summary_HCW!D90 -> 0 | E22: =Summary_HCW!E90 -> 0 | F22: =Summary_HCW!F90 -> 0 | G22: =Summary_HCW!G90 -> 0 | H22: =Summary_HCW!H90 -> 0
B23: Total | C23: =SUM(C16:C22) -> 60 | D23: 70 | E23: 80 | F23: 95 | G23: 105 | H23: 115
B26: Number of Service by Category
B27: =Lists!E2 -> Promotional | C27: =IF(currency_calculation=1,SUMIF(Summary_Services!$E$6:$E$105,$B27,Summary_Services!Y$6:Y$105),IF(currency_calculation=2,SUMIF(Summary_Services!$E$6:$E$105,$B27,Summary_Services!Y$6:Y$105)*exchange_rate,IF(currency_calculation=3,SUMIF(Summary_Services!$E$6:$E$105,$B27,Summary_Services!Y$6:Y$105)/exchange_rate))) -> 0 | D27: =IF(currency_calculation=1,SUMIF(Summary_Services!$E$6:$E$105,$B27,Summary_Services!Z$6:Z$105),IF(currency_calculation=2,SUMIF(Summary_Services!$E$6:$E$105,$B27,Summary_Services!Z$6:Z$105)*exchange_rate,IF(currency_calculation=3,SUMIF(Summary_Services!$E$6:$E$105,$B27,Summary_Services!Z$6:Z$105)/exchange_rate))) -> 0 | E27: =IF(currency_calculation=1,SUMIF(Summary_Services!$E$6:$E$105,$B27,Summary_Services!AA$6:AA$105),IF(currency_calculation=2,SUMIF(Summary_Services!$E$6:$E$105,$B27,Summary_Services!AA$6:AA$105)*exchange_rate,IF(currency_calculation=3,SUMIF(Summary_Services!$E$6:$E$105,$B27,Summary_Services!AA$6:AA$105)/exchange_rate))) -> 0 | F27: =IF(currency_calculation=1,SUMIF(Summary_Services!$E$6:$E$105,$B27,Summary_Services!AB$6:AB$105),IF(currency_calculation=2,SUMIF(Summary_Services!$E$6:$E$105,$B27,Summary_Services!AB$6:AB$105)*exchange_rate,IF(currency_calculation=3,SUMIF(Summary_Services!$E$6:$E$105,$B27,Summary_Services!AB$6:AB$105)/exchange_rate))) -> 0 | G27: =IF(currency_calculation=1,SUMIF(Summary_Services!$E$6:$E$105,$B27,Summary_Services!AC$6:AC$105),IF(currency_calculation=2,SUMIF(Summary_Services!$E$6:$E$105,$B27,Summary_Services!AC$6:AC$105)*exchange_rate,IF(currency_calculation=3,SUMIF(Summary_Services!$E$6:$E$105,$B27,Summary_Services!AC$6:AC$105)/exchange_rate))) -> 0 | H27: =IF(currency_calculation=1,SUMIF(Summary_Services!$E$6:$E$105,$B27,Summary_Services!AD$6:AD$105),IF(currency_calculation=2,SUMIF(Summary_Services!$E$6:$E$105,$B27,Summary_Services!AD$6:AD$105)*exchange_rate,IF(currency_calculation=3,SUMIF(Summary_Services!$E$6:$E$105,$B27,Summary_Services!AD$6:AD$105)/exchange_rate))) -> 0
B28: =Lists!E3 -> Preventive | C28: =IF(currency_calculation=1,SUMIF(Summary_Services!$E$6:$E$105,$B28,Summary_Services!Y$6:Y$105),IF(currency_calculation=2,SUMIF(Summary_Services!$E$6:$E$105,$B28,Summary_Services!Y$6:Y$105)*exchange_rate,IF(currency_calculation=3,SUMIF(Summary_Services!$E$6:$E$105,$B28,Summary_Services!Y$6:Y$105)/exchange_rate))) -> 867108.4 | D28: =IF(currency_calculation=1,SUMIF(Summary_Services!$E$6:$E$105,$B28,Summary_Services!Z$6:Z$105),IF(currency_calculation=2,SUMIF(Summary_Services!$E$6:$E$105,$B28,Summary_Services!Z$6:Z$105)*exchange_rate,IF(currency_calculation=3,SUMIF(Summary_Services!$E$6:$E$105,$B28,Summary_Services!Z$6:Z$105)/exchange_rate))) -> 658981 | E28: =IF(currency_calculation=1,SUMIF(Summary_Services!$E$6:$E$105,$B28,Summary_Services!AA$6:AA$105),IF(currency_calculation=2,SUMIF(Summary_Services!$E$6:$E$105,$B28,Summary_Services!AA$6:AA$105)*exchange_rate,IF(currency_calculation=3,SUMIF(Summary_Services!$E$6:$E$105,$B28,Summary_Services!AA$6:AA$105)/exchange_rate))) -> 1246458 | F28: =IF(currency_calculation=1,SUMIF(Summary_Services!$E$6:$E$105,$B28,Summary_Services!AB$6:AB$105),IF(currency_calculation=2,SUMIF(Summary_Services!$E$6:$E$105,$B28,Summary_Services!AB$6:AB$105)*exchange_rate,IF(currency_calculation=3,SUMIF(Summary_Services!$E$6:$E$105,$B28,Summary_Services!AB$6:AB$105)/exchange_rate))) -> 2029879 | G28: =IF(currency_calculation=1,SUMIF(Summary_Services!$E$6:$E$105,$B28,Summary_Services!AC$6:AC$105),IF(currency_calculation=2,SUMIF(Summary_Services!$E$6:$E$105,$B28,Summary_Services!AC$6:AC$105)*exchange_rate,IF(currency_calculation=3,SUMIF(Summary_Services!$E$6:$E$105,$B28,Summary_Services!AC$6:AC$105)/exchange_rate))) -> 3016752 | H28: =IF(currency_calculation=1,SUMIF(Summary_Services!$E$6:$E$105,$B28,Summary_Services!AD$6:AD$105),IF(currency_calculation=2,SUMIF(Summary_Services!$E$6:$E$105,$B28,Summary_Services!AD$6:AD$105)*exchange_rate,IF(currency_calculation=3,SUMIF(Summary_Services!$E$6:$E$105,$B28,Summary_Services!AD$6:AD$105)/exchange_rate))) -> 3566353
B29: =Lists!E4 -> Curative | C29: =IF(currency_calculation=1,SUMIF(Summary_Services!$E$6:$E$105,$B29,Summary_Services!Y$6:Y$105),IF(currency_calculation=2,SUMIF(Summary_Services!$E$6:$E$105,$B29,Summary_Services!Y$6:Y$105)*exchange_rate,IF(currency_calculation=3,SUMIF(Summary_Services!$E$6:$E$105,$B29,Summary_Services!Y$6:Y$105)/exchange_rate))) -> 867108.4 | D29: =IF(currency_calculation=1,SUMIF(Summary_Services!$E$6:$E$105,$B29,Summary_Services!Z$6:Z$105),IF(currency_calculation=2,SUMIF(Summary_Services!$E$6:$E$105,$B29,Summary_Services!Z$6:Z$105)*exchange_rate,IF(currency_calculation=3,SUMIF(Summary_Services!$E$6:$E$105,$B29,Summary_Services!Z$6:Z$105)/exchange_rate))) -> 817137 | E29: =IF(currency_calculation=1,SUMIF(Summary_Services!$E$6:$E$105,$B29,Summary_Services!AA$6:AA$105),IF(currency_calculation=2,SUMIF(Summary_Services!$E$6:$E$105,$B29,Summary_Services!AA$6:AA$105)*exchange_rate,IF(currency_calculation=3,SUMIF(Summary_Services!$E$6:$E$105,$B29,Summary_Services!AA$6:AA$105)/exchange_rate))) -> 1246458 | F29: =IF(currency_calculation=1,SUMIF(Summary_Services!$E$6:$E$105,$B29,Summary_Services!AB$6:AB$105),IF(currency_calculation=2,SUMIF(Summary_Services!$E$6:$E$105,$B29,Summary_Services!AB$6:AB$105)*exchange_rate,IF(currency_calculation=3,SUMIF(Summary_Services!$E$6:$E$105,$B29,Summary_Services!AB$6:AB$105)/exchange_rate))) -> 1804337 | G29: =IF(currency_calculation=1,SUMIF(Summary_Services!$E$6:$E$105,$B29,Summary_Services!AC$6:AC$105),IF(currency_calculation=2,SUMIF(Summary_Services!$E$6:$E$105,$B29,Summary_Services!AC$6:AC$105)*exchange_rate,IF(currency_calculation=3,SUMIF(Summary_Services!$E$6:$E$105,$B29,Summary_Services!AC$6:AC$105)/exchange_rate))) -> 2468251 | H29: =IF(currency_calculation=1,SUMIF(Summary_Services!$E$6:$E$105,$B29,Summary_Services!AD$6:AD$105),IF(currency_calculation=2,SUMIF(Summary_Services!$E$6:$E$105,$B29,Summary_Services!AD$6:AD$105)*exchange_rate,IF(currency_calculation=3,SUMIF(Summary_Services!$E$6:$E$105,$B29,Summary_Services!AD$6:AD$105)/exchange_rate))) -> 2917926
B30: =Lists!E5 -> Rehabilitative | C30: =IF(currency_calculation=1,SUMIF(Summary_Services!$E$6:$E$105,$B30,Summary_Services!Y$6:Y$105),IF(currency_calculation=2,SUMIF(Summary_Services!$E$6:$E$105,$B30,Summary_Services!Y$6:Y$105)*exchange_rate,IF(currency_calculation=3,SUMIF(Summary_Services!$E$6:$E$105,$B30,Summary_Services!Y$6:Y$105)/exchange_rate))) -> 0 | D30: =IF(currency_calculation=1,SUMIF(Summary_Services!$E$6:$E$105,$B30,Summary_Services!Z$6:Z$105),IF(currency_calculation=2,SUMIF(Summary_Services!$E$6:$E$105,$B30,Summary_Services!Z$6:Z$105)*exchange_rate,IF(currency_calculation=3,SUMIF(Summary_Services!$E$6:$E$105,$B30,Summary_Services!Z$6:Z$105)/exchange_rate))) -> 0 | E30: =IF(currency_calculation=1,SUMIF(Summary_Services!$E$6:$E$105,$B30,Summary_Services!AA$6:AA$105),IF(currency_calculation=2,SUMIF(Summary_Services!$E$6:$E$105,$B30,Summary_Services!AA$6:AA$105)*exchange_rate,IF(currency_calculation=3,SUMIF(Summary_Services!$E$6:$E$105,$B30,Summary_Services!AA$6:AA$105)/exchange_rate))) -> 0 | F30: =IF(currency_calculation=1,SUMIF(Summary_Services!$E$6:$E$105,$B30,Summary_Services!AB$6:AB$105),IF(currency_calculation=2,SUMIF(Summary_Services!$E$6:$E$105,$B30,Summary_Services!AB$6:AB$105)*exchange_rate,IF(currency_calculation=3,SUMIF(Summary_Services!$E$6:$E$105,$B30,Summary_Services!AB$6:AB$105)/exchange_rate))) -> 0 | G30: =IF(currency_calculation=1,SUMIF(Summary_Services!$E$6:$E$105,$B30,Summary_Services!AC$6:AC$105),IF(currency_calculation=2,SUMIF(Summary_Services!$E$6:$E$105,$B30,Summary_Services!AC$6:AC$105)*exchange_rate,IF(currency_calculation=3,SUMIF(Summary_Services!$E$6:$E$105,$B30,Summary_Services!AC$6:AC$105)/exchange_rate))) -> 0 | H30: =IF(currency_calculation=1,SUMIF(Summary_Services!$E$6:$E$105,$B30,Summary_Services!AD$6:AD$105),IF(currency_calculation=2,SUMIF(Summary_Services!$E$6:$E$105,$B30,Summary_Services!AD$6:AD$105)*exchange_rate,IF(currency_calculation=3,SUMIF(Summary_Services!$E$6:$E$105,$B30,Summary_Services!AD$6:AD$105)/exchange_rate))) -> 0
B31: =Lists!E6 -> Campaigns | C31: =IF(currency_calculation=1,SUMIF(Summary_Services!$E$6:$E$105,$B31,Summary_Services!Y$6:Y$105),IF(currency_calculation=2,SUMIF(Summary_Services!$E$6:$E$105,$B31,Summary_Services!Y$6:Y$105)*exchange_rate,IF(currency_calculation=3,SUMIF(Summary_Services!$E$6:$E$105,$B31,Summary_Services!Y$6:Y$105)/exchange_rate))) -> 0 | D31: =IF(currency_calculation=1,SUMIF(Summary_Services!$E$6:$E$105,$B31,Summary_Services!Z$6:Z$105),IF(currency_calculation=2,SUMIF(Summary_Services!$E$6:$E$105,$B31,Summary_Services!Z$6:Z$105)*exchange_rate,IF(currency_calculation=3,SUMIF(Summary_Services!$E$6:$E$105,$B31,Summary_Services!Z$6:Z$105)/exchange_rate))) -> 0 | E31: =IF(currency_calculation=1,SUMIF(Summary_Services!$E$6:$E$105,$B31,Summary_Services!AA$6:AA$105),IF(currency_calculation=2,SUMIF(Summary_Services!$E$6:$E$105,$B31,Summary_Services!AA$6:AA$105)*exchange_rate,IF(currency_calculation=3,SUMIF(Summary_Services!$E$6:$E$105,$B31,Summary_Services!AA$6:AA$105)/exchange_rate))) -> 0 | F31: =IF(currency_calculation=1,SUMIF(Summary_Services!$E$6:$E$105,$B31,Summary_Services!AB$6:AB$105),IF(currency_calculation=2,SUMIF(Summary_Services!$E$6:$E$105,$B31,Summary_Services!AB$6:AB$105)*exchange_rate,IF(currency_calculation=3,SUMIF(Summary_Services!$E$6:$E$105,$B31,Summary_Services!AB$6:AB$105)/exchange_rate))) -> 0 | G31: =IF(currency_calculation=1,SUMIF(Summary_Services!$E$6:$E$105,$B31,Summary_Services!AC$6:AC$105),IF(currency_calculation=2,SUMIF(Summary_Services!$E$6:$E$105,$B31,Summary_Services!AC$6:AC$105)*exchange_rate,IF(currency_calculation=3,SUMIF(Summary_Services!$E$6:$E$105,$B31,Summary_Services!AC$6:AC$105)/exchange_rate))) -> 0 | H31: =IF(currency_calculation=1,SUMIF(Summary_Services!$E$6:$E$105,$B31,Summary_Services!AD$6:AD$105),IF(currency_calculation=2,SUMIF(Summary_Services!$E$6:$E$105,$B31,Summary_Services!AD$6:AD$105)*exchange_rate,IF(currency_calculation=3,SUMIF(Summary_Services!$E$6:$E$105,$B31,Summary_Services!AD$6:AD$105)/exchange_rate))) -> 0
B32: =Lists!E7 -> Administrative | C32: =IF(currency_calculation=1,SUMIF(Summary_Services!$E$6:$E$105,$B32,Summary_Services!Y$6:Y$105),IF(currency_calculation=2,SUMIF(Summary_Services!$E$6:$E$105,$B32,Summary_Services!Y$6:Y$105)*exchange_rate,IF(currency_calculation=3,SUMIF(Summary_Services!$E$6:$E$105,$B32,Summary_Services!Y$6:Y$105)/exchange_rate))) -> 0 | D32: =IF(currency_calculation=1,SUMIF(Summary_Services!$E$6:$E$105,$B32,Summary_Services!Z$6:Z$105),IF(currency_calculation=2,SUMIF(Summary_Services!$E$6:$E$105,$B32,Summary_Services!Z$6:Z$105)*exchange_rate,IF(currency_calculation=3,SUMIF(Summary_Services!$E$6:$E$105,$B32,Summary_Services!Z$6:Z$105)/exchange_rate))) -> 0 | E32: =IF(currency_calculation=1,SUMIF(Summary_Services!$E$6:$E$105,$B32,Summary_Services!AA$6:AA$105),IF(currency_calculation=2,SUMIF(Summary_Services!$E$6:$E$105,$B32,Summary_Services!AA$6:AA$105)*exchange_rate,IF(currency_calculation=3,SUMIF(Summary_Services!$E$6:$E$105,$B32,Summary_Services!AA$6:AA$105)/exchange_rate))) -> 0 | F32: =IF(currency_calculation=1,SUMIF(Summary_Services!$E$6:$E$105,$B32,Summary_Services!AB$6:AB$105),IF(currency_calculation=2,SUMIF(Summary_Services!$E$6:$E$105,$B32,Summary_Services!AB$6:AB$105)*exchange_rate,IF(currency_calculation=3,SUMIF(Summary_Services!$E$6:$E$105,$B32,Summary_Services!AB$6:AB$105)/exchange_rate))) -> 0 | G32: =IF(currency_calculation=1,SUMIF(Summary_Services!$E$6:$E$105,$B32,Summary_Services!AC$6:AC$105),IF(currency_calculation=2,SUMIF(Summary_Services!$E$6:$E$105,$B32,Summary_Services!AC$6:AC$105)*exchange_rate,IF(currency_calculation=3,SUMIF(Summary_Services!$E$6:$E$105,$B32,Summary_Services!AC$6:AC$105)/exchange_rate))) -> 0 | H32: =IF(currency_calculation=1,SUMIF(Summary_Services!$E$6:$E$105,$B32,Summary_Services!AD$6:AD$105),IF(currency_calculation=2,SUMIF(Summary_Services!$E$6:$E$105,$B32,Summary_Services!AD$6:AD$105)*exchange_rate,IF(currency_calculation=3,SUMIF(Summary_Services!$E$6:$E$105,$B32,Summary_Services!AD$6:AD$105)/exchange_rate))) -> 0
B33: Total | C33: =SUM(C27:C32) -> 1734216.8 | D33: =SUM(D27:D32) -> 1476118 | E33: 2492916 | F33: 3834216 | G33: 5485003 | H33: 6484279
B36: ="Cost by cost category ("&currency_results&")" -> Cost by cost category (ZAR)
B37: =Cost_by_Input!A9 -> Staff costs | C37: =IF(currency_calculation=1,Cost_by_Input!B9,IF(currency_calculation=2,Cost_by_Input!B9*exchange_rate,IF(currency_calculation=3,Cost_by_Input!B9/exchange_rate))) -> 35473018.34 | D37: =IF(currency_calculation=1,Cost_by_Input!C9,IF(currency_calculation=2,Cost_by_Input!C9*exchange_rate,IF(currency_calculation=3,Cost_by_Input!C9/exchange_rate))) -> 41385188.06 | E37: =IF(currency_calculation=1,Cost_by_Input!D9,IF(currency_calculation=2,Cost_by_Input!D9*exchange_rate,IF(currency_calculation=3,Cost_by_Input!D9/exchange_rate))) -> 47297357.79 | F37: =IF(currency_calculation=1,Cost_by_Input!E9,IF(currency_calculation=2,Cost_by_Input!E9*exchange_rate,IF(currency_calculation=3,Cost_by_Input!E9/exchange_rate))) -> 56165612.37 | G37: =IF(currency_calculation=1,Cost_by_Input!F9,IF(currency_calculation=2,Cost_by_Input!F9*exchange_rate,IF(currency_calculation=3,Cost_by_Input!F9/exchange_rate))) -> 62077782.1 | H37: =IF(currency_calculation=1,Cost_by_Input!G9,IF(currency_calculation=2,Cost_by_Input!G9*exchange_rate,IF(currency_calculation=3,Cost_by_Input!G9/exchange_rate))) -> 67989951.82
B38: =Cost_by_Input!A10 -> Assistive Products and Supplies | C38: =IF(currency_calculation=1,Cost_by_Input!B10,IF(currency_calculation=2,Cost_by_Input!B10*exchange_rate,IF(currency_calculation=3,Cost_by_Input!B10/exchange_rate))) -> 143072886 | D38: =IF(currency_calculation=1,Cost_by_Input!C10,IF(currency_calculation=2,Cost_by_Input!C10*exchange_rate,IF(currency_calculation=3,Cost_by_Input!C10/exchange_rate))) -> 134827605 | E38: =IF(currency_calculation=1,Cost_by_Input!D10,IF(currency_calculation=2,Cost_by_Input!D10*exchange_rate,IF(currency_calculation=3,Cost_by_Input!D10/exchange_rate))) -> 205665570 | F38: =IF(currency_calculation=1,Cost_by_Input!E10,IF(currency_calculation=2,Cost_by_Input!E10*exchange_rate,IF(currency_calculation=3,Cost_by_Input!E10/exchange_rate))) -> 297715605 | G38: =IF(currency_calculation=1,Cost_by_Input!F10,IF(currency_calculation=2,Cost_by_Input!F10*exchange_rate,IF(currency_calculation=3,Cost_by_Input!F10/exchange_rate))) -> 407261415 | H38: =IF(currency_calculation=1,Cost_by_Input!G10,IF(currency_calculation=2,Cost_by_Input!G10*exchange_rate,IF(currency_calculation=3,Cost_by_Input!G10/exchange_rate))) -> 481457790
B39: =Cost_by_Input!A11 -> Training Costs | C39: =IF(currency_calculation=1,Cost_by_Input!B11,IF(currency_calculation=2,Cost_by_Input!B11*exchange_rate,IF(currency_calculation=3,Cost_by_Input!B11/exchange_rate))) -> 330000 | D39: =IF(currency_calculation=1,Cost_by_Input!C11,IF(currency_calculation=2,Cost_by_Input!C11*exchange_rate,IF(currency_calculation=3,Cost_by_Input!C11/exchange_rate))) -> 333720 | E39: =IF(currency_calculation=1,Cost_by_Input!D11,IF(currency_calculation=2,Cost_by_Input!D11*exchange_rate,IF(currency_calculation=3,Cost_by_Input!D11/exchange_rate))) -> 376980 | F39: =IF(currency_calculation=1,Cost_by_Input!E11,IF(currency_calculation=2,Cost_by_Input!E11*exchange_rate,IF(currency_calculation=3,Cost_by_Input!E11/exchange_rate))) -> 423330 | G39: =IF(currency_calculation=1,Cost_by_Input!F11,IF(currency_calculation=2,Cost_by_Input!F11*exchange_rate,IF(currency_calculation=3,Cost_by_Input!F11/exchange_rate))) -> 500580 | H39: =IF(currency_calculation=1,Cost_by_Input!G11,IF(currency_calculation=2,Cost_by_Input!G11*exchange_rate,IF(currency_calculation=3,Cost_by_Input!G11/exchange_rate))) -> 457320
B40: =Cost_by_Input!A12 -> Equipment | C40: =IF(currency_calculation=1,Cost_by_Input!B12,IF(currency_calculation=2,Cost_by_Input!B12*exchange_rate,IF(currency_calculation=3,Cost_by_Input!B12/exchange_rate))) -> 5043603.3 | D40: =IF(currency_calculation=1,Cost_by_Input!C12,IF(currency_calculation=2,Cost_by_Input!C12*exchange_rate,IF(currency_calculation=3,Cost_by_Input!C12/exchange_rate))) -> 0 | E40: =IF(currency_calculation=1,Cost_by_Input!D12,IF(currency_calculation=2,Cost_by_Input!D12*exchange_rate,IF(currency_calculation=3,Cost_by_Input!D12/exchange_rate))) -> 10701517.48 | F40: =IF(currency_calculation=1,Cost_by_Input!E12,IF(currency_calculation=2,Cost_by_Input!E12*exchange_rate,IF(currency_calculation=3,Cost_by_Input!E12/exchange_rate))) -> 0 | G40: =IF(currency_calculation=1,Cost_by_Input!F12,IF(currency_calculation=2,Cost_by_Input!F12*exchange_rate,IF(currency_calculation=3,Cost_by_Input!F12/exchange_rate))) -> 17029859.84 | H40: =IF(currency_calculation=1,Cost_by_Input!G12,IF(currency_calculation=2,Cost_by_Input!G12*exchange_rate,IF(currency_calculation=3,Cost_by_Input!G12/exchange_rate))) -> 0
B41: =Cost_by_Input!A13 -> Other Recurrent Costs | C41: =IF(currency_calculation=1,Cost_by_Input!B13,IF(currency_calculation=2,Cost_by_Input!B13*exchange_rate,IF(currency_calculation=3,Cost_by_Input!B13/exchange_rate))) -> 20000 | D41: =IF(currency_calculation=1,Cost_by_Input!C13,IF(currency_calculation=2,Cost_by_Input!C13*exchange_rate,IF(currency_calculation=3,Cost_by_Input!C13/exchange_rate))) -> 30900 | E41: =IF(currency_calculation=1,Cost_by_Input!D13,IF(currency_calculation=2,Cost_by_Input!D13*exchange_rate,IF(currency_calculation=3,Cost_by_Input!D13/exchange_rate))) -> 42436 | F41: =IF(currency_calculation=1,Cost_by_Input!E13,IF(currency_calculation=2,Cost_by_Input!E13*exchange_rate,IF(currency_calculation=3,Cost_by_Input!E13/exchange_rate))) -> 54636.35 | G41: =IF(currency_calculation=1,Cost_by_Input!F13,IF(currency_calculation=2,Cost_by_Input!F13*exchange_rate,IF(currency_calculation=3,Cost_by_Input!F13/exchange_rate))) -> 67530.5286 | H41: =IF(currency_calculation=1,Cost_by_Input!G13,IF(currency_calculation=2,Cost_by_Input!G13*exchange_rate,IF(currency_calculation=3,Cost_by_Input!G13/exchange_rate))) -> 81149.1852
B42: =Cost_by_Input!A14 -> Start-up Costs | C42: =IF(currency_calculation=1,Cost_by_Input!B14,IF(currency_calculation=2,Cost_by_Input!B14*exchange_rate,IF(currency_calculation=3,Cost_by_Input!B14/exchange_rate))) -> 0 | D42: =IF(currency_calculation=1,Cost_by_Input!C14,IF(currency_calculation=2,Cost_by_Input!C14*exchange_rate,IF(currency_calculation=3,Cost_by_Input!C14/exchange_rate))) -> 0 | E42: =IF(currency_calculation=1,Cost_by_Input!D14,IF(currency_calculation=2,Cost_by_Input!D14*exchange_rate,IF(currency_calculation=3,Cost_by_Input!D14/exchange_rate))) -> 0 | F42: =IF(currency_calculation=1,Cost_by_Input!E14,IF(currency_calculation=2,Cost_by_Input!E14*exchange_rate,IF(currency_calculation=3,Cost_by_Input!E14/exchange_rate))) -> 0 | G42: =IF(currency_calculation=1,Cost_by_Input!F14,IF(currency_calculation=2,Cost_by_Input!F14*exchange_rate,IF(currency_calculation=3,Cost_by_Input!F14/exchange_rate))) -> 0 | H42: =IF(currency_calculation=1,Cost_by_Input!G14,IF(currency_calculation=2,Cost_by_Input!G14*exchange_rate,IF(currency_calculation=3,Cost_by_Input!G14/exchange_rate))) -> 0
B43: =Cost_by_Input!A15 -> Capital Costs | C43: =IF(currency_calculation=1,Cost_by_Input!B15,IF(currency_calculation=2,Cost_by_Input!B15*exchange_rate,IF(currency_calculation=3,Cost_by_Input!B15/exchange_rate))) -> 15600000 | D43: =IF(currency_calculation=1,Cost_by_Input!C15,IF(currency_calculation=2,Cost_by_Input!C15*exchange_rate,IF(currency_calculation=3,Cost_by_Input!C15/exchange_rate))) -> 0 | E43: =IF(currency_calculation=1,Cost_by_Input!D15,IF(currency_calculation=2,Cost_by_Input!D15*exchange_rate,IF(currency_calculation=3,Cost_by_Input!D15/exchange_rate))) -> 0 | F43: =IF(currency_calculation=1,Cost_by_Input!E15,IF(currency_calculation=2,Cost_by_Input!E15*exchange_rate,IF(currency_calculation=3,Cost_by_Input!E15/exchange_rate))) -> 0 | G43: =IF(currency_calculation=1,Cost_by_Input!F15,IF(currency_calculation=2,Cost_by_Input!F15*exchange_rate,IF(currency_calculation=3,Cost_by_Input!F15/exchange_rate))) -> 0 | H43: =IF(currency_calculation=1,Cost_by_Input!G15,IF(currency_calculation=2,Cost_by_Input!G15*exchange_rate,IF(currency_calculation=3,Cost_by_Input!G15/exchange_rate))) -> 0
B44: Total | C44: =SUM(C37:C43) -> 199539507.6 | D44: 176577413.1 | E44: 264083861.3 | F44: 354359183.7 | G44: 486937167.5 | H44: 549986211
B46: ="Program Cost ("&currency_results&")" -> Program Cost (ZAR)
B47: Total Program Cost | C47: =IF(currency_calculation=1,Cost_by_Input!B21,IF(currency_calculation=2,Cost_by_Input!B21*exchange_rate,IF(currency_calculation=3,Cost_by_Input!B21/exchange_rate))) -> 199539507.6 | D47: =IF(currency_calculation=1,Cost_by_Input!C21,IF(currency_calculation=2,Cost_by_Input!C21*exchange_rate,IF(currency_calculation=3,Cost_by_Input!C21/exchange_rate))) -> 176577413.1 | E47: =IF(currency_calculation=1,Cost_by_Input!D21,IF(currency_calculation=2,Cost_by_Input!D21*exchange_rate,IF(currency_calculation=3,Cost_by_Input!D21/exchange_rate))) -> 264083861.3 | F47: =IF(currency_calculation=1,Cost_by_Input!E21,IF(currency_calculation=2,Cost_by_Input!E21*exchange_rate,IF(currency_calculation=3,Cost_by_Input!E21/exchange_rate))) -> 354359183.7 | G47: =IF(currency_calculation=1,Cost_by_Input!F21,IF(currency_calculation=2,Cost_by_Input!F21*exchange_rate,IF(currency_calculation=3,Cost_by_Input!F21/exchange_rate))) -> 486937167.5 | H47: =IF(currency_calculation=1,Cost_by_Input!G21,IF(currency_calculation=2,Cost_by_Input!G21*exchange_rate,IF(currency_calculation=3,Cost_by_Input!G21/exchange_rate))) -> 549986211
B48: Recurrent Cost | C48: =+SUM(C37:C41) -> 183939507.6 | D48: =+SUM(D37:D41) -> 176577413.1 | E48: 264083861.3 | F48: 354359183.7 | G48: 486937167.5 | H48: 549986211
B49: Start-up and Capital Costs | C49: =+SUM(C42:C43) -> 15600000 | D49: =+SUM(D42:D43) -> 0 | E49: 0 | F49: 0 | G49: 0 | H49: 0
B51: ="Cost per Capita ("&currency_results&")" -> Cost per Capita (ZAR)
B52: Total Cost per Capita (total population) | C52: =IF(C10=0,0,C47/C10) -> 3.364422779 | D52: 2.938182554 | E52: 4.336580819 | F52: 5.742635259 | G52: 7.787578241 | H52: 8.680470319
B53: Recurrent Cost Per Capita (total population) | C53: =IF(C10=0,0,C48/C10) -> 3.101392185 | D53: 2.938182554 | E53: 4.336580819 | F53: 5.742635259 | G53: 7.787578241 | H53: 8.680470319
B54: Total Cost per Capita (population covered) | C54: =IF(C11=0,0,C47/C11) -> 13.45769112 | D54: 19.5878837 | E54: 21.68290409 | F54: 22.97054104 | G54: 25.95859414 | H54: 24.80134377
B55: Recurrent Cost Per Capita (population covered) | C55: =IF(C11=0,0,C48/C11) -> 12.40556874 | D55: 19.5878837 | E55: 21.68290409 | F55: 22.97054104 | G55: 25.95859414 | H55: 24.80134377
B57: ="Cost per HCW ("&currency_results&")" -> Cost per HCW (ZAR)
B58: ="Cost per HCW (Total Cost / Total HCWs)" -> Cost per HCW (Total Cost / Total HCWs) | C58: =IF(C23=0,0,C47/C23) -> 3325658.461 | D58: 2522534.472 | E58: 3301048.266 | F58: 3730096.671 | G58: 4637496.833 | H58: 4782488.791
B59: Recurrent Cost per HCW (Total Recurrent Cost / Total HCWs) | C59: =IF(C23=0,0,C48/C23) -> 3065658.461 | D59: 2522534.472 | E59: 3301048.266 | F59: 3730096.671 | G59: 4637496.833 | H59: 4782488.791
B60: ="Training cost per AHW" -> Training cost per AHW | C60: =IF(C23=0,0,C41/C23) -> 333.3333333 | D60: =IF(D24=0,0,D49/D24) -> 0 | E60: =IF(E24=0,0,E49/E24) -> 0 | F60: =IF(F24=0,0,F49/F24) -> 0 | G60: =IF(G24=0,0,G49/G24) -> 0 | H60: =IF(H24=0,0,H49/H24) -> 0
B63: ="Total Funding Available and Gap ("&currency_results&")" -> Total Funding Available and Gap (ZAR)
B64: =Cost_by_Input!A9 -> Staff costs | C64: =IF(currency_calculation=1,Cost_by_Input!J9,IF(currency_calculation=2,Cost_by_Input!J9*exchange_rate,IF(currency_calculation=3,Cost_by_Input!J9/exchange_rate))) -> 10641905.5 | D64: =IF(currency_calculation=1,Cost_by_Input!K9,IF(currency_calculation=2,Cost_by_Input!K9*exchange_rate,IF(currency_calculation=3,Cost_by_Input!K9/exchange_rate))) -> 16554075.23 | E64: =IF(currency_calculation=1,Cost_by_Input!L9,IF(currency_calculation=2,Cost_by_Input!L9*exchange_rate,IF(currency_calculation=3,Cost_by_Input!L9/exchange_rate))) -> 23648678.89 | F64: =IF(currency_calculation=1,Cost_by_Input!M9,IF(currency_calculation=2,Cost_by_Input!M9*exchange_rate,IF(currency_calculation=3,Cost_by_Input!M9/exchange_rate))) -> 33699367.42 | G64: =IF(currency_calculation=1,Cost_by_Input!N9,IF(currency_calculation=2,Cost_by_Input!N9*exchange_rate,IF(currency_calculation=3,Cost_by_Input!N9/exchange_rate))) -> 43454447.47 | H64: =IF(currency_calculation=1,Cost_by_Input!O9,IF(currency_calculation=2,Cost_by_Input!O9*exchange_rate,IF(currency_calculation=3,Cost_by_Input!O9/exchange_rate))) -> 54391961.46
B65: =Cost_by_Input!A10 -> Assistive Products and Supplies | C65: =IF(currency_calculation=1,Cost_by_Input!J10,IF(currency_calculation=2,Cost_by_Input!J10*exchange_rate,IF(currency_calculation=3,Cost_by_Input!J10/exchange_rate))) -> 0 | D65: =IF(currency_calculation=1,Cost_by_Input!K10,IF(currency_calculation=2,Cost_by_Input!K10*exchange_rate,IF(currency_calculation=3,Cost_by_Input!K10/exchange_rate))) -> 0 | E65: =IF(currency_calculation=1,Cost_by_Input!L10,IF(currency_calculation=2,Cost_by_Input!L10*exchange_rate,IF(currency_calculation=3,Cost_by_Input!L10/exchange_rate))) -> 0 | F65: =IF(currency_calculation=1,Cost_by_Input!M10,IF(currency_calculation=2,Cost_by_Input!M10*exchange_rate,IF(currency_calculation=3,Cost_by_Input!M10/exchange_rate))) -> 0 | G65: =IF(currency_calculation=1,Cost_by_Input!N10,IF(currency_calculation=2,Cost_by_Input!N10*exchange_rate,IF(currency_calculation=3,Cost_by_Input!N10/exchange_rate))) -> 0 | H65: =IF(currency_calculation=1,Cost_by_Input!O10,IF(currency_calculation=2,Cost_by_Input!O10*exchange_rate,IF(currency_calculation=3,Cost_by_Input!O10/exchange_rate))) -> 0
B66: =Cost_by_Input!A11 -> Training Costs | C66: =IF(currency_calculation=1,Cost_by_Input!J11,IF(currency_calculation=2,Cost_by_Input!J11*exchange_rate,IF(currency_calculation=3,Cost_by_Input!J11/exchange_rate))) -> 165000 | D66: =IF(currency_calculation=1,Cost_by_Input!K11,IF(currency_calculation=2,Cost_by_Input!K11*exchange_rate,IF(currency_calculation=3,Cost_by_Input!K11/exchange_rate))) -> 166860 | E66: =IF(currency_calculation=1,Cost_by_Input!L11,IF(currency_calculation=2,Cost_by_Input!L11*exchange_rate,IF(currency_calculation=3,Cost_by_Input!L11/exchange_rate))) -> 188490 | F66: =IF(currency_calculation=1,Cost_by_Input!M11,IF(currency_calculation=2,Cost_by_Input!M11*exchange_rate,IF(currency_calculation=3,Cost_by_Input!M11/exchange_rate))) -> 211665 | G66: =IF(currency_calculation=1,Cost_by_Input!N11,IF(currency_calculation=2,Cost_by_Input!N11*exchange_rate,IF(currency_calculation=3,Cost_by_Input!N11/exchange_rate))) -> 250290 | H66: =IF(currency_calculation=1,Cost_by_Input!O11,IF(currency_calculation=2,Cost_by_Input!O11*exchange_rate,IF(currency_calculation=3,Cost_by_Input!O11/exchange_rate))) -> 228660
B67: =Cost_by_Input!A12 -> Equipment | C67: =IF(currency_calculation=1,Cost_by_Input!J12,IF(currency_calculation=2,Cost_by_Input!J12*exchange_rate,IF(currency_calculation=3,Cost_by_Input!J12/exchange_rate))) -> 2521801.65 | D67: =IF(currency_calculation=1,Cost_by_Input!K12,IF(currency_calculation=2,Cost_by_Input!K12*exchange_rate,IF(currency_calculation=3,Cost_by_Input!K12/exchange_rate))) -> 0 | E67: =IF(currency_calculation=1,Cost_by_Input!L12,IF(currency_calculation=2,Cost_by_Input!L12*exchange_rate,IF(currency_calculation=3,Cost_by_Input!L12/exchange_rate))) -> 5350758.741 | F67: =IF(currency_calculation=1,Cost_by_Input!M12,IF(currency_calculation=2,Cost_by_Input!M12*exchange_rate,IF(currency_calculation=3,Cost_by_Input!M12/exchange_rate))) -> 0 | G67: =IF(currency_calculation=1,Cost_by_Input!N12,IF(currency_calculation=2,Cost_by_Input!N12*exchange_rate,IF(currency_calculation=3,Cost_by_Input!N12/exchange_rate))) -> 8514929.922 | H67: =IF(currency_calculation=1,Cost_by_Input!O12,IF(currency_calculation=2,Cost_by_Input!O12*exchange_rate,IF(currency_calculation=3,Cost_by_Input!O12/exchange_rate))) -> 0
B68: =Cost_by_Input!A13 -> Other Recurrent Costs | C68: =IF(currency_calculation=1,Cost_by_Input!J13,IF(currency_calculation=2,Cost_by_Input!J13*exchange_rate,IF(currency_calculation=3,Cost_by_Input!J13/exchange_rate))) -> 0 | D68: =IF(currency_calculation=1,Cost_by_Input!K13,IF(currency_calculation=2,Cost_by_Input!K13*exchange_rate,IF(currency_calculation=3,Cost_by_Input!K13/exchange_rate))) -> 0 | E68: =IF(currency_calculation=1,Cost_by_Input!L13,IF(currency_calculation=2,Cost_by_Input!L13*exchange_rate,IF(currency_calculation=3,Cost_by_Input!L13/exchange_rate))) -> 0 | F68: =IF(currency_calculation=1,Cost_by_Input!M13,IF(currency_calculation=2,Cost_by_Input!M13*exchange_rate,IF(currency_calculation=3,Cost_by_Input!M13/exchange_rate))) -> 0 | G68: =IF(currency_calculation=1,Cost_by_Input!N13,IF(currency_calculation=2,Cost_by_Input!N13*exchange_rate,IF(currency_calculation=3,Cost_by_Input!N13/exchange_rate))) -> 0 | H68: =IF(currency_calculation=1,Cost_by_Input!O13,IF(currency_calculation=2,Cost_by_Input!O13*exchange_rate,IF(currency_calculation=3,Cost_by_Input!O13/exchange_rate))) -> 0
B69: =Cost_by_Input!A14 -> Start-up Costs | C69: =IF(currency_calculation=1,Cost_by_Input!J14,IF(currency_calculation=2,Cost_by_Input!J14*exchange_rate,IF(currency_calculation=3,Cost_by_Input!J14/exchange_rate))) -> 0 | D69: =IF(currency_calculation=1,Cost_by_Input!K14,IF(currency_calculation=2,Cost_by_Input!K14*exchange_rate,IF(currency_calculation=3,Cost_by_Input!K14/exchange_rate))) -> 0 | E69: =IF(currency_calculation=1,Cost_by_Input!L14,IF(currency_calculation=2,Cost_by_Input!L14*exchange_rate,IF(currency_calculation=3,Cost_by_Input!L14/exchange_rate))) -> 0 | F69: =IF(currency_calculation=1,Cost_by_Input!M14,IF(currency_calculation=2,Cost_by_Input!M14*exchange_rate,IF(currency_calculation=3,Cost_by_Input!M14/exchange_rate))) -> 0 | G69: =IF(currency_calculation=1,Cost_by_Input!N14,IF(currency_calculation=2,Cost_by_Input!N14*exchange_rate,IF(currency_calculation=3,Cost_by_Input!N14/exchange_rate))) -> 0 | H69: =IF(currency_calculation=1,Cost_by_Input!O14,IF(currency_calculation=2,Cost_by_Input!O14*exchange_rate,IF(currency_calculation=3,Cost_by_Input!O14/exchange_rate))) -> 0
B70: =Cost_by_Input!A15 -> Capital Costs | C70: =IF(currency_calculation=1,Cost_by_Input!J15,IF(currency_calculation=2,Cost_by_Input!J15*exchange_rate,IF(currency_calculation=3,Cost_by_Input!J15/exchange_rate))) -> 0 | D70: =IF(currency_calculation=1,Cost_by_Input!K15,IF(currency_calculation=2,Cost_by_Input!K15*exchange_rate,IF(currency_calculation=3,Cost_by_Input!K15/exchange_rate))) -> 0 | E70: =IF(currency_calculation=1,Cost_by_Input!L15,IF(currency_calculation=2,Cost_by_Input!L15*exchange_rate,IF(currency_calculation=3,Cost_by_Input!L15/exchange_rate))) -> 0 | F70: =IF(currency_calculation=1,Cost_by_Input!M15,IF(currency_calculation=2,Cost_by_Input!M15*exchange_rate,IF(currency_calculation=3,Cost_by_Input!M15/exchange_rate))) -> 0 | G70: =IF(currency_calculation=1,Cost_by_Input!N15,IF(currency_calculation=2,Cost_by_Input!N15*exchange_rate,IF(currency_calculation=3,Cost_by_Input!N15/exchange_rate))) -> 0 | H70: =IF(currency_calculation=1,Cost_by_Input!O15,IF(currency_calculation=2,Cost_by_Input!O15*exchange_rate,IF(currency_calculation=3,Cost_by_Input!O15/exchange_rate))) -> 0
B71: =Cost_by_Input!A16 -> 0 | C71: =IF(currency_calculation=1,Cost_by_Input!J16,IF(currency_calculation=2,Cost_by_Input!J16*exchange_rate,IF(currency_calculation=3,Cost_by_Input!J16/exchange_rate))) -> 0 | D71: =IF(currency_calculation=1,Cost_by_Input!K16,IF(currency_calculation=2,Cost_by_Input!K16*exchange_rate,IF(currency_calculation=3,Cost_by_Input!K16/exchange_rate))) -> 0 | E71: =IF(currency_calculation=1,Cost_by_Input!L16,IF(currency_calculation=2,Cost_by_Input!L16*exchange_rate,IF(currency_calculation=3,Cost_by_Input!L16/exchange_rate))) -> 0 | F71: =IF(currency_calculation=1,Cost_by_Input!M16,IF(currency_calculation=2,Cost_by_Input!M16*exchange_rate,IF(currency_calculation=3,Cost_by_Input!M16/exchange_rate))) -> 0 | G71: =IF(currency_calculation=1,Cost_by_Input!N16,IF(currency_calculation=2,Cost_by_Input!N16*exchange_rate,IF(currency_calculation=3,Cost_by_Input!N16/exchange_rate))) -> 0 | H71: =IF(currency_calculation=1,Cost_by_Input!O16,IF(currency_calculation=2,Cost_by_Input!O16*exchange_rate,IF(currency_calculation=3,Cost_by_Input!O16/exchange_rate))) -> 0
B72: =Cost_by_Input!A17 -> 0 | C72: =IF(currency_calculation=1,Cost_by_Input!J17,IF(currency_calculation=2,Cost_by_Input!J17*exchange_rate,IF(currency_calculation=3,Cost_by_Input!J17/exchange_rate))) -> 0 | D72: =IF(currency_calculation=1,Cost_by_Input!K17,IF(currency_calculation=2,Cost_by_Input!K17*exchange_rate,IF(currency_calculation=3,Cost_by_Input!K17/exchange_rate))) -> 0 | E72: =IF(currency_calculation=1,Cost_by_Input!L17,IF(currency_calculation=2,Cost_by_Input!L17*exchange_rate,IF(currency_calculation=3,Cost_by_Input!L17/exchange_rate))) -> 0 | F72: =IF(currency_calculation=1,Cost_by_Input!M17,IF(currency_calculation=2,Cost_by_Input!M17*exchange_rate,IF(currency_calculation=3,Cost_by_Input!M17/exchange_rate))) -> 0 | G72: =IF(currency_calculation=1,Cost_by_Input!N17,IF(currency_calculation=2,Cost_by_Input!N17*exchange_rate,IF(currency_calculation=3,Cost_by_Input!N17/exchange_rate))) -> 0 | H72: =IF(currency_calculation=1,Cost_by_Input!O17,IF(currency_calculation=2,Cost_by_Input!O17*exchange_rate,IF(currency_calculation=3,Cost_by_Input!O17/exchange_rate))) -> 0
B73: =Cost_by_Input!A18 -> 0 | C73: =IF(currency_calculation=1,Cost_by_Input!J18,IF(currency_calculation=2,Cost_by_Input!J18*exchange_rate,IF(currency_calculation=3,Cost_by_Input!J18/exchange_rate))) -> 0 | D73: =IF(currency_calculation=1,Cost_by_Input!K18,IF(currency_calculation=2,Cost_by_Input!K18*exchange_rate,IF(currency_calculation=3,Cost_by_Input!K18/exchange_rate))) -> 0 | E73: =IF(currency_calculation=1,Cost_by_Input!L18,IF(currency_calculation=2,Cost_by_Input!L18*exchange_rate,IF(currency_calculation=3,Cost_by_Input!L18/exchange_rate))) -> 0 | F73: =IF(currency_calculation=1,Cost_by_Input!M18,IF(currency_calculation=2,Cost_by_Input!M18*exchange_rate,IF(currency_calculation=3,Cost_by_Input!M18/exchange_rate))) -> 0 | G73: =IF(currency_calculation=1,Cost_by_Input!N18,IF(currency_calculation=2,Cost_by_Input!N18*exchange_rate,IF(currency_calculation=3,Cost_by_Input!N18/exchange_rate))) -> 0 | H73: =IF(currency_calculation=1,Cost_by_Input!O18,IF(currency_calculation=2,Cost_by_Input!O18*exchange_rate,IF(currency_calculation=3,Cost_by_Input!O18/exchange_rate))) -> 0
B74: =Cost_by_Input!A19 -> 0 | C74: =IF(currency_calculation=1,Cost_by_Input!J19,IF(currency_calculation=2,Cost_by_Input!J19*exchange_rate,IF(currency_calculation=3,Cost_by_Input!J19/exchange_rate))) -> 0 | D74: =IF(currency_calculation=1,Cost_by_Input!K19,IF(currency_calculation=2,Cost_by_Input!K19*exchange_rate,IF(currency_calculation=3,Cost_by_Input!K19/exchange_rate))) -> 0 | E74: =IF(currency_calculation=1,Cost_by_Input!L19,IF(currency_calculation=2,Cost_by_Input!L19*exchange_rate,IF(currency_calculation=3,Cost_by_Input!L19/exchange_rate))) -> 0 | F74: =IF(currency_calculation=1,Cost_by_Input!M19,IF(currency_calculation=2,Cost_by_Input!M19*exchange_rate,IF(currency_calculation=3,Cost_by_Input!M19/exchange_rate))) -> 0 | G74: =IF(currency_calculation=1,Cost_by_Input!N19,IF(currency_calculation=2,Cost_by_Input!N19*exchange_rate,IF(currency_calculation=3,Cost_by_Input!N19/exchange_rate))) -> 0 | H74: =IF(currency_calculation=1,Cost_by_Input!O19,IF(currency_calculation=2,Cost_by_Input!O19*exchange_rate,IF(currency_calculation=3,Cost_by_Input!O19/exchange_rate))) -> 0
B75: ="Sub-Total Funding Available ("&currency_results&")" -> Sub-Total Funding Available (ZAR) | C75: =SUM(C64:C74) -> 13328707.15 | D75: 16720935.23 | E75: 29187927.63 | F75: 33911032.42 | G75: 52219667.39 | H75: 54620621.46
B76: ="Total Funding Gap ("&currency_results&")" -> Total Funding Gap (ZAR) | C76: =+C77-C75 -> 186210800.5 | D76: =+D77-D75 -> 159856477.8 | E76: 234895933.6 | F76: 320448151.3 | G76: 434717500.1 | H76: 495365589.5
B77: ="Total Funding Needed ("&currency_results&")" -> Total Funding Needed (ZAR) | C77: =+C47 -> 199539507.6 | D77: 176577413.1 | E77: 264083861.3 | F77: 354359183.7 | G77: 486937167.5 | H77: 549986211
B81: ="Total Funding Gap by Input ("&currency_results&")" -> Total Funding Gap by Input (ZAR)
B82: =Cost_by_Input!A9 -> Staff costs | C82: =IF(currency_calculation=1,Cost_by_Input!R9,IF(currency_calculation=2,Cost_by_Input!R9*exchange_rate,IF(currency_calculation=3,Cost_by_Input!R9/exchange_rate))) -> -24831112.84 | D82: =IF(currency_calculation=1,Cost_by_Input!S9,IF(currency_calculation=2,Cost_by_Input!S9*exchange_rate,IF(currency_calculation=3,Cost_by_Input!S9/exchange_rate))) -> -24831112.84 | E82: =IF(currency_calculation=1,Cost_by_Input!T9,IF(currency_calculation=2,Cost_by_Input!T9*exchange_rate,IF(currency_calculation=3,Cost_by_Input!T9/exchange_rate))) -> -23648678.89 | F82: =IF(currency_calculation=1,Cost_by_Input!U9,IF(currency_calculation=2,Cost_by_Input!U9*exchange_rate,IF(currency_calculation=3,Cost_by_Input!U9/exchange_rate))) -> -22466244.95 | G82: =IF(currency_calculation=1,Cost_by_Input!V9,IF(currency_calculation=2,Cost_by_Input!V9*exchange_rate,IF(currency_calculation=3,Cost_by_Input!V9/exchange_rate))) -> -18623334.63 | H82: =IF(currency_calculation=1,Cost_by_Input!W9,IF(currency_calculation=2,Cost_by_Input!W9*exchange_rate,IF(currency_calculation=3,Cost_by_Input!W9/exchange_rate))) -> -13597990.36
B83: =Cost_by_Input!A10 -> Assistive Products and Supplies | C83: =IF(currency_calculation=1,Cost_by_Input!R10,IF(currency_calculation=2,Cost_by_Input!R10*exchange_rate,IF(currency_calculation=3,Cost_by_Input!R10/exchange_rate))) -> -143072886 | D83: =IF(currency_calculation=1,Cost_by_Input!S10,IF(currency_calculation=2,Cost_by_Input!S10*exchange_rate,IF(currency_calculation=3,Cost_by_Input!S10/exchange_rate))) -> -134827605 | E83: =IF(currency_calculation=1,Cost_by_Input!T10,IF(currency_calculation=2,Cost_by_Input!T10*exchange_rate,IF(currency_calculation=3,Cost_by_Input!T10/exchange_rate))) -> -205665570 | F83: =IF(currency_calculation=1,Cost_by_Input!U10,IF(currency_calculation=2,Cost_by_Input!U10*exchange_rate,IF(currency_calculation=3,Cost_by_Input!U10/exchange_rate))) -> -297715605 | G83: =IF(currency_calculation=1,Cost_by_Input!V10,IF(currency_calculation=2,Cost_by_Input!V10*exchange_rate,IF(currency_calculation=3,Cost_by_Input!V10/exchange_rate))) -> -407261415 | H83: =IF(currency_calculation=1,Cost_by_Input!W10,IF(currency_calculation=2,Cost_by_Input!W10*exchange_rate,IF(currency_calculation=3,Cost_by_Input!W10/exchange_rate))) -> -481457790
B84: =Cost_by_Input!A11 -> Training Costs | C84: =IF(currency_calculation=1,Cost_by_Input!R11,IF(currency_calculation=2,Cost_by_Input!R11*exchange_rate,IF(currency_calculation=3,Cost_by_Input!R11/exchange_rate))) -> -165000 | D84: =IF(currency_calculation=1,Cost_by_Input!S11,IF(currency_calculation=2,Cost_by_Input!S11*exchange_rate,IF(currency_calculation=3,Cost_by_Input!S11/exchange_rate))) -> -166860 | E84: =IF(currency_calculation=1,Cost_by_Input!T11,IF(currency_calculation=2,Cost_by_Input!T11*exchange_rate,IF(currency_calculation=3,Cost_by_Input!T11/exchange_rate))) -> -188490 | F84: =IF(currency_calculation=1,Cost_by_Input!U11,IF(currency_calculation=2,Cost_by_Input!U11*exchange_rate,IF(currency_calculation=3,Cost_by_Input!U11/exchange_rate))) -> -211665 | G84: =IF(currency_calculation=1,Cost_by_Input!V11,IF(currency_calculation=2,Cost_by_Input!V11*exchange_rate,IF(currency_calculation=3,Cost_by_Input!V11/exchange_rate))) -> -250290 | H84: =IF(currency_calculation=1,Cost_by_Input!W11,IF(currency_calculation=2,Cost_by_Input!W11*exchange_rate,IF(currency_calculation=3,Cost_by_Input!W11/exchange_rate))) -> -228660
B85: =Cost_by_Input!A12 -> Equipment | C85: =IF(currency_calculation=1,Cost_by_Input!R12,IF(currency_calculation=2,Cost_by_Input!R12*exchange_rate,IF(currency_calculation=3,Cost_by_Input!R12/exchange_rate))) -> -2521801.65 | D85: =IF(currency_calculation=1,Cost_by_Input!S12,IF(currency_calculation=2,Cost_by_Input!S12*exchange_rate,IF(currency_calculation=3,Cost_by_Input!S12/exchange_rate))) -> 0 | E85: =IF(currency_calculation=1,Cost_by_Input!T12,IF(currency_calculation=2,Cost_by_Input!T12*exchange_rate,IF(currency_calculation=3,Cost_by_Input!T12/exchange_rate))) -> -5350758.741 | F85: =IF(currency_calculation=1,Cost_by_Input!U12,IF(currency_calculation=2,Cost_by_Input!U12*exchange_rate,IF(currency_calculation=3,Cost_by_Input!U12/exchange_rate))) -> 0 | G85: =IF(currency_calculation=1,Cost_by_Input!V12,IF(currency_calculation=2,Cost_by_Input!V12*exchange_rate,IF(currency_calculation=3,Cost_by_Input!V12/exchange_rate))) -> -8514929.922 | H85: =IF(currency_calculation=1,Cost_by_Input!W12,IF(currency_calculation=2,Cost_by_Input!W12*exchange_rate,IF(currency_calculation=3,Cost_by_Input!W12/exchange_rate))) -> 0
B86: =Cost_by_Input!A13 -> Other Recurrent Costs | C86: =IF(currency_calculation=1,Cost_by_Input!R13,IF(currency_calculation=2,Cost_by_Input!R13*exchange_rate,IF(currency_calculation=3,Cost_by_Input!R13/exchange_rate))) -> -20000 | D86: =IF(currency_calculation=1,Cost_by_Input!S13,IF(currency_calculation=2,Cost_by_Input!S13*exchange_rate,IF(currency_calculation=3,Cost_by_Input!S13/exchange_rate))) -> -30900 | E86: =IF(currency_calculation=1,Cost_by_Input!T13,IF(currency_calculation=2,Cost_by_Input!T13*exchange_rate,IF(currency_calculation=3,Cost_by_Input!T13/exchange_rate))) -> -42436 | F86: =IF(currency_calculation=1,Cost_by_Input!U13,IF(currency_calculation=2,Cost_by_Input!U13*exchange_rate,IF(currency_calculation=3,Cost_by_Input!U13/exchange_rate))) -> -54636.35 | G86: =IF(currency_calculation=1,Cost_by_Input!V13,IF(currency_calculation=2,Cost_by_Input!V13*exchange_rate,IF(currency_calculation=3,Cost_by_Input!V13/exchange_rate))) -> -67530.5286 | H86: =IF(currency_calculation=1,Cost_by_Input!W13,IF(currency_calculation=2,Cost_by_Input!W13*exchange_rate,IF(currency_calculation=3,Cost_by_Input!W13/exchange_rate))) -> -81149.1852
B87: =Cost_by_Input!A14 -> Start-up Costs | C87: =IF(currency_calculation=1,Cost_by_Input!R14,IF(currency_calculation=2,Cost_by_Input!R14*exchange_rate,IF(currency_calculation=3,Cost_by_Input!R14/exchange_rate))) -> 0 | D87: =IF(currency_calculation=1,Cost_by_Input!S14,IF(currency_calculation=2,Cost_by_Input!S14*exchange_rate,IF(currency_calculation=3,Cost_by_Input!S14/exchange_rate))) -> 0 | E87: =IF(currency_calculation=1,Cost_by_Input!T14,IF(currency_calculation=2,Cost_by_Input!T14*exchange_rate,IF(currency_calculation=3,Cost_by_Input!T14/exchange_rate))) -> 0 | F87: =IF(currency_calculation=1,Cost_by_Input!U14,IF(currency_calculation=2,Cost_by_Input!U14*exchange_rate,IF(currency_calculation=3,Cost_by_Input!U14/exchange_rate))) -> 0 | G87: =IF(currency_calculation=1,Cost_by_Input!V14,IF(currency_calculation=2,Cost_by_Input!V14*exchange_rate,IF(currency_calculation=3,Cost_by_Input!V14/exchange_rate))) -> 0 | H87: =IF(currency_calculation=1,Cost_by_Input!W14,IF(currency_calculation=2,Cost_by_Input!W14*exchange_rate,IF(currency_calculation=3,Cost_by_Input!W14/exchange_rate))) -> 0
B88: =Cost_by_Input!A15 -> Capital Costs | C88: =IF(currency_calculation=1,Cost_by_Input!R15,IF(currency_calculation=2,Cost_by_Input!R15*exchange_rate,IF(currency_calculation=3,Cost_by_Input!R15/exchange_rate))) -> -15600000 | D88: =IF(currency_calculation=1,Cost_by_Input!S15,IF(currency_calculation=2,Cost_by_Input!S15*exchange_rate,IF(currency_calculation=3,Cost_by_Input!S15/exchange_rate))) -> 0 | E88: =IF(currency_calculation=1,Cost_by_Input!T15,IF(currency_calculation=2,Cost_by_Input!T15*exchange_rate,IF(currency_calculation=3,Cost_by_Input!T15/exchange_rate))) -> 0 | F88: =IF(currency_calculation=1,Cost_by_Input!U15,IF(currency_calculation=2,Cost_by_Input!U15*exchange_rate,IF(currency_calculation=3,Cost_by_Input!U15/exchange_rate))) -> 0 | G88: =IF(currency_calculation=1,Cost_by_Input!V15,IF(currency_calculation=2,Cost_by_Input!V15*exchange_rate,IF(currency_calculation=3,Cost_by_Input!V15/exchange_rate))) -> 0 | H88: =IF(currency_calculation=1,Cost_by_Input!W15,IF(currency_calculation=2,Cost_by_Input!W15*exchange_rate,IF(currency_calculation=3,Cost_by_Input!W15/exchange_rate))) -> 0
B89: =Cost_by_Input!A16 -> 0 | C89: =IF(currency_calculation=1,Cost_by_Input!R16,IF(currency_calculation=2,Cost_by_Input!R16*exchange_rate,IF(currency_calculation=3,Cost_by_Input!R16/exchange_rate))) -> 0 | D89: =IF(currency_calculation=1,Cost_by_Input!S16,IF(currency_calculation=2,Cost_by_Input!S16*exchange_rate,IF(currency_calculation=3,Cost_by_Input!S16/exchange_rate))) -> 0 | E89: =IF(currency_calculation=1,Cost_by_Input!T16,IF(currency_calculation=2,Cost_by_Input!T16*exchange_rate,IF(currency_calculation=3,Cost_by_Input!T16/exchange_rate))) -> 0 | F89: =IF(currency_calculation=1,Cost_by_Input!U16,IF(currency_calculation=2,Cost_by_Input!U16*exchange_rate,IF(currency_calculation=3,Cost_by_Input!U16/exchange_rate))) -> 0 | G89: =IF(currency_calculation=1,Cost_by_Input!V16,IF(currency_calculation=2,Cost_by_Input!V16*exchange_rate,IF(currency_calculation=3,Cost_by_Input!V16/exchange_rate))) -> 0 | H89: =IF(currency_calculation=1,Cost_by_Input!W16,IF(currency_calculation=2,Cost_by_Input!W16*exchange_rate,IF(currency_calculation=3,Cost_by_Input!W16/exchange_rate))) -> 0
B90: =Cost_by_Input!A17 -> 0 | C90: =IF(currency_calculation=1,Cost_by_Input!R17,IF(currency_calculation=2,Cost_by_Input!R17*exchange_rate,IF(currency_calculation=3,Cost_by_Input!R17/exchange_rate))) -> 0 | D90: =IF(currency_calculation=1,Cost_by_Input!S17,IF(currency_calculation=2,Cost_by_Input!S17*exchange_rate,IF(currency_calculation=3,Cost_by_Input!S17/exchange_rate))) -> 0 | E90: =IF(currency_calculation=1,Cost_by_Input!T17,IF(currency_calculation=2,Cost_by_Input!T17*exchange_rate,IF(currency_calculation=3,Cost_by_Input!T17/exchange_rate))) -> 0 | F90: =IF(currency_calculation=1,Cost_by_Input!U17,IF(currency_calculation=2,Cost_by_Input!U17*exchange_rate,IF(currency_calculation=3,Cost_by_Input!U17/exchange_rate))) -> 0 | G90: =IF(currency_calculation=1,Cost_by_Input!V17,IF(currency_calculation=2,Cost_by_Input!V17*exchange_rate,IF(currency_calculation=3,Cost_by_Input!V17/exchange_rate))) -> 0 | H90: =IF(currency_calculation=1,Cost_by_Input!W17,IF(currency_calculation=2,Cost_by_Input!W17*exchange_rate,IF(currency_calculation=3,Cost_by_Input!W17/exchange_rate))) -> 0
B91: =Cost_by_Input!A18 -> 0 | C91: =IF(currency_calculation=1,Cost_by_Input!R18,IF(currency_calculation=2,Cost_by_Input!R18*exchange_rate,IF(currency_calculation=3,Cost_by_Input!R18/exchange_rate))) -> 0 | D91: =IF(currency_calculation=1,Cost_by_Input!S18,IF(currency_calculation=2,Cost_by_Input!S18*exchange_rate,IF(currency_calculation=3,Cost_by_Input!S18/exchange_rate))) -> 0 | E91: =IF(currency_calculation=1,Cost_by_Input!T18,IF(currency_calculation=2,Cost_by_Input!T18*exchange_rate,IF(currency_calculation=3,Cost_by_Input!T18/exchange_rate))) -> 0 | F91: =IF(currency_calculation=1,Cost_by_Input!U18,IF(currency_calculation=2,Cost_by_Input!U18*exchange_rate,IF(currency_calculation=3,Cost_by_Input!U18/exchange_rate))) -> 0 | G91: =IF(currency_calculation=1,Cost_by_Input!V18,IF(currency_calculation=2,Cost_by_Input!V18*exchange_rate,IF(currency_calculation=3,Cost_by_Input!V18/exchange_rate))) -> 0 | H91: =IF(currency_calculation=1,Cost_by_Input!W18,IF(currency_calculation=2,Cost_by_Input!W18*exchange_rate,IF(currency_calculation=3,Cost_by_Input!W18/exchange_rate))) -> 0
B92: =Cost_by_Input!A19 -> 0 | C92: =IF(currency_calculation=1,Cost_by_Input!R19,IF(currency_calculation=2,Cost_by_Input!R19*exchange_rate,IF(currency_calculation=3,Cost_by_Input!R19/exchange_rate))) -> 0 | D92: =IF(currency_calculation=1,Cost_by_Input!S19,IF(currency_calculation=2,Cost_by_Input!S19*exchange_rate,IF(currency_calculation=3,Cost_by_Input!S19/exchange_rate))) -> 0 | E92: =IF(currency_calculation=1,Cost_by_Input!T19,IF(currency_calculation=2,Cost_by_Input!T19*exchange_rate,IF(currency_calculation=3,Cost_by_Input!T19/exchange_rate))) -> 0 | F92: =IF(currency_calculation=1,Cost_by_Input!U19,IF(currency_calculation=2,Cost_by_Input!U19*exchange_rate,IF(currency_calculation=3,Cost_by_Input!U19/exchange_rate))) -> 0 | G92: =IF(currency_calculation=1,Cost_by_Input!V19,IF(currency_calculation=2,Cost_by_Input!V19*exchange_rate,IF(currency_calculation=3,Cost_by_Input!V19/exchange_rate))) -> 0 | H92: =IF(currency_calculation=1,Cost_by_Input!W19,IF(currency_calculation=2,Cost_by_Input!W19*exchange_rate,IF(currency_calculation=3,Cost_by_Input!W19/exchange_rate))) -> 0
B93: =Cost_by_Input!A20 -> 0 | C93: =IF(currency_calculation=1,Cost_by_Input!R20,IF(currency_calculation=2,Cost_by_Input!R20*exchange_rate,IF(currency_calculation=3,Cost_by_Input!R20/exchange_rate))) -> 0 | D93: =IF(currency_calculation=1,Cost_by_Input!S20,IF(currency_calculation=2,Cost_by_Input!S20*exchange_rate,IF(currency_calculation=3,Cost_by_Input!S20/exchange_rate))) -> 0 | E93: =IF(currency_calculation=1,Cost_by_Input!T20,IF(currency_calculation=2,Cost_by_Input!T20*exchange_rate,IF(currency_calculation=3,Cost_by_Input!T20/exchange_rate))) -> 0 | F93: =IF(currency_calculation=1,Cost_by_Input!U20,IF(currency_calculation=2,Cost_by_Input!U20*exchange_rate,IF(currency_calculation=3,Cost_by_Input!U20/exchange_rate))) -> 0 | G93: =IF(currency_calculation=1,Cost_by_Input!V20,IF(currency_calculation=2,Cost_by_Input!V20*exchange_rate,IF(currency_calculation=3,Cost_by_Input!V20/exchange_rate))) -> 0 | H93: =IF(currency_calculation=1,Cost_by_Input!W20,IF(currency_calculation=2,Cost_by_Input!W20*exchange_rate,IF(currency_calculation=3,Cost_by_Input!W20/exchange_rate))) -> 0
B94: Total | C94: =SUM(C82:C93) -> -186210800.5 | D94: -159856477.8 | E94: -234895933.6 | F94: -320448151.3 | G94: -434717500.1 | H94: -495365589.5
B97: ="Total Funding by Source ("&currency_results&")" -> Total Funding by Source (ZAR)
B98: =Cost_by_Input!Y9 -> Donor1 | C98: =IF(currency_calculation=1,Cost_by_Input!Z9,IF(currency_calculation=2,Cost_by_Input!Z9*exchange_rate,IF(currency_calculation=3,Cost_by_Input!Z9/exchange_rate))) -> 10641905.5 | D98: =IF(currency_calculation=1,Cost_by_Input!AA9,IF(currency_calculation=2,Cost_by_Input!AA9*exchange_rate,IF(currency_calculation=3,Cost_by_Input!AA9/exchange_rate))) -> 16554075.23 | E98: =IF(currency_calculation=1,Cost_by_Input!AB9,IF(currency_calculation=2,Cost_by_Input!AB9*exchange_rate,IF(currency_calculation=3,Cost_by_Input!AB9/exchange_rate))) -> 23648678.89 | F98: =IF(currency_calculation=1,Cost_by_Input!AC9,IF(currency_calculation=2,Cost_by_Input!AC9*exchange_rate,IF(currency_calculation=3,Cost_by_Input!AC9/exchange_rate))) -> 33699367.42 | G98: =IF(currency_calculation=1,Cost_by_Input!AD9,IF(currency_calculation=2,Cost_by_Input!AD9*exchange_rate,IF(currency_calculation=3,Cost_by_Input!AD9/exchange_rate))) -> 43454447.47 | H98: =IF(currency_calculation=1,Cost_by_Input!AE9,IF(currency_calculation=2,Cost_by_Input!AE9*exchange_rate,IF(currency_calculation=3,Cost_by_Input!AE9/exchange_rate))) -> 54391961.46
B99: =Cost_by_Input!Y10 -> Donor2 | C99: =IF(currency_calculation=1,Cost_by_Input!Z10,IF(currency_calculation=2,Cost_by_Input!Z10*exchange_rate,IF(currency_calculation=3,Cost_by_Input!Z10/exchange_rate))) -> 165000 | D99: =IF(currency_calculation=1,Cost_by_Input!AA10,IF(currency_calculation=2,Cost_by_Input!AA10*exchange_rate,IF(currency_calculation=3,Cost_by_Input!AA10/exchange_rate))) -> 166860 | E99: =IF(currency_calculation=1,Cost_by_Input!AB10,IF(currency_calculation=2,Cost_by_Input!AB10*exchange_rate,IF(currency_calculation=3,Cost_by_Input!AB10/exchange_rate))) -> 188490 | F99: =IF(currency_calculation=1,Cost_by_Input!AC10,IF(currency_calculation=2,Cost_by_Input!AC10*exchange_rate,IF(currency_calculation=3,Cost_by_Input!AC10/exchange_rate))) -> 211665 | G99: =IF(currency_calculation=1,Cost_by_Input!AD10,IF(currency_calculation=2,Cost_by_Input!AD10*exchange_rate,IF(currency_calculation=3,Cost_by_Input!AD10/exchange_rate))) -> 250290 | H99: =IF(currency_calculation=1,Cost_by_Input!AE10,IF(currency_calculation=2,Cost_by_Input!AE10*exchange_rate,IF(currency_calculation=3,Cost_by_Input!AE10/exchange_rate))) -> 228660
B100: =Cost_by_Input!Y11 -> Donor3 | C100: =IF(currency_calculation=1,Cost_by_Input!Z11,IF(currency_calculation=2,Cost_by_Input!Z11*exchange_rate,IF(currency_calculation=3,Cost_by_Input!Z11/exchange_rate))) -> 2521801.65 | D100: =IF(currency_calculation=1,Cost_by_Input!AA11,IF(currency_calculation=2,Cost_by_Input!AA11*exchange_rate,IF(currency_calculation=3,Cost_by_Input!AA11/exchange_rate))) -> 0 | E100: =IF(currency_calculation=1,Cost_by_Input!AB11,IF(currency_calculation=2,Cost_by_Input!AB11*exchange_rate,IF(currency_calculation=3,Cost_by_Input!AB11/exchange_rate))) -> 5350758.741 | F100: =IF(currency_calculation=1,Cost_by_Input!AC11,IF(currency_calculation=2,Cost_by_Input!AC11*exchange_rate,IF(currency_calculation=3,Cost_by_Input!AC11/exchange_rate))) -> 0 | G100: =IF(currency_calculation=1,Cost_by_Input!AD11,IF(currency_calculation=2,Cost_by_Input!AD11*exchange_rate,IF(currency_calculation=3,Cost_by_Input!AD11/exchange_rate))) -> 8514929.922 | H100: =IF(currency_calculation=1,Cost_by_Input!AE11,IF(currency_calculation=2,Cost_by_Input!AE11*exchange_rate,IF(currency_calculation=3,Cost_by_Input!AE11/exchange_rate))) -> 0
B101: =Cost_by_Input!Y13 -> 0 | C101: =IF(currency_calculation=1,Cost_by_Input!Z13,IF(currency_calculation=2,Cost_by_Input!Z13*exchange_rate,IF(currency_calculation=3,Cost_by_Input!Z13/exchange_rate))) -> 0 | D101: =IF(currency_calculation=1,Cost_by_Input!AA13,IF(currency_calculation=2,Cost_by_Input!AA13*exchange_rate,IF(currency_calculation=3,Cost_by_Input!AA13/exchange_rate))) -> 0 | E101: =IF(currency_calculation=1,Cost_by_Input!AB13,IF(currency_calculation=2,Cost_by_Input!AB13*exchange_rate,IF(currency_calculation=3,Cost_by_Input!AB13/exchange_rate))) -> 0 | F101: =IF(currency_calculation=1,Cost_by_Input!AC13,IF(currency_calculation=2,Cost_by_Input!AC13*exchange_rate,IF(currency_calculation=3,Cost_by_Input!AC13/exchange_rate))) -> 0 | G101: =IF(currency_calculation=1,Cost_by_Input!AD13,IF(currency_calculation=2,Cost_by_Input!AD13*exchange_rate,IF(currency_calculation=3,Cost_by_Input!AD13/exchange_rate))) -> 0 | H101: =IF(currency_calculation=1,Cost_by_Input!AE13,IF(currency_calculation=2,Cost_by_Input!AE13*exchange_rate,IF(currency_calculation=3,Cost_by_Input!AE13/exchange_rate))) -> 0
B102: =Cost_by_Input!Y14 -> 0 | C102: =IF(currency_calculation=1,Cost_by_Input!Z14,IF(currency_calculation=2,Cost_by_Input!Z14*exchange_rate,IF(currency_calculation=3,Cost_by_Input!Z14/exchange_rate))) -> 0 | D102: =IF(currency_calculation=1,Cost_by_Input!AA14,IF(currency_calculation=2,Cost_by_Input!AA14*exchange_rate,IF(currency_calculation=3,Cost_by_Input!AA14/exchange_rate))) -> 0 | E102: =IF(currency_calculation=1,Cost_by_Input!AB14,IF(currency_calculation=2,Cost_by_Input!AB14*exchange_rate,IF(currency_calculation=3,Cost_by_Input!AB14/exchange_rate))) -> 0 | F102: =IF(currency_calculation=1,Cost_by_Input!AC14,IF(currency_calculation=2,Cost_by_Input!AC14*exchange_rate,IF(currency_calculation=3,Cost_by_Input!AC14/exchange_rate))) -> 0 | G102: =IF(currency_calculation=1,Cost_by_Input!AD14,IF(currency_calculation=2,Cost_by_Input!AD14*exchange_rate,IF(currency_calculation=3,Cost_by_Input!AD14/exchange_rate))) -> 0 | H102: =IF(currency_calculation=1,Cost_by_Input!AE14,IF(currency_calculation=2,Cost_by_Input!AE14*exchange_rate,IF(currency_calculation=3,Cost_by_Input!AE14/exchange_rate))) -> 0
B103: =Cost_by_Input!Y15 -> 0 | C103: =IF(currency_calculation=1,Cost_by_Input!Z15,IF(currency_calculation=2,Cost_by_Input!Z15*exchange_rate,IF(currency_calculation=3,Cost_by_Input!Z15/exchange_rate))) -> 0 | D103: =IF(currency_calculation=1,Cost_by_Input!AA15,IF(currency_calculation=2,Cost_by_Input!AA15*exchange_rate,IF(currency_calculation=3,Cost_by_Input!AA15/exchange_rate))) -> 0 | E103: =IF(currency_calculation=1,Cost_by_Input!AB15,IF(currency_calculation=2,Cost_by_Input!AB15*exchange_rate,IF(currency_calculation=3,Cost_by_Input!AB15/exchange_rate))) -> 0 | F103: =IF(currency_calculation=1,Cost_by_Input!AC15,IF(currency_calculation=2,Cost_by_Input!AC15*exchange_rate,IF(currency_calculation=3,Cost_by_Input!AC15/exchange_rate))) -> 0 | G103: =IF(currency_calculation=1,Cost_by_Input!AD15,IF(currency_calculation=2,Cost_by_Input!AD15*exchange_rate,IF(currency_calculation=3,Cost_by_Input!AD15/exchange_rate))) -> 0 | H103: =IF(currency_calculation=1,Cost_by_Input!AE15,IF(currency_calculation=2,Cost_by_Input!AE15*exchange_rate,IF(currency_calculation=3,Cost_by_Input!AE15/exchange_rate))) -> 0
B104: =Cost_by_Input!Y16 -> 0 | C104: =IF(currency_calculation=1,Cost_by_Input!Z16,IF(currency_calculation=2,Cost_by_Input!Z16*exchange_rate,IF(currency_calculation=3,Cost_by_Input!Z16/exchange_rate))) -> 0 | D104: =IF(currency_calculation=1,Cost_by_Input!AA16,IF(currency_calculation=2,Cost_by_Input!AA16*exchange_rate,IF(currency_calculation=3,Cost_by_Input!AA16/exchange_rate))) -> 0 | E104: =IF(currency_calculation=1,Cost_by_Input!AB16,IF(currency_calculation=2,Cost_by_Input!AB16*exchange_rate,IF(currency_calculation=3,Cost_by_Input!AB16/exchange_rate))) -> 0 | F104: =IF(currency_calculation=1,Cost_by_Input!AC16,IF(currency_calculation=2,Cost_by_Input!AC16*exchange_rate,IF(currency_calculation=3,Cost_by_Input!AC16/exchange_rate))) -> 0 | G104: =IF(currency_calculation=1,Cost_by_Input!AD16,IF(currency_calculation=2,Cost_by_Input!AD16*exchange_rate,IF(currency_calculation=3,Cost_by_Input!AD16/exchange_rate))) -> 0 | H104: =IF(currency_calculation=1,Cost_by_Input!AE16,IF(currency_calculation=2,Cost_by_Input!AE16*exchange_rate,IF(currency_calculation=3,Cost_by_Input!AE16/exchange_rate))) -> 0
B105: =Cost_by_Input!Y17 -> 0 | C105: =IF(currency_calculation=1,Cost_by_Input!Z17,IF(currency_calculation=2,Cost_by_Input!Z17*exchange_rate,IF(currency_calculation=3,Cost_by_Input!Z17/exchange_rate))) -> 0 | D105: =IF(currency_calculation=1,Cost_by_Input!AA17,IF(currency_calculation=2,Cost_by_Input!AA17*exchange_rate,IF(currency_calculation=3,Cost_by_Input!AA17/exchange_rate))) -> 0 | E105: =IF(currency_calculation=1,Cost_by_Input!AB17,IF(currency_calculation=2,Cost_by_Input!AB17*exchange_rate,IF(currency_calculation=3,Cost_by_Input!AB17/exchange_rate))) -> 0 | F105: =IF(currency_calculation=1,Cost_by_Input!AC17,IF(currency_calculation=2,Cost_by_Input!AC17*exchange_rate,IF(currency_calculation=3,Cost_by_Input!AC17/exchange_rate))) -> 0 | G105: =IF(currency_calculation=1,Cost_by_Input!AD17,IF(currency_calculation=2,Cost_by_Input!AD17*exchange_rate,IF(currency_calculation=3,Cost_by_Input!AD17/exchange_rate))) -> 0 | H105: =IF(currency_calculation=1,Cost_by_Input!AE17,IF(currency_calculation=2,Cost_by_Input!AE17*exchange_rate,IF(currency_calculation=3,Cost_by_Input!AE17/exchange_rate))) -> 0
B106: =Cost_by_Input!Y18 -> 0 | C106: =IF(currency_calculation=1,Cost_by_Input!Z18,IF(currency_calculation=2,Cost_by_Input!Z18*exchange_rate,IF(currency_calculation=3,Cost_by_Input!Z18/exchange_rate))) -> 0 | D106: =IF(currency_calculation=1,Cost_by_Input!AA18,IF(currency_calculation=2,Cost_by_Input!AA18*exchange_rate,IF(currency_calculation=3,Cost_by_Input!AA18/exchange_rate))) -> 0 | E106: =IF(currency_calculation=1,Cost_by_Input!AB18,IF(currency_calculation=2,Cost_by_Input!AB18*exchange_rate,IF(currency_calculation=3,Cost_by_Input!AB18/exchange_rate))) -> 0 | F106: =IF(currency_calculation=1,Cost_by_Input!AC18,IF(currency_calculation=2,Cost_by_Input!AC18*exchange_rate,IF(currency_calculation=3,Cost_by_Input!AC18/exchange_rate))) -> 0 | G106: =IF(currency_calculation=1,Cost_by_Input!AD18,IF(currency_calculation=2,Cost_by_Input!AD18*exchange_rate,IF(currency_calculation=3,Cost_by_Input!AD18/exchange_rate))) -> 0 | H106: =IF(currency_calculation=1,Cost_by_Input!AE18,IF(currency_calculation=2,Cost_by_Input!AE18*exchange_rate,IF(currency_calculation=3,Cost_by_Input!AE18/exchange_rate))) -> 0
B107: Total | C107: =SUM(C98:C106) -> 13328707.15 | D107: 16720935.23 | E107: 29187927.63 | F107: 33911032.42 | G107: 52219667.39 | H107: 54620621.46
B108: Total Funding Gap | C108: =+C109-C107 -> 186210800.5 | D108: =+D109-D107 -> 159856477.8 | E108: 234895933.6 | F108: 320448151.3 | G108: 434717500.1 | H108: 495365589.5
B109: Total Funding Needed | C109: =C47 -> 199539507.6 | D109: =D47 -> 176577413.1 | E109: 264083861.3 | F109: 354359183.7 | G109: 486937167.5 | H109: 549986211

Sheet Graphs
A1: =tool_name -> Assistive Product Provision Costing Tool v1
A2: =selected_country -> South Africa
A3: National population: | E3: =national_pop -> 59308690
B7: Number of HCWs, by category | M7: Total Number of Services, by Category
B28: ="Program Costs, by Input, "&currency_results&"" -> Program Costs, by Input, ZAR | M28: ="Funding Commitments, by cost category, "&currency_results&"" -> Funding Commitments, by cost category, ZAR
B50: ="Funding Commitments, by Source, "&currency_results&"" -> Funding Commitments, by Source, ZAR | M50: ="Funding Gap, by cost category, "&currency_results&"" -> Funding Gap, by cost category, ZAR

Sheet AP_Quantification
A1: ASSISTIVE PRODUCTS AND SUPPLIES QUANTIFICATION
A2: South Africa
E4: TOTAL UNITS REQUIRED | L4: ="TOTAL COSTS ("&currency_results&")" -> TOTAL COSTS (ZAR)
B5: Assistive Devices | D5: Unit | E5: =baseline_year -> 2021 | F5: =baseline_year+1 -> 2022 | G5: =F5+1 -> 2023 | H5: =G5+1 -> 2024 | I5: =H5+1 -> 2025 | J5: =I5+1 -> 2026 | L5: =baseline_year -> 2021 | M5: =baseline_year+1 -> 2022 | N5: =M5+1 -> 2023 | O5: =N5+1 -> 2024 | P5: =O5+1 -> 2025 | Q5: =P5+1 -> 2026
A7: 1 | B7: =Assistive_Products_Costs!B11 -> Single vision spectales | D7: =Assistive_Products_Costs!C11 -> 0 | E7: =SUMIF(stg_list,$B7,stg_unit1) -> 205665570 | F7: =SUMIF(stg_list,$B7,stg_unit2) -> 297715605 | G7: =SUMIF(stg_list,$B7,stg_unit3) -> 407261415 | H7: =SUMIF(stg_list,$B7,stg_unit4) -> 481457790 | I7: =SUMIF(stg_list,$B7,stg_unit5) -> 0 | J7: =SUMIF(stg_list,$B7,stg_unit6) -> 0 | L7: =IF(currency_calculation=1,SUMIF(stg_list,$B7,stg_cost1),IF(currency_calculation=2,(SUMIF(stg_list,$B7,stg_cost1))*exchange_rate,IF(currency_calculation=3,(SUMIF(stg_list,$B7,stg_cost1))/exchange_rate))) -> 205665570 | M7: =IF(currency_calculation=1,SUMIF(stg_list,$B7,stg_cost2),IF(currency_calculation=2,(SUMIF(stg_list,$B7,stg_cost2))*exchange_rate,IF(currency_calculation=3,(SUMIF(stg_list,$B7,stg_cost2))/exchange_rate))) -> 306647073.2 | N7: =IF(currency_calculation=1,SUMIF(stg_list,$B7,stg_cost3),IF(currency_calculation=2,(SUMIF(stg_list,$B7,stg_cost3))*exchange_rate,IF(currency_calculation=3,(SUMIF(stg_list,$B7,stg_cost3))/exchange_rate))) -> 432063635.2 | O7: =IF(currency_calculation=1,SUMIF(stg_list,$B7,stg_cost4),IF(currency_calculation=2,(SUMIF(stg_list,$B7,stg_cost4))*exchange_rate,IF(currency_calculation=3,(SUMIF(stg_list,$B7,stg_cost4))/exchange_rate))) -> 526101926.5 | P7: =IF(currency_calculation=1,SUMIF(stg_list,$B7,stg_cost5),IF(currency_calculation=2,(SUMIF(stg_list,$B7,stg_cost5))*exchange_rate,IF(currency_calculation=3,(SUMIF(stg_list,$B7,stg_cost5))/exchange_rate))) -> 0 | Q7: =IF(currency_calculation=1,SUMIF(stg_list,$B7,stg_cost6),IF(currency_calculation=2,(SUMIF(stg_list,$B7,stg_cost6))*exchange_rate,IF(currency_calculation=3,(SUMIF(stg_list,$B7,stg_cost6))/exchange_rate))) -> 0
A8: 2 | B8: Bifocal | D8: =Assistive_Products_Costs!C12 -> 0 | E8: 0 | F8: 0 | G8: 0 | H8: 0 | I8: 0 | J8: 0 | L8: 0 | M8: 0 | N8: 0 | O8: 0 | P8: 0 | Q8: 0
A9: 3 | B9: =Assistive_Products_Costs!B13 -> 0 | D9: =Assistive_Products_Costs!C13 -> 0 | E9: 0 | F9: 0 | G9: 0 | H9: 0 | I9: 0 | J9: 0 | L9: 0 | M9: 0 | N9: 0 | O9: 0 | P9: 0 | Q9: 0
A10: 4 | B10: =Assistive_Products_Costs!B14 -> 0 | D10: =Assistive_Products_Costs!C14 -> 0 | E10: 0 | F10: 0 | G10: 0 | H10: 0 | I10: 0 | J10: 0 | L10: 0 | M10: 0 | N10: 0 | O10: 0 | P10: 0 | Q10: 0
A11: 5 | B11: =Assistive_Products_Costs!B15 -> 0 | D11: =Assistive_Products_Costs!C15 -> 0 | E11: 0 | F11: 0 | G11: 0 | H11: 0 | I11: 0 | J11: 0 | L11: 0 | M11: 0 | N11: 0 | O11: 0 | P11: 0 | Q11: 0
A12: 6 | B12: =Assistive_Products_Costs!B16 -> 0 | D12: =Assistive_Products_Costs!C16 -> 0 | E12: 0 | F12: 0 | G12: 0 | H12: 0 | I12: 0 | J12: 0 | L12: 0 | M12: 0 | N12: 0 | O12: 0 | P12: 0 | Q12: 0
A13: 7 | B13: =Assistive_Products_Costs!B17 -> 0 | D13: =Assistive_Products_Costs!C17 -> 0 | E13: 0 | F13: 0 | G13: 0 | H13: 0 | I13: 0 | J13: 0 | L13: 0 | M13: 0 | N13: 0 | O13: 0 | P13: 0 | Q13: 0
A14: 8 | B14: =Assistive_Products_Costs!B18 -> 0 | D14: =Assistive_Products_Costs!C18 -> 0 | E14: 0 | F14: 0 | G14: 0 | H14: 0 | I14: 0 | J14: 0 | L14: 0 | M14: 0 | N14: 0 | O14: 0 | P14: 0 | Q14: 0
A15: 9 | B15: =Assistive_Products_Costs!B19 -> 0 | D15: =Assistive_Products_Costs!C19 -> 0 | E15: 0 | F15: 0 | G15: 0 | H15: 0 | I15: 0 | J15: 0 | L15: 0 | M15: 0 | N15: 0 | O15: 0 | P15: 0 | Q15: 0
A16: 10 | B16: =Assistive_Products_Costs!B20 -> 0 | D16: =Assistive_Products_Costs!C20 -> 0 | E16: 0 | F16: 0 | G16: 0 | H16: 0 | I16: 0 | J16: 0 | L16: 0 | M16: 0 | N16: 0 | O16: 0 | P16: 0 | Q16: 0
A17: 11 | B17: =Assistive_Products_Costs!B21 -> 0 | D17: =Assistive_Products_Costs!C21 -> 0 | E17: 0 | F17: 0 | G17: 0 | H17: 0 | I17: 0 | J17: 0 | L17: 0 | M17: 0 | N17: 0 | O17: 0 | P17: 0 | Q17: 0
A18: 12 | B18: =Assistive_Products_Costs!B22 -> 0 | D18: =Assistive_Products_Costs!C22 -> 0 | E18: 0 | F18: 0 | G18: 0 | H18: 0 | I18: 0 | J18: 0 | L18: 0 | M18: 0 | N18: 0 | O18: 0 | P18: 0 | Q18: 0
A19: 13 | B19: =Assistive_Products_Costs!B23 -> 0 | D19: =Assistive_Products_Costs!C23 -> 0 | E19: 0 | F19: 0 | G19: 0 | H19: 0 | I19: 0 | J19: 0 | L19: 0 | M19: 0 | N19: 0 | O19: 0 | P19: 0 | Q19: 0
A20: 14 | B20: =Assistive_Products_Costs!B24 -> 0 | D20: =Assistive_Products_Costs!C24 -> 0 | E20: 0 | F20: 0 | G20: 0 | H20: 0 | I20: 0 | J20: 0 | L20: 0 | M20: 0 | N20: 0 | O20: 0 | P20: 0 | Q20: 0
A21: 15 | B21: =Assistive_Products_Costs!B25 -> 0 | D21: =Assistive_Products_Costs!C25 -> 0 | E21: 0 | F21: 0 | G21: 0 | H21: 0 | I21: 0 | J21: 0 | L21: 0 | M21: 0 | N21: 0 | O21: 0 | P21: 0 | Q21: 0
A22: 16 | B22: =Assistive_Products_Costs!B26 -> 0 | D22: =Assistive_Products_Costs!C26 -> 0 | E22: 0 | F22: 0 | G22: 0 | H22: 0 | I22: 0 | J22: 0 | L22: 0 | M22: 0 | N22: 0 | O22: 0 | P22: 0 | Q22: 0
A23: 17 | B23: =Assistive_Products_Costs!B27 -> 0 | D23: =Assistive_Products_Costs!C27 -> 0 | E23: 0 | F23: 0 | G23: 0 | H23: 0 | I23: 0 | J23: 0 | L23: 0 | M23: 0 | N23: 0 | O23: 0 | P23: 0 | Q23: 0
A24: 18 | B24: =Assistive_Products_Costs!B28 -> 0 | D24: =Assistive_Products_Costs!C28 -> 0 | E24: 0 | F24: 0 | G24: 0 | H24: 0 | I24: 0 | J24: 0 | L24: 0 | M24: 0 | N24: 0 | O24: 0 | P24: 0 | Q24: 0
A25: 19 | B25: =Assistive_Products_Costs!B29 -> 0 | D25: =Assistive_Products_Costs!C29 -> 0 | E25: 0 | F25: 0 | G25: 0 | H25: 0 | I25: 0 | J25: 0 | L25: 0 | M25: 0 | N25: 0 | O25: 0 | P25: 0 | Q25: 0
A26: 20 | B26: =Assistive_Products_Costs!B30 -> 0 | D26: =Assistive_Products_Costs!C30 -> 0 | E26: 0 | F26: 0 | G26: 0 | H26: 0 | I26: 0 | J26: 0 | L26: 0 | M26: 0 | N26: 0 | O26: 0 | P26: 0 | Q26: 0
A27: 21 | B27: =Assistive_Products_Costs!B31 -> 0 | D27: =Assistive_Products_Costs!C31 -> 0 | E27: 0 | F27: 0 | G27: 0 | H27: 0 | I27: 0 | J27: 0 | L27: 0 | M27: 0 | N27: 0 | O27: 0 | P27: 0 | Q27: 0
A28: 22 | B28: =Assistive_Products_Costs!B32 -> 0 | D28: =Assistive_Products_Costs!C32 -> 0 | E28: 0 | F28: 0 | G28: 0 | H28: 0 | I28: 0 | J28: 0 | L28: 0 | M28: 0 | N28: 0 | O28: 0 | P28: 0 | Q28: 0
A29: 23 | B29: =Assistive_Products_Costs!B33 -> 0 | D29: =Assistive_Products_Costs!C33 -> 0 | E29: 0 | F29: 0 | G29: 0 | H29: 0 | I29: 0 | J29: 0 | L29: 0 | M29: 0 | N29: 0 | O29: 0 | P29: 0 | Q29: 0
A30: 24 | B30: =Assistive_Products_Costs!B34 -> 0 | D30: =Assistive_Products_Costs!C34 -> 0 | E30: 0 | F30: 0 | G30: 0 | H30: 0 | I30: 0 | J30: 0 | L30: 0 | M30: 0 | N30: 0 | O30: 0 | P30: 0 | Q30: 0
A31: 25 | B31: =Assistive_Products_Costs!B35 -> 0 | D31: =Assistive_Products_Costs!C35 -> 0 | E31: 0 | F31: 0 | G31: 0 | H31: 0 | I31: 0 | J31: 0 | L31: 0 | M31: 0 | N31: 0 | O31: 0 | P31: 0 | Q31: 0
A32: 26 | B32: =Assistive_Products_Costs!B36 -> 0 | D32: =Assistive_Products_Costs!C36 -> 0 | E32: 0 | F32: 0 | G32: 0 | H32: 0 | I32: 0 | J32: 0 | L32: 0 | M32: 0 | N32: 0 | O32: 0 | P32: 0 | Q32: 0
A33: 27 | B33: =Assistive_Products_Costs!B37 -> 0 | D33: =Assistive_Products_Costs!C37 -> 0 | E33: 0 | F33: 0 | G33: 0 | H33: 0 | I33: 0 | J33: 0 | L33: 0 | M33: 0 | N33: 0 | O33: 0 | P33: 0 | Q33: 0
A34: 28 | B34: =Assistive_Products_Costs!B38 -> 0 | D34: =Assistive_Products_Costs!C38 -> 0 | E34: 0 | F34: 0 | G34: 0 | H34: 0 | I34: 0 | J34: 0 | L34: 0 | M34: 0 | N34: 0 | O34: 0 | P34: 0 | Q34: 0
A35: 29 | B35: =Assistive_Products_Costs!B39 -> 0 | D35: =Assistive_Products_Costs!C39 -> 0 | E35: 0 | F35: 0 | G35: 0 | H35: 0 | I35: 0 | J35: 0 | L35: 0 | M35: 0 | N35: 0 | O35: 0 | P35: 0 | Q35: 0
A36: 30 | B36: =Assistive_Products_Costs!B40 -> 0 | D36: =Assistive_Products_Costs!C40 -> 0 | E36: 0 | F36: 0 | G36: 0 | H36: 0 | I36: 0 | J36: 0 | L36: 0 | M36: 0 | N36: 0 | O36: 0 | P36: 0 | Q36: 0
A37: 31 | B37: =Assistive_Products_Costs!B41 -> 0 | D37: =Assistive_Products_Costs!C41 -> 0 | E37: 0 | F37: 0 | G37: 0 | H37: 0 | I37: 0 | J37: 0 | L37: 0 | M37: 0 | N37: 0 | O37: 0 | P37: 0 | Q37: 0
A38: 32 | B38: =Assistive_Products_Costs!B42 -> 0 | D38: =Assistive_Products_Costs!C42 -> 0 | E38: 0 | F38: 0 | G38: 0 | H38: 0 | I38: 0 | J38: 0 | L38: 0 | M38: 0 | N38: 0 | O38: 0 | P38: 0 | Q38: 0
A39: 33 | B39: =Assistive_Products_Costs!B43 -> 0 | D39: =Assistive_Products_Costs!C43 -> 0 | E39: =SUMIF(stg_list,$B39,stg_unit1) -> 0 | F39: =SUMIF(stg_list,$B39,stg_unit2) -> 0 | G39: =SUMIF(stg_list,$B39,stg_unit3) -> 0 | H39: =SUMIF(stg_list,$B39,stg_unit4) -> 0 | I39: =SUMIF(stg_list,$B39,stg_unit5) -> 0 | J39: =SUMIF(stg_list,$B39,stg_unit6) -> 0 | L39: =IF(currency_calculation=1,SUMIF(stg_list,$B39,stg_cost1),IF(currency_calculation=2,(SUMIF(stg_list,$B39,stg_cost1))*exchange_rate,IF(currency_calculation=3,(SUMIF(stg_list,$B39,stg_cost1))/exchange_rate))) -> 0 | M39: =IF(currency_calculation=1,SUMIF(stg_list,$B39,stg_cost2),IF(currency_calculation=2,(SUMIF(stg_list,$B39,stg_cost2))*exchange_rate,IF(currency_calculation=3,(SUMIF(stg_list,$B39,stg_cost2))/exchange_rate))) -> 0 | N39: =IF(currency_calculation=1,SUMIF(stg_list,$B39,stg_cost3),IF(currency_calculation=2,(SUMIF(stg_list,$B39,stg_cost3))*exchange_rate,IF(currency_calculation=3,(SUMIF(stg_list,$B39,stg_cost3))/exchange_rate))) -> 0 | O39: =IF(currency_calculation=1,SUMIF(stg_list,$B39,stg_cost4),IF(currency_calculation=2,(SUMIF(stg_list,$B39,stg_cost4))*exchange_rate,IF(currency_calculation=3,(SUMIF(stg_list,$B39,stg_cost4))/exchange_rate))) -> 0 | P39: =IF(currency_calculation=1,SUMIF(stg_list,$B39,stg_cost5),IF(currency_calculation=2,(SUMIF(stg_list,$B39,stg_cost5))*exchange_rate,IF(currency_calculation=3,(SUMIF(stg_list,$B39,stg_cost5))/exchange_rate))) -> 0 | Q39: =IF(currency_calculation=1,SUMIF(stg_list,$B39,stg_cost6),IF(currency_calculation=2,(SUMIF(stg_list,$B39,stg_cost6))*exchange_rate,IF(currency_calculation=3,(SUMIF(stg_list,$B39,stg_cost6))/exchange_rate))) -> 0
A40: 34 | B40: =Assistive_Products_Costs!B44 -> 0 | D40: =Assistive_Products_Costs!C44 -> 0 | E40: 0 | F40: 0 | G40: 0 | H40: 0 | I40: 0 | J40: 0 | L40: 0 | M40: 0 | N40: 0 | O40: 0 | P40: 0 | Q40: 0
A41: 35 | B41: =Assistive_Products_Costs!B45 -> 0 | D41: =Assistive_Products_Costs!C45 -> 0 | E41: 0 | F41: 0 | G41: 0 | H41: 0 | I41: 0 | J41: 0 | L41: 0 | M41: 0 | N41: 0 | O41: 0 | P41: 0 | Q41: 0
A42: 36 | B42: =Assistive_Products_Costs!B46 -> 0 | D42: =Assistive_Products_Costs!C46 -> 0 | E42: 0 | F42: 0 | G42: 0 | H42: 0 | I42: 0 | J42: 0 | L42: 0 | M42: 0 | N42: 0 | O42: 0 | P42: 0 | Q42: 0
A43: 37 | B43: =Assistive_Products_Costs!B47 -> 0 | D43: =Assistive_Products_Costs!C47 -> 0 | E43: 0 | F43: 0 | G43: 0 | H43: 0 | I43: 0 | J43: 0 | L43: 0 | M43: 0 | N43: 0 | O43: 0 | P43: 0 | Q43: 0
A44: 38 | B44: =Assistive_Products_Costs!B48 -> 0 | D44: =Assistive_Products_Costs!C48 -> 0 | E44: 0 | F44: 0 | G44: 0 | H44: 0 | I44: 0 | J44: 0 | L44: 0 | M44: 0 | N44: 0 | O44: 0 | P44: 0 | Q44: 0
A45: 39 | B45: =Assistive_Products_Costs!B49 -> 0 | D45: =Assistive_Products_Costs!C49 -> 0 | E45: 0 | F45: 0 | G45: 0 | H45: 0 | I45: 0 | J45: 0 | L45: 0 | M45: 0 | N45: 0 | O45: 0 | P45: 0 | Q45: 0
A46: 40 | B46: =Assistive_Products_Costs!B50 -> 0 | D46: =Assistive_Products_Costs!C50 -> 0 | E46: 0 | F46: 0 | G46: 0 | H46: 0 | I46: 0 | J46: 0 | L46: 0 | M46: 0 | N46: 0 | O46: 0 | P46: 0 | Q46: 0
A47: 41 | B47: =Assistive_Products_Costs!B51 -> 0 | D47: =Assistive_Products_Costs!C51 -> 0 | E47: 0 | F47: 0 | G47: 0 | H47: 0 | I47: 0 | J47: 0 | L47: 0 | M47: 0 | N47: 0 | O47: 0 | P47: 0 | Q47: 0
A48: 42 | B48: =Assistive_Products_Costs!B52 -> 0 | D48: =Assistive_Products_Costs!C52 -> 0 | E48: 0 | F48: 0 | G48: 0 | H48: 0 | I48: 0 | J48: 0 | L48: 0 | M48: 0 | N48: 0 | O48: 0 | P48: 0 | Q48: 0
A49: 43 | B49: =Assistive_Products_Costs!B53 -> 0 | D49: =Assistive_Products_Costs!C53 -> 0 | E49: 0 | F49: 0 | G49: 0 | H49: 0 | I49: 0 | J49: 0 | L49: 0 | M49: 0 | N49: 0 | O49: 0 | P49: 0 | Q49: 0
A50: 44 | B50: =Assistive_Products_Costs!B54 -> 0 | D50: =Assistive_Products_Costs!C54 -> 0 | E50: 0 | F50: 0 | G50: 0 | H50: 0 | I50: 0 | J50: 0 | L50: 0 | M50: 0 | N50: 0 | O50: 0 | P50: 0 | Q50: 0
A51: 45 | B51: =Assistive_Products_Costs!B55 -> 0 | D51: =Assistive_Products_Costs!C55 -> 0 | E51: 0 | F51: 0 | G51: 0 | H51: 0 | I51: 0 | J51: 0 | L51: 0 | M51: 0 | N51: 0 | O51: 0 | P51: 0 | Q51: 0
A52: 46 | B52: =Assistive_Products_Costs!B56 -> 0 | D52: =Assistive_Products_Costs!C56 -> 0 | E52: 0 | F52: 0 | G52: 0 | H52: 0 | I52: 0 | J52: 0 | L52: 0 | M52: 0 | N52: 0 | O52: 0 | P52: 0 | Q52: 0
A53: 47 | B53: =Assistive_Products_Costs!B57 -> 0 | D53: =Assistive_Products_Costs!C57 -> 0 | E53: 0 | F53: 0 | G53: 0 | H53: 0 | I53: 0 | J53: 0 | L53: 0 | M53: 0 | N53: 0 | O53: 0 | P53: 0 | Q53: 0
A54: 48 | B54: =Assistive_Products_Costs!B58 -> 0 | D54: =Assistive_Products_Costs!C58 -> 0 | E54: 0 | F54: 0 | G54: 0 | H54: 0 | I54: 0 | J54: 0 | L54: 0 | M54: 0 | N54: 0 | O54: 0 | P54: 0 | Q54: 0
A55: 49 | B55: =Assistive_Products_Costs!B59 -> 0 | D55: =Assistive_Products_Costs!C59 -> 0 | E55: 0 | F55: 0 | G55: 0 | H55: 0 | I55: 0 | J55: 0 | L55: 0 | M55: 0 | N55: 0 | O55: 0 | P55: 0 | Q55: 0
A56: 50 | B56: =Assistive_Products_Costs!B60 -> 0 | D56: =Assistive_Products_Costs!C60 -> 0 | E56: 0 | F56: 0 | G56: 0 | H56: 0 | I56: 0 | J56: 0 | L56: 0 | M56: 0 | N56: 0 | O56: 0 | P56: 0 | Q56: 0
A57: 51 | B57: =Assistive_Products_Costs!B61 -> 0 | D57: =Assistive_Products_Costs!C61 -> 0 | E57: 0 | F57: 0 | G57: 0 | H57: 0 | I57: 0 | J57: 0 | L57: 0 | M57: 0 | N57: 0 | O57: 0 | P57: 0 | Q57: 0
A58: 52 | B58: =Assistive_Products_Costs!B62 -> 0 | D58: =Assistive_Products_Costs!C62 -> 0 | E58: 0 | F58: 0 | G58: 0 | H58: 0 | I58: 0 | J58: 0 | L58: 0 | M58: 0 | N58: 0 | O58: 0 | P58: 0 | Q58: 0
A59: 53 | B59: =Assistive_Products_Costs!B63 -> 0 | D59: =Assistive_Products_Costs!C63 -> 0 | E59: 0 | F59: 0 | G59: 0 | H59: 0 | I59: 0 | J59: 0 | L59: 0 | M59: 0 | N59: 0 | O59: 0 | P59: 0 | Q59: 0
A60: 54 | B60: =Assistive_Products_Costs!B64 -> 0 | D60: =Assistive_Products_Costs!C64 -> 0 | E60: 0 | F60: 0 | G60: 0 | H60: 0 | I60: 0 | J60: 0 | L60: 0 | M60: 0 | N60: 0 | O60: 0 | P60: 0 | Q60: 0
A61: 55 | B61: =Assistive_Products_Costs!B65 -> 0 | D61: =Assistive_Products_Costs!C65 -> 0 | E61: 0 | F61: 0 | G61: 0 | H61: 0 | I61: 0 | J61: 0 | L61: 0 | M61: 0 | N61: 0 | O61: 0 | P61: 0 | Q61: 0
A62: 56 | B62: =Assistive_Products_Costs!B66 -> 0 | D62: =Assistive_Products_Costs!C66 -> 0 | E62: 0 | F62: 0 | G62: 0 | H62: 0 | I62: 0 | J62: 0 | L62: 0 | M62: 0 | N62: 0 | O62: 0 | P62: 0 | Q62: 0
A63: 57 | B63: =Assistive_Products_Costs!B67 -> 0 | D63: =Assistive_Products_Costs!C67 -> 0 | E63: 0 | F63: 0 | G63: 0 | H63: 0 | I63: 0 | J63: 0 | L63: 0 | M63: 0 | N63: 0 | O63: 0 | P63: 0 | Q63: 0
A64: 58 | B64: =Assistive_Products_Costs!B68 -> 0 | D64: =Assistive_Products_Costs!C68 -> 0 | E64: 0 | F64: 0 | G64: 0 | H64: 0 | I64: 0 | J64: 0 | L64: 0 | M64: 0 | N64: 0 | O64: 0 | P64: 0 | Q64: 0
A65: 59 | B65: =Assistive_Products_Costs!B69 -> 0 | D65: =Assistive_Products_Costs!C69 -> 0 | E65: 0 | F65: 0 | G65: 0 | H65: 0 | I65: 0 | J65: 0 | L65: 0 | M65: 0 | N65: 0 | O65: 0 | P65: 0 | Q65: 0
A66: 60 | B66: =Assistive_Products_Costs!B70 -> 0 | D66: =Assistive_Products_Costs!C70 -> 0 | E66: 0 | F66: 0 | G66: 0 | H66: 0 | I66: 0 | J66: 0 | L66: 0 | M66: 0 | N66: 0 | O66: 0 | P66: 0 | Q66: 0
A67: 61 | B67: =Assistive_Products_Costs!B71 -> 0 | D67: =Assistive_Products_Costs!C71 -> 0 | E67: 0 | F67: 0 | G67: 0 | H67: 0 | I67: 0 | J67: 0 | L67: 0 | M67: 0 | N67: 0 | O67: 0 | P67: 0 | Q67: 0
A68: 62 | B68: =Assistive_Products_Costs!B72 -> 0 | D68: =Assistive_Products_Costs!C72 -> 0 | E68: 0 | F68: 0 | G68: 0 | H68: 0 | I68: 0 | J68: 0 | L68: 0 | M68: 0 | N68: 0 | O68: 0 | P68: 0 | Q68: 0
A69: 63 | B69: =Assistive_Products_Costs!B73 -> 0 | D69: =Assistive_Products_Costs!C73 -> 0 | E69: 0 | F69: 0 | G69: 0 | H69: 0 | I69: 0 | J69: 0 | L69: 0 | M69: 0 | N69: 0 | O69: 0 | P69: 0 | Q69: 0
A70: 64 | B70: =Assistive_Products_Costs!B74 -> 0 | D70: =Assistive_Products_Costs!C74 -> 0 | E70: 0 | F70: 0 | G70: 0 | H70: 0 | I70: 0 | J70: 0 | L70: 0 | M70: 0 | N70: 0 | O70: 0 | P70: 0 | Q70: 0
A71: 65 | B71: =Assistive_Products_Costs!B75 -> 0 | D71: =Assistive_Products_Costs!C75 -> 0 | E71: =SUMIF(stg_list,$B71,stg_unit1) -> 0 | F71: =SUMIF(stg_list,$B71,stg_unit2) -> 0 | G71: =SUMIF(stg_list,$B71,stg_unit3) -> 0 | H71: =SUMIF(stg_list,$B71,stg_unit4) -> 0 | I71: =SUMIF(stg_list,$B71,stg_unit5) -> 0 | J71: =SUMIF(stg_list,$B71,stg_unit6) -> 0 | L71: =IF(currency_calculation=1,SUMIF(stg_list,$B71,stg_cost1),IF(currency_calculation=2,(SUMIF(stg_list,$B71,stg_cost1))*exchange_rate,IF(currency_calculation=3,(SUMIF(stg_list,$B71,stg_cost1))/exchange_rate))) -> 0 | M71: =IF(currency_calculation=1,SUMIF(stg_list,$B71,stg_cost2),IF(currency_calculation=2,(SUMIF(stg_list,$B71,stg_cost2))*exchange_rate,IF(currency_calculation=3,(SUMIF(stg_list,$B71,stg_cost2))/exchange_rate))) -> 0 | N71: =IF(currency_calculation=1,SUMIF(stg_list,$B71,stg_cost3),IF(currency_calculation=2,(SUMIF(stg_list,$B71,stg_cost3))*exchange_rate,IF(currency_calculation=3,(SUMIF(stg_list,$B71,stg_cost3))/exchange_rate))) -> 0 | O71: =IF(currency_calculation=1,SUMIF(stg_list,$B71,stg_cost4),IF(currency_calculation=2,(SUMIF(stg_list,$B71,stg_cost4))*exchange_rate,IF(currency_calculation=3,(SUMIF(stg_list,$B71,stg_cost4))/exchange_rate))) -> 0 | P71: =IF(currency_calculation=1,SUMIF(stg_list,$B71,stg_cost5),IF(currency_calculation=2,(SUMIF(stg_list,$B71,stg_cost5))*exchange_rate,IF(currency_calculation=3,(SUMIF(stg_list,$B71,stg_cost5))/exchange_rate))) -> 0 | Q71: =IF(currency_calculation=1,SUMIF(stg_list,$B71,stg_cost6),IF(currency_calculation=2,(SUMIF(stg_list,$B71,stg_cost6))*exchange_rate,IF(currency_calculation=3,(SUMIF(stg_list,$B71,stg_cost6))/exchange_rate))) -> 0
A72: 66 | B72: =Assistive_Products_Costs!B76 -> 0 | D72: =Assistive_Products_Costs!C76 -> 0 | E72: 0 | F72: 0 | G72: 0 | H72: 0 | I72: 0 | J72: 0 | L72: 0 | M72: 0 | N72: 0 | O72: 0 | P72: 0 | Q72: 0
A73: 67 | B73: =Assistive_Products_Costs!B77 -> 0 | D73: =Assistive_Products_Costs!C77 -> 0 | E73: 0 | F73: 0 | G73: 0 | H73: 0 | I73: 0 | J73: 0 | L73: 0 | M73: 0 | N73: 0 | O73: 0 | P73: 0 | Q73: 0
A74: 68 | B74: =Assistive_Products_Costs!B78 -> 0 | D74: =Assistive_Products_Costs!C78 -> 0 | E74: 0 | F74: 0 | G74: 0 | H74: 0 | I74: 0 | J74: 0 | L74: 0 | M74: 0 | N74: 0 | O74: 0 | P74: 0 | Q74: 0
A75: 69 | B75: =Assistive_Products_Costs!B79 -> 0 | D75: =Assistive_Products_Costs!C79 -> 0 | E75: 0 | F75: 0 | G75: 0 | H75: 0 | I75: 0 | J75: 0 | L75: 0 | M75: 0 | N75: 0 | O75: 0 | P75: 0 | Q75: 0
A76: 70 | B76: =Assistive_Products_Costs!B80 -> 0 | D76: =Assistive_Products_Costs!C80 -> 0 | E76: 0 | F76: 0 | G76: 0 | H76: 0 | I76: 0 | J76: 0 | L76: 0 | M76: 0 | N76: 0 | O76: 0 | P76: 0 | Q76: 0
A77: 71 | B77: =Assistive_Products_Costs!B81 -> 0 | D77: =Assistive_Products_Costs!C81 -> 0 | E77: 0 | F77: 0 | G77: 0 | H77: 0 | I77: 0 | J77: 0 | L77: 0 | M77: 0 | N77: 0 | O77: 0 | P77: 0 | Q77: 0
A78: 72 | B78: =Assistive_Products_Costs!B82 -> 0 | D78: =Assistive_Products_Costs!C82 -> 0 | E78: 0 | F78: 0 | G78: 0 | H78: 0 | I78: 0 | J78: 0 | L78: 0 | M78: 0 | N78: 0 | O78: 0 | P78: 0 | Q78: 0
A79: 73 | B79: =Assistive_Products_Costs!B83 -> 0 | D79: =Assistive_Products_Costs!C83 -> 0 | E79: 0 | F79: 0 | G79: 0 | H79: 0 | I79: 0 | J79: 0 | L79: 0 | M79: 0 | N79: 0 | O79: 0 | P79: 0 | Q79: 0
A80: 74 | B80: =Assistive_Products_Costs!B84 -> 0 | D80: =Assistive_Products_Costs!C84 -> 0 | E80: 0 | F80: 0 | G80: 0 | H80: 0 | I80: 0 | J80: 0 | L80: 0 | M80: 0 | N80: 0 | O80: 0 | P80: 0 | Q80: 0
A81: 75 | B81: =Assistive_Products_Costs!B85 -> 0 | D81: =Assistive_Products_Costs!C85 -> 0 | E81: 0 | F81: 0 | G81: 0 | H81: 0 | I81: 0 | J81: 0 | L81: 0 | M81: 0 | N81: 0 | O81: 0 | P81: 0 | Q81: 0
A82: 76 | B82: =Assistive_Products_Costs!B86 -> 0 | D82: =Assistive_Products_Costs!C86 -> 0 | E82: 0 | F82: 0 | G82: 0 | H82: 0 | I82: 0 | J82: 0 | L82: 0 | M82: 0 | N82: 0 | O82: 0 | P82: 0 | Q82: 0
A83: 77 | B83: =Assistive_Products_Costs!B87 -> 0 | D83: =Assistive_Products_Costs!C87 -> 0 | E83: 0 | F83: 0 | G83: 0 | H83: 0 | I83: 0 | J83: 0 | L83: 0 | M83: 0 | N83: 0 | O83: 0 | P83: 0 | Q83: 0
A84: 78 | B84: =Assistive_Products_Costs!B88 -> 0 | D84: =Assistive_Products_Costs!C88 -> 0 | E84: 0 | F84: 0 | G84: 0 | H84: 0 | I84: 0 | J84: 0 | L84: 0 | M84: 0 | N84: 0 | O84: 0 | P84: 0 | Q84: 0
A85: 79 | B85: =Assistive_Products_Costs!B89 -> 0 | D85: =Assistive_Products_Costs!C89 -> 0 | E85: 0 | F85: 0 | G85: 0 | H85: 0 | I85: 0 | J85: 0 | L85: 0 | M85: 0 | N85: 0 | O85: 0 | P85: 0 | Q85: 0
A86: 80 | B86: =Assistive_Products_Costs!B90 -> 0 | D86: =Assistive_Products_Costs!C90 -> 0 | E86: 0 | F86: 0 | G86: 0 | H86: 0 | I86: 0 | J86: 0 | L86: 0 | M86: 0 | N86: 0 | O86: 0 | P86: 0 | Q86: 0
A87: 81 | B87: =Assistive_Products_Costs!B91 -> 0 | D87: =Assistive_Products_Costs!C91 -> 0 | E87: 0 | F87: 0 | G87: 0 | H87: 0 | I87: 0 | J87: 0 | L87: 0 | M87: 0 | N87: 0 | O87: 0 | P87: 0 | Q87: 0
A88: 82 | B88: =Assistive_Products_Costs!B92 -> 0 | D88: =Assistive_Products_Costs!C92 -> 0 | E88: 0 | F88: 0 | G88: 0 | H88: 0 | I88: 0 | J88: 0 | L88: 0 | M88: 0 | N88: 0 | O88: 0 | P88: 0 | Q88: 0
A89: 83 | B89: =Assistive_Products_Costs!B93 -> 0 | D89: =Assistive_Products_Costs!C93 -> 0 | E89: 0 | F89: 0 | G89: 0 | H89: 0 | I89: 0 | J89: 0 | L89: 0 | M89: 0 | N89: 0 | O89: 0 | P89: 0 | Q89: 0
A90: 84 | B90: =Assistive_Products_Costs!B94 -> 0 | D90: =Assistive_Products_Costs!C94 -> 0 | E90: 0 | F90: 0 | G90: 0 | H90: 0 | I90: 0 | J90: 0 | L90: 0 | M90: 0 | N90: 0 | O90: 0 | P90: 0 | Q90: 0
A91: 85 | B91: =Assistive_Products_Costs!B95 -> 0 | D91: =Assistive_Products_Costs!C95 -> 0 | E91: 0 | F91: 0 | G91: 0 | H91: 0 | I91: 0 | J91: 0 | L91: 0 | M91: 0 | N91: 0 | O91: 0 | P91: 0 | Q91: 0
A92: 86 | B92: =Assistive_Products_Costs!B96 -> 0 | D92: =Assistive_Products_Costs!C96 -> 0 | E92: 0 | F92: 0 | G92: 0 | H92: 0 | I92: 0 | J92: 0 | L92: 0 | M92: 0 | N92: 0 | O92: 0 | P92: 0 | Q92: 0
A93: 87 | B93: =Assistive_Products_Costs!B97 -> 0 | D93: =Assistive_Products_Costs!C97 -> 0 | E93: 0 | F93: 0 | G93: 0 | H93: 0 | I93: 0 | J93: 0 | L93: 0 | M93: 0 | N93: 0 | O93: 0 | P93: 0 | Q93: 0
A94: 88 | B94: =Assistive_Products_Costs!B98 -> 0 | D94: =Assistive_Products_Costs!C98 -> 0 | E94: 0 | F94: 0 | G94: 0 | H94: 0 | I94: 0 | J94: 0 | L94: 0 | M94: 0 | N94: 0 | O94: 0 | P94: 0 | Q94: 0
A95: 89 | B95: =Assistive_Products_Costs!B99 -> 0 | D95: =Assistive_Products_Costs!C99 -> 0 | E95: 0 | F95: 0 | G95: 0 | H95: 0 | I95: 0 | J95: 0 | L95: 0 | M95: 0 | N95: 0 | O95: 0 | P95: 0 | Q95: 0
A96: 90 | B96: =Assistive_Products_Costs!B100 -> 0 | D96: =Assistive_Products_Costs!C100 -> 0 | E96: 0 | F96: 0 | G96: 0 | H96: 0 | I96: 0 | J96: 0 | L96: 0 | M96: 0 | N96: 0 | O96: 0 | P96: 0 | Q96: 0
A97: 91 | B97: =Assistive_Products_Costs!B101 -> 0 | D97: =Assistive_Products_Costs!C101 -> 0 | E97: 0 | F97: 0 | G97: 0 | H97: 0 | I97: 0 | J97: 0 | L97: 0 | M97: 0 | N97: 0 | O97: 0 | P97: 0 | Q97: 0
A98: 92 | B98: =Assistive_Products_Costs!B102 -> 0 | D98: =Assistive_Products_Costs!C102 -> 0 | E98: 0 | F98: 0 | G98: 0 | H98: 0 | I98: 0 | J98: 0 | L98: 0 | M98: 0 | N98: 0 | O98: 0 | P98: 0 | Q98: 0
A99: 93 | B99: =Assistive_Products_Costs!B103 -> 0 | D99: =Assistive_Products_Costs!C103 -> 0 | E99: 0 | F99: 0 | G99: 0 | H99: 0 | I99: 0 | J99: 0 | L99: 0 | M99: 0 | N99: 0 | O99: 0 | P99: 0 | Q99: 0
A100: 94 | B100: =Assistive_Products_Costs!B104 -> 0 | D100: =Assistive_Products_Costs!C104 -> 0 | E100: 0 | F100: 0 | G100: 0 | H100: 0 | I100: 0 | J100: 0 | L100: 0 | M100: 0 | N100: 0 | O100: 0 | P100: 0 | Q100: 0
A101: 95 | B101: =Assistive_Products_Costs!B105 -> 0 | D101: =Assistive_Products_Costs!C105 -> 0 | E101: 0 | F101: 0 | G101: 0 | H101: 0 | I101: 0 | J101: 0 | L101: 0 | M101: 0 | N101: 0 | O101: 0 | P101: 0 | Q101: 0
A102: 96 | B102: =Assistive_Products_Costs!B106 -> 0 | D102: =Assistive_Products_Costs!C106 -> 0 | E102: 0 | F102: 0 | G102: 0 | H102: 0 | I102: 0 | J102: 0 | L102: 0 | M102: 0 | N102: 0 | O102: 0 | P102: 0 | Q102: 0
A103: 97 | B103: =Assistive_Products_Costs!B107 -> 0 | D103: =Assistive_Products_Costs!C107 -> 0 | E103: 0 | F103: 0 | G103: 0 | H103: 0 | I103: 0 | J103: 0 | L103: 0 | M103: 0 | N103: 0 | O103: 0 | P103: 0 | Q103: 0
A104: 98 | B104: =Assistive_Products_Costs!B108 -> 0 | D104: =Assistive_Products_Costs!C108 -> 0 | E104: 0 | F104: 0 | G104: 0 | H104: 0 | I104: 0 | J104: 0 | L104: 0 | M104: 0 | N104: 0 | O104: 0 | P104: 0 | Q104: 0
A105: 99 | B105: =Assistive_Products_Costs!B109 -> 0 | D105: =Assistive_Products_Costs!C109 -> 0 | E105: 0 | F105: 0 | G105: 0 | H105: 0 | I105: 0 | J105: 0 | L105: 0 | M105: 0 | N105: 0 | O105: 0 | P105: 0 | Q105: 0
A106: 100 | B106: =Assistive_Products_Costs!B110 -> 0 | D106: =Assistive_Products_Costs!C110 -> 0 | E106: 0 | F106: 0 | G106: 0 | H106: 0 | I106: 0 | J106: 0 | L106: 0 | M106: 0 | N106: 0 | O106: 0 | P106: 0 | Q106: 0

Sheet Summary_TG (hidden)
A1: SUMMARY OF STANDARD TREATMENT GUIDELINES
A2: South Africa
Q3: 2 | R3: 3 | S3: 4 | T3: 5 | U3: 6 | V3: 7
J4: Total minutes required for service provision | Q4: ="Total assistive device and supplies costs required for service provision ("&currency_enter&")" -> Total assistive device and supplies costs required for service provision (ZAR)
B5: Service / Intervention | C5: Program | D5: RT Category providing service | E5: Time per Service | F5: Units | G5: Time per Service (min) | H5: ="Assistive Device and Supplies Cost per Service ("&currency_enter&")" -> Assistive Device and Supplies Cost per Service (ZAR) | J5: =baseline_year -> 2021 | K5: =baseline_year+1 -> 2022 | L5: =K5+1 -> 2023 | M5: =L5+1 -> 2024 | N5: =M5+1 -> 2025 | O5: =N5+1 -> 2026 | Q5: =baseline_year -> 2021 | R5: =baseline_year+1 -> 2022 | S5: =R5+1 -> 2023 | T5: =S5+1 -> 2024 | U5: =T5+1 -> 2025 | V5: =U5+1 -> 2026
B7: Total | J7: =SUM(J9:J108) -> 26013252 | K7: 22932550 | L7: 37393740 | M7: 56385530 | N7: 79532540 | O7: 94022050 | Q7: =SUM(Q9:Q108) -> 143072886 | R7: 134827605 | S7: 205665570 | T7: 297715605 | U7: 407261415 | V7: 481457790
A9: 1 | B9: =Summary_Services!B6 -> Vision Screening | C9: =Summary_Services!C6 -> Vision | D9: =Summary_Services!F6 -> Optometrist | E9: =Treatment_Guidelines!C6 -> 10 | F9: =Treatment_Guidelines!D6 -> Minutes | G9: =IF(F9="Minutes",E9,IF(F9="Hours",E9*60,IF(F9="Days",E9*60*8,0))) -> 10 | H9: =Treatment_Guidelines!E17 -> 0 | J9: =$G9*Summary_Services!Y6 -> 8671084 | K9: =$G9*Summary_Services!Z6 -> 6589810 | L9: =$G9*Summary_Services!AA6 -> 12464580 | M9: =$G9*Summary_Services!AB6 -> 20298790 | N9: =$G9*Summary_Services!AC6 -> 30167520 | O9: =$G9*Summary_Services!AD6 -> 35663530 | Q9: =$H9*Summary_Services!Y6 -> 0 | R9: =$H9*Summary_Services!Z6 -> 0 | S9: =$H9*Summary_Services!AA6 -> 0 | T9: =$H9*Summary_Services!AB6 -> 0 | U9: =$H9*Summary_Services!AC6 -> 0 | V9: =$H9*Summary_Services!AD6 -> 0
A10: 2 | B10: =Summary_Services!B7 -> Low Vision Assessment and Dispensing | C10: =Summary_Services!C7 -> Vision | D10: =Summary_Services!F7 -> Optometrist | E10: =Treatment_Guidelines!C21 -> 20 | F10: =Treatment_Guidelines!D21 -> Minutes | G10: =IF(F10="Minutes",E10,IF(F10="Hours",E10*60,IF(F10="Days",E10*60*8,0))) -> 20 | H10: =Treatment_Guidelines!E32 -> 165 | J10: =$G10*Summary_Services!Y7 -> 17342168 | K10: =$G10*Summary_Services!Z7 -> 16342740 | L10: =$G10*Summary_Services!AA7 -> 24929160 | M10: =$G10*Summary_Services!AB7 -> 36086740 | N10: =$G10*Summary_Services!AC7 -> 49365020 | O10: =$G10*Summary_Services!AD7 -> 58358520 | Q10: =$H10*Summary_Services!Y7 -> 143072886 | R10: =$H10*Summary_Services!Z7 -> 134827605 | S10: =$H10*Summary_Services!AA7 -> 205665570 | T10: =$H10*Summary_Services!AB7 -> 297715605 | U10: =$H10*Summary_Services!AC7 -> 407261415 | V10: =$H10*Summary_Services!AD7 -> 481457790
A11: 3 | B11: =Summary_Services!B8 -> 0 | C11: =Summary_Services!C8 -> 0 | D11: =Summary_Services!F8 -> 0 | E11: =Treatment_Guidelines!C36 -> 0 | F11: =Treatment_Guidelines!D36 -> Minutes | G11: 0 | H11: =Treatment_Guidelines!E49 -> 0 | J11: =$G11*Summary_Services!Y8 -> 0 | K11: =$G11*Summary_Services!Z8 -> 0 | L11: =$G11*Summary_Services!AA8 -> 0 | M11: =$G11*Summary_Services!AB8 -> 0 | N11: =$G11*Summary_Services!AC8 -> 0 | O11: =$G11*Summary_Services!AD8 -> 0 | Q11: =$H11*Summary_Services!Y8 -> 0 | R11: =$H11*Summary_Services!Z8 -> 0 | S11: =$H11*Summary_Services!AA8 -> 0 | T11: =$H11*Summary_Services!AB8 -> 0 | U11: =$H11*Summary_Services!AC8 -> 0 | V11: =$H11*Summary_Services!AD8 -> 0
A12: 4 | B12: =Summary_Services!B9 -> 0 | C12: =Summary_Services!C9 -> 0 | D12: =Summary_Services!F9 -> 0 | E12: =Treatment_Guidelines!C51 -> 0 | F12: =Treatment_Guidelines!D51 -> Minutes | G12: 0 | H12: =Treatment_Guidelines!E62 -> 0 | J12: =$G12*Summary_Services!Y9 -> 0 | K12: =$G12*Summary_Services!Z9 -> 0 | L12: =$G12*Summary_Services!AA9 -> 0 | M12: =$G12*Summary_Services!AB9 -> 0 | N12: =$G12*Summary_Services!AC9 -> 0 | O12: =$G12*Summary_Services!AD9 -> 0 | Q12: =$H12*Summary_Services!Y9 -> 0 | R12: =$H12*Summary_Services!Z9 -> 0 | S12: =$H12*Summary_Services!AA9 -> 0 | T12: =$H12*Summary_Services!AB9 -> 0 | U12: =$H12*Summary_Services!AC9 -> 0 | V12: =$H12*Summary_Services!AD9 -> 0
A13: 5 | B13: =Summary_Services!B10 -> 0 | C13: =Summary_Services!C10 -> 0 | D13: =Summary_Services!F10 -> 0 | E13: =Treatment_Guidelines!C67 -> 0 | F13: =Treatment_Guidelines!D67 -> Minutes | G13: 0 | H13: =Treatment_Guidelines!E78 -> 0 | J13: =$G13*Summary_Services!Y10 -> 0 | K13: =$G13*Summary_Services!Z10 -> 0 | L13: =$G13*Summary_Services!AA10 -> 0 | M13: =$G13*Summary_Services!AB10 -> 0 | N13: =$G13*Summary_Services!AC10 -> 0 | O13: =$G13*Summary_Services!AD10 -> 0 | Q13: =$H13*Summary_Services!Y10 -> 0 | R13: =$H13*Summary_Services!Z10 -> 0 | S13: =$H13*Summary_Services!AA10 -> 0 | T13: =$H13*Summary_Services!AB10 -> 0 | U13: =$H13*Summary_Services!AC10 -> 0 | V13: =$H13*Summary_Services!AD10 -> 0
A14: 6 | B14: =Summary_Services!B11 -> 0 | C14: =Summary_Services!C11 -> 0 | D14: =Summary_Services!F11 -> 0 | E14: =Treatment_Guidelines!C83 -> 0 | F14: =Treatment_Guidelines!D83 -> Minutes | G14: 0 | H14: =Treatment_Guidelines!E94 -> 0 | J14: =$G14*Summary_Services!Y11 -> 0 | K14: =$G14*Summary_Services!Z11 -> 0 | L14: =$G14*Summary_Services!AA11 -> 0 | M14: =$G14*Summary_Services!AB11 -> 0 | N14: =$G14*Summary_Services!AC11 -> 0 | O14: =$G14*Summary_Services!AD11 -> 0 | Q14: =$H14*Summary_Services!Y11 -> 0 | R14: =$H14*Summary_Services!Z11 -> 0 | S14: =$H14*Summary_Services!AA11 -> 0 | T14: =$H14*Summary_Services!AB11 -> 0 | U14: =$H14*Summary_Services!AC11 -> 0 | V14: =$H14*Summary_Services!AD11 -> 0
A15: 7 | B15: =Summary_Services!B12 -> 0 | C15: =Summary_Services!C12 -> 0 | D15: =Summary_Services!F12 -> 0 | E15: =Treatment_Guidelines!C99 -> 0 | F15: =Treatment_Guidelines!D99 -> 0 | G15: 0 | H15: =Treatment_Guidelines!E110 -> 0 | J15: =$G15*Summary_Services!Y12 -> 0 | K15: =$G15*Summary_Services!Z12 -> 0 | L15: =$G15*Summary_Services!AA12 -> 0 | M15: =$G15*Summary_Services!AB12 -> 0 | N15: =$G15*Summary_Services!AC12 -> 0 | O15: =$G15*Summary_Services!AD12 -> 0 | Q15: =$H15*Summary_Services!Y12 -> 0 | R15: =$H15*Summary_Services!Z12 -> 0 | S15: =$H15*Summary_Services!AA12 -> 0 | T15: =$H15*Summary_Services!AB12 -> 0 | U15: =$H15*Summary_Services!AC12 -> 0 | V15: =$H15*Summary_Services!AD12 -> 0
A16: 8 | B16: =Summary_Services!B13 -> 0 | C16: =Summary_Services!C13 -> 0 | D16: =Summary_Services!F13 -> 0 | E16: =Treatment_Guidelines!C116 -> 0 | F16: =Treatment_Guidelines!D116 -> 0 | G16: 0 | H16: =Treatment_Guidelines!E127 -> 0 | J16: =$G16*Summary_Services!Y13 -> 0 | K16: =$G16*Summary_Services!Z13 -> 0 | L16: =$G16*Summary_Services!AA13 -> 0 | M16: =$G16*Summary_Services!AB13 -> 0 | N16: =$G16*Summary_Services!AC13 -> 0 | O16: =$G16*Summary_Services!AD13 -> 0 | Q16: =$H16*Summary_Services!Y13 -> 0 | R16: =$H16*Summary_Services!Z13 -> 0 | S16: =$H16*Summary_Services!AA13 -> 0 | T16: =$H16*Summary_Services!AB13 -> 0 | U16: =$H16*Summary_Services!AC13 -> 0 | V16: =$H16*Summary_Services!AD13 -> 0
A17: 9 | B17: =Summary_Services!B14 -> 0 | C17: =Summary_Services!C14 -> 0 | D17: =Summary_Services!F14 -> 0 | E17: =Treatment_Guidelines!C132 -> 0 | F17: =Treatment_Guidelines!D132 -> 0 | G17: 0 | H17: =Treatment_Guidelines!E143 -> 0 | J17: =$G17*Summary_Services!Y14 -> 0 | K17: =$G17*Summary_Services!Z14 -> 0 | L17: =$G17*Summary_Services!AA14 -> 0 | M17: =$G17*Summary_Services!AB14 -> 0 | N17: =$G17*Summary_Services!AC14 -> 0 | O17: =$G17*Summary_Services!AD14 -> 0 | Q17: =$H17*Summary_Services!Y14 -> 0 | R17: =$H17*Summary_Services!Z14 -> 0 | S17: =$H17*Summary_Services!AA14 -> 0 | T17: =$H17*Summary_Services!AB14 -> 0 | U17: =$H17*Summary_Services!AC14 -> 0 | V17: =$H17*Summary_Services!AD14 -> 0
A18: 10 | B18: =Summary_Services!B15 -> 0 | C18: =Summary_Services!C15 -> 0 | D18: =Summary_Services!F15 -> 0 | E18: =Treatment_Guidelines!C149 -> 0 | F18: =Treatment_Guidelines!D149 -> 0 | G18: 0 | H18: =Treatment_Guidelines!E160 -> 0 | J18: =$G18*Summary_Services!Y15 -> 0 | K18: =$G18*Summary_Services!Z15 -> 0 | L18: =$G18*Summary_Services!AA15 -> 0 | M18: =$G18*Summary_Services!AB15 -> 0 | N18: =$G18*Summary_Services!AC15 -> 0 | O18: =$G18*Summary_Services!AD15 -> 0 | Q18: =$H18*Summary_Services!Y15 -> 0 | R18: =$H18*Summary_Services!Z15 -> 0 | S18: =$H18*Summary_Services!AA15 -> 0 | T18: =$H18*Summary_Services!AB15 -> 0 | U18: =$H18*Summary_Services!AC15 -> 0 | V18: =$H18*Summary_Services!AD15 -> 0
A19: 11 | B19: =Summary_Services!B16 -> 0 | C19: =Summary_Services!C16 -> 0 | D19: =Summary_Services!F16 -> 0 | G19: 0 | J19: =$G19*Summary_Services!Y16 -> 0 | K19: =$G19*Summary_Services!Z16 -> 0 | L19: =$G19*Summary_Services!AA16 -> 0 | M19: =$G19*Summary_Services!AB16 -> 0 | N19: =$G19*Summary_Services!AC16 -> 0 | O19: =$G19*Summary_Services!AD16 -> 0 | Q19: =$H19*Summary_Services!Y16 -> 0 | R19: =$H19*Summary_Services!Z16 -> 0 | S19: =$H19*Summary_Services!AA16 -> 0 | T19: =$H19*Summary_Services!AB16 -> 0 | U19: =$H19*Summary_Services!AC16 -> 0 | V19: =$H19*Summary_Services!AD16 -> 0
A20: 12 | B20: =Summary_Services!B17 -> 0 | C20: =Summary_Services!C17 -> 0 | D20: =Summary_Services!F17 -> 0 | G20: 0 | J20: =$G20*Summary_Services!Y17 -> 0 | K20: =$G20*Summary_Services!Z17 -> 0 | L20: =$G20*Summary_Services!AA17 -> 0 | M20: =$G20*Summary_Services!AB17 -> 0 | N20: =$G20*Summary_Services!AC17 -> 0 | O20: =$G20*Summary_Services!AD17 -> 0 | Q20: =$H20*Summary_Services!Y17 -> 0 | R20: =$H20*Summary_Services!Z17 -> 0 | S20: =$H20*Summary_Services!AA17 -> 0 | T20: =$H20*Summary_Services!AB17 -> 0 | U20: =$H20*Summary_Services!AC17 -> 0 | V20: =$H20*Summary_Services!AD17 -> 0
A21: 13 | B21: =Summary_Services!B18 -> 0 | C21: =Summary_Services!C18 -> 0 | D21: =Summary_Services!F18 -> 0 | G21: 0 | J21: =$G21*Summary_Services!Y18 -> 0 | K21: =$G21*Summary_Services!Z18 -> 0 | L21: =$G21*Summary_Services!AA18 -> 0 | M21: =$G21*Summary_Services!AB18 -> 0 | N21: =$G21*Summary_Services!AC18 -> 0 | O21: =$G21*Summary_Services!AD18 -> 0 | Q21: =$H21*Summary_Services!Y18 -> 0 | R21: =$H21*Summary_Services!Z18 -> 0 | S21: =$H21*Summary_Services!AA18 -> 0 | T21: =$H21*Summary_Services!AB18 -> 0 | U21: =$H21*Summary_Services!AC18 -> 0 | V21: =$H21*Summary_Services!AD18 -> 0
A22: 14 | B22: =Summary_Services!B19 -> 0 | C22: =Summary_Services!C19 -> 0 | D22: =Summary_Services!F19 -> 0 | G22: 0 | J22: =$G22*Summary_Services!Y19 -> 0 | K22: =$G22*Summary_Services!Z19 -> 0 | L22: =$G22*Summary_Services!AA19 -> 0 | M22: =$G22*Summary_Services!AB19 -> 0 | N22: =$G22*Summary_Services!AC19 -> 0 | O22: =$G22*Summary_Services!AD19 -> 0 | Q22: =$H22*Summary_Services!Y19 -> 0 | R22: =$H22*Summary_Services!Z19 -> 0 | S22: =$H22*Summary_Services!AA19 -> 0 | T22: =$H22*Summary_Services!AB19 -> 0 | U22: =$H22*Summary_Services!AC19 -> 0 | V22: =$H22*Summary_Services!AD19 -> 0
A23: 15 | B23: =Summary_Services!B20 -> 0 | C23: =Summary_Services!C20 -> 0 | D23: =Summary_Services!F20 -> 0 | G23: 0 | J23: =$G23*Summary_Services!Y20 -> 0 | K23: =$G23*Summary_Services!Z20 -> 0 | L23: =$G23*Summary_Services!AA20 -> 0 | M23: =$G23*Summary_Services!AB20 -> 0 | N23: =$G23*Summary_Services!AC20 -> 0 | O23: =$G23*Summary_Services!AD20 -> 0 | Q23: =$H23*Summary_Services!Y20 -> 0 | R23: =$H23*Summary_Services!Z20 -> 0 | S23: =$H23*Summary_Services!AA20 -> 0 | T23: =$H23*Summary_Services!AB20 -> 0 | U23: =$H23*Summary_Services!AC20 -> 0 | V23: =$H23*Summary_Services!AD20 -> 0
A24: 16 | B24: =Summary_Services!B21 -> 0 | C24: =Summary_Services!C21 -> 0 | D24: =Summary_Services!F21 -> 0 | G24: 0 | J24: =$G24*Summary_Services!Y21 -> 0 | K24: =$G24*Summary_Services!Z21 -> 0 | L24: =$G24*Summary_Services!AA21 -> 0 | M24: =$G24*Summary_Services!AB21 -> 0 | N24: =$G24*Summary_Services!AC21 -> 0 | O24: =$G24*Summary_Services!AD21 -> 0 | Q24: =$H24*Summary_Services!Y21 -> 0 | R24: =$H24*Summary_Services!Z21 -> 0 | S24: =$H24*Summary_Services!AA21 -> 0 | T24: =$H24*Summary_Services!AB21 -> 0 | U24: =$H24*Summary_Services!AC21 -> 0 | V24: =$H24*Summary_Services!AD21 -> 0
A25: 17 | B25: =Summary_Services!B22 -> 0 | C25: =Summary_Services!C22 -> 0 | D25: =Summary_Services!F22 -> 0 | G25: 0 | J25: =$G25*Summary_Services!Y22 -> 0 | K25: =$G25*Summary_Services!Z22 -> 0 | L25: =$G25*Summary_Services!AA22 -> 0 | M25: =$G25*Summary_Services!AB22 -> 0 | N25: =$G25*Summary_Services!AC22 -> 0 | O25: =$G25*Summary_Services!AD22 -> 0 | Q25: =$H25*Summary_Services!Y22 -> 0 | R25: =$H25*Summary_Services!Z22 -> 0 | S25: =$H25*Summary_Services!AA22 -> 0 | T25: =$H25*Summary_Services!AB22 -> 0 | U25: =$H25*Summary_Services!AC22 -> 0 | V25: =$H25*Summary_Services!AD22 -> 0
A26: 18 | B26: =Summary_Services!B23 -> 0 | C26: =Summary_Services!C23 -> 0 | D26: =Summary_Services!F23 -> 0 | G26: 0 | J26: =$G26*Summary_Services!Y23 -> 0 | K26: =$G26*Summary_Services!Z23 -> 0 | L26: =$G26*Summary_Services!AA23 -> 0 | M26: =$G26*Summary_Services!AB23 -> 0 | N26: =$G26*Summary_Services!AC23 -> 0 | O26: =$G26*Summary_Services!AD23 -> 0 | Q26: =$H26*Summary_Services!Y23 -> 0 | R26: =$H26*Summary_Services!Z23 -> 0 | S26: =$H26*Summary_Services!AA23 -> 0 | T26: =$H26*Summary_Services!AB23 -> 0 | U26: =$H26*Summary_Services!AC23 -> 0 | V26: =$H26*Summary_Services!AD23 -> 0
A27: 19 | B27: =Summary_Services!B24 -> 0 | C27: =Summary_Services!C24 -> 0 | D27: =Summary_Services!F24 -> 0 | G27: 0 | J27: =$G27*Summary_Services!Y24 -> 0 | K27: =$G27*Summary_Services!Z24 -> 0 | L27: =$G27*Summary_Services!AA24 -> 0 | M27: =$G27*Summary_Services!AB24 -> 0 | N27: =$G27*Summary_Services!AC24 -> 0 | O27: =$G27*Summary_Services!AD24 -> 0 | Q27: =$H27*Summary_Services!Y24 -> 0 | R27: =$H27*Summary_Services!Z24 -> 0 | S27: =$H27*Summary_Services!AA24 -> 0 | T27: =$H27*Summary_Services!AB24 -> 0 | U27: =$H27*Summary_Services!AC24 -> 0 | V27: =$H27*Summary_Services!AD24 -> 0
A28: 20 | B28: =Summary_Services!B25 -> 0 | C28: =Summary_Services!C25 -> 0 | D28: =Summary_Services!F25 -> 0 | G28: 0 | J28: =$G28*Summary_Services!Y25 -> 0 | K28: =$G28*Summary_Services!Z25 -> 0 | L28: =$G28*Summary_Services!AA25 -> 0 | M28: =$G28*Summary_Services!AB25 -> 0 | N28: =$G28*Summary_Services!AC25 -> 0 | O28: =$G28*Summary_Services!AD25 -> 0 | Q28: =$H28*Summary_Services!Y25 -> 0 | R28: =$H28*Summary_Services!Z25 -> 0 | S28: =$H28*Summary_Services!AA25 -> 0 | T28: =$H28*Summary_Services!AB25 -> 0 | U28: =$H28*Summary_Services!AC25 -> 0 | V28: =$H28*Summary_Services!AD25 -> 0
A29: 21 | B29: =Summary_Services!B26 -> 0 | C29: =Summary_Services!C26 -> 0 | D29: =Summary_Services!F26 -> 0 | G29: 0 | J29: =$G29*Summary_Services!Y26 -> 0 | K29: =$G29*Summary_Services!Z26 -> 0 | L29: =$G29*Summary_Services!AA26 -> 0 | M29: =$G29*Summary_Services!AB26 -> 0 | N29: =$G29*Summary_Services!AC26 -> 0 | O29: =$G29*Summary_Services!AD26 -> 0 | Q29: =$H29*Summary_Services!Y26 -> 0 | R29: =$H29*Summary_Services!Z26 -> 0 | S29: =$H29*Summary_Services!AA26 -> 0 | T29: =$H29*Summary_Services!AB26 -> 0 | U29: =$H29*Summary_Services!AC26 -> 0 | V29: =$H29*Summary_Services!AD26 -> 0
A30: 22 | B30: =Summary_Services!B27 -> 0 | C30: =Summary_Services!C27 -> 0 | D30: =Summary_Services!F27 -> 0 | G30: 0 | J30: =$G30*Summary_Services!Y27 -> 0 | K30: =$G30*Summary_Services!Z27 -> 0 | L30: =$G30*Summary_Services!AA27 -> 0 | M30: =$G30*Summary_Services!AB27 -> 0 | N30: =$G30*Summary_Services!AC27 -> 0 | O30: =$G30*Summary_Services!AD27 -> 0 | Q30: =$H30*Summary_Services!Y27 -> 0 | R30: =$H30*Summary_Services!Z27 -> 0 | S30: =$H30*Summary_Services!AA27 -> 0 | T30: =$H30*Summary_Services!AB27 -> 0 | U30: =$H30*Summary_Services!AC27 -> 0 | V30: =$H30*Summary_Services!AD27 -> 0
A31: 23 | B31: =Summary_Services!B28 -> 0 | C31: =Summary_Services!C28 -> 0 | D31: =Summary_Services!F28 -> 0 | G31: 0 | J31: =$G31*Summary_Services!Y28 -> 0 | K31: =$G31*Summary_Services!Z28 -> 0 | L31: =$G31*Summary_Services!AA28 -> 0 | M31: =$G31*Summary_Services!AB28 -> 0 | N31: =$G31*Summary_Services!AC28 -> 0 | O31: =$G31*Summary_Services!AD28 -> 0 | Q31: =$H31*Summary_Services!Y28 -> 0 | R31: =$H31*Summary_Services!Z28 -> 0 | S31: =$H31*Summary_Services!AA28 -> 0 | T31: =$H31*Summary_Services!AB28 -> 0 | U31: =$H31*Summary_Services!AC28 -> 0 | V31: =$H31*Summary_Services!AD28 -> 0
A32: 24 | B32: =Summary_Services!B29 -> 0 | C32: =Summary_Services!C29 -> 0 | D32: =Summary_Services!F29 -> 0 | G32: 0 | J32: =$G32*Summary_Services!Y29 -> 0 | K32: =$G32*Summary_Services!Z29 -> 0 | L32: =$G32*Summary_Services!AA29 -> 0 | M32: =$G32*Summary_Services!AB29 -> 0 | N32: =$G32*Summary_Services!AC29 -> 0 | O32: =$G32*Summary_Services!AD29 -> 0 | Q32: =$H32*Summary_Services!Y29 -> 0 | R32: =$H32*Summary_Services!Z29 -> 0 | S32: =$H32*Summary_Services!AA29 -> 0 | T32: =$H32*Summary_Services!AB29 -> 0 | U32: =$H32*Summary_Services!AC29 -> 0 | V32: =$H32*Summary_Services!AD29 -> 0
A33: 25 | B33: =Summary_Services!B30 -> 0 | C33: =Summary_Services!C30 -> 0 | D33: =Summary_Services!F30 -> 0 | G33: 0 | J33: =$G33*Summary_Services!Y30 -> 0 | K33: =$G33*Summary_Services!Z30 -> 0 | L33: =$G33*Summary_Services!AA30 -> 0 | M33: =$G33*Summary_Services!AB30 -> 0 | N33: =$G33*Summary_Services!AC30 -> 0 | O33: =$G33*Summary_Services!AD30 -> 0 | Q33: =$H33*Summary_Services!Y30 -> 0 | R33: =$H33*Summary_Services!Z30 -> 0 | S33: =$H33*Summary_Services!AA30 -> 0 | T33: =$H33*Summary_Services!AB30 -> 0 | U33: =$H33*Summary_Services!AC30 -> 0 | V33: =$H33*Summary_Services!AD30 -> 0
A34: 26 | B34: =Summary_Services!B31 -> 0 | C34: =Summary_Services!C31 -> 0 | D34: =Summary_Services!F31 -> 0 | G34: 0 | J34: =$G34*Summary_Services!Y31 -> 0 | K34: =$G34*Summary_Services!Z31 -> 0 | L34: =$G34*Summary_Services!AA31 -> 0 | M34: =$G34*Summary_Services!AB31 -> 0 | N34: =$G34*Summary_Services!AC31 -> 0 | O34: =$G34*Summary_Services!AD31 -> 0 | Q34: =$H34*Summary_Services!Y31 -> 0 | R34: =$H34*Summary_Services!Z31 -> 0 | S34: =$H34*Summary_Services!AA31 -> 0 | T34: =$H34*Summary_Services!AB31 -> 0 | U34: =$H34*Summary_Services!AC31 -> 0 | V34: =$H34*Summary_Services!AD31 -> 0
A35: 27 | B35: =Summary_Services!B32 -> 0 | C35: =Summary_Services!C32 -> 0 | D35: =Summary_Services!F32 -> 0 | G35: 0 | J35: =$G35*Summary_Services!Y32 -> 0 | K35: =$G35*Summary_Services!Z32 -> 0 | L35: =$G35*Summary_Services!AA32 -> 0 | M35: =$G35*Summary_Services!AB32 -> 0 | N35: =$G35*Summary_Services!AC32 -> 0 | O35: =$G35*Summary_Services!AD32 -> 0 | Q35: =$H35*Summary_Services!Y32 -> 0 | R35: =$H35*Summary_Services!Z32 -> 0 | S35: =$H35*Summary_Services!AA32 -> 0 | T35: =$H35*Summary_Services!AB32 -> 0 | U35: =$H35*Summary_Services!AC32 -> 0 | V35: =$H35*Summary_Services!AD32 -> 0
A36: 28 | B36: =Summary_Services!B33 -> 0 | C36: =Summary_Services!C33 -> 0 | D36: =Summary_Services!F33 -> 0 | G36: 0 | J36: =$G36*Summary_Services!Y33 -> 0 | K36: =$G36*Summary_Services!Z33 -> 0 | L36: =$G36*Summary_Services!AA33 -> 0 | M36: =$G36*Summary_Services!AB33 -> 0 | N36: =$G36*Summary_Services!AC33 -> 0 | O36: =$G36*Summary_Services!AD33 -> 0 | Q36: =$H36*Summary_Services!Y33 -> 0 | R36: =$H36*Summary_Services!Z33 -> 0 | S36: =$H36*Summary_Services!AA33 -> 0 | T36: =$H36*Summary_Services!AB33 -> 0 | U36: =$H36*Summary_Services!AC33 -> 0 | V36: =$H36*Summary_Services!AD33 -> 0
A37: 29 | B37: =Summary_Services!B34 -> 0 | C37: =Summary_Services!C34 -> 0 | D37: =Summary_Services!F34 -> 0 | G37: 0 | J37: =$G37*Summary_Services!Y34 -> 0 | K37: =$G37*Summary_Services!Z34 -> 0 | L37: =$G37*Summary_Services!AA34 -> 0 | M37: =$G37*Summary_Services!AB34 -> 0 | N37: =$G37*Summary_Services!AC34 -> 0 | O37: =$G37*Summary_Services!AD34 -> 0 | Q37: =$H37*Summary_Services!Y34 -> 0 | R37: =$H37*Summary_Services!Z34 -> 0 | S37: =$H37*Summary_Services!AA34 -> 0 | T37: =$H37*Summary_Services!AB34 -> 0 | U37: =$H37*Summary_Services!AC34 -> 0 | V37: =$H37*Summary_Services!AD34 -> 0
A38: 30 | B38: =Summary_Services!B35 -> 0 | C38: =Summary_Services!C35 -> 0 | D38: =Summary_Services!F35 -> 0 | G38: 0 | J38: =$G38*Summary_Services!Y35 -> 0 | K38: =$G38*Summary_Services!Z35 -> 0 | L38: =$G38*Summary_Services!AA35 -> 0 | M38: =$G38*Summary_Services!AB35 -> 0 | N38: =$G38*Summary_Services!AC35 -> 0 | O38: =$G38*Summary_Services!AD35 -> 0 | Q38: =$H38*Summary_Services!Y35 -> 0 | R38: =$H38*Summary_Services!Z35 -> 0 | S38: =$H38*Summary_Services!AA35 -> 0 | T38: =$H38*Summary_Services!AB35 -> 0 | U38: =$H38*Summary_Services!AC35 -> 0 | V38: =$H38*Summary_Services!AD35 -> 0
A39: 31 | B39: =Summary_Services!B36 -> 0 | C39: =Summary_Services!C36 -> 0 | D39: =Summary_Services!F36 -> 0 | G39: 0 | J39: =$G39*Summary_Services!Y36 -> 0 | K39: =$G39*Summary_Services!Z36 -> 0 | L39: =$G39*Summary_Services!AA36 -> 0 | M39: =$G39*Summary_Services!AB36 -> 0 | N39: =$G39*Summary_Services!AC36 -> 0 | O39: =$G39*Summary_Services!AD36 -> 0 | Q39: =$H39*Summary_Services!Y36 -> 0 | R39: =$H39*Summary_Services!Z36 -> 0 | S39: =$H39*Summary_Services!AA36 -> 0 | T39: =$H39*Summary_Services!AB36 -> 0 | U39: =$H39*Summary_Services!AC36 -> 0 | V39: =$H39*Summary_Services!AD36 -> 0
A40: 32 | B40: =Summary_Services!B37 -> 0 | C40: =Summary_Services!C37 -> 0 | D40: =Summary_Services!F37 -> 0 | G40: 0 | J40: =$G40*Summary_Services!Y37 -> 0 | K40: =$G40*Summary_Services!Z37 -> 0 | L40: =$G40*Summary_Services!AA37 -> 0 | M40: =$G40*Summary_Services!AB37 -> 0 | N40: =$G40*Summary_Services!AC37 -> 0 | O40: =$G40*Summary_Services!AD37 -> 0 | Q40: =$H40*Summary_Services!Y37 -> 0 | R40: =$H40*Summary_Services!Z37 -> 0 | S40: =$H40*Summary_Services!AA37 -> 0 | T40: =$H40*Summary_Services!AB37 -> 0 | U40: =$H40*Summary_Services!AC37 -> 0 | V40: =$H40*Summary_Services!AD37 -> 0
A41: 33 | B41: =Summary_Services!B38 -> 0 | C41: =Summary_Services!C38 -> 0 | D41: =Summary_Services!F38 -> 0 | G41: 0 | J41: =$G41*Summary_Services!Y38 -> 0 | K41: =$G41*Summary_Services!Z38 -> 0 | L41: =$G41*Summary_Services!AA38 -> 0 | M41: =$G41*Summary_Services!AB38 -> 0 | N41: =$G41*Summary_Services!AC38 -> 0 | O41: =$G41*Summary_Services!AD38 -> 0 | Q41: =$H41*Summary_Services!Y38 -> 0 | R41: =$H41*Summary_Services!Z38 -> 0 | S41: =$H41*Summary_Services!AA38 -> 0 | T41: =$H41*Summary_Services!AB38 -> 0 | U41: =$H41*Summary_Services!AC38 -> 0 | V41: =$H41*Summary_Services!AD38 -> 0
A42: 34 | B42: =Summary_Services!B39 -> 0 | C42: =Summary_Services!C39 -> 0 | D42: =Summary_Services!F39 -> 0 | G42: 0 | J42: =$G42*Summary_Services!Y39 -> 0 | K42: =$G42*Summary_Services!Z39 -> 0 | L42: =$G42*Summary_Services!AA39 -> 0 | M42: =$G42*Summary_Services!AB39 -> 0 | N42: =$G42*Summary_Services!AC39 -> 0 | O42: =$G42*Summary_Services!AD39 -> 0 | Q42: =$H42*Summary_Services!Y39 -> 0 | R42: =$H42*Summary_Services!Z39 -> 0 | S42: =$H42*Summary_Services!AA39 -> 0 | T42: =$H42*Summary_Services!AB39 -> 0 | U42: =$H42*Summary_Services!AC39 -> 0 | V42: =$H42*Summary_Services!AD39 -> 0
A43: 35 | B43: =Summary_Services!B40 -> 0 | C43: =Summary_Services!C40 -> 0 | D43: =Summary_Services!F40 -> 0 | G43: 0 | J43: =$G43*Summary_Services!Y40 -> 0 | K43: =$G43*Summary_Services!Z40 -> 0 | L43: =$G43*Summary_Services!AA40 -> 0 | M43: =$G43*Summary_Services!AB40 -> 0 | N43: =$G43*Summary_Services!AC40 -> 0 | O43: =$G43*Summary_Services!AD40 -> 0 | Q43: =$H43*Summary_Services!Y40 -> 0 | R43: =$H43*Summary_Services!Z40 -> 0 | S43: =$H43*Summary_Services!AA40 -> 0 | T43: =$H43*Summary_Services!AB40 -> 0 | U43: =$H43*Summary_Services!AC40 -> 0 | V43: =$H43*Summary_Services!AD40 -> 0
A44: 36 | B44: =Summary_Services!B41 -> 0 | C44: =Summary_Services!C41 -> 0 | D44: =Summary_Services!F41 -> 0 | G44: 0 | J44: =$G44*Summary_Services!Y41 -> 0 | K44: =$G44*Summary_Services!Z41 -> 0 | L44: =$G44*Summary_Services!AA41 -> 0 | M44: =$G44*Summary_Services!AB41 -> 0 | N44: =$G44*Summary_Services!AC41 -> 0 | O44: =$G44*Summary_Services!AD41 -> 0 | Q44: =$H44*Summary_Services!Y41 -> 0 | R44: =$H44*Summary_Services!Z41 -> 0 | S44: =$H44*Summary_Services!AA41 -> 0 | T44: =$H44*Summary_Services!AB41 -> 0 | U44: =$H44*Summary_Services!AC41 -> 0 | V44: =$H44*Summary_Services!AD41 -> 0
A45: 37 | B45: =Summary_Services!B42 -> 0 | C45: =Summary_Services!C42 -> 0 | D45: =Summary_Services!F42 -> 0 | G45: 0 | J45: =$G45*Summary_Services!Y42 -> 0 | K45: =$G45*Summary_Services!Z42 -> 0 | L45: =$G45*Summary_Services!AA42 -> 0 | M45: =$G45*Summary_Services!AB42 -> 0 | N45: =$G45*Summary_Services!AC42 -> 0 | O45: =$G45*Summary_Services!AD42 -> 0 | Q45: =$H45*Summary_Services!Y42 -> 0 | R45: =$H45*Summary_Services!Z42 -> 0 | S45: =$H45*Summary_Services!AA42 -> 0 | T45: =$H45*Summary_Services!AB42 -> 0 | U45: =$H45*Summary_Services!AC42 -> 0 | V45: =$H45*Summary_Services!AD42 -> 0
A46: 38 | B46: =Summary_Services!B43 -> 0 | C46: =Summary_Services!C43 -> 0 | D46: =Summary_Services!F43 -> 0 | G46: 0 | J46: =$G46*Summary_Services!Y43 -> 0 | K46: =$G46*Summary_Services!Z43 -> 0 | L46: =$G46*Summary_Services!AA43 -> 0 | M46: =$G46*Summary_Services!AB43 -> 0 | N46: =$G46*Summary_Services!AC43 -> 0 | O46: =$G46*Summary_Services!AD43 -> 0 | Q46: =$H46*Summary_Services!Y43 -> 0 | R46: =$H46*Summary_Services!Z43 -> 0 | S46: =$H46*Summary_Services!AA43 -> 0 | T46: =$H46*Summary_Services!AB43 -> 0 | U46: =$H46*Summary_Services!AC43 -> 0 | V46: =$H46*Summary_Services!AD43 -> 0
A47: 39 | B47: =Summary_Services!B44 -> 0 | C47: =Summary_Services!C44 -> 0 | D47: =Summary_Services!F44 -> 0 | G47: 0 | J47: =$G47*Summary_Services!Y44 -> 0 | K47: =$G47*Summary_Services!Z44 -> 0 | L47: =$G47*Summary_Services!AA44 -> 0 | M47: =$G47*Summary_Services!AB44 -> 0 | N47: =$G47*Summary_Services!AC44 -> 0 | O47: =$G47*Summary_Services!AD44 -> 0 | Q47: =$H47*Summary_Services!Y44 -> 0 | R47: =$H47*Summary_Services!Z44 -> 0 | S47: =$H47*Summary_Services!AA44 -> 0 | T47: =$H47*Summary_Services!AB44 -> 0 | U47: =$H47*Summary_Services!AC44 -> 0 | V47: =$H47*Summary_Services!AD44 -> 0
A48: 40 | B48: =Summary_Services!B45 -> 0 | C48: =Summary_Services!C45 -> 0 | D48: =Summary_Services!F45 -> 0 | G48: 0 | J48: =$G48*Summary_Services!Y45 -> 0 | K48: =$G48*Summary_Services!Z45 -> 0 | L48: =$G48*Summary_Services!AA45 -> 0 | M48: =$G48*Summary_Services!AB45 -> 0 | N48: =$G48*Summary_Services!AC45 -> 0 | O48: =$G48*Summary_Services!AD45 -> 0 | Q48: =$H48*Summary_Services!Y45 -> 0 | R48: =$H48*Summary_Services!Z45 -> 0 | S48: =$H48*Summary_Services!AA45 -> 0 | T48: =$H48*Summary_Services!AB45 -> 0 | U48: =$H48*Summary_Services!AC45 -> 0 | V48: =$H48*Summary_Services!AD45 -> 0
A49: 41 | B49: =Summary_Services!B46 -> 0 | C49: =Summary_Services!C46 -> 0 | D49: =Summary_Services!F46 -> 0 | G49: =IF(F49="Minutes",E49,IF(F49="Hours",E49*60,IF(F49="Days",E49*60*8,0))) -> 0 | J49: =$G49*Summary_Services!Y46 -> 0 | K49: =$G49*Summary_Services!Z46 -> 0 | L49: =$G49*Summary_Services!AA46 -> 0 | M49: =$G49*Summary_Services!AB46 -> 0 | N49: =$G49*Summary_Services!AC46 -> 0 | O49: =$G49*Summary_Services!AD46 -> 0 | Q49: =$H49*Summary_Services!Y46 -> 0 | R49: =$H49*Summary_Services!Z46 -> 0 | S49: =$H49*Summary_Services!AA46 -> 0 | T49: =$H49*Summary_Services!AB46 -> 0 | U49: =$H49*Summary_Services!AC46 -> 0 | V49: =$H49*Summary_Services!AD46 -> 0
A50: 42 | B50: =Summary_Services!B47 -> 0 | C50: =Summary_Services!C47 -> 0 | D50: =Summary_Services!F47 -> 0 | G50: 0 | J50: =$G50*Summary_Services!Y47 -> 0 | K50: =$G50*Summary_Services!Z47 -> 0 | L50: =$G50*Summary_Services!AA47 -> 0 | M50: =$G50*Summary_Services!AB47 -> 0 | N50: =$G50*Summary_Services!AC47 -> 0 | O50: =$G50*Summary_Services!AD47 -> 0 | Q50: =$H50*Summary_Services!Y47 -> 0 | R50: =$H50*Summary_Services!Z47 -> 0 | S50: =$H50*Summary_Services!AA47 -> 0 | T50: =$H50*Summary_Services!AB47 -> 0 | U50: =$H50*Summary_Services!AC47 -> 0 | V50: =$H50*Summary_Services!AD47 -> 0
A51: 43 | B51: =Summary_Services!B48 -> 0 | C51: =Summary_Services!C48 -> 0 | D51: =Summary_Services!F48 -> 0 | G51: 0 | J51: =$G51*Summary_Services!Y48 -> 0 | K51: =$G51*Summary_Services!Z48 -> 0 | L51: =$G51*Summary_Services!AA48 -> 0 | M51: =$G51*Summary_Services!AB48 -> 0 | N51: =$G51*Summary_Services!AC48 -> 0 | O51: =$G51*Summary_Services!AD48 -> 0 | Q51: =$H51*Summary_Services!Y48 -> 0 | R51: =$H51*Summary_Services!Z48 -> 0 | S51: =$H51*Summary_Services!AA48 -> 0 | T51: =$H51*Summary_Services!AB48 -> 0 | U51: =$H51*Summary_Services!AC48 -> 0 | V51: =$H51*Summary_Services!AD48 -> 0
A52: 44 | B52: =Summary_Services!B49 -> 0 | C52: =Summary_Services!C49 -> 0 | D52: =Summary_Services!F49 -> 0 | G52: 0 | J52: =$G52*Summary_Services!Y49 -> 0 | K52: =$G52*Summary_Services!Z49 -> 0 | L52: =$G52*Summary_Services!AA49 -> 0 | M52: =$G52*Summary_Services!AB49 -> 0 | N52: =$G52*Summary_Services!AC49 -> 0 | O52: =$G52*Summary_Services!AD49 -> 0 | Q52: =$H52*Summary_Services!Y49 -> 0 | R52: =$H52*Summary_Services!Z49 -> 0 | S52: =$H52*Summary_Services!AA49 -> 0 | T52: =$H52*Summary_Services!AB49 -> 0 | U52: =$H52*Summary_Services!AC49 -> 0 | V52: =$H52*Summary_Services!AD49 -> 0
A53: 45 | B53: =Summary_Services!B50 -> 0 | C53: =Summary_Services!C50 -> 0 | D53: =Summary_Services!F50 -> 0 | G53: 0 | J53: =$G53*Summary_Services!Y50 -> 0 | K53: =$G53*Summary_Services!Z50 -> 0 | L53: =$G53*Summary_Services!AA50 -> 0 | M53: =$G53*Summary_Services!AB50 -> 0 | N53: =$G53*Summary_Services!AC50 -> 0 | O53: =$G53*Summary_Services!AD50 -> 0 | Q53: =$H53*Summary_Services!Y50 -> 0 | R53: =$H53*Summary_Services!Z50 -> 0 | S53: =$H53*Summary_Services!AA50 -> 0 | T53: =$H53*Summary_Services!AB50 -> 0 | U53: =$H53*Summary_Services!AC50 -> 0 | V53: =$H53*Summary_Services!AD50 -> 0
A54: 46 | B54: =Summary_Services!B51 -> 0 | C54: =Summary_Services!C51 -> 0 | D54: =Summary_Services!F51 -> 0 | G54: 0 | J54: =$G54*Summary_Services!Y51 -> 0 | K54: =$G54*Summary_Services!Z51 -> 0 | L54: =$G54*Summary_Services!AA51 -> 0 | M54: =$G54*Summary_Services!AB51 -> 0 | N54: =$G54*Summary_Services!AC51 -> 0 | O54: =$G54*Summary_Services!AD51 -> 0 | Q54: =$H54*Summary_Services!Y51 -> 0 | R54: =$H54*Summary_Services!Z51 -> 0 | S54: =$H54*Summary_Services!AA51 -> 0 | T54: =$H54*Summary_Services!AB51 -> 0 | U54: =$H54*Summary_Services!AC51 -> 0 | V54: =$H54*Summary_Services!AD51 -> 0
A55: 47 | B55: =Summary_Services!B52 -> 0 | C55: =Summary_Services!C52 -> 0 | D55: =Summary_Services!F52 -> 0 | G55: 0 | J55: =$G55*Summary_Services!Y52 -> 0 | K55: =$G55*Summary_Services!Z52 -> 0 | L55: =$G55*Summary_Services!AA52 -> 0 | M55: =$G55*Summary_Services!AB52 -> 0 | N55: =$G55*Summary_Services!AC52 -> 0 | O55: =$G55*Summary_Services!AD52 -> 0 | Q55: =$H55*Summary_Services!Y52 -> 0 | R55: =$H55*Summary_Services!Z52 -> 0 | S55: =$H55*Summary_Services!AA52 -> 0 | T55: =$H55*Summary_Services!AB52 -> 0 | U55: =$H55*Summary_Services!AC52 -> 0 | V55: =$H55*Summary_Services!AD52 -> 0
A56: 48 | B56: =Summary_Services!B53 -> 0 | C56: =Summary_Services!C53 -> 0 | D56: =Summary_Services!F53 -> 0 | G56: 0 | J56: =$G56*Summary_Services!Y53 -> 0 | K56: =$G56*Summary_Services!Z53 -> 0 | L56: =$G56*Summary_Services!AA53 -> 0 | M56: =$G56*Summary_Services!AB53 -> 0 | N56: =$G56*Summary_Services!AC53 -> 0 | O56: =$G56*Summary_Services!AD53 -> 0 | Q56: =$H56*Summary_Services!Y53 -> 0 | R56: =$H56*Summary_Services!Z53 -> 0 | S56: =$H56*Summary_Services!AA53 -> 0 | T56: =$H56*Summary_Services!AB53 -> 0 | U56: =$H56*Summary_Services!AC53 -> 0 | V56: =$H56*Summary_Services!AD53 -> 0
A57: 49 | B57: =Summary_Services!B54 -> 0 | C57: =Summary_Services!C54 -> 0 | D57: =Summary_Services!F54 -> 0 | G57: 0 | J57: =$G57*Summary_Services!Y54 -> 0 | K57: =$G57*Summary_Services!Z54 -> 0 | L57: =$G57*Summary_Services!AA54 -> 0 | M57: =$G57*Summary_Services!AB54 -> 0 | N57: =$G57*Summary_Services!AC54 -> 0 | O57: =$G57*Summary_Services!AD54 -> 0 | Q57: =$H57*Summary_Services!Y54 -> 0 | R57: =$H57*Summary_Services!Z54 -> 0 | S57: =$H57*Summary_Services!AA54 -> 0 | T57: =$H57*Summary_Services!AB54 -> 0 | U57: =$H57*Summary_Services!AC54 -> 0 | V57: =$H57*Summary_Services!AD54 -> 0
A58: 50 | B58: =Summary_Services!B55 -> 0 | C58: =Summary_Services!C55 -> 0 | D58: =Summary_Services!F55 -> 0 | G58: 0 | J58: =$G58*Summary_Services!Y55 -> 0 | K58: =$G58*Summary_Services!Z55 -> 0 | L58: =$G58*Summary_Services!AA55 -> 0 | M58: =$G58*Summary_Services!AB55 -> 0 | N58: =$G58*Summary_Services!AC55 -> 0 | O58: =$G58*Summary_Services!AD55 -> 0 | Q58: =$H58*Summary_Services!Y55 -> 0 | R58: =$H58*Summary_Services!Z55 -> 0 | S58: =$H58*Summary_Services!AA55 -> 0 | T58: =$H58*Summary_Services!AB55 -> 0 | U58: =$H58*Summary_Services!AC55 -> 0 | V58: =$H58*Summary_Services!AD55 -> 0
A59: 51 | B59: =Summary_Services!B56 -> 0 | C59: =Summary_Services!C56 -> 0 | D59: =Summary_Services!F56 -> 0 | G59: 0 | J59: =$G59*Summary_Services!Y56 -> 0 | K59: =$G59*Summary_Services!Z56 -> 0 | L59: =$G59*Summary_Services!AA56 -> 0 | M59: =$G59*Summary_Services!AB56 -> 0 | N59: =$G59*Summary_Services!AC56 -> 0 | O59: =$G59*Summary_Services!AD56 -> 0 | Q59: =$H59*Summary_Services!Y56 -> 0 | R59: =$H59*Summary_Services!Z56 -> 0 | S59: =$H59*Summary_Services!AA56 -> 0 | T59: =$H59*Summary_Services!AB56 -> 0 | U59: =$H59*Summary_Services!AC56 -> 0 | V59: =$H59*Summary_Services!AD56 -> 0
A60: 52 | B60: =Summary_Services!B57 -> 0 | C60: =Summary_Services!C57 -> 0 | D60: =Summary_Services!F57 -> 0 | G60: 0 | J60: =$G60*Summary_Services!Y57 -> 0 | K60: =$G60*Summary_Services!Z57 -> 0 | L60: =$G60*Summary_Services!AA57 -> 0 | M60: =$G60*Summary_Services!AB57 -> 0 | N60: =$G60*Summary_Services!AC57 -> 0 | O60: =$G60*Summary_Services!AD57 -> 0 | Q60: =$H60*Summary_Services!Y57 -> 0 | R60: =$H60*Summary_Services!Z57 -> 0 | S60: =$H60*Summary_Services!AA57 -> 0 | T60: =$H60*Summary_Services!AB57 -> 0 | U60: =$H60*Summary_Services!AC57 -> 0 | V60: =$H60*Summary_Services!AD57 -> 0
A61: 53 | B61: =Summary_Services!B58 -> 0 | C61: =Summary_Services!C58 -> 0 | D61: =Summary_Services!F58 -> 0 | G61: 0 | J61: =$G61*Summary_Services!Y58 -> 0 | K61: =$G61*Summary_Services!Z58 -> 0 | L61: =$G61*Summary_Services!AA58 -> 0 | M61: =$G61*Summary_Services!AB58 -> 0 | N61: =$G61*Summary_Services!AC58 -> 0 | O61: =$G61*Summary_Services!AD58 -> 0 | Q61: =$H61*Summary_Services!Y58 -> 0 | R61: =$H61*Summary_Services!Z58 -> 0 | S61: =$H61*Summary_Services!AA58 -> 0 | T61: =$H61*Summary_Services!AB58 -> 0 | U61: =$H61*Summary_Services!AC58 -> 0 | V61: =$H61*Summary_Services!AD58 -> 0
A62: 54 | B62: =Summary_Services!B59 -> 0 | C62: =Summary_Services!C59 -> 0 | D62: =Summary_Services!F59 -> 0 | G62: 0 | J62: =$G62*Summary_Services!Y59 -> 0 | K62: =$G62*Summary_Services!Z59 -> 0 | L62: =$G62*Summary_Services!AA59 -> 0 | M62: =$G62*Summary_Services!AB59 -> 0 | N62: =$G62*Summary_Services!AC59 -> 0 | O62: =$G62*Summary_Services!AD59 -> 0 | Q62: =$H62*Summary_Services!Y59 -> 0 | R62: =$H62*Summary_Services!Z59 -> 0 | S62: =$H62*Summary_Services!AA59 -> 0 | T62: =$H62*Summary_Services!AB59 -> 0 | U62: =$H62*Summary_Services!AC59 -> 0 | V62: =$H62*Summary_Services!AD59 -> 0
A63: 55 | B63: =Summary_Services!B60 -> 0 | C63: =Summary_Services!C60 -> 0 | D63: =Summary_Services!F60 -> 0 | G63: 0 | J63: =$G63*Summary_Services!Y60 -> 0 | K63: =$G63*Summary_Services!Z60 -> 0 | L63: =$G63*Summary_Services!AA60 -> 0 | M63: =$G63*Summary_Services!AB60 -> 0 | N63: =$G63*Summary_Services!AC60 -> 0 | O63: =$G63*Summary_Services!AD60 -> 0 | Q63: =$H63*Summary_Services!Y60 -> 0 | R63: =$H63*Summary_Services!Z60 -> 0 | S63: =$H63*Summary_Services!AA60 -> 0 | T63: =$H63*Summary_Services!AB60 -> 0 | U63: =$H63*Summary_Services!AC60 -> 0 | V63: =$H63*Summary_Services!AD60 -> 0
A64: 56 | B64: =Summary_Services!B61 -> 0 | C64: =Summary_Services!C61 -> 0 | D64: =Summary_Services!F61 -> 0 | G64: 0 | J64: =$G64*Summary_Services!Y61 -> 0 | K64: =$G64*Summary_Services!Z61 -> 0 | L64: =$G64*Summary_Services!AA61 -> 0 | M64: =$G64*Summary_Services!AB61 -> 0 | N64: =$G64*Summary_Services!AC61 -> 0 | O64: =$G64*Summary_Services!AD61 -> 0 | Q64: =$H64*Summary_Services!Y61 -> 0 | R64: =$H64*Summary_Services!Z61 -> 0 | S64: =$H64*Summary_Services!AA61 -> 0 | T64: =$H64*Summary_Services!AB61 -> 0 | U64: =$H64*Summary_Services!AC61 -> 0 | V64: =$H64*Summary_Services!AD61 -> 0
A65: 57 | B65: =Summary_Services!B62 -> 0 | C65: =Summary_Services!C62 -> 0 | D65: =Summary_Services!F62 -> 0 | G65: 0 | J65: =$G65*Summary_Services!Y62 -> 0 | K65: =$G65*Summary_Services!Z62 -> 0 | L65: =$G65*Summary_Services!AA62 -> 0 | M65: =$G65*Summary_Services!AB62 -> 0 | N65: =$G65*Summary_Services!AC62 -> 0 | O65: =$G65*Summary_Services!AD62 -> 0 | Q65: =$H65*Summary_Services!Y62 -> 0 | R65: =$H65*Summary_Services!Z62 -> 0 | S65: =$H65*Summary_Services!AA62 -> 0 | T65: =$H65*Summary_Services!AB62 -> 0 | U65: =$H65*Summary_Services!AC62 -> 0 | V65: =$H65*Summary_Services!AD62 -> 0
A66: 58 | B66: =Summary_Services!B63 -> 0 | C66: =Summary_Services!C63 -> 0 | D66: =Summary_Services!F63 -> 0 | G66: 0 | J66: =$G66*Summary_Services!Y63 -> 0 | K66: =$G66*Summary_Services!Z63 -> 0 | L66: =$G66*Summary_Services!AA63 -> 0 | M66: =$G66*Summary_Services!AB63 -> 0 | N66: =$G66*Summary_Services!AC63 -> 0 | O66: =$G66*Summary_Services!AD63 -> 0 | Q66: =$H66*Summary_Services!Y63 -> 0 | R66: =$H66*Summary_Services!Z63 -> 0 | S66: =$H66*Summary_Services!AA63 -> 0 | T66: =$H66*Summary_Services!AB63 -> 0 | U66: =$H66*Summary_Services!AC63 -> 0 | V66: =$H66*Summary_Services!AD63 -> 0
A67: 59 | B67: =Summary_Services!B64 -> 0 | C67: =Summary_Services!C64 -> 0 | D67: =Summary_Services!F64 -> 0 | G67: 0 | J67: =$G67*Summary_Services!Y64 -> 0 | K67: =$G67*Summary_Services!Z64 -> 0 | L67: =$G67*Summary_Services!AA64 -> 0 | M67: =$G67*Summary_Services!AB64 -> 0 | N67: =$G67*Summary_Services!AC64 -> 0 | O67: =$G67*Summary_Services!AD64 -> 0 | Q67: =$H67*Summary_Services!Y64 -> 0 | R67: =$H67*Summary_Services!Z64 -> 0 | S67: =$H67*Summary_Services!AA64 -> 0 | T67: =$H67*Summary_Services!AB64 -> 0 | U67: =$H67*Summary_Services!AC64 -> 0 | V67: =$H67*Summary_Services!AD64 -> 0
A68: 60 | B68: =Summary_Services!B65 -> 0 | C68: =Summary_Services!C65 -> 0 | D68: =Summary_Services!F65 -> 0 | G68: 0 | J68: =$G68*Summary_Services!Y65 -> 0 | K68: =$G68*Summary_Services!Z65 -> 0 | L68: =$G68*Summary_Services!AA65 -> 0 | M68: =$G68*Summary_Services!AB65 -> 0 | N68: =$G68*Summary_Services!AC65 -> 0 | O68: =$G68*Summary_Services!AD65 -> 0 | Q68: =$H68*Summary_Services!Y65 -> 0 | R68: =$H68*Summary_Services!Z65 -> 0 | S68: =$H68*Summary_Services!AA65 -> 0 | T68: =$H68*Summary_Services!AB65 -> 0 | U68: =$H68*Summary_Services!AC65 -> 0 | V68: =$H68*Summary_Services!AD65 -> 0
A69: 61 | B69: =Summary_Services!B66 -> 0 | C69: =Summary_Services!C66 -> 0 | D69: =Summary_Services!F66 -> 0 | G69: 0 | J69: =$G69*Summary_Services!Y66 -> 0 | K69: =$G69*Summary_Services!Z66 -> 0 | L69: =$G69*Summary_Services!AA66 -> 0 | M69: =$G69*Summary_Services!AB66 -> 0 | N69: =$G69*Summary_Services!AC66 -> 0 | O69: =$G69*Summary_Services!AD66 -> 0 | Q69: =$H69*Summary_Services!Y66 -> 0 | R69: =$H69*Summary_Services!Z66 -> 0 | S69: =$H69*Summary_Services!AA66 -> 0 | T69: =$H69*Summary_Services!AB66 -> 0 | U69: =$H69*Summary_Services!AC66 -> 0 | V69: =$H69*Summary_Services!AD66 -> 0
A70: 62 | B70: =Summary_Services!B67 -> 0 | C70: =Summary_Services!C67 -> 0 | D70: =Summary_Services!F67 -> 0 | G70: 0 | J70: =$G70*Summary_Services!Y67 -> 0 | K70: =$G70*Summary_Services!Z67 -> 0 | L70: =$G70*Summary_Services!AA67 -> 0 | M70: =$G70*Summary_Services!AB67 -> 0 | N70: =$G70*Summary_Services!AC67 -> 0 | O70: =$G70*Summary_Services!AD67 -> 0 | Q70: =$H70*Summary_Services!Y67 -> 0 | R70: =$H70*Summary_Services!Z67 -> 0 | S70: =$H70*Summary_Services!AA67 -> 0 | T70: =$H70*Summary_Services!AB67 -> 0 | U70: =$H70*Summary_Services!AC67 -> 0 | V70: =$H70*Summary_Services!AD67 -> 0
A71: 63 | B71: =Summary_Services!B68 -> 0 | C71: =Summary_Services!C68 -> 0 | D71: =Summary_Services!F68 -> 0 | G71: 0 | J71: =$G71*Summary_Services!Y68 -> 0 | K71: =$G71*Summary_Services!Z68 -> 0 | L71: =$G71*Summary_Services!AA68 -> 0 | M71: =$G71*Summary_Services!AB68 -> 0 | N71: =$G71*Summary_Services!AC68 -> 0 | O71: =$G71*Summary_Services!AD68 -> 0 | Q71: =$H71*Summary_Services!Y68 -> 0 | R71: =$H71*Summary_Services!Z68 -> 0 | S71: =$H71*Summary_Services!AA68 -> 0 | T71: =$H71*Summary_Services!AB68 -> 0 | U71: =$H71*Summary_Services!AC68 -> 0 | V71: =$H71*Summary_Services!AD68 -> 0
A72: 64 | B72: =Summary_Services!B69 -> 0 | C72: =Summary_Services!C69 -> 0 | D72: =Summary_Services!F69 -> 0 | G72: 0 | J72: =$G72*Summary_Services!Y69 -> 0 | K72: =$G72*Summary_Services!Z69 -> 0 | L72: =$G72*Summary_Services!AA69 -> 0 | M72: =$G72*Summary_Services!AB69 -> 0 | N72: =$G72*Summary_Services!AC69 -> 0 | O72: =$G72*Summary_Services!AD69 -> 0 | Q72: =$H72*Summary_Services!Y69 -> 0 | R72: =$H72*Summary_Services!Z69 -> 0 | S72: =$H72*Summary_Services!AA69 -> 0 | T72: =$H72*Summary_Services!AB69 -> 0 | U72: =$H72*Summary_Services!AC69 -> 0 | V72: =$H72*Summary_Services!AD69 -> 0
A73: 65 | B73: =Summary_Services!B70 -> 0 | C73: =Summary_Services!C70 -> 0 | D73: =Summary_Services!F70 -> 0 | G73: 0 | J73: =$G73*Summary_Services!Y70 -> 0 | K73: =$G73*Summary_Services!Z70 -> 0 | L73: =$G73*Summary_Services!AA70 -> 0 | M73: =$G73*Summary_Services!AB70 -> 0 | N73: =$G73*Summary_Services!AC70 -> 0 | O73: =$G73*Summary_Services!AD70 -> 0 | Q73: =$H73*Summary_Services!Y70 -> 0 | R73: =$H73*Summary_Services!Z70 -> 0 | S73: =$H73*Summary_Services!AA70 -> 0 | T73: =$H73*Summary_Services!AB70 -> 0 | U73: =$H73*Summary_Services!AC70 -> 0 | V73: =$H73*Summary_Services!AD70 -> 0
A74: 66 | B74: =Summary_Services!B71 -> 0 | C74: =Summary_Services!C71 -> 0 | D74: =Summary_Services!F71 -> 0 | G74: =IF(F74="Minutes",E74,IF(F74="Hours",E74*60,IF(F74="Days",E74*60*8,0))) -> 0 | J74: =$G74*Summary_Services!Y71 -> 0 | K74: =$G74*Summary_Services!Z71 -> 0 | L74: =$G74*Summary_Services!AA71 -> 0 | M74: =$G74*Summary_Services!AB71 -> 0 | N74: =$G74*Summary_Services!AC71 -> 0 | O74: =$G74*Summary_Services!AD71 -> 0 | Q74: =$H74*Summary_Services!Y71 -> 0 | R74: =$H74*Summary_Services!Z71 -> 0 | S74: =$H74*Summary_Services!AA71 -> 0 | T74: =$H74*Summary_Services!AB71 -> 0 | U74: =$H74*Summary_Services!AC71 -> 0 | V74: =$H74*Summary_Services!AD71 -> 0
A75: 67 | B75: =Summary_Services!B72 -> 0 | C75: =Summary_Services!C72 -> 0 | D75: =Summary_Services!F72 -> 0 | G75: 0 | J75: =$G75*Summary_Services!Y72 -> 0 | K75: =$G75*Summary_Services!Z72 -> 0 | L75: =$G75*Summary_Services!AA72 -> 0 | M75: =$G75*Summary_Services!AB72 -> 0 | N75: =$G75*Summary_Services!AC72 -> 0 | O75: =$G75*Summary_Services!AD72 -> 0 | Q75: =$H75*Summary_Services!Y72 -> 0 | R75: =$H75*Summary_Services!Z72 -> 0 | S75: =$H75*Summary_Services!AA72 -> 0 | T75: =$H75*Summary_Services!AB72 -> 0 | U75: =$H75*Summary_Services!AC72 -> 0 | V75: =$H75*Summary_Services!AD72 -> 0
A76: 68 | B76: =Summary_Services!B73 -> 0 | C76: =Summary_Services!C73 -> 0 | D76: =Summary_Services!F73 -> 0 | G76: 0 | J76: =$G76*Summary_Services!Y73 -> 0 | K76: =$G76*Summary_Services!Z73 -> 0 | L76: =$G76*Summary_Services!AA73 -> 0 | M76: =$G76*Summary_Services!AB73 -> 0 | N76: =$G76*Summary_Services!AC73 -> 0 | O76: =$G76*Summary_Services!AD73 -> 0 | Q76: =$H76*Summary_Services!Y73 -> 0 | R76: =$H76*Summary_Services!Z73 -> 0 | S76: =$H76*Summary_Services!AA73 -> 0 | T76: =$H76*Summary_Services!AB73 -> 0 | U76: =$H76*Summary_Services!AC73 -> 0 | V76: =$H76*Summary_Services!AD73 -> 0
A77: 69 | B77: =Summary_Services!B74 -> 0 | C77: =Summary_Services!C74 -> 0 | D77: =Summary_Services!F74 -> 0 | G77: 0 | J77: =$G77*Summary_Services!Y74 -> 0 | K77: =$G77*Summary_Services!Z74 -> 0 | L77: =$G77*Summary_Services!AA74 -> 0 | M77: =$G77*Summary_Services!AB74 -> 0 | N77: =$G77*Summary_Services!AC74 -> 0 | O77: =$G77*Summary_Services!AD74 -> 0 | Q77: =$H77*Summary_Services!Y74 -> 0 | R77: =$H77*Summary_Services!Z74 -> 0 | S77: =$H77*Summary_Services!AA74 -> 0 | T77: =$H77*Summary_Services!AB74 -> 0 | U77: =$H77*Summary_Services!AC74 -> 0 | V77: =$H77*Summary_Services!AD74 -> 0
A78: 70 | B78: =Summary_Services!B75 -> 0 | C78: =Summary_Services!C75 -> 0 | D78: =Summary_Services!F75 -> 0 | G78: 0 | J78: =$G78*Summary_Services!Y75 -> 0 | K78: =$G78*Summary_Services!Z75 -> 0 | L78: =$G78*Summary_Services!AA75 -> 0 | M78: =$G78*Summary_Services!AB75 -> 0 | N78: =$G78*Summary_Services!AC75 -> 0 | O78: =$G78*Summary_Services!AD75 -> 0 | Q78: =$H78*Summary_Services!Y75 -> 0 | R78: =$H78*Summary_Services!Z75 -> 0 | S78: =$H78*Summary_Services!AA75 -> 0 | T78: =$H78*Summary_Services!AB75 -> 0 | U78: =$H78*Summary_Services!AC75 -> 0 | V78: =$H78*Summary_Services!AD75 -> 0
A79: 71 | B79: =Summary_Services!B76 -> 0 | C79: =Summary_Services!C76 -> 0 | D79: =Summary_Services!F76 -> 0 | G79: 0 | J79: =$G79*Summary_Services!Y76 -> 0 | K79: =$G79*Summary_Services!Z76 -> 0 | L79: =$G79*Summary_Services!AA76 -> 0 | M79: =$G79*Summary_Services!AB76 -> 0 | N79: =$G79*Summary_Services!AC76 -> 0 | O79: =$G79*Summary_Services!AD76 -> 0 | Q79: =$H79*Summary_Services!Y76 -> 0 | R79: =$H79*Summary_Services!Z76 -> 0 | S79: =$H79*Summary_Services!AA76 -> 0 | T79: =$H79*Summary_Services!AB76 -> 0 | U79: =$H79*Summary_Services!AC76 -> 0 | V79: =$H79*Summary_Services!AD76 -> 0
A80: 72 | B80: =Summary_Services!B77 -> 0 | C80: =Summary_Services!C77 -> 0 | D80: =Summary_Services!F77 -> 0 | G80: 0 | J80: =$G80*Summary_Services!Y77 -> 0 | K80: =$G80*Summary_Services!Z77 -> 0 | L80: =$G80*Summary_Services!AA77 -> 0 | M80: =$G80*Summary_Services!AB77 -> 0 | N80: =$G80*Summary_Services!AC77 -> 0 | O80: =$G80*Summary_Services!AD77 -> 0 | Q80: =$H80*Summary_Services!Y77 -> 0 | R80: =$H80*Summary_Services!Z77 -> 0 | S80: =$H80*Summary_Services!AA77 -> 0 | T80: =$H80*Summary_Services!AB77 -> 0 | U80: =$H80*Summary_Services!AC77 -> 0 | V80: =$H80*Summary_Services!AD77 -> 0
A81: 73 | B81: =Summary_Services!B78 -> 0 | C81: =Summary_Services!C78 -> 0 | D81: =Summary_Services!F78 -> 0 | G81: 0 | J81: =$G81*Summary_Services!Y78 -> 0 | K81: =$G81*Summary_Services!Z78 -> 0 | L81: =$G81*Summary_Services!AA78 -> 0 | M81: =$G81*Summary_Services!AB78 -> 0 | N81: =$G81*Summary_Services!AC78 -> 0 | O81: =$G81*Summary_Services!AD78 -> 0 | Q81: =$H81*Summary_Services!Y78 -> 0 | R81: =$H81*Summary_Services!Z78 -> 0 | S81: =$H81*Summary_Services!AA78 -> 0 | T81: =$H81*Summary_Services!AB78 -> 0 | U81: =$H81*Summary_Services!AC78 -> 0 | V81: =$H81*Summary_Services!AD78 -> 0
A82: 74 | B82: =Summary_Services!B79 -> 0 | C82: =Summary_Services!C79 -> 0 | D82: =Summary_Services!F79 -> 0 | G82: 0 | J82: =$G82*Summary_Services!Y79 -> 0 | K82: =$G82*Summary_Services!Z79 -> 0 | L82: =$G82*Summary_Services!AA79 -> 0 | M82: =$G82*Summary_Services!AB79 -> 0 | N82: =$G82*Summary_Services!AC79 -> 0 | O82: =$G82*Summary_Services!AD79 -> 0 | Q82: =$H82*Summary_Services!Y79 -> 0 | R82: =$H82*Summary_Services!Z79 -> 0 | S82: =$H82*Summary_Services!AA79 -> 0 | T82: =$H82*Summary_Services!AB79 -> 0 | U82: =$H82*Summary_Services!AC79 -> 0 | V82: =$H82*Summary_Services!AD79 -> 0
A83: 75 | B83: =Summary_Services!B80 -> 0 | C83: =Summary_Services!C80 -> 0 | D83: =Summary_Services!F80 -> 0 | G83: 0 | J83: =$G83*Summary_Services!Y80 -> 0 | K83: =$G83*Summary_Services!Z80 -> 0 | L83: =$G83*Summary_Services!AA80 -> 0 | M83: =$G83*Summary_Services!AB80 -> 0 | N83: =$G83*Summary_Services!AC80 -> 0 | O83: =$G83*Summary_Services!AD80 -> 0 | Q83: =$H83*Summary_Services!Y80 -> 0 | R83: =$H83*Summary_Services!Z80 -> 0 | S83: =$H83*Summary_Services!AA80 -> 0 | T83: =$H83*Summary_Services!AB80 -> 0 | U83: =$H83*Summary_Services!AC80 -> 0 | V83: =$H83*Summary_Services!AD80 -> 0
A84: 76 | B84: =Summary_Services!B81 -> 0 | C84: =Summary_Services!C81 -> 0 | D84: =Summary_Services!F81 -> 0 | G84: 0 | J84: =$G84*Summary_Services!Y81 -> 0 | K84: =$G84*Summary_Services!Z81 -> 0 | L84: =$G84*Summary_Services!AA81 -> 0 | M84: =$G84*Summary_Services!AB81 -> 0 | N84: =$G84*Summary_Services!AC81 -> 0 | O84: =$G84*Summary_Services!AD81 -> 0 | Q84: =$H84*Summary_Services!Y81 -> 0 | R84: =$H84*Summary_Services!Z81 -> 0 | S84: =$H84*Summary_Services!AA81 -> 0 | T84: =$H84*Summary_Services!AB81 -> 0 | U84: =$H84*Summary_Services!AC81 -> 0 | V84: =$H84*Summary_Services!AD81 -> 0
A85: 77 | B85: =Summary_Services!B82 -> 0 | C85: =Summary_Services!C82 -> 0 | D85: =Summary_Services!F82 -> 0 | G85: 0 | J85: =$G85*Summary_Services!Y82 -> 0 | K85: =$G85*Summary_Services!Z82 -> 0 | L85: =$G85*Summary_Services!AA82 -> 0 | M85: =$G85*Summary_Services!AB82 -> 0 | N85: =$G85*Summary_Services!AC82 -> 0 | O85: =$G85*Summary_Services!AD82 -> 0 | Q85: =$H85*Summary_Services!Y82 -> 0 | R85: =$H85*Summary_Services!Z82 -> 0 | S85: =$H85*Summary_Services!AA82 -> 0 | T85: =$H85*Summary_Services!AB82 -> 0 | U85: =$H85*Summary_Services!AC82 -> 0 | V85: =$H85*Summary_Services!AD82 -> 0
A86: 78 | B86: =Summary_Services!B83 -> 0 | C86: =Summary_Services!C83 -> 0 | D86: =Summary_Services!F83 -> 0 | G86: 0 | J86: =$G86*Summary_Services!Y83 -> 0 | K86: =$G86*Summary_Services!Z83 -> 0 | L86: =$G86*Summary_Services!AA83 -> 0 | M86: =$G86*Summary_Services!AB83 -> 0 | N86: =$G86*Summary_Services!AC83 -> 0 | O86: =$G86*Summary_Services!AD83 -> 0 | Q86: =$H86*Summary_Services!Y83 -> 0 | R86: =$H86*Summary_Services!Z83 -> 0 | S86: =$H86*Summary_Services!AA83 -> 0 | T86: =$H86*Summary_Services!AB83 -> 0 | U86: =$H86*Summary_Services!AC83 -> 0 | V86: =$H86*Summary_Services!AD83 -> 0
A87: 79 | B87: =Summary_Services!B84 -> 0 | C87: =Summary_Services!C84 -> 0 | D87: =Summary_Services!F84 -> 0 | G87: 0 | J87: =$G87*Summary_Services!Y84 -> 0 | K87: =$G87*Summary_Services!Z84 -> 0 | L87: =$G87*Summary_Services!AA84 -> 0 | M87: =$G87*Summary_Services!AB84 -> 0 | N87: =$G87*Summary_Services!AC84 -> 0 | O87: =$G87*Summary_Services!AD84 -> 0 | Q87: =$H87*Summary_Services!Y84 -> 0 | R87: =$H87*Summary_Services!Z84 -> 0 | S87: =$H87*Summary_Services!AA84 -> 0 | T87: =$H87*Summary_Services!AB84 -> 0 | U87: =$H87*Summary_Services!AC84 -> 0 | V87: =$H87*Summary_Services!AD84 -> 0
A88: 80 | B88: =Summary_Services!B85 -> 0 | C88: =Summary_Services!C85 -> 0 | D88: =Summary_Services!F85 -> 0 | G88: 0 | J88: =$G88*Summary_Services!Y85 -> 0 | K88: =$G88*Summary_Services!Z85 -> 0 | L88: =$G88*Summary_Services!AA85 -> 0 | M88: =$G88*Summary_Services!AB85 -> 0 | N88: =$G88*Summary_Services!AC85 -> 0 | O88: =$G88*Summary_Services!AD85 -> 0 | Q88: =$H88*Summary_Services!Y85 -> 0 | R88: =$H88*Summary_Services!Z85 -> 0 | S88: =$H88*Summary_Services!AA85 -> 0 | T88: =$H88*Summary_Services!AB85 -> 0 | U88: =$H88*Summary_Services!AC85 -> 0 | V88: =$H88*Summary_Services!AD85 -> 0
A89: 81 | B89: =Summary_Services!B86 -> 0 | C89: =Summary_Services!C86 -> 0 | D89: =Summary_Services!F86 -> 0 | G89: 0 | J89: =$G89*Summary_Services!Y86 -> 0 | K89: =$G89*Summary_Services!Z86 -> 0 | L89: =$G89*Summary_Services!AA86 -> 0 | M89: =$G89*Summary_Services!AB86 -> 0 | N89: =$G89*Summary_Services!AC86 -> 0 | O89: =$G89*Summary_Services!AD86 -> 0 | Q89: =$H89*Summary_Services!Y86 -> 0 | R89: =$H89*Summary_Services!Z86 -> 0 | S89: =$H89*Summary_Services!AA86 -> 0 | T89: =$H89*Summary_Services!AB86 -> 0 | U89: =$H89*Summary_Services!AC86 -> 0 | V89: =$H89*Summary_Services!AD86 -> 0
A90: 82 | B90: =Summary_Services!B87 -> 0 | C90: =Summary_Services!C87 -> 0 | D90: =Summary_Services!F87 -> 0 | G90: 0 | J90: =$G90*Summary_Services!Y87 -> 0 | K90: =$G90*Summary_Services!Z87 -> 0 | L90: =$G90*Summary_Services!AA87 -> 0 | M90: =$G90*Summary_Services!AB87 -> 0 | N90: =$G90*Summary_Services!AC87 -> 0 | O90: =$G90*Summary_Services!AD87 -> 0 | Q90: =$H90*Summary_Services!Y87 -> 0 | R90: =$H90*Summary_Services!Z87 -> 0 | S90: =$H90*Summary_Services!AA87 -> 0 | T90: =$H90*Summary_Services!AB87 -> 0 | U90: =$H90*Summary_Services!AC87 -> 0 | V90: =$H90*Summary_Services!AD87 -> 0
A91: 83 | B91: =Summary_Services!B88 -> 0 | C91: =Summary_Services!C88 -> 0 | D91: =Summary_Services!F88 -> 0 | G91: 0 | J91: =$G91*Summary_Services!Y88 -> 0 | K91: =$G91*Summary_Services!Z88 -> 0 | L91: =$G91*Summary_Services!AA88 -> 0 | M91: =$G91*Summary_Services!AB88 -> 0 | N91: =$G91*Summary_Services!AC88 -> 0 | O91: =$G91*Summary_Services!AD88 -> 0 | Q91: =$H91*Summary_Services!Y88 -> 0 | R91: =$H91*Summary_Services!Z88 -> 0 | S91: =$H91*Summary_Services!AA88 -> 0 | T91: =$H91*Summary_Services!AB88 -> 0 | U91: =$H91*Summary_Services!AC88 -> 0 | V91: =$H91*Summary_Services!AD88 -> 0
A92: 84 | B92: =Summary_Services!B89 -> 0 | C92: =Summary_Services!C89 -> 0 | D92: =Summary_Services!F89 -> 0 | G92: 0 | J92: =$G92*Summary_Services!Y89 -> 0 | K92: =$G92*Summary_Services!Z89 -> 0 | L92: =$G92*Summary_Services!AA89 -> 0 | M92: =$G92*Summary_Services!AB89 -> 0 | N92: =$G92*Summary_Services!AC89 -> 0 | O92: =$G92*Summary_Services!AD89 -> 0 | Q92: =$H92*Summary_Services!Y89 -> 0 | R92: =$H92*Summary_Services!Z89 -> 0 | S92: =$H92*Summary_Services!AA89 -> 0 | T92: =$H92*Summary_Services!AB89 -> 0 | U92: =$H92*Summary_Services!AC89 -> 0 | V92: =$H92*Summary_Services!AD89 -> 0
A93: 85 | B93: =Summary_Services!B90 -> 0 | C93: =Summary_Services!C90 -> 0 | D93: =Summary_Services!F90 -> 0 | G93: 0 | J93: =$G93*Summary_Services!Y90 -> 0 | K93: =$G93*Summary_Services!Z90 -> 0 | L93: =$G93*Summary_Services!AA90 -> 0 | M93: =$G93*Summary_Services!AB90 -> 0 | N93: =$G93*Summary_Services!AC90 -> 0 | O93: =$G93*Summary_Services!AD90 -> 0 | Q93: =$H93*Summary_Services!Y90 -> 0 | R93: =$H93*Summary_Services!Z90 -> 0 | S93: =$H93*Summary_Services!AA90 -> 0 | T93: =$H93*Summary_Services!AB90 -> 0 | U93: =$H93*Summary_Services!AC90 -> 0 | V93: =$H93*Summary_Services!AD90 -> 0
A94: 86 | B94: =Summary_Services!B91 -> 0 | C94: =Summary_Services!C91 -> 0 | D94: =Summary_Services!F91 -> 0 | G94: 0 | J94: =$G94*Summary_Services!Y91 -> 0 | K94: =$G94*Summary_Services!Z91 -> 0 | L94: =$G94*Summary_Services!AA91 -> 0 | M94: =$G94*Summary_Services!AB91 -> 0 | N94: =$G94*Summary_Services!AC91 -> 0 | O94: =$G94*Summary_Services!AD91 -> 0 | Q94: =$H94*Summary_Services!Y91 -> 0 | R94: =$H94*Summary_Services!Z91 -> 0 | S94: =$H94*Summary_Services!AA91 -> 0 | T94: =$H94*Summary_Services!AB91 -> 0 | U94: =$H94*Summary_Services!AC91 -> 0 | V94: =$H94*Summary_Services!AD91 -> 0
A95: 87 | B95: =Summary_Services!B92 -> 0 | C95: =Summary_Services!C92 -> 0 | D95: =Summary_Services!F92 -> 0 | G95: 0 | J95: =$G95*Summary_Services!Y92 -> 0 | K95: =$G95*Summary_Services!Z92 -> 0 | L95: =$G95*Summary_Services!AA92 -> 0 | M95: =$G95*Summary_Services!AB92 -> 0 | N95: =$G95*Summary_Services!AC92 -> 0 | O95: =$G95*Summary_Services!AD92 -> 0 | Q95: =$H95*Summary_Services!Y92 -> 0 | R95: =$H95*Summary_Services!Z92 -> 0 | S95: =$H95*Summary_Services!AA92 -> 0 | T95: =$H95*Summary_Services!AB92 -> 0 | U95: =$H95*Summary_Services!AC92 -> 0 | V95: =$H95*Summary_Services!AD92 -> 0
A96: 88 | B96: =Summary_Services!B93 -> 0 | C96: =Summary_Services!C93 -> 0 | D96: =Summary_Services!F93 -> 0 | G96: 0 | J96: =$G96*Summary_Services!Y93 -> 0 | K96: =$G96*Summary_Services!Z93 -> 0 | L96: =$G96*Summary_Services!AA93 -> 0 | M96: =$G96*Summary_Services!AB93 -> 0 | N96: =$G96*Summary_Services!AC93 -> 0 | O96: =$G96*Summary_Services!AD93 -> 0 | Q96: =$H96*Summary_Services!Y93 -> 0 | R96: =$H96*Summary_Services!Z93 -> 0 | S96: =$H96*Summary_Services!AA93 -> 0 | T96: =$H96*Summary_Services!AB93 -> 0 | U96: =$H96*Summary_Services!AC93 -> 0 | V96: =$H96*Summary_Services!AD93 -> 0
A97: 89 | B97: =Summary_Services!B94 -> 0 | C97: =Summary_Services!C94 -> 0 | D97: =Summary_Services!F94 -> 0 | G97: 0 | J97: =$G97*Summary_Services!Y94 -> 0 | K97: =$G97*Summary_Services!Z94 -> 0 | L97: =$G97*Summary_Services!AA94 -> 0 | M97: =$G97*Summary_Services!AB94 -> 0 | N97: =$G97*Summary_Services!AC94 -> 0 | O97: =$G97*Summary_Services!AD94 -> 0 | Q97: =$H97*Summary_Services!Y94 -> 0 | R97: =$H97*Summary_Services!Z94 -> 0 | S97: =$H97*Summary_Services!AA94 -> 0 | T97: =$H97*Summary_Services!AB94 -> 0 | U97: =$H97*Summary_Services!AC94 -> 0 | V97: =$H97*Summary_Services!AD94 -> 0
A98: 90 | B98: =Summary_Services!B95 -> 0 | C98: =Summary_Services!C95 -> 0 | D98: =Summary_Services!F95 -> 0 | G98: 0 | J98: =$G98*Summary_Services!Y95 -> 0 | K98: =$G98*Summary_Services!Z95 -> 0 | L98: =$G98*Summary_Services!AA95 -> 0 | M98: =$G98*Summary_Services!AB95 -> 0 | N98: =$G98*Summary_Services!AC95 -> 0 | O98: =$G98*Summary_Services!AD95 -> 0 | Q98: =$H98*Summary_Services!Y95 -> 0 | R98: =$H98*Summary_Services!Z95 -> 0 | S98: =$H98*Summary_Services!AA95 -> 0 | T98: =$H98*Summary_Services!AB95 -> 0 | U98: =$H98*Summary_Services!AC95 -> 0 | V98: =$H98*Summary_Services!AD95 -> 0
A99: 91 | B99: =Summary_Services!B96 -> 0 | C99: =Summary_Services!C96 -> 0 | D99: =Summary_Services!F96 -> 0 | G99: 0 | J99: =$G99*Summary_Services!Y96 -> 0 | K99: =$G99*Summary_Services!Z96 -> 0 | L99: =$G99*Summary_Services!AA96 -> 0 | M99: =$G99*Summary_Services!AB96 -> 0 | N99: =$G99*Summary_Services!AC96 -> 0 | O99: =$G99*Summary_Services!AD96 -> 0 | Q99: =$H99*Summary_Services!Y96 -> 0 | R99: =$H99*Summary_Services!Z96 -> 0 | S99: =$H99*Summary_Services!AA96 -> 0 | T99: =$H99*Summary_Services!AB96 -> 0 | U99: =$H99*Summary_Services!AC96 -> 0 | V99: =$H99*Summary_Services!AD96 -> 0
A100: 92 | B100: =Summary_Services!B97 -> 0 | C100: =Summary_Services!C97 -> 0 | D100: =Summary_Services!F97 -> 0 | G100: 0 | J100: =$G100*Summary_Services!Y97 -> 0 | K100: =$G100*Summary_Services!Z97 -> 0 | L100: =$G100*Summary_Services!AA97 -> 0 | M100: =$G100*Summary_Services!AB97 -> 0 | N100: =$G100*Summary_Services!AC97 -> 0 | O100: =$G100*Summary_Services!AD97 -> 0 | Q100: =$H100*Summary_Services!Y97 -> 0 | R100: =$H100*Summary_Services!Z97 -> 0 | S100: =$H100*Summary_Services!AA97 -> 0 | T100: =$H100*Summary_Services!AB97 -> 0 | U100: =$H100*Summary_Services!AC97 -> 0 | V100: =$H100*Summary_Services!AD97 -> 0
A101: 93 | B101: =Summary_Services!B98 -> 0 | C101: =Summary_Services!C98 -> 0 | D101: =Summary_Services!F98 -> 0 | G101: 0 | J101: =$G101*Summary_Services!Y98 -> 0 | K101: =$G101*Summary_Services!Z98 -> 0 | L101: =$G101*Summary_Services!AA98 -> 0 | M101: =$G101*Summary_Services!AB98 -> 0 | N101: =$G101*Summary_Services!AC98 -> 0 | O101: =$G101*Summary_Services!AD98 -> 0 | Q101: =$H101*Summary_Services!Y98 -> 0 | R101: =$H101*Summary_Services!Z98 -> 0 | S101: =$H101*Summary_Services!AA98 -> 0 | T101: =$H101*Summary_Services!AB98 -> 0 | U101: =$H101*Summary_Services!AC98 -> 0 | V101: =$H101*Summary_Services!AD98 -> 0
A102: 94 | B102: =Summary_Services!B99 -> 0 | C102: =Summary_Services!C99 -> 0 | D102: =Summary_Services!F99 -> 0 | G102: 0 | J102: =$G102*Summary_Services!Y99 -> 0 | K102: =$G102*Summary_Services!Z99 -> 0 | L102: =$G102*Summary_Services!AA99 -> 0 | M102: =$G102*Summary_Services!AB99 -> 0 | N102: =$G102*Summary_Services!AC99 -> 0 | O102: =$G102*Summary_Services!AD99 -> 0 | Q102: =$H102*Summary_Services!Y99 -> 0 | R102: =$H102*Summary_Services!Z99 -> 0 | S102: =$H102*Summary_Services!AA99 -> 0 | T102: =$H102*Summary_Services!AB99 -> 0 | U102: =$H102*Summary_Services!AC99 -> 0 | V102: =$H102*Summary_Services!AD99 -> 0
A103: 95 | B103: =Summary_Services!B100 -> 0 | C103: =Summary_Services!C100 -> 0 | D103: =Summary_Services!F100 -> 0 | G103: 0 | J103: =$G103*Summary_Services!Y100 -> 0 | K103: =$G103*Summary_Services!Z100 -> 0 | L103: =$G103*Summary_Services!AA100 -> 0 | M103: =$G103*Summary_Services!AB100 -> 0 | N103: =$G103*Summary_Services!AC100 -> 0 | O103: =$G103*Summary_Services!AD100 -> 0 | Q103: =$H103*Summary_Services!Y100 -> 0 | R103: =$H103*Summary_Services!Z100 -> 0 | S103: =$H103*Summary_Services!AA100 -> 0 | T103: =$H103*Summary_Services!AB100 -> 0 | U103: =$H103*Summary_Services!AC100 -> 0 | V103: =$H103*Summary_Services!AD100 -> 0
A104: 96 | B104: =Summary_Services!B101 -> 0 | C104: =Summary_Services!C101 -> 0 | D104: =Summary_Services!F101 -> 0 | G104: 0 | J104: =$G104*Summary_Services!Y101 -> 0 | K104: =$G104*Summary_Services!Z101 -> 0 | L104: =$G104*Summary_Services!AA101 -> 0 | M104: =$G104*Summary_Services!AB101 -> 0 | N104: =$G104*Summary_Services!AC101 -> 0 | O104: =$G104*Summary_Services!AD101 -> 0 | Q104: =$H104*Summary_Services!Y101 -> 0 | R104: =$H104*Summary_Services!Z101 -> 0 | S104: =$H104*Summary_Services!AA101 -> 0 | T104: =$H104*Summary_Services!AB101 -> 0 | U104: =$H104*Summary_Services!AC101 -> 0 | V104: =$H104*Summary_Services!AD101 -> 0
A105: 97 | B105: =Summary_Services!B102 -> 0 | C105: =Summary_Services!C102 -> 0 | D105: =Summary_Services!F102 -> 0 | G105: 0 | J105: =$G105*Summary_Services!Y102 -> 0 | K105: =$G105*Summary_Services!Z102 -> 0 | L105: =$G105*Summary_Services!AA102 -> 0 | M105: =$G105*Summary_Services!AB102 -> 0 | N105: =$G105*Summary_Services!AC102 -> 0 | O105: =$G105*Summary_Services!AD102 -> 0 | Q105: =$H105*Summary_Services!Y102 -> 0 | R105: =$H105*Summary_Services!Z102 -> 0 | S105: =$H105*Summary_Services!AA102 -> 0 | T105: =$H105*Summary_Services!AB102 -> 0 | U105: =$H105*Summary_Services!AC102 -> 0 | V105: =$H105*Summary_Services!AD102 -> 0
A106: 98 | B106: =Summary_Services!B103 -> 0 | C106: =Summary_Services!C103 -> 0 | D106: =Summary_Services!F103 -> 0 | G106: 0 | J106: =$G106*Summary_Services!Y103 -> 0 | K106: =$G106*Summary_Services!Z103 -> 0 | L106: =$G106*Summary_Services!AA103 -> 0 | M106: =$G106*Summary_Services!AB103 -> 0 | N106: =$G106*Summary_Services!AC103 -> 0 | O106: =$G106*Summary_Services!AD103 -> 0 | Q106: =$H106*Summary_Services!Y103 -> 0 | R106: =$H106*Summary_Services!Z103 -> 0 | S106: =$H106*Summary_Services!AA103 -> 0 | T106: =$H106*Summary_Services!AB103 -> 0 | U106: =$H106*Summary_Services!AC103 -> 0 | V106: =$H106*Summary_Services!AD103 -> 0
A107: 99 | B107: =Summary_Services!B104 -> 0 | C107: =Summary_Services!C104 -> 0 | D107: =Summary_Services!F104 -> 0 | G107: 0 | J107: =$G107*Summary_Services!Y104 -> 0 | K107: =$G107*Summary_Services!Z104 -> 0 | L107: =$G107*Summary_Services!AA104 -> 0 | M107: =$G107*Summary_Services!AB104 -> 0 | N107: =$G107*Summary_Services!AC104 -> 0 | O107: =$G107*Summary_Services!AD104 -> 0 | Q107: =$H107*Summary_Services!Y104 -> 0 | R107: =$H107*Summary_Services!Z104 -> 0 | S107: =$H107*Summary_Services!AA104 -> 0 | T107: =$H107*Summary_Services!AB104 -> 0 | U107: =$H107*Summary_Services!AC104 -> 0 | V107: =$H107*Summary_Services!AD104 -> 0
A108: 100 | B108: =Summary_Services!B105 -> 0 | C108: =Summary_Services!C105 -> 0 | D108: =Summary_Services!F105 -> 0 | G108: 0 | J108: =$G108*Summary_Services!Y105 -> 0 | K108: =$G108*Summary_Services!Z105 -> 0 | L108: =$G108*Summary_Services!AA105 -> 0 | M108: =$G108*Summary_Services!AB105 -> 0 | N108: =$G108*Summary_Services!AC105 -> 0 | O108: =$G108*Summary_Services!AD105 -> 0 | Q108: =$H108*Summary_Services!Y105 -> 0 | R108: =$H108*Summary_Services!Z105 -> 0 | S108: =$H108*Summary_Services!AA105 -> 0 | T108: =$H108*Summary_Services!AB105 -> 0 | U108: =$H108*Summary_Services!AC105 -> 0 | V108: =$H108*Summary_Services!AD105 -> 0

Sheet Demography (hidden)
A1: DERMOGRAPHY
A2: South Africa
C4: =baseline_year -> 2021 | D4: =baseline_year+1 -> 2022 | E4: =D4+1 -> 2023 | F4: =E4+1 -> 2024 | G4: =F4+1 -> 2025 | H4: =G4+1 -> 2026
J5: Use default age categories? (From UN Database, see Annex 2) | K5: Yes
B6: Total Population (National) | C6: =national_pop -> 59308690 | D6: =C6*(1+C8) -> 60097495.58 | E6: =D6*(1+D8) -> 60896792.27 | F6: =E6*(1+E8) -> 61706719.61 | G6: =F6*(1+F8) -> 62527418.98 | H6: =G6*(1+G8) -> 63359033.65
B7: ="Total Population of "&selected_country -> Total Population of South Africa | C7: =national_pop -> 59308690 | D7: =IF(scaleup="Y",'Scale-up'!D7,C7*(1+national_pop_growth)) -> 60097495.58 | E7: =IF(scaleup="Y",'Scale-up'!E7,D7*(1+national_pop_growth)) -> 60896792.27 | F7: =IF(scaleup="Y",'Scale-up'!F7,E7*(1+national_pop_growth)) -> 61706719.61 | G7: =IF(scaleup="Y",'Scale-up'!G7,F7*(1+national_pop_growth)) -> 62527418.98 | H7: =IF(scaleup="Y",'Scale-up'!H7,G7*(1+national_pop_growth)) -> 63359033.65 | J7: Indicate the % of total population comprised of the following groups:
B8: Annual population growth rate | C8: =national_pop_growth -> 0.0133 | D8: =C8 -> 0.0133 | E8: =D8 -> 0.0133 | F8: =E8 -> 0.0133 | G8: =F8 -> 0.0133 | H8: =G8 -> 0.0133 | J8: Females (all ages)
B9: % population targeted by the program | C9: =target_pop -> 0.25 | D9: ='Scale-up'!D8 -> 0.15 | E9: ='Scale-up'!E8 -> 0.2 | F9: ='Scale-up'!F8 -> 0.25 | G9: ='Scale-up'!G8 -> 0.3 | H9: ='Scale-up'!H8 -> 0.35 | J9: Children <1
B10: Total population covered by the program | C10: ='Scale-up'!C9 -> 14827172.5 | D10: =D9*D7 -> 9014624.337 | E10: =E9*E7 -> 12179358.45 | F10: 15426679.9 | G10: 18758225.69 | H10: 22175661.78 | J10: Children <5
J11: Age 5-14
B12: =level1 -> District | C12: ='Scale-up'!C13 -> 200 | D12: ='Scale-up'!D13 -> 300 | E12: ='Scale-up'!E13 -> 400 | F12: ='Scale-up'!F13 -> 500 | G12: ='Scale-up'!G13 -> 600 | H12: ='Scale-up'!H13 -> 700 | J12: Age 15-24
B13: =level2 -> 0 | C13: ='Scale-up'!C14 -> 0 | D13: ='Scale-up'!D14 -> 0 | E13: ='Scale-up'!E14 -> 0 | F13: ='Scale-up'!F14 -> 0 | G13: ='Scale-up'!G14 -> 0 | H13: ='Scale-up'!H14 -> 0 | J13: Age 25-49
B14: =level3 -> 0 | C14: ='Scale-up'!C15 -> 0 | D14: ='Scale-up'!D15 -> 0 | E14: ='Scale-up'!E15 -> 0 | F14: ='Scale-up'!F15 -> 0 | G14: ='Scale-up'!G15 -> 0 | H14: ='Scale-up'!H15 -> 0 | J14: Age 50+
B15: =level4 -> 0 | C15: ='Scale-up'!C16 -> 0 | D15: ='Scale-up'!D16 -> 0 | E15: ='Scale-up'!E16 -> 0 | F15: ='Scale-up'!F16 -> 0 | G15: ='Scale-up'!G16 -> 0 | H15: ='Scale-up'!H16 -> 0
B16: All | C16: =SUM(C12:C15) -> 200 | D16: =SUM(D12:D15) -> 300 | E16: 400 | F16: 500 | G16: 600 | H16: 700
B18: ALL | C18: =baseline_year -> 2021 | D18: =baseline_year+1 -> 2022 | E18: =D18+1 -> 2023 | F18: =E18+1 -> 2024 | G18: =F18+1 -> 2025 | H18: =G18+1 -> 2026
B19: All | C19: =ROUND(C10,0) -> 14827173 | D19: 9014624 | E19: 12179358 | F19: 15426680 | G19: 18758226 | H19: 22175662
B20: All Male | C20: =IF(C$19=0,0,ROUND(($C38/SUM($C$38:$C$39)*C$19),0)) -> 7304003 | D20: 4440688 | E20: 5999665 | F20: 7599326 | G20: 9240476 | H20: 10923937
B21: All Female | C21: 7523170 | D21: 4573936 | E21: 6179693 | F21: 7827354 | G21: 9517750 | H21: 11251725
B22: Children <1 | C22: =ROUND((($C$41+$C$49)*C10),0)/2 -> 277383.5 | D22: 168643.5 | E22: 227848.5 | F22: 288598.5 | G22: 350924.5 | H22: 414857
B23: Children 2-59 months | C23: =ROUND((($C$42+$C$50)*C10),0) -> 1412594 | D23: 858829 | E23: 1160335 | F23: 1469710 | G23: 1787108 | H23: 2112689
B24: Children 6-59 months | C24: =ROUND((($C$43+$C$51)*C10),0) -> 1315174 | D24: 799599 | E24: 1080312 | F24: 1368350 | G24: 1663859 | H24: 1966987
B25: Children >1 to <5 | C25: =C26-C22 -> 1183920.5 | D25: =D26-D22 -> 719800.5 | E25: 972498.5 | F25: 1231790.5 | G25: 1497807.5 | H25: 1770684
B26: Children <5 | C26: =ROUND((($C$52+$C$44)*C10),0) -> 1461304 | D26: 888444 | E26: 1200347 | F26: 1520389 | G26: 1848732 | H26: 2185541
B27: Children <15 | C27: =ROUND((($C$44+$C$45+$C$52+$C$53)*C10),0) -> 4335542 | D27: 2635923 | E27: 3561307 | F27: 4510841 | G27: 5485002 | H27: 6484278
B28: Adolescents 10-19 | C28: =ROUND((($C$45+$C$46+$C$53+$C$54)*0.5)*C10,0) -> 2871567 | D28: 1745855 | E28: 2358767 | F28: 2987673 | G28: 3632891 | H28: 4294743
B29: Youth 15-24 | C29: =ROUND((($C$46+$C$54)*C10),0) -> 2868896 | D29: 1744231 | E29: 2356573 | F29: 2984894 | G29: 3629512 | H29: 4290748
B30: Adults >5 | C30: =ROUND(((SUM($C$45:$C$48)+SUM($C$53:$C$56))*C10),0) -> 13365868 | D30: 8126181 | E30: 10979012 | F30: 13906291 | G30: 16909493 | H30: 19990121
B31: Adults >15 | C31: =ROUND(((SUM($C$46:$C$48)+SUM($C$54:$C$56))*C10),0) -> 10491631 | D31: 6378702 | E31: 8618051 | F31: 10915839 | G31: 13273224 | H31: 15691384
B32: Male Adult | C32: =ROUND(((SUM($C$46:$C$48))*C10),0) -> 5110813 | D32: 3107272 | E32: 4198132 | F32: 5317459 | G32: 6465817 | H32: 7643782
B33: Female Adult | C33: =ROUND(((SUM($C$54:$C$56))*C10),0) -> 5380817 | D33: 3271429 | E33: 4419919 | F33: 5598380 | G33: 6807406 | H33: 8047602
B37: Population breakdown: | C37: =IF(default_pop_categories="No","User Input","Default") -> Default | D37: User Input | E37: Default Data
B38: Total Male Population '000 | C38: =IF(default_pop_categories="No",D38,E38) -> 29216.012 | D38: =(national_pop*(1-percent_female))/1000 -> 59308.69 | E38: =(IF(selected_country="",0,(INDEX(country_database,MATCH(selected_country,country_list,0),MATCH(B38,database_indicators,0))))/SUM(F38:F39))*(national_pop/1000) -> 29216.012 | F38: =IF(selected_country="",0,(INDEX(country_database,MATCH(selected_country,country_list,0),MATCH(B38,database_indicators,0)))) -> 29216.012
B39: Total Female Population '000 | C39: =IF(default_pop_categories="No",D39,E39) -> 30092.678 | D39: =(national_pop*(percent_female))/1000 -> 0 | E39: =(IF(selected_country="",0,(INDEX(country_database,MATCH(selected_country,country_list,0),MATCH(B39,database_indicators,0))))/SUM(F38:F39))*(national_pop/1000) -> 30092.678 | F39: =IF(selected_country="",0,(INDEX(country_database,MATCH(selected_country,country_list,0),MATCH(B39,database_indicators,0)))) -> 30092.678
B41: Males 0-1 | C41: =IF(default_pop_categories="No",D41,E41) -> 0.01857259196 | D41: =percent_0_1 -> 0 | E41: =(IF(selected_country="",0,((((INDEX(country_database,MATCH(selected_country,country_list,0),MATCH(B41,database_indicators,0))))/100)*$E$38)/SUM($E$38:$E$39))) -> 0.01857259196
B42: Males 2-59 months | C42: 0.04813921318 | D42: =D44*(58/60) -> 0 | E42: =E44*(58/60) -> 0.04813921318
B43: Males 6-59 months | C43: 0.04481926745 | D43: =D44*(54/60) -> 0 | E43: =E44*(54/60) -> 0.04481926745
B44: Males 0-4 | C44: 0.04979918605 | D44: =percent_0_5*(1-percent_female) -> 0 | E44: =IF(selected_country="",0,((((INDEX(country_database,MATCH(selected_country,country_list,0),MATCH(B44,database_indicators,0))))/100)*$E$38)/SUM($E$38:$E$39)) -> 0.04979918605
B45: Males 5-14 | C45: 0.09811772738 | D45: =percent_5_14*(1-percent_female) -> 0 | E45: =IF(selected_country="",0,((((INDEX(country_database,MATCH(selected_country,country_list,0),MATCH(B45,database_indicators,0))))/100)*$E$38)/SUM($E$38:$E$39)) -> 0.09811772738
B46: Males 15-24 | C46: 0.1023916241 | D46: =percent_15_24*(1-percent_female) -> 0 | E46: =IF(selected_country="",0,((((INDEX(country_database,MATCH(selected_country,country_list,0),MATCH(B46,database_indicators,0))))/100)*$E$38)/SUM($E$38:$E$39)) -> 0.1023916241
B47: Males 25-49 | C47: 0.1782556538 | D47: =percent_25_49*(1-percent_female) -> 0 | E47: =IF(selected_country="",0,((((INDEX(country_database,MATCH(selected_country,country_list,0),MATCH(B47,database_indicators,0))))/100)*$E$38)/SUM($E$38:$E$39)) -> 0.1782556538
B48: Males 50+ | C48: 0.06404510416 | D48: =percent_50*(1-percent_female) -> 0 | E48: =IF(selected_country="",0,((((INDEX(country_database,MATCH(selected_country,country_list,0),MATCH(B48,database_indicators,0))))/100)*$E$38)/SUM($E$38:$E$39)) -> 0.06404510416
B49: Females 0-1 | C49: 0.0188429409 | D49: =percent_0_1*percent_female -> 0 | E49: =(IF(selected_country="",0,((((INDEX(country_database,MATCH(selected_country,country_list,0),MATCH(B49,database_indicators,0))))/100)*$E$39)/SUM($E$38:$E$39))) -> 0.0188429409
B50: Females 2-59 months | C50: 0.04713142109 | D50: =D52*(58/60)*percent_female -> 0 | E50: =E52*(58/60) -> 0.04713142109
B51: Females 6-59 months | C51: 0.04388097826 | D51: =D52*(54/60)*percent_female -> 0 | E51: =E52*(54/60) -> 0.04388097826
B52: Females 0-4 | C52: 0.04875664251 | D52: =percent_0_5*percent_female -> 0 | E52: =IF(selected_country="",0,((((INDEX(country_database,MATCH(selected_country,country_list,0),MATCH(B52,database_indicators,0))))/100)*$E$39)/SUM($E$38:$E$39)) -> 0.04875664251
B53: Females 5-14 | C53: 0.09573160997 | D53: =percent_5_14*percent_female -> 0 | E53: =IF(selected_country="",0,((((INDEX(country_database,MATCH(selected_country,country_list,0),MATCH(B53,database_indicators,0))))/100)*$E$39)/SUM($E$38:$E$39)) -> 0.09573160997
B54: Females 15-24 | C54: 0.09109745565 | D54: =percent_15_24*percent_female -> 0 | E54: =IF(selected_country="",0,((((INDEX(country_database,MATCH(selected_country,country_list,0),MATCH(B54,database_indicators,0))))/100)*$E$39)/SUM($E$38:$E$39)) -> 0.09109745565
B55: Females 25-49 | C55: 0.1778209461 | D55: =percent_25_49*percent_female -> 0 | E55: =IF(selected_country="",0,((((INDEX(country_database,MATCH(selected_country,country_list,0),MATCH(B55,database_indicators,0))))/100)*$E$39)/SUM($E$38:$E$39)) -> 0.1778209461
B56: Females 50+ | C56: 0.09398405028 | D56: =percent_50*percent_female -> 0 | E56: =IF(selected_country="",0,((((INDEX(country_database,MATCH(selected_country,country_list,0),MATCH(B56,database_indicators,0))))/100)*$E$39)/SUM($E$38:$E$39)) -> 0.09398405028

Sheet Summary_Services (hidden)
A1: MASTER LIST OF SERVICES
A2: South Africa
K3: 2 | L3: 3 | M3: 4 | N3: 5 | O3: 6 | P3: 7
K4: Target Population Size | R4: Expected / Needed Number of Services | Y4: Services Required (based on coverage calculations)
B5: Service / Intervention | C5: Program | D5: Target population | E5: Service Type | F5: AHC | G5: Episodes/cases per target population | H5: Frequency (services that are not preventive or curative) | I5: Episodes / frequency | K5: =baseline_year -> 2021 | L5: =K5+1 -> 2022 | M5: =L5+1 -> 2023 | N5: =M5+1 -> 2024 | O5: =N5+1 -> 2025 | P5: =O5+1 -> 2026 | R5: =baseline_year -> 2021 | S5: =R5+1 -> 2022 | T5: =S5+1 -> 2023 | U5: =T5+1 -> 2024 | V5: =U5+1 -> 2025 | W5: =V5+1 -> 2026 | Y5: =baseline_year -> 2021 | Z5: =Y5+1 -> 2022 | AA5: =Z5+1 -> 2023 | AB5: =AA5+1 -> 2024 | AC5: =AB5+1 -> 2025 | AD5: =AC5+1 -> 2026
A6: 1 | B6: =Package_Services!B8 -> Vision Screening | C6: =Package_Services!C8 -> Vision | D6: =Package_Services!D8 -> Children <15 | E6: =Package_Services!E8 -> Preventive | F6: =Package_Services!F8 -> Optometrist | G6: =Package_Services!G8 -> 1 | H6: =Package_Services!H8 -> 0 | I6: =Package_Services!I8 -> 1 | K6: =IF($D6=0,0,VLOOKUP($D6,lookup_demography,K$3,FALSE)) -> 4335542 | L6: 2635923 | M6: 3561307 | N6: 4510841 | O6: 5485002 | P6: 6484278 | R6: =K6*$I6 -> 4335542 | S6: 2635923 | T6: 3561307 | U6: 4510841 | V6: 5485002 | W6: 6484278 | Y6: =IF(Coverage!$G$4="Actual",Coverage!$C9,Coverage!$G9*$R6) -> 867108.4 | Z6: =ROUNDUP(S6*Coverage!H9,0) -> 658981 | AA6: =ROUNDUP(T6*Coverage!I9,0) -> 1246458 | AB6: =ROUNDUP(U6*Coverage!J9,0) -> 2029879 | AC6: =ROUNDUP(V6*Coverage!K9,0) -> 3016752 | AD6: =ROUNDUP(W6*Coverage!L9,0) -> 3566353
A7: 2 | B7: =Package_Services!B9 -> Low Vision Assessment and Dispensing | C7: =Package_Services!C9 -> Vision | D7: =Package_Services!D9 -> Children <15 | E7: =Package_Services!E9 -> Curative | F7: =Package_Services!F9 -> Optometrist | G7: =Package_Services!G9 -> 1 | H7: =Package_Services!H9 -> 0 | I7: =Package_Services!I9 -> 1 | K7: 4335542 | L7: 2635923 | M7: 3561307 | N7: 4510841 | O7: 5485002 | P7: 6484278 | R7: =K7*$I7 -> 4335542 | S7: =L7*$I7 -> 2635923 | T7: =M7*$I7 -> 3561307 | U7: =N7*$I7 -> 4510841 | V7: =O7*$I7 -> 5485002 | W7: =P7*$I7 -> 6484278 | Y7: =IF(Coverage!$G$4="Actual",Coverage!$C10,Coverage!$G10*$R7) -> 867108.4 | Z7: =ROUNDUP(S7*Coverage!H10,0) -> 817137 | AA7: =ROUNDUP(T7*Coverage!I10,0) -> 1246458 | AB7: =ROUNDUP(U7*Coverage!J10,0) -> 1804337 | AC7: =ROUNDUP(V7*Coverage!K10,0) -> 2468251 | AD7: =ROUNDUP(W7*Coverage!L10,0) -> 2917926
A8: 3 | B8: =Package_Services!B10 -> 0 | C8: =Package_Services!C10 -> 0 | D8: =Package_Services!D10 -> 0 | E8: =Package_Services!E10 -> 0 | F8: =Package_Services!F10 -> 0 | G8: =Package_Services!G10 -> 0 | H8: =Package_Services!H10 -> 0 | I8: =Package_Services!I10 -> 0 | K8: 0 | L8: 0 | M8: 0 | N8: 0 | O8: 0 | P8: 0 | R8: 0 | S8: 0 | T8: 0 | U8: 0 | V8: 0 | W8: 0 | Y8: =IF(Coverage!$G$4="Actual",Coverage!$C11,Coverage!$G11*$R8) -> 0 | Z8: =ROUNDUP(S8*Coverage!H11,0) -> 0 | AA8: =ROUNDUP(T8*Coverage!I11,0) -> 0 | AB8: =ROUNDUP(U8*Coverage!J11,0) -> 0 | AC8: =ROUNDUP(V8*Coverage!K11,0) -> 0 | AD8: =ROUNDUP(W8*Coverage!L11,0) -> 0
A9: 4 | B9: =Package_Services!B11 -> 0 | C9: =Package_Services!C11 -> 0 | D9: =Package_Services!D11 -> 0 | E9: =Package_Services!E11 -> 0 | F9: =Package_Services!F11 -> 0 | G9: =Package_Services!G11 -> 0 | H9: =Package_Services!H11 -> 0 | I9: =Package_Services!I11 -> 0 | K9: 0 | L9: 0 | M9: 0 | N9: 0 | O9: 0 | P9: 0 | R9: 0 | S9: 0 | T9: 0 | U9: 0 | V9: 0 | W9: 0 | Y9: =IF(Coverage!$G$4="Actual",Coverage!$C12,Coverage!$G12*$R9) -> 0 | Z9: =ROUNDUP(S9*Coverage!H12,0) -> 0 | AA9: =ROUNDUP(T9*Coverage!I12,0) -> 0 | AB9: =ROUNDUP(U9*Coverage!J12,0) -> 0 | AC9: =ROUNDUP(V9*Coverage!K12,0) -> 0 | AD9: =ROUNDUP(W9*Coverage!L12,0) -> 0
A10: 5 | B10: =Package_Services!B12 -> 0 | C10: =Package_Services!C12 -> 0 | D10: =Package_Services!D12 -> 0 | E10: =Package_Services!E12 -> 0 | F10: =Package_Services!F12 -> 0 | G10: =Package_Services!G12 -> 0 | H10: =Package_Services!H12 -> 0 | I10: =Package_Services!I12 -> 0 | K10: 0 | L10: 0 | M10: 0 | N10: 0 | O10: 0 | P10: 0 | R10: 0 | S10: 0 | T10: 0 | U10: 0 | V10: 0 | W10: 0 | Y10: =IF(Coverage!$G$4="Actual",Coverage!$C13,Coverage!$G13*$R10) -> 0 | Z10: =ROUNDUP(S10*Coverage!H13,0) -> 0 | AA10: =ROUNDUP(T10*Coverage!I13,0) -> 0 | AB10: =ROUNDUP(U10*Coverage!J13,0) -> 0 | AC10: =ROUNDUP(V10*Coverage!K13,0) -> 0 | AD10: =ROUNDUP(W10*Coverage!L13,0) -> 0
A11: 6 | B11: =Package_Services!B13 -> 0 | C11: =Package_Services!C13 -> 0 | D11: =Package_Services!D13 -> 0 | E11: =Package_Services!E13 -> 0 | F11: =Package_Services!F13 -> 0 | G11: =Package_Services!G13 -> 0 | H11: =Package_Services!H13 -> 0 | I11: =Package_Services!I13 -> 0 | K11: 0 | L11: 0 | M11: 0 | N11: 0 | O11: 0 | P11: 0 | R11: 0 | S11: 0 | T11: 0 | U11: 0 | V11: 0 | W11: 0 | Y11: =IF(Coverage!$G$4="Actual",Coverage!$C14,Coverage!$G14*$R11) -> 0 | Z11: =ROUNDUP(S11*Coverage!H14,0) -> 0 | AA11: =ROUNDUP(T11*Coverage!I14,0) -> 0 | AB11: =ROUNDUP(U11*Coverage!J14,0) -> 0 | AC11: =ROUNDUP(V11*Coverage!K14,0) -> 0 | AD11: =ROUNDUP(W11*Coverage!L14,0) -> 0
A12: 7 | B12: =Package_Services!B14 -> 0 | C12: =Package_Services!C14 -> 0 | D12: =Package_Services!D14 -> 0 | E12: =Package_Services!E14 -> 0 | F12: =Package_Services!F14 -> 0 | G12: =Package_Services!G14 -> 0 | H12: =Package_Services!H14 -> 0 | I12: =Package_Services!I14 -> 0 | K12: 0 | L12: 0 | M12: 0 | N12: 0 | O12: 0 | P12: 0 | R12: 0 | S12: 0 | T12: 0 | U12: 0 | V12: 0 | W12: 0 | Y12: =IF(Coverage!$G$4="Actual",Coverage!$C15,Coverage!$G15*$R12) -> 0 | Z12: =ROUNDUP(S12*Coverage!H15,0) -> 0 | AA12: =ROUNDUP(T12*Coverage!I15,0) -> 0 | AB12: =ROUNDUP(U12*Coverage!J15,0) -> 0 | AC12: =ROUNDUP(V12*Coverage!K15,0) -> 0 | AD12: =ROUNDUP(W12*Coverage!L15,0) -> 0
A13: 8 | B13: =Package_Services!B15 -> 0 | C13: =Package_Services!C15 -> 0 | D13: =Package_Services!D15 -> 0 | E13: =Package_Services!E15 -> 0 | F13: =Package_Services!F15 -> 0 | G13: =Package_Services!G15 -> 0 | H13: =Package_Services!H15 -> 0 | I13: =Package_Services!I15 -> 0 | K13: 0 | L13: 0 | M13: 0 | N13: 0 | O13: 0 | P13: 0 | R13: 0 | S13: 0 | T13: 0 | U13: 0 | V13: 0 | W13: 0 | Y13: =IF(Coverage!$G$4="Actual",Coverage!$C16,Coverage!$G16*$R13) -> 0 | Z13: =ROUNDUP(S13*Coverage!H16,0) -> 0 | AA13: =ROUNDUP(T13*Coverage!I16,0) -> 0 | AB13: =ROUNDUP(U13*Coverage!J16,0) -> 0 | AC13: =ROUNDUP(V13*Coverage!K16,0) -> 0 | AD13: =ROUNDUP(W13*Coverage!L16,0) -> 0
A14: 9 | B14: =Package_Services!B16 -> 0 | C14: =Package_Services!C16 -> 0 | D14: =Package_Services!D16 -> 0 | E14: =Package_Services!E16 -> 0 | F14: =Package_Services!F16 -> 0 | G14: =Package_Services!G16 -> 0 | H14: =Package_Services!H16 -> 0 | I14: =Package_Services!I16 -> 0 | K14: 0 | L14: 0 | M14: 0 | N14: 0 | O14: 0 | P14: 0 | R14: 0 | S14: 0 | T14: 0 | U14: 0 | V14: 0 | W14: 0 | Y14: =IF(Coverage!$G$4="Actual",Coverage!$C17,Coverage!$G17*$R14) -> 0 | Z14: =ROUNDUP(S14*Coverage!H17,0) -> 0 | AA14: =ROUNDUP(T14*Coverage!I17,0) -> 0 | AB14: =ROUNDUP(U14*Coverage!J17,0) -> 0 | AC14: =ROUNDUP(V14*Coverage!K17,0) -> 0 | AD14: =ROUNDUP(W14*Coverage!L17,0) -> 0
A15: 10 | B15: =Package_Services!B17 -> 0 | C15: =Package_Services!C17 -> 0 | D15: =Package_Services!D17 -> 0 | E15: =Package_Services!E17 -> 0 | F15: =Package_Services!F17 -> 0 | G15: =Package_Services!G17 -> 0 | H15: =Package_Services!H17 -> 0 | I15: =Package_Services!I17 -> 0 | K15: 0 | L15: 0 | M15: 0 | N15: 0 | O15: 0 | P15: 0 | R15: 0 | S15: 0 | T15: 0 | U15: 0 | V15: 0 | W15: 0 | Y15: =IF(Coverage!$G$4="Actual",Coverage!$C18,Coverage!$G18*$R15) -> 0 | Z15: =ROUNDUP(S15*Coverage!H18,0) -> 0 | AA15: =ROUNDUP(T15*Coverage!I18,0) -> 0 | AB15: =ROUNDUP(U15*Coverage!J18,0) -> 0 | AC15: =ROUNDUP(V15*Coverage!K18,0) -> 0 | AD15: =ROUNDUP(W15*Coverage!L18,0) -> 0
A16: 11 | B16: =Package_Services!B18 -> 0 | C16: =Package_Services!C18 -> 0 | D16: =Package_Services!D18 -> 0 | E16: =Package_Services!E18 -> 0 | F16: =Package_Services!F18 -> 0 | G16: =Package_Services!G18 -> 0 | H16: =Package_Services!H18 -> 0 | I16: =Package_Services!I18 -> 0 | K16: =IF($D16=0,0,VLOOKUP($D16,lookup_demography,K$3,FALSE)) -> 0 | L16: 0 | M16: 0 | N16: 0 | O16: 0 | P16: 0 | R16: 0 | S16: 0 | T16: 0 | U16: 0 | V16: 0 | W16: 0 | Y16: =IF(Coverage!$G$4="Actual",Coverage!$C19,Coverage!$G19*$R16) -> 0 | Z16: =ROUNDUP(S16*Coverage!H19,0) -> 0 | AA16: =ROUNDUP(T16*Coverage!I19,0) -> 0 | AB16: =ROUNDUP(U16*Coverage!J19,0) -> 0 | AC16: =ROUNDUP(V16*Coverage!K19,0) -> 0 | AD16: =ROUNDUP(W16*Coverage!L19,0) -> 0
A17: 12 | B17: =Package_Services!B19 -> 0 | C17: =Package_Services!C19 -> 0 | D17: =Package_Services!D19 -> 0 | E17: =Package_Services!E19 -> 0 | F17: =Package_Services!F19 -> 0 | G17: =Package_Services!G19 -> 0 | H17: =Package_Services!H19 -> 0 | I17: =Package_Services!I19 -> 0 | K17: 0 | L17: 0 | M17: 0 | N17: 0 | O17: 0 | P17: 0 | R17: 0 | S17: 0 | T17: 0 | U17: 0 | V17: 0 | W17: 0 | Y17: =IF(Coverage!$G$4="Actual",Coverage!$C20,Coverage!$G20*$R17) -> 0 | Z17: =ROUNDUP(S17*Coverage!H20,0) -> 0 | AA17: =ROUNDUP(T17*Coverage!I20,0) -> 0 | AB17: =ROUNDUP(U17*Coverage!J20,0) -> 0 | AC17: =ROUNDUP(V17*Coverage!K20,0) -> 0 | AD17: =ROUNDUP(W17*Coverage!L20,0) -> 0
A18: 13 | B18: =Package_Services!B20 -> 0 | C18: =Package_Services!C20 -> 0 | D18: =Package_Services!D20 -> 0 | E18: =Package_Services!E20 -> 0 | F18: =Package_Services!F20 -> 0 | G18: =Package_Services!G20 -> 0 | H18: =Package_Services!H20 -> 0 | I18: =Package_Services!I20 -> 0 | K18: 0 | L18: 0 | M18: 0 | N18: 0 | O18: 0 | P18: 0 | R18: 0 | S18: 0 | T18: 0 | U18: 0 | V18: 0 | W18: 0 | Y18: =IF(Coverage!$G$4="Actual",Coverage!$C21,Coverage!$G21*$R18) -> 0 | Z18: =ROUNDUP(S18*Coverage!H21,0) -> 0 | AA18: =ROUNDUP(T18*Coverage!I21,0) -> 0 | AB18: =ROUNDUP(U18*Coverage!J21,0) -> 0 | AC18: =ROUNDUP(V18*Coverage!K21,0) -> 0 | AD18: =ROUNDUP(W18*Coverage!L21,0) -> 0
A19: 14 | B19: =Package_Services!B21 -> 0 | C19: =Package_Services!C21 -> 0 | D19: =Package_Services!D21 -> 0 | E19: =Package_Services!E21 -> 0 | F19: =Package_Services!F21 -> 0 | G19: =Package_Services!G21 -> 0 | H19: =Package_Services!H21 -> 0 | I19: =Package_Services!I21 -> 0 | K19: 0 | L19: 0 | M19: 0 | N19: 0 | O19: 0 | P19: 0 | R19: 0 | S19: 0 | T19: 0 | U19: 0 | V19: 0 | W19: 0 | Y19: =IF(Coverage!$G$4="Actual",Coverage!$C22,Coverage!$G22*$R19) -> 0 | Z19: =ROUNDUP(S19*Coverage!H22,0) -> 0 | AA19: =ROUNDUP(T19*Coverage!I22,0) -> 0 | AB19: =ROUNDUP(U19*Coverage!J22,0) -> 0 | AC19: =ROUNDUP(V19*Coverage!K22,0) -> 0 | AD19: =ROUNDUP(W19*Coverage!L22,0) -> 0
A20: 15 | B20: =Package_Services!B22 -> 0 | C20: =Package_Services!C22 -> 0 | D20: =Package_Services!D22 -> 0 | E20: =Package_Services!E22 -> 0 | F20: =Package_Services!F22 -> 0 | G20: =Package_Services!G22 -> 0 | H20: =Package_Services!H22 -> 0 | I20: =Package_Services!I22 -> 0 | K20: 0 | L20: 0 | M20: 0 | N20: 0 | O20: 0 | P20: 0 | R20: 0 | S20: 0 | T20: 0 | U20: 0 | V20: 0 | W20: 0 | Y20: =IF(Coverage!$G$4="Actual",Coverage!$C23,Coverage!$G23*$R20) -> 0 | Z20: =ROUNDUP(S20*Coverage!H23,0) -> 0 | AA20: =ROUNDUP(T20*Coverage!I23,0) -> 0 | AB20: =ROUNDUP(U20*Coverage!J23,0) -> 0 | AC20: =ROUNDUP(V20*Coverage!K23,0) -> 0 | AD20: =ROUNDUP(W20*Coverage!L23,0) -> 0
A21: 16 | B21: =Package_Services!B23 -> 0 | C21: =Package_Services!C23 -> 0 | D21: =Package_Services!D23 -> 0 | E21: =Package_Services!E23 -> 0 | F21: =Package_Services!F23 -> 0 | G21: =Package_Services!G23 -> 0 | H21: =Package_Services!H23 -> 0 | I21: =Package_Services!I23 -> 0 | K21: 0 | L21: 0 | M21: 0 | N21: 0 | O21: 0 | P21: 0 | R21: 0 | S21: 0 | T21: 0 | U21: 0 | V21: 0 | W21: 0 | Y21: =IF(Coverage!$G$4="Actual",Coverage!$C24,Coverage!$G24*$R21) -> 0 | Z21: =ROUNDUP(S21*Coverage!H24,0) -> 0 | AA21: =ROUNDUP(T21*Coverage!I24,0) -> 0 | AB21: =ROUNDUP(U21*Coverage!J24,0) -> 0 | AC21: =ROUNDUP(V21*Coverage!K24,0) -> 0 | AD21: =ROUNDUP(W21*Coverage!L24,0) -> 0
A22: 17 | B22: =Package_Services!B24 -> 0 | C22: =Package_Services!C24 -> 0 | D22: =Package_Services!D24 -> 0 | E22: =Package_Services!E24 -> 0 | F22: =Package_Services!F24 -> 0 | G22: =Package_Services!G24 -> 0 | H22: =Package_Services!H24 -> 0 | I22: =Package_Services!I24 -> 0 | K22: 0 | L22: 0 | M22: 0 | N22: 0 | O22: 0 | P22: 0 | R22: 0 | S22: 0 | T22: 0 | U22: 0 | V22: 0 | W22: 0 | Y22: =IF(Coverage!$G$4="Actual",Coverage!$C25,Coverage!$G25*$R22) -> 0 | Z22: =ROUNDUP(S22*Coverage!H25,0) -> 0 | AA22: =ROUNDUP(T22*Coverage!I25,0) -> 0 | AB22: =ROUNDUP(U22*Coverage!J25,0) -> 0 | AC22: =ROUNDUP(V22*Coverage!K25,0) -> 0 | AD22: =ROUNDUP(W22*Coverage!L25,0) -> 0
A23: 18 | B23: =Package_Services!B25 -> 0 | C23: =Package_Services!C25 -> 0 | D23: =Package_Services!D25 -> 0 | E23: =Package_Services!E25 -> 0 | F23: =Package_Services!F25 -> 0 | G23: =Package_Services!G25 -> 0 | H23: =Package_Services!H25 -> 0 | I23: =Package_Services!I25 -> 0 | K23: 0 | L23: 0 | M23: 0 | N23: 0 | O23: 0 | P23: 0 | R23: 0 | S23: 0 | T23: 0 | U23: 0 | V23: 0 | W23: 0 | Y23: =IF(Coverage!$G$4="Actual",Coverage!$C26,Coverage!$G26*$R23) -> 0 | Z23: =ROUNDUP(S23*Coverage!H26,0) -> 0 | AA23: =ROUNDUP(T23*Coverage!I26,0) -> 0 | AB23: =ROUNDUP(U23*Coverage!J26,0) -> 0 | AC23: =ROUNDUP(V23*Coverage!K26,0) -> 0 | AD23: =ROUNDUP(W23*Coverage!L26,0) -> 0
A24: 19 | B24: =Package_Services!B26 -> 0 | C24: =Package_Services!C26 -> 0 | D24: =Package_Services!D26 -> 0 | E24: =Package_Services!E26 -> 0 | F24: =Package_Services!F26 -> 0 | G24: =Package_Services!G26 -> 0 | H24: =Package_Services!H26 -> 0 | I24: =Package_Services!I26 -> 0 | K24: 0 | L24: 0 | M24: 0 | N24: 0 | O24: 0 | P24: 0 | R24: 0 | S24: 0 | T24: 0 | U24: 0 | V24: 0 | W24: 0 | Y24: =IF(Coverage!$G$4="Actual",Coverage!$C27,Coverage!$G27*$R24) -> 0 | Z24: =ROUNDUP(S24*Coverage!H27,0) -> 0 | AA24: =ROUNDUP(T24*Coverage!I27,0) -> 0 | AB24: =ROUNDUP(U24*Coverage!J27,0) -> 0 | AC24: =ROUNDUP(V24*Coverage!K27,0) -> 0 | AD24: =ROUNDUP(W24*Coverage!L27,0) -> 0
A25: 20 | B25: =Package_Services!B27 -> 0 | C25: =Package_Services!C27 -> 0 | D25: =Package_Services!D27 -> 0 | E25: =Package_Services!E27 -> 0 | F25: =Package_Services!F27 -> 0 | G25: =Package_Services!G27 -> 0 | H25: =Package_Services!H27 -> 0 | I25: =Package_Services!I27 -> 0 | K25: 0 | L25: 0 | M25: 0 | N25: 0 | O25: 0 | P25: 0 | R25: 0 | S25: 0 | T25: 0 | U25: 0 | V25: 0 | W25: 0 | Y25: =IF(Coverage!$G$4="Actual",Coverage!$C28,Coverage!$G28*$R25) -> 0 | Z25: =ROUNDUP(S25*Coverage!H28,0) -> 0 | AA25: =ROUNDUP(T25*Coverage!I28,0) -> 0 | AB25: =ROUNDUP(U25*Coverage!J28,0) -> 0 | AC25: =ROUNDUP(V25*Coverage!K28,0) -> 0 | AD25: =ROUNDUP(W25*Coverage!L28,0) -> 0
A26: 21 | B26: =Package_Services!B28 -> 0 | C26: =Package_Services!C28 -> 0 | D26: =Package_Services!D28 -> 0 | E26: =Package_Services!E28 -> 0 | F26: =Package_Services!F28 -> 0 | G26: =Package_Services!G28 -> 0 | H26: =Package_Services!H28 -> 0 | I26: =Package_Services!I28 -> 0 | K26: =IF($D26=0,0,VLOOKUP($D26,lookup_demography,K$3,FALSE)) -> 0 | L26: 0 | M26: 0 | N26: 0 | O26: 0 | P26: 0 | R26: 0 | S26: 0 | T26: 0 | U26: 0 | V26: 0 | W26: 0 | Y26: =IF(Coverage!$G$4="Actual",Coverage!$C29,Coverage!$G29*$R26) -> 0 | Z26: =ROUNDUP(S26*Coverage!H29,0) -> 0 | AA26: =ROUNDUP(T26*Coverage!I29,0) -> 0 | AB26: =ROUNDUP(U26*Coverage!J29,0) -> 0 | AC26: =ROUNDUP(V26*Coverage!K29,0) -> 0 | AD26: =ROUNDUP(W26*Coverage!L29,0) -> 0
A27: 22 | B27: =Package_Services!B29 -> 0 | C27: =Package_Services!C29 -> 0 | D27: =Package_Services!D29 -> 0 | E27: =Package_Services!E29 -> 0 | F27: =Package_Services!F29 -> 0 | G27: =Package_Services!G29 -> 0 | H27: =Package_Services!H29 -> 0 | I27: =Package_Services!I29 -> 0 | K27: 0 | L27: 0 | M27: 0 | N27: 0 | O27: 0 | P27: 0 | R27: 0 | S27: 0 | T27: 0 | U27: 0 | V27: 0 | W27: 0 | Y27: =IF(Coverage!$G$4="Actual",Coverage!$C30,Coverage!$G30*$R27) -> 0 | Z27: =ROUNDUP(S27*Coverage!H30,0) -> 0 | AA27: =ROUNDUP(T27*Coverage!I30,0) -> 0 | AB27: =ROUNDUP(U27*Coverage!J30,0) -> 0 | AC27: =ROUNDUP(V27*Coverage!K30,0) -> 0 | AD27: =ROUNDUP(W27*Coverage!L30,0) -> 0
A28: 23 | B28: =Package_Services!B30 -> 0 | C28: =Package_Services!C30 -> 0 | D28: =Package_Services!D30 -> 0 | E28: =Package_Services!E30 -> 0 | F28: =Package_Services!F30 -> 0 | G28: =Package_Services!G30 -> 0 | H28: =Package_Services!H30 -> 0 | I28: =Package_Services!I30 -> 0 | K28: 0 | L28: 0 | M28: 0 | N28: 0 | O28: 0 | P28: 0 | R28: 0 | S28: 0 | T28: 0 | U28: 0 | V28: 0 | W28: 0 | Y28: =IF(Coverage!$G$4="Actual",Coverage!$C31,Coverage!$G31*$R28) -> 0 | Z28: =ROUNDUP(S28*Coverage!H31,0) -> 0 | AA28: =ROUNDUP(T28*Coverage!I31,0) -> 0 | AB28: =ROUNDUP(U28*Coverage!J31,0) -> 0 | AC28: =ROUNDUP(V28*Coverage!K31,0) -> 0 | AD28: =ROUNDUP(W28*Coverage!L31,0) -> 0
A29: 24 | B29: =Package_Services!B31 -> 0 | C29: =Package_Services!C31 -> 0 | D29: =Package_Services!D31 -> 0 | E29: =Package_Services!E31 -> 0 | F29: =Package_Services!F31 -> 0 | G29: =Package_Services!G31 -> 0 | H29: =Package_Services!H31 -> 0 | I29: =Package_Services!I31 -> 0 | K29: 0 | L29: 0 | M29: 0 | N29: 0 | O29: 0 | P29: 0 | R29: 0 | S29: 0 | T29: 0 | U29: 0 | V29: 0 | W29: 0 | Y29: =IF(Coverage!$G$4="Actual",Coverage!$C32,Coverage!$G32*$R29) -> 0 | Z29: =ROUNDUP(S29*Coverage!H32,0) -> 0 | AA29: =ROUNDUP(T29*Coverage!I32,0) -> 0 | AB29: =ROUNDUP(U29*Coverage!J32,0) -> 0 | AC29: =ROUNDUP(V29*Coverage!K32,0) -> 0 | AD29: =ROUNDUP(W29*Coverage!L32,0) -> 0
A30: 25 | B30: =Package_Services!B32 -> 0 | C30: =Package_Services!C32 -> 0 | D30: =Package_Services!D32 -> 0 | E30: =Package_Services!E32 -> 0 | F30: =Package_Services!F32 -> 0 | G30: =Package_Services!G32 -> 0 | H30: =Package_Services!H32 -> 0 | I30: =Package_Services!I32 -> 0 | K30: 0 | L30: 0 | M30: 0 | N30: 0 | O30: 0 | P30: 0 | R30: 0 | S30: 0 | T30: 0 | U30: 0 | V30: 0 | W30: 0 | Y30: =IF(Coverage!$G$4="Actual",Coverage!$C33,Coverage!$G33*$R30) -> 0 | Z30: =ROUNDUP(S30*Coverage!H33,0) -> 0 | AA30: =ROUNDUP(T30*Coverage!I33,0) -> 0 | AB30: =ROUNDUP(U30*Coverage!J33,0) -> 0 | AC30: =ROUNDUP(V30*Coverage!K33,0) -> 0 | AD30: =ROUNDUP(W30*Coverage!L33,0) -> 0
A31: 26 | B31: =Package_Services!B33 -> 0 | C31: =Package_Services!C33 -> 0 | D31: =Package_Services!D33 -> 0 | E31: =Package_Services!E33 -> 0 | F31: =Package_Services!F33 -> 0 | G31: =Package_Services!G33 -> 0 | H31: =Package_Services!H33 -> 0 | I31: =Package_Services!I33 -> 0 | K31: 0 | L31: 0 | M31: 0 | N31: 0 | O31: 0 | P31: 0 | R31: 0 | S31: 0 | T31: 0 | U31: 0 | V31: 0 | W31: 0 | Y31: =IF(Coverage!$G$4="Actual",Coverage!$C34,Coverage!$G34*$R31) -> 0 | Z31: =ROUNDUP(S31*Coverage!H34,0) -> 0 | AA31: =ROUNDUP(T31*Coverage!I34,0) -> 0 | AB31: =ROUNDUP(U31*Coverage!J34,0) -> 0 | AC31: =ROUNDUP(V31*Coverage!K34,0) -> 0 | AD31: =ROUNDUP(W31*Coverage!L34,0) -> 0
A32: 27 | B32: =Package_Services!B34 -> 0 | C32: =Package_Services!C34 -> 0 | D32: =Package_Services!D34 -> 0 | E32: =Package_Services!E34 -> 0 | F32: =Package_Services!F34 -> 0 | G32: =Package_Services!G34 -> 0 | H32: =Package_Services!H34 -> 0 | I32: =Package_Services!I34 -> 0 | K32: 0 | L32: 0 | M32: 0 | N32: 0 | O32: 0 | P32: 0 | R32: 0 | S32: 0 | T32: 0 | U32: 0 | V32: 0 | W32: 0 | Y32: =IF(Coverage!$G$4="Actual",Coverage!$C35,Coverage!$G35*$R32) -> 0 | Z32: =ROUNDUP(S32*Coverage!H35,0) -> 0 | AA32: =ROUNDUP(T32*Coverage!I35,0) -> 0 | AB32: =ROUNDUP(U32*Coverage!J35,0) -> 0 | AC32: =ROUNDUP(V32*Coverage!K35,0) -> 0 | AD32: =ROUNDUP(W32*Coverage!L35,0) -> 0
A33: 28 | B33: =Package_Services!B35 -> 0 | C33: =Package_Services!C35 -> 0 | D33: =Package_Services!D35 -> 0 | E33: =Package_Services!E35 -> 0 | F33: =Package_Services!F35 -> 0 | G33: =Package_Services!G35 -> 0 | H33: =Package_Services!H35 -> 0 | I33: =Package_Services!I35 -> 0 | K33: 0 | L33: 0 | M33: 0 | N33: 0 | O33: 0 | P33: 0 | R33: 0 | S33: 0 | T33: 0 | U33: 0 | V33: 0 | W33: 0 | Y33: =IF(Coverage!$G$4="Actual",Coverage!$C36,Coverage!$G36*$R33) -> 0 | Z33: =ROUNDUP(S33*Coverage!H36,0) -> 0 | AA33: =ROUNDUP(T33*Coverage!I36,0) -> 0 | AB33: =ROUNDUP(U33*Coverage!J36,0) -> 0 | AC33: =ROUNDUP(V33*Coverage!K36,0) -> 0 | AD33: =ROUNDUP(W33*Coverage!L36,0) -> 0
A34: 29 | B34: =Package_Services!B36 -> 0 | C34: =Package_Services!C36 -> 0 | D34: =Package_Services!D36 -> 0 | E34: =Package_Services!E36 -> 0 | F34: =Package_Services!F36 -> 0 | G34: =Package_Services!G36 -> 0 | H34: =Package_Services!H36 -> 0 | I34: =Package_Services!I36 -> 0 | K34: 0 | L34: 0 | M34: 0 | N34: 0 | O34: 0 | P34: 0 | R34: 0 | S34: 0 | T34: 0 | U34: 0 | V34: 0 | W34: 0 | Y34: =IF(Coverage!$G$4="Actual",Coverage!$C37,Coverage!$G37*$R34) -> 0 | Z34: =ROUNDUP(S34*Coverage!H37,0) -> 0 | AA34: =ROUNDUP(T34*Coverage!I37,0) -> 0 | AB34: =ROUNDUP(U34*Coverage!J37,0) -> 0 | AC34: =ROUNDUP(V34*Coverage!K37,0) -> 0 | AD34: =ROUNDUP(W34*Coverage!L37,0) -> 0
A35: 30 | B35: =Package_Services!B37 -> 0 | C35: =Package_Services!C37 -> 0 | D35: =Package_Services!D37 -> 0 | E35: =Package_Services!E37 -> 0 | F35: =Package_Services!F37 -> 0 | G35: =Package_Services!G37 -> 0 | H35: =Package_Services!H37 -> 0 | I35: =Package_Services!I37 -> 0 | K35: 0 | L35: 0 | M35: 0 | N35: 0 | O35: 0 | P35: 0 | R35: 0 | S35: 0 | T35: 0 | U35: 0 | V35: 0 | W35: 0 | Y35: =IF(Coverage!$G$4="Actual",Coverage!$C38,Coverage!$G38*$R35) -> 0 | Z35: =ROUNDUP(S35*Coverage!H38,0) -> 0 | AA35: =ROUNDUP(T35*Coverage!I38,0) -> 0 | AB35: =ROUNDUP(U35*Coverage!J38,0) -> 0 | AC35: =ROUNDUP(V35*Coverage!K38,0) -> 0 | AD35: =ROUNDUP(W35*Coverage!L38,0) -> 0
A36: 31 | B36: =Package_Services!B38 -> 0 | C36: =Package_Services!C38 -> 0 | D36: =Package_Services!D38 -> 0 | E36: =Package_Services!E38 -> 0 | F36: =Package_Services!F38 -> 0 | G36: =Package_Services!G38 -> 0 | H36: =Package_Services!H38 -> 0 | I36: =Package_Services!I38 -> 0 | K36: =IF($D36=0,0,VLOOKUP($D36,lookup_demography,K$3,FALSE)) -> 0 | L36: 0 | M36: 0 | N36: 0 | O36: 0 | P36: 0 | R36: 0 | S36: 0 | T36: 0 | U36: 0 | V36: 0 | W36: 0 | Y36: =IF(Coverage!$G$4="Actual",Coverage!$C39,Coverage!$G39*$R36) -> 0 | Z36: =ROUNDUP(S36*Coverage!H39,0) -> 0 | AA36: =ROUNDUP(T36*Coverage!I39,0) -> 0 | AB36: =ROUNDUP(U36*Coverage!J39,0) -> 0 | AC36: =ROUNDUP(V36*Coverage!K39,0) -> 0 | AD36: =ROUNDUP(W36*Coverage!L39,0) -> 0
A37: 32 | B37: =Package_Services!B39 -> 0 | C37: =Package_Services!C39 -> 0 | D37: =Package_Services!D39 -> 0 | E37: =Package_Services!E39 -> 0 | F37: =Package_Services!F39 -> 0 | G37: =Package_Services!G39 -> 0 | H37: =Package_Services!H39 -> 0 | I37: =Package_Services!I39 -> 0 | K37: 0 | L37: 0 | M37: 0 | N37: 0 | O37: 0 | P37: 0 | R37: 0 | S37: 0 | T37: 0 | U37: 0 | V37: 0 | W37: 0 | Y37: =IF(Coverage!$G$4="Actual",Coverage!$C40,Coverage!$G40*$R37) -> 0 | Z37: =ROUNDUP(S37*Coverage!H40,0) -> 0 | AA37: =ROUNDUP(T37*Coverage!I40,0) -> 0 | AB37: =ROUNDUP(U37*Coverage!J40,0) -> 0 | AC37: =ROUNDUP(V37*Coverage!K40,0) -> 0 | AD37: =ROUNDUP(W37*Coverage!L40,0) -> 0
A38: 33 | B38: =Package_Services!B40 -> 0 | C38: =Package_Services!C40 -> 0 | D38: =Package_Services!D40 -> 0 | E38: =Package_Services!E40 -> 0 | F38: =Package_Services!F40 -> 0 | G38: =Package_Services!G40 -> 0 | H38: =Package_Services!H40 -> 0 | I38: =Package_Services!I40 -> 0 | K38: 0 | L38: 0 | M38: 0 | N38: 0 | O38: 0 | P38: 0 | R38: 0 | S38: 0 | T38: 0 | U38: 0 | V38: 0 | W38: 0 | Y38: =IF(Coverage!$G$4="Actual",Coverage!$C41,Coverage!$G41*$R38) -> 0 | Z38: =ROUNDUP(S38*Coverage!H41,0) -> 0 | AA38: =ROUNDUP(T38*Coverage!I41,0) -> 0 | AB38: =ROUNDUP(U38*Coverage!J41,0) -> 0 | AC38: =ROUNDUP(V38*Coverage!K41,0) -> 0 | AD38: =ROUNDUP(W38*Coverage!L41,0) -> 0
A39: 34 | B39: =Package_Services!B41 -> 0 | C39: =Package_Services!C41 -> 0 | D39: =Package_Services!D41 -> 0 | E39: =Package_Services!E41 -> 0 | F39: =Package_Services!F41 -> 0 | G39: =Package_Services!G41 -> 0 | H39: =Package_Services!H41 -> 0 | I39: =Package_Services!I41 -> 0 | K39: 0 | L39: 0 | M39: 0 | N39: 0 | O39: 0 | P39: 0 | R39: 0 | S39: 0 | T39: 0 | U39: 0 | V39: 0 | W39: 0 | Y39: =IF(Coverage!$G$4="Actual",Coverage!$C42,Coverage!$G42*$R39) -> 0 | Z39: =ROUNDUP(S39*Coverage!H42,0) -> 0 | AA39: =ROUNDUP(T39*Coverage!I42,0) -> 0 | AB39: =ROUNDUP(U39*Coverage!J42,0) -> 0 | AC39: =ROUNDUP(V39*Coverage!K42,0) -> 0 | AD39: =ROUNDUP(W39*Coverage!L42,0) -> 0
A40: 35 | B40: =Package_Services!B42 -> 0 | C40: =Package_Services!C42 -> 0 | D40: =Package_Services!D42 -> 0 | E40: =Package_Services!E42 -> 0 | F40: =Package_Services!F42 -> 0 | G40: =Package_Services!G42 -> 0 | H40: =Package_Services!H42 -> 0 | I40: =Package_Services!I42 -> 0 | K40: 0 | L40: 0 | M40: 0 | N40: 0 | O40: 0 | P40: 0 | R40: 0 | S40: 0 | T40: 0 | U40: 0 | V40: 0 | W40: 0 | Y40: =IF(Coverage!$G$4="Actual",Coverage!$C43,Coverage!$G43*$R40) -> 0 | Z40: =ROUNDUP(S40*Coverage!H43,0) -> 0 | AA40: =ROUNDUP(T40*Coverage!I43,0) -> 0 | AB40: =ROUNDUP(U40*Coverage!J43,0) -> 0 | AC40: =ROUNDUP(V40*Coverage!K43,0) -> 0 | AD40: =ROUNDUP(W40*Coverage!L43,0) -> 0
A41: 36 | B41: =Package_Services!B43 -> 0 | C41: =Package_Services!C43 -> 0 | D41: =Package_Services!D43 -> 0 | E41: =Package_Services!E43 -> 0 | F41: =Package_Services!F43 -> 0 | G41: =Package_Services!G43 -> 0 | H41: =Package_Services!H43 -> 0 | I41: =Package_Services!I43 -> 0 | K41: 0 | L41: 0 | M41: 0 | N41: 0 | O41: 0 | P41: 0 | R41: 0 | S41: 0 | T41: 0 | U41: 0 | V41: 0 | W41: 0 | Y41: =IF(Coverage!$G$4="Actual",Coverage!$C44,Coverage!$G44*$R41) -> 0 | Z41: =ROUNDUP(S41*Coverage!H44,0) -> 0 | AA41: =ROUNDUP(T41*Coverage!I44,0) -> 0 | AB41: =ROUNDUP(U41*Coverage!J44,0) -> 0 | AC41: =ROUNDUP(V41*Coverage!K44,0) -> 0 | AD41: =ROUNDUP(W41*Coverage!L44,0) -> 0
A42: 37 | B42: =Package_Services!B44 -> 0 | C42: =Package_Services!C44 -> 0 | D42: =Package_Services!D44 -> 0 | E42: =Package_Services!E44 -> 0 | F42: =Package_Services!F44 -> 0 | G42: =Package_Services!G44 -> 0 | H42: =Package_Services!H44 -> 0 | I42: =Package_Services!I44 -> 0 | K42: 0 | L42: 0 | M42: 0 | N42: 0 | O42: 0 | P42: 0 | R42: 0 | S42: 0 | T42: 0 | U42: 0 | V42: 0 | W42: 0 | Y42: =IF(Coverage!$G$4="Actual",Coverage!$C45,Coverage!$G45*$R42) -> 0 | Z42: =ROUNDUP(S42*Coverage!H45,0) -> 0 | AA42: =ROUNDUP(T42*Coverage!I45,0) -> 0 | AB42: =ROUNDUP(U42*Coverage!J45,0) -> 0 | AC42: =ROUNDUP(V42*Coverage!K45,0) -> 0 | AD42: =ROUNDUP(W42*Coverage!L45,0) -> 0
A43: 38 | B43: =Package_Services!B45 -> 0 | C43: =Package_Services!C45 -> 0 | D43: =Package_Services!D45 -> 0 | E43: =Package_Services!E45 -> 0 | F43: =Package_Services!F45 -> 0 | G43: =Package_Services!G45 -> 0 | H43: =Package_Services!H45 -> 0 | I43: =Package_Services!I45 -> 0 | K43: 0 | L43: 0 | M43: 0 | N43: 0 | O43: 0 | P43: 0 | R43: 0 | S43: 0 | T43: 0 | U43: 0 | V43: 0 | W43: 0 | Y43: =IF(Coverage!$G$4="Actual",Coverage!$C46,Coverage!$G46*$R43) -> 0 | Z43: =ROUNDUP(S43*Coverage!H46,0) -> 0 | AA43: =ROUNDUP(T43*Coverage!I46,0) -> 0 | AB43: =ROUNDUP(U43*Coverage!J46,0) -> 0 | AC43: =ROUNDUP(V43*Coverage!K46,0) -> 0 | AD43: =ROUNDUP(W43*Coverage!L46,0) -> 0
A44: 39 | B44: =Package_Services!B46 -> 0 | C44: =Package_Services!C46 -> 0 | D44: =Package_Services!D46 -> 0 | E44: =Package_Services!E46 -> 0 | F44: =Package_Services!F46 -> 0 | G44: =Package_Services!G46 -> 0 | H44: =Package_Services!H46 -> 0 | I44: =Package_Services!I46 -> 0 | K44: 0 | L44: 0 | M44: 0 | N44: 0 | O44: 0 | P44: 0 | R44: 0 | S44: 0 | T44: 0 | U44: 0 | V44: 0 | W44: 0 | Y44: =IF(Coverage!$G$4="Actual",Coverage!$C47,Coverage!$G47*$R44) -> 0 | Z44: =ROUNDUP(S44*Coverage!H47,0) -> 0 | AA44: =ROUNDUP(T44*Coverage!I47,0) -> 0 | AB44: =ROUNDUP(U44*Coverage!J47,0) -> 0 | AC44: =ROUNDUP(V44*Coverage!K47,0) -> 0 | AD44: =ROUNDUP(W44*Coverage!L47,0) -> 0
A45: 40 | B45: =Package_Services!B47 -> 0 | C45: =Package_Services!C47 -> 0 | D45: =Package_Services!D47 -> 0 | E45: =Package_Services!E47 -> 0 | F45: =Package_Services!F47 -> 0 | G45: =Package_Services!G47 -> 0 | H45: =Package_Services!H47 -> 0 | I45: =Package_Services!I47 -> 0 | K45: 0 | L45: 0 | M45: 0 | N45: 0 | O45: 0 | P45: 0 | R45: 0 | S45: 0 | T45: 0 | U45: 0 | V45: 0 | W45: 0 | Y45: =IF(Coverage!$G$4="Actual",Coverage!$C48,Coverage!$G48*$R45) -> 0 | Z45: =ROUNDUP(S45*Coverage!H48,0) -> 0 | AA45: =ROUNDUP(T45*Coverage!I48,0) -> 0 | AB45: =ROUNDUP(U45*Coverage!J48,0) -> 0 | AC45: =ROUNDUP(V45*Coverage!K48,0) -> 0 | AD45: =ROUNDUP(W45*Coverage!L48,0) -> 0
A46: 41 | B46: =Package_Services!B48 -> 0 | C46: =Package_Services!C48 -> 0 | D46: =Package_Services!D48 -> 0 | E46: =Package_Services!E48 -> 0 | F46: =Package_Services!F48 -> 0 | G46: =Package_Services!G48 -> 0 | H46: =Package_Services!H48 -> 0 | I46: =Package_Services!I48 -> 0 | K46: =IF($D46=0,0,VLOOKUP($D46,lookup_demography,K$3,FALSE)) -> 0 | L46: 0 | M46: 0 | N46: 0 | O46: 0 | P46: 0 | R46: 0 | S46: 0 | T46: 0 | U46: 0 | V46: 0 | W46: 0 | Y46: =IF(Coverage!$G$4="Actual",Coverage!$C49,Coverage!$G49*$R46) -> 0 | Z46: =ROUNDUP(S46*Coverage!H49,0) -> 0 | AA46: =ROUNDUP(T46*Coverage!I49,0) -> 0 | AB46: =ROUNDUP(U46*Coverage!J49,0) -> 0 | AC46: =ROUNDUP(V46*Coverage!K49,0) -> 0 | AD46: =ROUNDUP(W46*Coverage!L49,0) -> 0
A47: 42 | B47: =Package_Services!B49 -> 0 | C47: =Package_Services!C49 -> 0 | D47: =Package_Services!D49 -> 0 | E47: =Package_Services!E49 -> 0 | F47: =Package_Services!F49 -> 0 | G47: =Package_Services!G49 -> 0 | H47: =Package_Services!H49 -> 0 | I47: =Package_Services!I49 -> 0 | K47: 0 | L47: 0 | M47: 0 | N47: 0 | O47: 0 | P47: 0 | R47: 0 | S47: 0 | T47: 0 | U47: 0 | V47: 0 | W47: 0 | Y47: =IF(Coverage!$G$4="Actual",Coverage!$C50,Coverage!$G50*$R47) -> 0 | Z47: =ROUNDUP(S47*Coverage!H50,0) -> 0 | AA47: =ROUNDUP(T47*Coverage!I50,0) -> 0 | AB47: =ROUNDUP(U47*Coverage!J50,0) -> 0 | AC47: =ROUNDUP(V47*Coverage!K50,0) -> 0 | AD47: =ROUNDUP(W47*Coverage!L50,0) -> 0
A48: 43 | B48: =Package_Services!B50 -> 0 | C48: =Package_Services!C50 -> 0 | D48: =Package_Services!D50 -> 0 | E48: =Package_Services!E50 -> 0 | F48: =Package_Services!F50 -> 0 | G48: =Package_Services!G50 -> 0 | H48: =Package_Services!H50 -> 0 | I48: =Package_Services!I50 -> 0 | K48: 0 | L48: 0 | M48: 0 | N48: 0 | O48: 0 | P48: 0 | R48: 0 | S48: 0 | T48: 0 | U48: 0 | V48: 0 | W48: 0 | Y48: =IF(Coverage!$G$4="Actual",Coverage!$C51,Coverage!$G51*$R48) -> 0 | Z48: =ROUNDUP(S48*Coverage!H51,0) -> 0 | AA48: =ROUNDUP(T48*Coverage!I51,0) -> 0 | AB48: =ROUNDUP(U48*Coverage!J51,0) -> 0 | AC48: =ROUNDUP(V48*Coverage!K51,0) -> 0 | AD48: =ROUNDUP(W48*Coverage!L51,0) -> 0
A49: 44 | B49: =Package_Services!B51 -> 0 | C49: =Package_Services!C51 -> 0 | D49: =Package_Services!D51 -> 0 | E49: =Package_Services!E51 -> 0 | F49: =Package_Services!F51 -> 0 | G49: =Package_Services!G51 -> 0 | H49: =Package_Services!H51 -> 0 | I49: =Package_Services!I51 -> 0 | K49: 0 | L49: 0 | M49: 0 | N49: 0 | O49: 0 | P49: 0 | R49: 0 | S49: 0 | T49: 0 | U49: 0 | V49: 0 | W49: 0 | Y49: =IF(Coverage!$G$4="Actual",Coverage!$C52,Coverage!$G52*$R49) -> 0 | Z49: =ROUNDUP(S49*Coverage!H52,0) -> 0 | AA49: =ROUNDUP(T49*Coverage!I52,0) -> 0 | AB49: =ROUNDUP(U49*Coverage!J52,0) -> 0 | AC49: =ROUNDUP(V49*Coverage!K52,0) -> 0 | AD49: =ROUNDUP(W49*Coverage!L52,0) -> 0
A50: 45 | B50: =Package_Services!B52 -> 0 | C50: =Package_Services!C52 -> 0 | D50: =Package_Services!D52 -> 0 | E50: =Package_Services!E52 -> 0 | F50: =Package_Services!F52 -> 0 | G50: =Package_Services!G52 -> 0 | H50: =Package_Services!H52 -> 0 | I50: =Package_Services!I52 -> 0 | K50: 0 | L50: 0 | M50: 0 | N50: 0 | O50: 0 | P50: 0 | R50: 0 | S50: 0 | T50: 0 | U50: 0 | V50: 0 | W50: 0 | Y50: =IF(Coverage!$G$4="Actual",Coverage!$C53,Coverage!$G53*$R50) -> 0 | Z50: =ROUNDUP(S50*Coverage!H53,0) -> 0 | AA50: =ROUNDUP(T50*Coverage!I53,0) -> 0 | AB50: =ROUNDUP(U50*Coverage!J53,0) -> 0 | AC50: =ROUNDUP(V50*Coverage!K53,0) -> 0 | AD50: =ROUNDUP(W50*Coverage!L53,0) -> 0
A51: 46 | B51: =Package_Services!B53 -> 0 | C51: =Package_Services!C53 -> 0 | D51: =Package_Services!D53 -> 0 | E51: =Package_Services!E53 -> 0 | F51: =Package_Services!F53 -> 0 | G51: =Package_Services!G53 -> 0 | H51: =Package_Services!H53 -> 0 | I51: =Package_Services!I53 -> 0 | K51: 0 | L51: 0 | M51: 0 | N51: 0 | O51: 0 | P51: 0 | R51: 0 | S51: 0 | T51: 0 | U51: 0 | V51: 0 | W51: 0 | Y51: =IF(Coverage!$G$4="Actual",Coverage!$C54,Coverage!$G54*$R51) -> 0 | Z51: =ROUNDUP(S51*Coverage!H54,0) -> 0 | AA51: =ROUNDUP(T51*Coverage!I54,0) -> 0 | AB51: =ROUNDUP(U51*Coverage!J54,0) -> 0 | AC51: =ROUNDUP(V51*Coverage!K54,0) -> 0 | AD51: =ROUNDUP(W51*Coverage!L54,0) -> 0
A52: 47 | B52: =Package_Services!B54 -> 0 | C52: =Package_Services!C54 -> 0 | D52: =Package_Services!D54 -> 0 | E52: =Package_Services!E54 -> 0 | F52: =Package_Services!F54 -> 0 | G52: =Package_Services!G54 -> 0 | H52: =Package_Services!H54 -> 0 | I52: =Package_Services!I54 -> 0 | K52: 0 | L52: 0 | M52: 0 | N52: 0 | O52: 0 | P52: 0 | R52: 0 | S52: 0 | T52: 0 | U52: 0 | V52: 0 | W52: 0 | Y52: =IF(Coverage!$G$4="Actual",Coverage!$C55,Coverage!$G55*$R52) -> 0 | Z52: =ROUNDUP(S52*Coverage!H55,0) -> 0 | AA52: =ROUNDUP(T52*Coverage!I55,0) -> 0 | AB52: =ROUNDUP(U52*Coverage!J55,0) -> 0 | AC52: =ROUNDUP(V52*Coverage!K55,0) -> 0 | AD52: =ROUNDUP(W52*Coverage!L55,0) -> 0
A53: 48 | B53: =Package_Services!B55 -> 0 | C53: =Package_Services!C55 -> 0 | D53: =Package_Services!D55 -> 0 | E53: =Package_Services!E55 -> 0 | F53: =Package_Services!F55 -> 0 | G53: =Package_Services!G55 -> 0 | H53: =Package_Services!H55 -> 0 | I53: =Package_Services!I55 -> 0 | K53: 0 | L53: 0 | M53: 0 | N53: 0 | O53: 0 | P53: 0 | R53: 0 | S53: 0 | T53: 0 | U53: 0 | V53: 0 | W53: 0 | Y53: =IF(Coverage!$G$4="Actual",Coverage!$C56,Coverage!$G56*$R53) -> 0 | Z53: =ROUNDUP(S53*Coverage!H56,0) -> 0 | AA53: =ROUNDUP(T53*Coverage!I56,0) -> 0 | AB53: =ROUNDUP(U53*Coverage!J56,0) -> 0 | AC53: =ROUNDUP(V53*Coverage!K56,0) -> 0 | AD53: =ROUNDUP(W53*Coverage!L56,0) -> 0
A54: 49 | B54: =Package_Services!B56 -> 0 | C54: =Package_Services!C56 -> 0 | D54: =Package_Services!D56 -> 0 | E54: =Package_Services!E56 -> 0 | F54: =Package_Services!F56 -> 0 | G54: =Package_Services!G56 -> 0 | H54: =Package_Services!H56 -> 0 | I54: =Package_Services!I56 -> 0 | K54: 0 | L54: 0 | M54: 0 | N54: 0 | O54: 0 | P54: 0 | R54: 0 | S54: 0 | T54: 0 | U54: 0 | V54: 0 | W54: 0 | Y54: =IF(Coverage!$G$4="Actual",Coverage!$C57,Coverage!$G57*$R54) -> 0 | Z54: =ROUNDUP(S54*Coverage!H57,0) -> 0 | AA54: =ROUNDUP(T54*Coverage!I57,0) -> 0 | AB54: =ROUNDUP(U54*Coverage!J57,0) -> 0 | AC54: =ROUNDUP(V54*Coverage!K57,0) -> 0 | AD54: =ROUNDUP(W54*Coverage!L57,0) -> 0
A55: 50 | B55: =Package_Services!B57 -> 0 | C55: =Package_Services!C57 -> 0 | D55: =Package_Services!D57 -> 0 | E55: =Package_Services!E57 -> 0 | F55: =Package_Services!F57 -> 0 | G55: =Package_Services!G57 -> 0 | H55: =Package_Services!H57 -> 0 | I55: =Package_Services!I57 -> 0 | K55: 0 | L55: 0 | M55: 0 | N55: 0 | O55: 0 | P55: 0 | R55: 0 | S55: 0 | T55: 0 | U55: 0 | V55: 0 | W55: 0 | Y55: =IF(Coverage!$G$4="Actual",Coverage!$C58,Coverage!$G58*$R55) -> 0 | Z55: =ROUNDUP(S55*Coverage!H58,0) -> 0 | AA55: =ROUNDUP(T55*Coverage!I58,0) -> 0 | AB55: =ROUNDUP(U55*Coverage!J58,0) -> 0 | AC55: =ROUNDUP(V55*Coverage!K58,0) -> 0 | AD55: =ROUNDUP(W55*Coverage!L58,0) -> 0
A56: 51 | B56: =Package_Services!B58 -> 0 | C56: =Package_Services!C58 -> 0 | D56: =Package_Services!D58 -> 0 | E56: =Package_Services!E58 -> 0 | F56: =Package_Services!F58 -> 0 | G56: =Package_Services!G58 -> 0 | H56: =Package_Services!H58 -> 0 | I56: =Package_Services!I58 -> 0 | K56: =IF($D56=0,0,VLOOKUP($D56,lookup_demography,K$3,FALSE)) -> 0 | L56: 0 | M56: 0 | N56: 0 | O56: 0 | P56: 0 | R56: 0 | S56: 0 | T56: 0 | U56: 0 | V56: 0 | W56: 0 | Y56: =IF(Coverage!$G$4="Actual",Coverage!$C59,Coverage!$G59*$R56) -> 0 | Z56: =ROUNDUP(S56*Coverage!H59,0) -> 0 | AA56: =ROUNDUP(T56*Coverage!I59,0) -> 0 | AB56: =ROUNDUP(U56*Coverage!J59,0) -> 0 | AC56: =ROUNDUP(V56*Coverage!K59,0) -> 0 | AD56: =ROUNDUP(W56*Coverage!L59,0) -> 0
A57: 52 | B57: =Package_Services!B59 -> 0 | C57: =Package_Services!C59 -> 0 | D57: =Package_Services!D59 -> 0 | E57: =Package_Services!E59 -> 0 | F57: =Package_Services!F59 -> 0 | G57: =Package_Services!G59 -> 0 | H57: =Package_Services!H59 -> 0 | I57: =Package_Services!I59 -> 0 | K57: 0 | L57: 0 | M57: 0 | N57: 0 | O57: 0 | P57: 0 | R57: 0 | S57: 0 | T57: 0 | U57: 0 | V57: 0 | W57: 0 | Y57: =IF(Coverage!$G$4="Actual",Coverage!$C60,Coverage!$G60*$R57) -> 0 | Z57: =ROUNDUP(S57*Coverage!H60,0) -> 0 | AA57: =ROUNDUP(T57*Coverage!I60,0) -> 0 | AB57: =ROUNDUP(U57*Coverage!J60,0) -> 0 | AC57: =ROUNDUP(V57*Coverage!K60,0) -> 0 | AD57: =ROUNDUP(W57*Coverage!L60,0) -> 0
A58: 53 | B58: =Package_Services!B60 -> 0 | C58: =Package_Services!C60 -> 0 | D58: =Package_Services!D60 -> 0 | E58: =Package_Services!E60 -> 0 | F58: =Package_Services!F60 -> 0 | G58: =Package_Services!G60 -> 0 | H58: =Package_Services!H60 -> 0 | I58: =Package_Services!I60 -> 0 | K58: 0 | L58: 0 | M58: 0 | N58: 0 | O58: 0 | P58: 0 | R58: 0 | S58: 0 | T58: 0 | U58: 0 | V58: 0 | W58: 0 | Y58: =IF(Coverage!$G$4="Actual",Coverage!$C61,Coverage!$G61*$R58) -> 0 | Z58: =ROUNDUP(S58*Coverage!H61,0) -> 0 | AA58: =ROUNDUP(T58*Coverage!I61,0) -> 0 | AB58: =ROUNDUP(U58*Coverage!J61,0) -> 0 | AC58: =ROUNDUP(V58*Coverage!K61,0) -> 0 | AD58: =ROUNDUP(W58*Coverage!L61,0) -> 0
A59: 54 | B59: =Package_Services!B61 -> 0 | C59: =Package_Services!C61 -> 0 | D59: =Package_Services!D61 -> 0 | E59: =Package_Services!E61 -> 0 | F59: =Package_Services!F61 -> 0 | G59: =Package_Services!G61 -> 0 | H59: =Package_Services!H61 -> 0 | I59: =Package_Services!I61 -> 0 | K59: 0 | L59: 0 | M59: 0 | N59: 0 | O59: 0 | P59: 0 | R59: 0 | S59: 0 | T59: 0 | U59: 0 | V59: 0 | W59: 0 | Y59: =IF(Coverage!$G$4="Actual",Coverage!$C62,Coverage!$G62*$R59) -> 0 | Z59: =ROUNDUP(S59*Coverage!H62,0) -> 0 | AA59: =ROUNDUP(T59*Coverage!I62,0) -> 0 | AB59: =ROUNDUP(U59*Coverage!J62,0) -> 0 | AC59: =ROUNDUP(V59*Coverage!K62,0) -> 0 | AD59: =ROUNDUP(W59*Coverage!L62,0) -> 0
A60: 55 | B60: =Package_Services!B62 -> 0 | C60: =Package_Services!C62 -> 0 | D60: =Package_Services!D62 -> 0 | E60: =Package_Services!E62 -> 0 | F60: =Package_Services!F62 -> 0 | G60: =Package_Services!G62 -> 0 | H60: =Package_Services!H62 -> 0 | I60: =Package_Services!I62 -> 0 | K60: 0 | L60: 0 | M60: 0 | N60: 0 | O60: 0 | P60: 0 | R60: 0 | S60: 0 | T60: 0 | U60: 0 | V60: 0 | W60: 0 | Y60: =IF(Coverage!$G$4="Actual",Coverage!$C63,Coverage!$G63*$R60) -> 0 | Z60: =ROUNDUP(S60*Coverage!H63,0) -> 0 | AA60: =ROUNDUP(T60*Coverage!I63,0) -> 0 | AB60: =ROUNDUP(U60*Coverage!J63,0) -> 0 | AC60: =ROUNDUP(V60*Coverage!K63,0) -> 0 | AD60: =ROUNDUP(W60*Coverage!L63,0) -> 0
A61: 56 | B61: =Package_Services!B63 -> 0 | C61: =Package_Services!C63 -> 0 | D61: =Package_Services!D63 -> 0 | E61: =Package_Services!E63 -> 0 | F61: =Package_Services!F63 -> 0 | G61: =Package_Services!G63 -> 0 | H61: =Package_Services!H63 -> 0 | I61: =Package_Services!I63 -> 0 | K61: 0 | L61: 0 | M61: 0 | N61: 0 | O61: 0 | P61: 0 | R61: 0 | S61: 0 | T61: 0 | U61: 0 | V61: 0 | W61: 0 | Y61: =IF(Coverage!$G$4="Actual",Coverage!$C64,Coverage!$G64*$R61) -> 0 | Z61: =ROUNDUP(S61*Coverage!H64,0) -> 0 | AA61: =ROUNDUP(T61*Coverage!I64,0) -> 0 | AB61: =ROUNDUP(U61*Coverage!J64,0) -> 0 | AC61: =ROUNDUP(V61*Coverage!K64,0) -> 0 | AD61: =ROUNDUP(W61*Coverage!L64,0) -> 0
A62: 57 | B62: =Package_Services!B64 -> 0 | C62: =Package_Services!C64 -> 0 | D62: =Package_Services!D64 -> 0 | E62: =Package_Services!E64 -> 0 | F62: =Package_Services!F64 -> 0 | G62: =Package_Services!G64 -> 0 | H62: =Package_Services!H64 -> 0 | I62: =Package_Services!I64 -> 0 | K62: 0 | L62: 0 | M62: 0 | N62: 0 | O62: 0 | P62: 0 | R62: 0 | S62: 0 | T62: 0 | U62: 0 | V62: 0 | W62: 0 | Y62: =IF(Coverage!$G$4="Actual",Coverage!$C65,Coverage!$G65*$R62) -> 0 | Z62: =ROUNDUP(S62*Coverage!H65,0) -> 0 | AA62: =ROUNDUP(T62*Coverage!I65,0) -> 0 | AB62: =ROUNDUP(U62*Coverage!J65,0) -> 0 | AC62: =ROUNDUP(V62*Coverage!K65,0) -> 0 | AD62: =ROUNDUP(W62*Coverage!L65,0) -> 0
A63: 58 | B63: =Package_Services!B65 -> 0 | C63: =Package_Services!C65 -> 0 | D63: =Package_Services!D65 -> 0 | E63: =Package_Services!E65 -> 0 | F63: =Package_Services!F65 -> 0 | G63: =Package_Services!G65 -> 0 | H63: =Package_Services!H65 -> 0 | I63: =Package_Services!I65 -> 0 | K63: 0 | L63: 0 | M63: 0 | N63: 0 | O63: 0 | P63: 0 | R63: 0 | S63: 0 | T63: 0 | U63: 0 | V63: 0 | W63: 0 | Y63: =IF(Coverage!$G$4="Actual",Coverage!$C66,Coverage!$G66*$R63) -> 0 | Z63: =ROUNDUP(S63*Coverage!H66,0) -> 0 | AA63: =ROUNDUP(T63*Coverage!I66,0) -> 0 | AB63: =ROUNDUP(U63*Coverage!J66,0) -> 0 | AC63: =ROUNDUP(V63*Coverage!K66,0) -> 0 | AD63: =ROUNDUP(W63*Coverage!L66,0) -> 0
A64: 59 | B64: =Package_Services!B66 -> 0 | C64: =Package_Services!C66 -> 0 | D64: =Package_Services!D66 -> 0 | E64: =Package_Services!E66 -> 0 | F64: =Package_Services!F66 -> 0 | G64: =Package_Services!G66 -> 0 | H64: =Package_Services!H66 -> 0 | I64: =Package_Services!I66 -> 0 | K64: 0 | L64: 0 | M64: 0 | N64: 0 | O64: 0 | P64: 0 | R64: 0 | S64: 0 | T64: 0 | U64: 0 | V64: 0 | W64: 0 | Y64: =IF(Coverage!$G$4="Actual",Coverage!$C67,Coverage!$G67*$R64) -> 0 | Z64: =ROUNDUP(S64*Coverage!H67,0) -> 0 | AA64: =ROUNDUP(T64*Coverage!I67,0) -> 0 | AB64: =ROUNDUP(U64*Coverage!J67,0) -> 0 | AC64: =ROUNDUP(V64*Coverage!K67,0) -> 0 | AD64: =ROUNDUP(W64*Coverage!L67,0) -> 0
A65: 60 | B65: =Package_Services!B67 -> 0 | C65: =Package_Services!C67 -> 0 | D65: =Package_Services!D67 -> 0 | E65: =Package_Services!E67 -> 0 | F65: =Package_Services!F67 -> 0 | G65: =Package_Services!G67 -> 0 | H65: =Package_Services!H67 -> 0 | I65: =Package_Services!I67 -> 0 | K65: 0 | L65: 0 | M65: 0 | N65: 0 | O65: 0 | P65: 0 | R65: 0 | S65: 0 | T65: 0 | U65: 0 | V65: 0 | W65: 0 | Y65: =IF(Coverage!$G$4="Actual",Coverage!$C68,Coverage!$G68*$R65) -> 0 | Z65: =ROUNDUP(S65*Coverage!H68,0) -> 0 | AA65: =ROUNDUP(T65*Coverage!I68,0) -> 0 | AB65: =ROUNDUP(U65*Coverage!J68,0) -> 0 | AC65: =ROUNDUP(V65*Coverage!K68,0) -> 0 | AD65: =ROUNDUP(W65*Coverage!L68,0) -> 0
A66: 61 | B66: =Package_Services!B68 -> 0 | C66: =Package_Services!C68 -> 0 | D66: =Package_Services!D68 -> 0 | E66: =Package_Services!E68 -> 0 | F66: =Package_Services!F68 -> 0 | G66: =Package_Services!G68 -> 0 | H66: =Package_Services!H68 -> 0 | I66: =Package_Services!I68 -> 0 | K66: =IF($D66=0,0,VLOOKUP($D66,lookup_demography,K$3,FALSE)) -> 0 | L66: 0 | M66: 0 | N66: 0 | O66: 0 | P66: 0 | R66: 0 | S66: 0 | T66: 0 | U66: 0 | V66: 0 | W66: 0 | Y66: =IF(Coverage!$G$4="Actual",Coverage!$C69,Coverage!$G69*$R66) -> 0 | Z66: =ROUNDUP(S66*Coverage!H69,0) -> 0 | AA66: =ROUNDUP(T66*Coverage!I69,0) -> 0 | AB66: =ROUNDUP(U66*Coverage!J69,0) -> 0 | AC66: =ROUNDUP(V66*Coverage!K69,0) -> 0 | AD66: =ROUNDUP(W66*Coverage!L69,0) -> 0
A67: 62 | B67: =Package_Services!B69 -> 0 | C67: =Package_Services!C69 -> 0 | D67: =Package_Services!D69 -> 0 | E67: =Package_Services!E69 -> 0 | F67: =Package_Services!F69 -> 0 | G67: =Package_Services!G69 -> 0 | H67: =Package_Services!H69 -> 0 | I67: =Package_Services!I69 -> 0 | K67: 0 | L67: 0 | M67: 0 | N67: 0 | O67: 0 | P67: 0 | R67: 0 | S67: 0 | T67: 0 | U67: 0 | V67: 0 | W67: 0 | Y67: =IF(Coverage!$G$4="Actual",Coverage!$C70,Coverage!$G70*$R67) -> 0 | Z67: =ROUNDUP(S67*Coverage!H70,0) -> 0 | AA67: =ROUNDUP(T67*Coverage!I70,0) -> 0 | AB67: =ROUNDUP(U67*Coverage!J70,0) -> 0 | AC67: =ROUNDUP(V67*Coverage!K70,0) -> 0 | AD67: =ROUNDUP(W67*Coverage!L70,0) -> 0
A68: 63 | B68: =Package_Services!B70 -> 0 | C68: =Package_Services!C70 -> 0 | D68: =Package_Services!D70 -> 0 | E68: =Package_Services!E70 -> 0 | F68: =Package_Services!F70 -> 0 | G68: =Package_Services!G70 -> 0 | H68: =Package_Services!H70 -> 0 | I68: =Package_Services!I70 -> 0 | K68: 0 | L68: 0 | M68: 0 | N68: 0 | O68: 0 | P68: 0 | R68: 0 | S68: 0 | T68: 0 | U68: 0 | V68: 0 | W68: 0 | Y68: =IF(Coverage!$G$4="Actual",Coverage!$C71,Coverage!$G71*$R68) -> 0 | Z68: =ROUNDUP(S68*Coverage!H71,0) -> 0 | AA68: =ROUNDUP(T68*Coverage!I71,0) -> 0 | AB68: =ROUNDUP(U68*Coverage!J71,0) -> 0 | AC68: =ROUNDUP(V68*Coverage!K71,0) -> 0 | AD68: =ROUNDUP(W68*Coverage!L71,0) -> 0
A69: 64 | B69: =Package_Services!B71 -> 0 | C69: =Package_Services!C71 -> 0 | D69: =Package_Services!D71 -> 0 | E69: =Package_Services!E71 -> 0 | F69: =Package_Services!F71 -> 0 | G69: =Package_Services!G71 -> 0 | H69: =Package_Services!H71 -> 0 | I69: =Package_Services!I71 -> 0 | K69: 0 | L69: 0 | M69: 0 | N69: 0 | O69: 0 | P69: 0 | R69: 0 | S69: 0 | T69: 0 | U69: 0 | V69: 0 | W69: 0 | Y69: =IF(Coverage!$G$4="Actual",Coverage!$C72,Coverage!$G72*$R69) -> 0 | Z69: =ROUNDUP(S69*Coverage!H72,0) -> 0 | AA69: =ROUNDUP(T69*Coverage!I72,0) -> 0 | AB69: =ROUNDUP(U69*Coverage!J72,0) -> 0 | AC69: =ROUNDUP(V69*Coverage!K72,0) -> 0 | AD69: =ROUNDUP(W69*Coverage!L72,0) -> 0
A70: 65 | B70: =Package_Services!B72 -> 0 | C70: =Package_Services!C72 -> 0 | D70: =Package_Services!D72 -> 0 | E70: =Package_Services!E72 -> 0 | F70: =Package_Services!F72 -> 0 | G70: =Package_Services!G72 -> 0 | H70: =Package_Services!H72 -> 0 | I70: =Package_Services!I72 -> 0 | K70: 0 | L70: 0 | M70: 0 | N70: 0 | O70: 0 | P70: 0 | R70: 0 | S70: 0 | T70: 0 | U70: 0 | V70: 0 | W70: 0 | Y70: =IF(Coverage!$G$4="Actual",Coverage!$C73,Coverage!$G73*$R70) -> 0 | Z70: =ROUNDUP(S70*Coverage!H73,0) -> 0 | AA70: =ROUNDUP(T70*Coverage!I73,0) -> 0 | AB70: =ROUNDUP(U70*Coverage!J73,0) -> 0 | AC70: =ROUNDUP(V70*Coverage!K73,0) -> 0 | AD70: =ROUNDUP(W70*Coverage!L73,0) -> 0
A71: 66 | B71: =Package_Services!B73 -> 0 | C71: =Package_Services!C73 -> 0 | D71: =Package_Services!D73 -> 0 | E71: =Package_Services!E73 -> 0 | F71: =Package_Services!F73 -> 0 | G71: =Package_Services!G73 -> 0 | H71: =Package_Services!H73 -> 0 | I71: =Package_Services!I73 -> 0 | K71: 0 | L71: 0 | M71: 0 | N71: 0 | O71: 0 | P71: 0 | R71: =K71*$I71 -> 0 | S71: =L71*$I71 -> 0 | T71: =M71*$I71 -> 0 | U71: =N71*$I71 -> 0 | V71: =O71*$I71 -> 0 | W71: =P71*$I71 -> 0 | Y71: =IF(Coverage!$G$4="Actual",Coverage!$C74,Coverage!$G74*$R71) -> 0 | Z71: =ROUNDUP(S71*Coverage!H74,0) -> 0 | AA71: =ROUNDUP(T71*Coverage!I74,0) -> 0 | AB71: =ROUNDUP(U71*Coverage!J74,0) -> 0 | AC71: =ROUNDUP(V71*Coverage!K74,0) -> 0 | AD71: =ROUNDUP(W71*Coverage!L74,0) -> 0
A72: 67 | B72: =Package_Services!B74 -> 0 | C72: =Package_Services!C74 -> 0 | D72: =Package_Services!D74 -> 0 | E72: =Package_Services!E74 -> 0 | F72: =Package_Services!F74 -> 0 | G72: =Package_Services!G74 -> 0 | H72: =Package_Services!H74 -> 0 | I72: =Package_Services!I74 -> 0 | K72: 0 | L72: 0 | M72: 0 | N72: 0 | O72: 0 | P72: 0 | R72: 0 | S72: 0 | T72: 0 | U72: 0 | V72: 0 | W72: 0 | Y72: =IF(Coverage!$G$4="Actual",Coverage!$C75,Coverage!$G75*$R72) -> 0 | Z72: =ROUNDUP(S72*Coverage!H75,0) -> 0 | AA72: =ROUNDUP(T72*Coverage!I75,0) -> 0 | AB72: =ROUNDUP(U72*Coverage!J75,0) -> 0 | AC72: =ROUNDUP(V72*Coverage!K75,0) -> 0 | AD72: =ROUNDUP(W72*Coverage!L75,0) -> 0
A73: 68 | B73: =Package_Services!B75 -> 0 | C73: =Package_Services!C75 -> 0 | D73: =Package_Services!D75 -> 0 | E73: =Package_Services!E75 -> 0 | F73: =Package_Services!F75 -> 0 | G73: =Package_Services!G75 -> 0 | H73: =Package_Services!H75 -> 0 | I73: =Package_Services!I75 -> 0 | K73: 0 | L73: 0 | M73: 0 | N73: 0 | O73: 0 | P73: 0 | R73: 0 | S73: 0 | T73: 0 | U73: 0 | V73: 0 | W73: 0 | Y73: =IF(Coverage!$G$4="Actual",Coverage!$C76,Coverage!$G76*$R73) -> 0 | Z73: =ROUNDUP(S73*Coverage!H76,0) -> 0 | AA73: =ROUNDUP(T73*Coverage!I76,0) -> 0 | AB73: =ROUNDUP(U73*Coverage!J76,0) -> 0 | AC73: =ROUNDUP(V73*Coverage!K76,0) -> 0 | AD73: =ROUNDUP(W73*Coverage!L76,0) -> 0
A74: 69 | B74: =Package_Services!B76 -> 0 | C74: =Package_Services!C76 -> 0 | D74: =Package_Services!D76 -> 0 | E74: =Package_Services!E76 -> 0 | F74: =Package_Services!F76 -> 0 | G74: =Package_Services!G76 -> 0 | H74: =Package_Services!H76 -> 0 | I74: =Package_Services!I76 -> 0 | K74: 0 | L74: 0 | M74: 0 | N74: 0 | O74: 0 | P74: 0 | R74: 0 | S74: 0 | T74: 0 | U74: 0 | V74: 0 | W74: 0 | Y74: =IF(Coverage!$G$4="Actual",Coverage!$C77,Coverage!$G77*$R74) -> 0 | Z74: =ROUNDUP(S74*Coverage!H77,0) -> 0 | AA74: =ROUNDUP(T74*Coverage!I77,0) -> 0 | AB74: =ROUNDUP(U74*Coverage!J77,0) -> 0 | AC74: =ROUNDUP(V74*Coverage!K77,0) -> 0 | AD74: =ROUNDUP(W74*Coverage!L77,0) -> 0
A75: 70 | B75: =Package_Services!B77 -> 0 | C75: =Package_Services!C77 -> 0 | D75: =Package_Services!D77 -> 0 | E75: =Package_Services!E77 -> 0 | F75: =Package_Services!F77 -> 0 | G75: =Package_Services!G77 -> 0 | H75: =Package_Services!H77 -> 0 | I75: =Package_Services!I77 -> 0 | K75: 0 | L75: 0 | M75: 0 | N75: 0 | O75: 0 | P75: 0 | R75: 0 | S75: 0 | T75: 0 | U75: 0 | V75: 0 | W75: 0 | Y75: =IF(Coverage!$G$4="Actual",Coverage!$C78,Coverage!$G78*$R75) -> 0 | Z75: =ROUNDUP(S75*Coverage!H78,0) -> 0 | AA75: =ROUNDUP(T75*Coverage!I78,0) -> 0 | AB75: =ROUNDUP(U75*Coverage!J78,0) -> 0 | AC75: =ROUNDUP(V75*Coverage!K78,0) -> 0 | AD75: =ROUNDUP(W75*Coverage!L78,0) -> 0
A76: 71 | B76: =Package_Services!B78 -> 0 | C76: =Package_Services!C78 -> 0 | D76: =Package_Services!D78 -> 0 | E76: =Package_Services!E78 -> 0 | F76: =Package_Services!F78 -> 0 | G76: =Package_Services!G78 -> 0 | H76: =Package_Services!H78 -> 0 | I76: =Package_Services!I78 -> 0 | K76: =IF($D76=0,0,VLOOKUP($D76,lookup_demography,K$3,FALSE)) -> 0 | L76: 0 | M76: 0 | N76: 0 | O76: 0 | P76: 0 | R76: 0 | S76: 0 | T76: 0 | U76: 0 | V76: 0 | W76: 0 | Y76: =IF(Coverage!$G$4="Actual",Coverage!$C79,Coverage!$G79*$R76) -> 0 | Z76: =ROUNDUP(S76*Coverage!H79,0) -> 0 | AA76: =ROUNDUP(T76*Coverage!I79,0) -> 0 | AB76: =ROUNDUP(U76*Coverage!J79,0) -> 0 | AC76: =ROUNDUP(V76*Coverage!K79,0) -> 0 | AD76: =ROUNDUP(W76*Coverage!L79,0) -> 0
A77: 72 | B77: =Package_Services!B79 -> 0 | C77: =Package_Services!C79 -> 0 | D77: =Package_Services!D79 -> 0 | E77: =Package_Services!E79 -> 0 | F77: =Package_Services!F79 -> 0 | G77: =Package_Services!G79 -> 0 | H77: =Package_Services!H79 -> 0 | I77: =Package_Services!I79 -> 0 | K77: 0 | L77: 0 | M77: 0 | N77: 0 | O77: 0 | P77: 0 | R77: 0 | S77: 0 | T77: 0 | U77: 0 | V77: 0 | W77: 0 | Y77: =IF(Coverage!$G$4="Actual",Coverage!$C80,Coverage!$G80*$R77) -> 0 | Z77: =ROUNDUP(S77*Coverage!H80,0) -> 0 | AA77: =ROUNDUP(T77*Coverage!I80,0) -> 0 | AB77: =ROUNDUP(U77*Coverage!J80,0) -> 0 | AC77: =ROUNDUP(V77*Coverage!K80,0) -> 0 | AD77: =ROUNDUP(W77*Coverage!L80,0) -> 0
A78: 73 | B78: =Package_Services!B80 -> 0 | C78: =Package_Services!C80 -> 0 | D78: =Package_Services!D80 -> 0 | E78: =Package_Services!E80 -> 0 | F78: =Package_Services!F80 -> 0 | G78: =Package_Services!G80 -> 0 | H78: =Package_Services!H80 -> 0 | I78: =Package_Services!I80 -> 0 | K78: 0 | L78: 0 | M78: 0 | N78: 0 | O78: 0 | P78: 0 | R78: 0 | S78: 0 | T78: 0 | U78: 0 | V78: 0 | W78: 0 | Y78: =IF(Coverage!$G$4="Actual",Coverage!$C81,Coverage!$G81*$R78) -> 0 | Z78: =ROUNDUP(S78*Coverage!H81,0) -> 0 | AA78: =ROUNDUP(T78*Coverage!I81,0) -> 0 | AB78: =ROUNDUP(U78*Coverage!J81,0) -> 0 | AC78: =ROUNDUP(V78*Coverage!K81,0) -> 0 | AD78: =ROUNDUP(W78*Coverage!L81,0) -> 0
A79: 74 | B79: =Package_Services!B81 -> 0 | C79: =Package_Services!C81 -> 0 | D79: =Package_Services!D81 -> 0 | E79: =Package_Services!E81 -> 0 | F79: =Package_Services!F81 -> 0 | G79: =Package_Services!G81 -> 0 | H79: =Package_Services!H81 -> 0 | I79: =Package_Services!I81 -> 0 | K79: 0 | L79: 0 | M79: 0 | N79: 0 | O79: 0 | P79: 0 | R79: 0 | S79: 0 | T79: 0 | U79: 0 | V79: 0 | W79: 0 | Y79: =IF(Coverage!$G$4="Actual",Coverage!$C82,Coverage!$G82*$R79) -> 0 | Z79: =ROUNDUP(S79*Coverage!H82,0) -> 0 | AA79: =ROUNDUP(T79*Coverage!I82,0) -> 0 | AB79: =ROUNDUP(U79*Coverage!J82,0) -> 0 | AC79: =ROUNDUP(V79*Coverage!K82,0) -> 0 | AD79: =ROUNDUP(W79*Coverage!L82,0) -> 0
A80: 75 | B80: =Package_Services!B82 -> 0 | C80: =Package_Services!C82 -> 0 | D80: =Package_Services!D82 -> 0 | E80: =Package_Services!E82 -> 0 | F80: =Package_Services!F82 -> 0 | G80: =Package_Services!G82 -> 0 | H80: =Package_Services!H82 -> 0 | I80: =Package_Services!I82 -> 0 | K80: 0 | L80: 0 | M80: 0 | N80: 0 | O80: 0 | P80: 0 | R80: 0 | S80: 0 | T80: 0 | U80: 0 | V80: 0 | W80: 0 | Y80: =IF(Coverage!$G$4="Actual",Coverage!$C83,Coverage!$G83*$R80) -> 0 | Z80: =ROUNDUP(S80*Coverage!H83,0) -> 0 | AA80: =ROUNDUP(T80*Coverage!I83,0) -> 0 | AB80: =ROUNDUP(U80*Coverage!J83,0) -> 0 | AC80: =ROUNDUP(V80*Coverage!K83,0) -> 0 | AD80: =ROUNDUP(W80*Coverage!L83,0) -> 0
A81: 76 | B81: =Package_Services!B83 -> 0 | C81: =Package_Services!C83 -> 0 | D81: =Package_Services!D83 -> 0 | E81: =Package_Services!E83 -> 0 | F81: =Package_Services!F83 -> 0 | G81: =Package_Services!G83 -> 0 | H81: =Package_Services!H83 -> 0 | I81: =Package_Services!I83 -> 0 | K81: 0 | L81: 0 | M81: 0 | N81: 0 | O81: 0 | P81: 0 | R81: 0 | S81: 0 | T81: 0 | U81: 0 | V81: 0 | W81: 0 | Y81: =IF(Coverage!$G$4="Actual",Coverage!$C84,Coverage!$G84*$R81) -> 0 | Z81: =ROUNDUP(S81*Coverage!H84,0) -> 0 | AA81: =ROUNDUP(T81*Coverage!I84,0) -> 0 | AB81: =ROUNDUP(U81*Coverage!J84,0) -> 0 | AC81: =ROUNDUP(V81*Coverage!K84,0) -> 0 | AD81: =ROUNDUP(W81*Coverage!L84,0) -> 0
A82: 77 | B82: =Package_Services!B84 -> 0 | C82: =Package_Services!C84 -> 0 | D82: =Package_Services!D84 -> 0 | E82: =Package_Services!E84 -> 0 | F82: =Package_Services!F84 -> 0 | G82: =Package_Services!G84 -> 0 | H82: =Package_Services!H84 -> 0 | I82: =Package_Services!I84 -> 0 | K82: 0 | L82: 0 | M82: 0 | N82: 0 | O82: 0 | P82: 0 | R82: 0 | S82: 0 | T82: 0 | U82: 0 | V82: 0 | W82: 0 | Y82: =IF(Coverage!$G$4="Actual",Coverage!$C85,Coverage!$G85*$R82) -> 0 | Z82: =ROUNDUP(S82*Coverage!H85,0) -> 0 | AA82: =ROUNDUP(T82*Coverage!I85,0) -> 0 | AB82: =ROUNDUP(U82*Coverage!J85,0) -> 0 | AC82: =ROUNDUP(V82*Coverage!K85,0) -> 0 | AD82: =ROUNDUP(W82*Coverage!L85,0) -> 0
A83: 78 | B83: =Package_Services!B85 -> 0 | C83: =Package_Services!C85 -> 0 | D83: =Package_Services!D85 -> 0 | E83: =Package_Services!E85 -> 0 | F83: =Package_Services!F85 -> 0 | G83: =Package_Services!G85 -> 0 | H83: =Package_Services!H85 -> 0 | I83: =Package_Services!I85 -> 0 | K83: 0 | L83: 0 | M83: 0 | N83: 0 | O83: 0 | P83: 0 | R83: 0 | S83: 0 | T83: 0 | U83: 0 | V83: 0 | W83: 0 | Y83: =IF(Coverage!$G$4="Actual",Coverage!$C86,Coverage!$G86*$R83) -> 0 | Z83: =ROUNDUP(S83*Coverage!H86,0) -> 0 | AA83: =ROUNDUP(T83*Coverage!I86,0) -> 0 | AB83: =ROUNDUP(U83*Coverage!J86,0) -> 0 | AC83: =ROUNDUP(V83*Coverage!K86,0) -> 0 | AD83: =ROUNDUP(W83*Coverage!L86,0) -> 0
A84: 79 | B84: =Package_Services!B86 -> 0 | C84: =Package_Services!C86 -> 0 | D84: =Package_Services!D86 -> 0 | E84: =Package_Services!E86 -> 0 | F84: =Package_Services!F86 -> 0 | G84: =Package_Services!G86 -> 0 | H84: =Package_Services!H86 -> 0 | I84: =Package_Services!I86 -> 0 | K84: 0 | L84: 0 | M84: 0 | N84: 0 | O84: 0 | P84: 0 | R84: 0 | S84: 0 | T84: 0 | U84: 0 | V84: 0 | W84: 0 | Y84: =IF(Coverage!$G$4="Actual",Coverage!$C87,Coverage!$G87*$R84) -> 0 | Z84: =ROUNDUP(S84*Coverage!H87,0) -> 0 | AA84: =ROUNDUP(T84*Coverage!I87,0) -> 0 | AB84: =ROUNDUP(U84*Coverage!J87,0) -> 0 | AC84: =ROUNDUP(V84*Coverage!K87,0) -> 0 | AD84: =ROUNDUP(W84*Coverage!L87,0) -> 0
A85: 80 | B85: =Package_Services!B87 -> 0 | C85: =Package_Services!C87 -> 0 | D85: =Package_Services!D87 -> 0 | E85: =Package_Services!E87 -> 0 | F85: =Package_Services!F87 -> 0 | G85: =Package_Services!G87 -> 0 | H85: =Package_Services!H87 -> 0 | I85: =Package_Services!I87 -> 0 | K85: 0 | L85: 0 | M85: 0 | N85: 0 | O85: 0 | P85: 0 | R85: 0 | S85: 0 | T85: 0 | U85: 0 | V85: 0 | W85: 0 | Y85: =IF(Coverage!$G$4="Actual",Coverage!$C88,Coverage!$G88*$R85) -> 0 | Z85: =ROUNDUP(S85*Coverage!H88,0) -> 0 | AA85: =ROUNDUP(T85*Coverage!I88,0) -> 0 | AB85: =ROUNDUP(U85*Coverage!J88,0) -> 0 | AC85: =ROUNDUP(V85*Coverage!K88,0) -> 0 | AD85: =ROUNDUP(W85*Coverage!L88,0) -> 0
A86: 81 | B86: =Package_Services!B88 -> 0 | C86: =Package_Services!C88 -> 0 | D86: =Package_Services!D88 -> 0 | E86: =Package_Services!E88 -> 0 | F86: =Package_Services!F88 -> 0 | G86: =Package_Services!G88 -> 0 | H86: =Package_Services!H88 -> 0 | I86: =Package_Services!I88 -> 0 | K86: =IF($D86=0,0,VLOOKUP($D86,lookup_demography,K$3,FALSE)) -> 0 | L86: 0 | M86: 0 | N86: 0 | O86: 0 | P86: 0 | R86: 0 | S86: 0 | T86: 0 | U86: 0 | V86: 0 | W86: 0 | Y86: =IF(Coverage!$G$4="Actual",Coverage!$C89,Coverage!$G89*$R86) -> 0 | Z86: =ROUNDUP(S86*Coverage!H89,0) -> 0 | AA86: =ROUNDUP(T86*Coverage!I89,0) -> 0 | AB86: =ROUNDUP(U86*Coverage!J89,0) -> 0 | AC86: =ROUNDUP(V86*Coverage!K89,0) -> 0 | AD86: =ROUNDUP(W86*Coverage!L89,0) -> 0
A87: 82 | B87: =Package_Services!B89 -> 0 | C87: =Package_Services!C89 -> 0 | D87: =Package_Services!D89 -> 0 | E87: =Package_Services!E89 -> 0 | F87: =Package_Services!F89 -> 0 | G87: =Package_Services!G89 -> 0 | H87: =Package_Services!H89 -> 0 | I87: =Package_Services!I89 -> 0 | K87: 0 | L87: 0 | M87: 0 | N87: 0 | O87: 0 | P87: 0 | R87: 0 | S87: 0 | T87: 0 | U87: 0 | V87: 0 | W87: 0 | Y87: =IF(Coverage!$G$4="Actual",Coverage!$C90,Coverage!$G90*$R87) -> 0 | Z87: =ROUNDUP(S87*Coverage!H90,0) -> 0 | AA87: =ROUNDUP(T87*Coverage!I90,0) -> 0 | AB87: =ROUNDUP(U87*Coverage!J90,0) -> 0 | AC87: =ROUNDUP(V87*Coverage!K90,0) -> 0 | AD87: =ROUNDUP(W87*Coverage!L90,0) -> 0
A88: 83 | B88: =Package_Services!B90 -> 0 | C88: =Package_Services!C90 -> 0 | D88: =Package_Services!D90 -> 0 | E88: =Package_Services!E90 -> 0 | F88: =Package_Services!F90 -> 0 | G88: =Package_Services!G90 -> 0 | H88: =Package_Services!H90 -> 0 | I88: =Package_Services!I90 -> 0 | K88: 0 | L88: 0 | M88: 0 | N88: 0 | O88: 0 | P88: 0 | R88: 0 | S88: 0 | T88: 0 | U88: 0 | V88: 0 | W88: 0 | Y88: =IF(Coverage!$G$4="Actual",Coverage!$C91,Coverage!$G91*$R88) -> 0 | Z88: =ROUNDUP(S88*Coverage!H91,0) -> 0 | AA88: =ROUNDUP(T88*Coverage!I91,0) -> 0 | AB88: =ROUNDUP(U88*Coverage!J91,0) -> 0 | AC88: =ROUNDUP(V88*Coverage!K91,0) -> 0 | AD88: =ROUNDUP(W88*Coverage!L91,0) -> 0
A89: 84 | B89: =Package_Services!B91 -> 0 | C89: =Package_Services!C91 -> 0 | D89: =Package_Services!D91 -> 0 | E89: =Package_Services!E91 -> 0 | F89: =Package_Services!F91 -> 0 | G89: =Package_Services!G91 -> 0 | H89: =Package_Services!H91 -> 0 | I89: =Package_Services!I91 -> 0 | K89: 0 | L89: 0 | M89: 0 | N89: 0 | O89: 0 | P89: 0 | R89: 0 | S89: 0 | T89: 0 | U89: 0 | V89: 0 | W89: 0 | Y89: =IF(Coverage!$G$4="Actual",Coverage!$C92,Coverage!$G92*$R89) -> 0 | Z89: =ROUNDUP(S89*Coverage!H92,0) -> 0 | AA89: =ROUNDUP(T89*Coverage!I92,0) -> 0 | AB89: =ROUNDUP(U89*Coverage!J92,0) -> 0 | AC89: =ROUNDUP(V89*Coverage!K92,0) -> 0 | AD89: =ROUNDUP(W89*Coverage!L92,0) -> 0
A90: 85 | B90: =Package_Services!B92 -> 0 | C90: =Package_Services!C92 -> 0 | D90: =Package_Services!D92 -> 0 | E90: =Package_Services!E92 -> 0 | F90: =Package_Services!F92 -> 0 | G90: =Package_Services!G92 -> 0 | H90: =Package_Services!H92 -> 0 | I90: =Package_Services!I92 -> 0 | K90: 0 | L90: 0 | M90: 0 | N90: 0 | O90: 0 | P90: 0 | R90: 0 | S90: 0 | T90: 0 | U90: 0 | V90: 0 | W90: 0 | Y90: =IF(Coverage!$G$4="Actual",Coverage!$C93,Coverage!$G93*$R90) -> 0 | Z90: =ROUNDUP(S90*Coverage!H93,0) -> 0 | AA90: =ROUNDUP(T90*Coverage!I93,0) -> 0 | AB90: =ROUNDUP(U90*Coverage!J93,0) -> 0 | AC90: =ROUNDUP(V90*Coverage!K93,0) -> 0 | AD90: =ROUNDUP(W90*Coverage!L93,0) -> 0
A91: 86 | B91: =Package_Services!B93 -> 0 | C91: =Package_Services!C93 -> 0 | D91: =Package_Services!D93 -> 0 | E91: =Package_Services!E93 -> 0 | F91: =Package_Services!F93 -> 0 | G91: =Package_Services!G93 -> 0 | H91: =Package_Services!H93 -> 0 | I91: =Package_Services!I93 -> 0 | K91: 0 | L91: 0 | M91: 0 | N91: 0 | O91: 0 | P91: 0 | R91: 0 | S91: 0 | T91: 0 | U91: 0 | V91: 0 | W91: 0 | Y91: =IF(Coverage!$G$4="Actual",Coverage!$C94,Coverage!$G94*$R91) -> 0 | Z91: =ROUNDUP(S91*Coverage!H94,0) -> 0 | AA91: =ROUNDUP(T91*Coverage!I94,0) -> 0 | AB91: =ROUNDUP(U91*Coverage!J94,0) -> 0 | AC91: =ROUNDUP(V91*Coverage!K94,0) -> 0 | AD91: =ROUNDUP(W91*Coverage!L94,0) -> 0
A92: 87 | B92: =Package_Services!B94 -> 0 | C92: =Package_Services!C94 -> 0 | D92: =Package_Services!D94 -> 0 | E92: =Package_Services!E94 -> 0 | F92: =Package_Services!F94 -> 0 | G92: =Package_Services!G94 -> 0 | H92: =Package_Services!H94 -> 0 | I92: =Package_Services!I94 -> 0 | K92: 0 | L92: 0 | M92: 0 | N92: 0 | O92: 0 | P92: 0 | R92: 0 | S92: 0 | T92: 0 | U92: 0 | V92: 0 | W92: 0 | Y92: =IF(Coverage!$G$4="Actual",Coverage!$C95,Coverage!$G95*$R92) -> 0 | Z92: =ROUNDUP(S92*Coverage!H95,0) -> 0 | AA92: =ROUNDUP(T92*Coverage!I95,0) -> 0 | AB92: =ROUNDUP(U92*Coverage!J95,0) -> 0 | AC92: =ROUNDUP(V92*Coverage!K95,0) -> 0 | AD92: =ROUNDUP(W92*Coverage!L95,0) -> 0
A93: 88 | B93: =Package_Services!B95 -> 0 | C93: =Package_Services!C95 -> 0 | D93: =Package_Services!D95 -> 0 | E93: =Package_Services!E95 -> 0 | F93: =Package_Services!F95 -> 0 | G93: =Package_Services!G95 -> 0 | H93: =Package_Services!H95 -> 0 | I93: =Package_Services!I95 -> 0 | K93: 0 | L93: 0 | M93: 0 | N93: 0 | O93: 0 | P93: 0 | R93: 0 | S93: 0 | T93: 0 | U93: 0 | V93: 0 | W93: 0 | Y93: =IF(Coverage!$G$4="Actual",Coverage!$C96,Coverage!$G96*$R93) -> 0 | Z93: =ROUNDUP(S93*Coverage!H96,0) -> 0 | AA93: =ROUNDUP(T93*Coverage!I96,0) -> 0 | AB93: =ROUNDUP(U93*Coverage!J96,0) -> 0 | AC93: =ROUNDUP(V93*Coverage!K96,0) -> 0 | AD93: =ROUNDUP(W93*Coverage!L96,0) -> 0
A94: 89 | B94: =Package_Services!B96 -> 0 | C94: =Package_Services!C96 -> 0 | D94: =Package_Services!D96 -> 0 | E94: =Package_Services!E96 -> 0 | F94: =Package_Services!F96 -> 0 | G94: =Package_Services!G96 -> 0 | H94: =Package_Services!H96 -> 0 | I94: =Package_Services!I96 -> 0 | K94: 0 | L94: 0 | M94: 0 | N94: 0 | O94: 0 | P94: 0 | R94: 0 | S94: 0 | T94: 0 | U94: 0 | V94: 0 | W94: 0 | Y94: =IF(Coverage!$G$4="Actual",Coverage!$C97,Coverage!$G97*$R94) -> 0 | Z94: =ROUNDUP(S94*Coverage!H97,0) -> 0 | AA94: =ROUNDUP(T94*Coverage!I97,0) -> 0 | AB94: =ROUNDUP(U94*Coverage!J97,0) -> 0 | AC94: =ROUNDUP(V94*Coverage!K97,0) -> 0 | AD94: =ROUNDUP(W94*Coverage!L97,0) -> 0
A95: 90 | B95: =Package_Services!B97 -> 0 | C95: =Package_Services!C97 -> 0 | D95: =Package_Services!D97 -> 0 | E95: =Package_Services!E97 -> 0 | F95: =Package_Services!F97 -> 0 | G95: =Package_Services!G97 -> 0 | H95: =Package_Services!H97 -> 0 | I95: =Package_Services!I97 -> 0 | K95: 0 | L95: 0 | M95: 0 | N95: 0 | O95: 0 | P95: 0 | R95: 0 | S95: 0 | T95: 0 | U95: 0 | V95: 0 | W95: 0 | Y95: =IF(Coverage!$G$4="Actual",Coverage!$C98,Coverage!$G98*$R95) -> 0 | Z95: =ROUNDUP(S95*Coverage!H98,0) -> 0 | AA95: =ROUNDUP(T95*Coverage!I98,0) -> 0 | AB95: =ROUNDUP(U95*Coverage!J98,0) -> 0 | AC95: =ROUNDUP(V95*Coverage!K98,0) -> 0 | AD95: =ROUNDUP(W95*Coverage!L98,0) -> 0
A96: 91 | B96: =Package_Services!B98 -> 0 | C96: =Package_Services!C98 -> 0 | D96: =Package_Services!D98 -> 0 | E96: =Package_Services!E98 -> 0 | F96: =Package_Services!F98 -> 0 | G96: =Package_Services!G98 -> 0 | H96: =Package_Services!H98 -> 0 | I96: =Package_Services!I98 -> 0 | K96: =IF($D96=0,0,VLOOKUP($D96,lookup_demography,K$3,FALSE)) -> 0 | L96: 0 | M96: 0 | N96: 0 | O96: 0 | P96: 0 | R96: 0 | S96: 0 | T96: 0 | U96: 0 | V96: 0 | W96: 0 | Y96: =IF(Coverage!$G$4="Actual",Coverage!$C99,Coverage!$G99*$R96) -> 0 | Z96: =ROUNDUP(S96*Coverage!H99,0) -> 0 | AA96: =ROUNDUP(T96*Coverage!I99,0) -> 0 | AB96: =ROUNDUP(U96*Coverage!J99,0) -> 0 | AC96: =ROUNDUP(V96*Coverage!K99,0) -> 0 | AD96: =ROUNDUP(W96*Coverage!L99,0) -> 0
A97: 92 | B97: =Package_Services!B99 -> 0 | C97: =Package_Services!C99 -> 0 | D97: =Package_Services!D99 -> 0 | E97: =Package_Services!E99 -> 0 | F97: =Package_Services!F99 -> 0 | G97: =Package_Services!G99 -> 0 | H97: =Package_Services!H99 -> 0 | I97: =Package_Services!I99 -> 0 | K97: 0 | L97: 0 | M97: 0 | N97: 0 | O97: 0 | P97: 0 | R97: 0 | S97: 0 | T97: 0 | U97: 0 | V97: 0 | W97: 0 | Y97: =IF(Coverage!$G$4="Actual",Coverage!$C100,Coverage!$G100*$R97) -> 0 | Z97: =ROUNDUP(S97*Coverage!H100,0) -> 0 | AA97: =ROUNDUP(T97*Coverage!I100,0) -> 0 | AB97: =ROUNDUP(U97*Coverage!J100,0) -> 0 | AC97: =ROUNDUP(V97*Coverage!K100,0) -> 0 | AD97: =ROUNDUP(W97*Coverage!L100,0) -> 0
A98: 93 | B98: =Package_Services!B100 -> 0 | C98: =Package_Services!C100 -> 0 | D98: =Package_Services!D100 -> 0 | E98: =Package_Services!E100 -> 0 | F98: =Package_Services!F100 -> 0 | G98: =Package_Services!G100 -> 0 | H98: =Package_Services!H100 -> 0 | I98: =Package_Services!I100 -> 0 | K98: 0 | L98: 0 | M98: 0 | N98: 0 | O98: 0 | P98: 0 | R98: 0 | S98: 0 | T98: 0 | U98: 0 | V98: 0 | W98: 0 | Y98: =IF(Coverage!$G$4="Actual",Coverage!$C101,Coverage!$G101*$R98) -> 0 | Z98: =ROUNDUP(S98*Coverage!H101,0) -> 0 | AA98: =ROUNDUP(T98*Coverage!I101,0) -> 0 | AB98: =ROUNDUP(U98*Coverage!J101,0) -> 0 | AC98: =ROUNDUP(V98*Coverage!K101,0) -> 0 | AD98: =ROUNDUP(W98*Coverage!L101,0) -> 0
A99: 94 | B99: =Package_Services!B101 -> 0 | C99: =Package_Services!C101 -> 0 | D99: =Package_Services!D101 -> 0 | E99: =Package_Services!E101 -> 0 | F99: =Package_Services!F101 -> 0 | G99: =Package_Services!G101 -> 0 | H99: =Package_Services!H101 -> 0 | I99: =Package_Services!I101 -> 0 | K99: 0 | L99: 0 | M99: 0 | N99: 0 | O99: 0 | P99: 0 | R99: 0 | S99: 0 | T99: 0 | U99: 0 | V99: 0 | W99: 0 | Y99: =IF(Coverage!$G$4="Actual",Coverage!$C102,Coverage!$G102*$R99) -> 0 | Z99: =ROUNDUP(S99*Coverage!H102,0) -> 0 | AA99: =ROUNDUP(T99*Coverage!I102,0) -> 0 | AB99: =ROUNDUP(U99*Coverage!J102,0) -> 0 | AC99: =ROUNDUP(V99*Coverage!K102,0) -> 0 | AD99: =ROUNDUP(W99*Coverage!L102,0) -> 0
A100: 95 | B100: =Package_Services!B102 -> 0 | C100: =Package_Services!C102 -> 0 | D100: =Package_Services!D102 -> 0 | E100: =Package_Services!E102 -> 0 | F100: =Package_Services!F102 -> 0 | G100: =Package_Services!G102 -> 0 | H100: =Package_Services!H102 -> 0 | I100: =Package_Services!I102 -> 0 | K100: 0 | L100: 0 | M100: 0 | N100: 0 | O100: 0 | P100: 0 | R100: 0 | S100: 0 | T100: 0 | U100: 0 | V100: 0 | W100: 0 | Y100: =IF(Coverage!$G$4="Actual",Coverage!$C103,Coverage!$G103*$R100) -> 0 | Z100: =ROUNDUP(S100*Coverage!H103,0) -> 0 | AA100: =ROUNDUP(T100*Coverage!I103,0) -> 0 | AB100: =ROUNDUP(U100*Coverage!J103,0) -> 0 | AC100: =ROUNDUP(V100*Coverage!K103,0) -> 0 | AD100: =ROUNDUP(W100*Coverage!L103,0) -> 0
A101: 96 | B101: =Package_Services!B103 -> 0 | C101: =Package_Services!C103 -> 0 | D101: =Package_Services!D103 -> 0 | E101: =Package_Services!E103 -> 0 | F101: =Package_Services!F103 -> 0 | G101: =Package_Services!G103 -> 0 | H101: =Package_Services!H103 -> 0 | I101: =Package_Services!I103 -> 0 | K101: 0 | L101: 0 | M101: 0 | N101: 0 | O101: 0 | P101: 0 | R101: 0 | S101: 0 | T101: 0 | U101: 0 | V101: 0 | W101: 0 | Y101: =IF(Coverage!$G$4="Actual",Coverage!$C104,Coverage!$G104*$R101) -> 0 | Z101: =ROUNDUP(S101*Coverage!H104,0) -> 0 | AA101: =ROUNDUP(T101*Coverage!I104,0) -> 0 | AB101: =ROUNDUP(U101*Coverage!J104,0) -> 0 | AC101: =ROUNDUP(V101*Coverage!K104,0) -> 0 | AD101: =ROUNDUP(W101*Coverage!L104,0) -> 0
A102: 97 | B102: =Package_Services!B104 -> 0 | C102: =Package_Services!C104 -> 0 | D102: =Package_Services!D104 -> 0 | E102: =Package_Services!E104 -> 0 | F102: =Package_Services!F104 -> 0 | G102: =Package_Services!G104 -> 0 | H102: =Package_Services!H104 -> 0 | I102: =Package_Services!I104 -> 0 | K102: 0 | L102: 0 | M102: 0 | N102: 0 | O102: 0 | P102: 0 | R102: 0 | S102: 0 | T102: 0 | U102: 0 | V102: 0 | W102: 0 | Y102: =IF(Coverage!$G$4="Actual",Coverage!$C105,Coverage!$G105*$R102) -> 0 | Z102: =ROUNDUP(S102*Coverage!H105,0) -> 0 | AA102: =ROUNDUP(T102*Coverage!I105,0) -> 0 | AB102: =ROUNDUP(U102*Coverage!J105,0) -> 0 | AC102: =ROUNDUP(V102*Coverage!K105,0) -> 0 | AD102: =ROUNDUP(W102*Coverage!L105,0) -> 0
A103: 98 | B103: =Package_Services!B105 -> 0 | C103: =Package_Services!C105 -> 0 | D103: =Package_Services!D105 -> 0 | E103: =Package_Services!E105 -> 0 | F103: =Package_Services!F105 -> 0 | G103: =Package_Services!G105 -> 0 | H103: =Package_Services!H105 -> 0 | I103: =Package_Services!I105 -> 0 | K103: 0 | L103: 0 | M103: 0 | N103: 0 | O103: 0 | P103: 0 | R103: 0 | S103: 0 | T103: 0 | U103: 0 | V103: 0 | W103: 0 | Y103: =IF(Coverage!$G$4="Actual",Coverage!$C106,Coverage!$G106*$R103) -> 0 | Z103: =ROUNDUP(S103*Coverage!H106,0) -> 0 | AA103: =ROUNDUP(T103*Coverage!I106,0) -> 0 | AB103: =ROUNDUP(U103*Coverage!J106,0) -> 0 | AC103: =ROUNDUP(V103*Coverage!K106,0) -> 0 | AD103: =ROUNDUP(W103*Coverage!L106,0) -> 0
A104: 99 | B104: =Package_Services!B106 -> 0 | C104: =Package_Services!C106 -> 0 | D104: =Package_Services!D106 -> 0 | E104: =Package_Services!E106 -> 0 | F104: =Package_Services!F106 -> 0 | G104: =Package_Services!G106 -> 0 | H104: =Package_Services!H106 -> 0 | I104: =Package_Services!I106 -> 0 | K104: 0 | L104: 0 | M104: 0 | N104: 0 | O104: 0 | P104: 0 | R104: 0 | S104: 0 | T104: 0 | U104: 0 | V104: 0 | W104: 0 | Y104: =IF(Coverage!$G$4="Actual",Coverage!$C107,Coverage!$G107*$R104) -> 0 | Z104: =ROUNDUP(S104*Coverage!H107,0) -> 0 | AA104: =ROUNDUP(T104*Coverage!I107,0) -> 0 | AB104: =ROUNDUP(U104*Coverage!J107,0) -> 0 | AC104: =ROUNDUP(V104*Coverage!K107,0) -> 0 | AD104: =ROUNDUP(W104*Coverage!L107,0) -> 0
A105: 100 | B105: =Package_Services!B107 -> 0 | C105: =Package_Services!C107 -> 0 | D105: =Package_Services!D107 -> 0 | E105: =Package_Services!E107 -> 0 | F105: =Package_Services!F107 -> 0 | G105: =Package_Services!G107 -> 0 | H105: =Package_Services!H107 -> 0 | I105: =Package_Services!I107 -> 0 | K105: 0 | L105: 0 | M105: 0 | N105: 0 | O105: 0 | P105: 0 | R105: 0 | S105: 0 | T105: 0 | U105: 0 | V105: 0 | W105: 0 | Y105: =IF(Coverage!$G$4="Actual",Coverage!$C108,Coverage!$G108*$R105) -> 0 | Z105: =ROUNDUP(S105*Coverage!H108,0) -> 0 | AA105: =ROUNDUP(T105*Coverage!I108,0) -> 0 | AB105: =ROUNDUP(U105*Coverage!J108,0) -> 0 | AC105: =ROUNDUP(V105*Coverage!K108,0) -> 0 | AD105: =ROUNDUP(W105*Coverage!L108,0) -> 0
C107: TOTAL | R107: =SUM(R6:R105) -> 8671084 | S107: 5271846 | T107: 7122614 | U107: 9021682 | V107: 10970004 | W107: 12968556 | Y107: =SUM(Y6:Y105) -> 1734216.8 | Z107: 1476118 | AA107: 2492916 | AB107: 3834216 | AC107: 5485003 | AD107: 6484279

Sheet Summary_HCW (hidden)
A1: HEALTH CARE WORKER NUMBERS
A2: South Africa
C4: =baseline_year -> 2021 | D4: =baseline_year+1 -> 2022 | E4: =D4+1 -> 2023 | F4: =E4+1 -> 2024 | G4: =F4+1 -> 2025 | H4: =G4+1 -> 2026
B6: =_rt1 -> Optometrist
B7: Target Population | C7: =Demography!C$10 -> 14827172.5 | D7: =Demography!D$10 -> 9014624.337 | E7: =Demography!E$10 -> 12179358.45 | F7: =Demography!F$10 -> 15426679.9 | G7: =Demography!G$10 -> 18758225.69 | H7: =Demography!H$10 -> 22175661.78
